Workbook

Sheet Employee Cost Model
C1: Coverage Tier
B2: Enter Coverage Tier → | C2: Employee Only
B3: Enter Annual Salary → | C3: 75000
B4: Wellness Activities Complete? → | C4: Yes
C6: Premium Plan | D6: Base Plan | E6: Value Plan | F6: HDHP w/ Health Savings Account
B7: Employee Annual Contribution Amount | C7: =IF($C$2="Employee Only",VLOOKUP($C$3,'Bryant Contributions'!$C$3:$H$5,3,TRUE),IF($C$2="Employee + Child(ren)",VLOOKUP($C$3,'Bryant Contributions'!$C$6:$H$8,3,TRUE),VLOOKUP($C$3,'Bryant Contributions'!$C$9:$H$11,3,TRUE))) -> 3740.04 | D7: =IF($C$2="Employee Only",VLOOKUP($C$3,'Bryant Contributions'!$C$3:$H$5,4,TRUE),IF($C$2="Employee + Child(ren)",VLOOKUP($C$3,'Bryant Contributions'!$C$6:$H$8,4,TRUE),VLOOKUP($C$3,'Bryant Contributions'!$C$9:$H$11,4,TRUE))) -> 2392.8 | E7: =IF($C$2="Employee Only",VLOOKUP($C$3,'Bryant Contributions'!$C$3:$H$5,5,TRUE),IF($C$2="Employee + Child(ren)",VLOOKUP($C$3,'Bryant Contributions'!$C$6:$H$8,5,TRUE),VLOOKUP($C$3,'Bryant Contributions'!$C$9:$H$11,5,TRUE))) -> 1830.36 | F7: =IF($C$2="Employee Only",VLOOKUP($C$3,'Bryant Contributions'!$C$3:$H$5,6,TRUE),IF($C$2="Employee + Child(ren)",VLOOKUP($C$3,'Bryant Contributions'!$C$6:$H$8,6,TRUE),VLOOKUP($C$3,'Bryant Contributions'!$C$9:$H$11,6,TRUE))) -> 980.16
B8: Wellness Incentive | C8: =IF($C$4="Yes", -300,0) -> -300 | D8: =IF($C$4="Yes", -300,0) -> -300 | E8: -300 | F8: -300
B9: HSA Contribution | C9: — | D9: — | E9: — | F9: =-IF(C2="Employee Only",500,1000) -> -500
B10: Estimated Out-of-Pocket Costs | C10: =+'Data | Model'!CO223 -> 0 | D10: =+'Data | Model'!CO113 -> 0 | E10: =+'Data | Model'!CO333 -> 0 | F10: =+'Data | Model'!CO443 -> 0
B11: Employee's Total Cost | C11: =SUM(C7:C10) -> 3440.04 | D11: =SUM(D7:D10) -> 2092.8 | E11: 1530.36 | F11: =SUM(F7:F10) -> 180.16
C13: Employee | D13: Spouse (if enrolled) | E13: Child 1 (if enrolled) | F13: Child 2 (if enrolled) | G13: Child 3 (if enrolled)
A14: Inpatient Services | C14: Enter the number of services used annually below
B15: Inpatient Hospital Stays | C15: 0 | D15: 0 | E15: 0 | F15: 0 | G15: 0
B16: Mental/Behavioral Health Hospital | C16: 0 | D16: 0 | E16: 0 | F16: 0 | G16: 0
B17: Skilled Nursing Facility | C17: 0 | D17: 0 | E17: 0 | F17: 0 | G17: 0
A19: Outpatient Services
B20: Outpatient Surgery in a hospital | C20: 0 | D20: 0 | E20: 0 | F20: 0 | G20: 0
B21: Outpatient Surgery in an office | C21: 0 | D21: 0 | E21: 0 | F21: 0 | G21: 0
B23: Emergency Room Visits | C23: 0 | D23: 0 | E23: 0 | F23: 0 | G23: 0
B24: Urgent Care Facility | C24: 0 | D24: 0 | E24: 0 | F24: 0 | G24: 0
B26: X-rays Services | C26: 0 | D26: 0 | E26: 0 | F26: 0 | G26: 0
B27: Advanced Radiology (MRI/PET Scan/etc.) | C27: 0 | D27: 0 | E27: 0 | F27: 0 | G27: 0
B29: Primary Care Visits (other than annual physical and other preventive services) | C29: 0 | D29: 0 | E29: 0 | F29: 0 | G29: 0
B30: Specialist Visits (e.g. dermatologist, oncologist, etc.) | C30: 0 | D30: 0 | E30: 0 | F30: 0 | G30: 0
B31: Maternity / Pregnancy | C31: 0 | D31: 0 | E31: 0 | F31: 0 | G31: 0
B32: Physical Therapy Visits | C32: 0 | D32: 0 | E32: 0 | F32: 0 | G32: 0
B33: Chiropractic Visits | C33: 0 | D33: 0 | E33: 0 | F33: 0 | G33: 0
B34: Mental/Behavioral Health Visits | C34: 0 | D34: 0 | E34: 0 | F34: 0 | G34: 0
A36: Pharmacy Services | C36: Enter the number of prescriptions filled annually below
A37: Drugs purchased at a Retail Pharmacy (30-days per fill)
B38: Generic | C38: 0 | D38: 0 | E38: 0 | F38: 0 | G38: 0
B39: Formulary Brand | C39: 0 | D39: 0 | E39: 0 | F39: 0 | G39: 0
B40: Non-Formulary Brand | C40: 0 | D40: 0 | E40: 0 | F40: 0 | G40: 0
B41: Specialty | C41: 0 | D41: 0 | E41: 0 | F41: 0 | G41: 0
A42: Drugs purchased through Mail Order Service (90-days per fill)
B43: Generic | C43: 0 | D43: 0 | E43: 0 | F43: 0 | G43: 0
B44: Formulary Brand | C44: 0 | D44: 0 | E44: 0 | F44: 0 | G44: 0
B45: Non-Formulary Brand | C45: 0 | D45: 0 | E45: 0 | F45: 0 | G45: 0
B47: Note: Out-of-pocket costs are based on average cost of services across the categories represented. Actual experience may vary.

Sheet Bryant Contributions (hidden)
J1: Monthly Rates | O1: Bryant 2025 Status Quo Medical Rates and Contributions
A2: Coverage Level | B2: Salary Range | C2: Min Salary | E2: 2025 Premium Plan | F2: 2025 Base Plan | G2: 2025 Value Plan | H2: 2025 HDHP | J2: 2025 Premium Plan | K2: 2025 Base Plan | L2: 2025 Value Plan | M2: 2025 HDHP | P2: Bryant Subsidy (Non-Incentive)
A3: Individual | B3: < $55,000 | C3: 0 | D3: =A3&B3 -> Individual< $55,000 | E3: =+J3*12 -> 3099.12 | F3: =+K3*12 -> 1778.04 | G3: =+L3*12 -> 1202.52 | H3: =+M3*12 -> 378.48 | J3: =+P5 -> 258.26 | K3: =+P9 -> 148.17 | L3: =+P13 -> 100.21 | M3: =+P17 -> 31.54 | O3: <$55,000
A4: Individual | B4: $55,000 - $104,999 | C4: 55000 | D4: Individual$55,000 - $104,999 | E4: =+J4*12 -> 3740.04 | F4: =+K4*12 -> 2392.8 | G4: 1830.36 | H4: 980.16 | J4: =+P23 -> 311.67 | K4: =+P27 -> 199.4 | L4: =+P31 -> 152.53 | M4: =+P35 -> 81.68 | O4: Premium
A5: Individual | B5: $105,000+ | C5: 105000 | D5: Individual$105,000+ | E5: 4367.88 | F5: 3007.56 | G5: 2445.12 | H5: 1581.84 | J5: =+P41 -> 363.99 | K5: =+P45 -> 250.63 | L5: =+P49 -> 203.76 | M5: =+P53 -> 131.82 | O5: Individual | P5: =+'[1]2025 Rates & Contributions'!S8 -> 258.26
A6: Individual + Child/ren | B6: < $55,000 | C6: 0 | D6: Individual + Child/ren< $55,000 | E6: 6669.96 | F6: 3831.6 | G6: 2641.32 | H6: 888.6 | J6: =+P6 -> 555.83 | K6: =+P10 -> 319.3 | L6: =+P14 -> 220.11 | M6: =+P18 -> 74.05 | O6: EE+Child(ren) | P6: =+'[1]2025 Rates & Contributions'!S9 -> 555.83
A7: Individual + Child/ren | B7: $55,000 - $104,999 | C7: 55000 | D7: Individual + Child/ren$55,000 - $104,999 | E7: 8017.2 | F7: 5139.6 | G7: 3936.24 | H7: 2170.44 | J7: =+P24 -> 668.1 | K7: =+P28 -> 428.3 | L7: =+P32 -> 328.02 | M7: =+P36 -> 180.87 | O7: Family | P7: =+'[1]2025 Rates & Contributions'!S10 -> 615.78
A8: Individual + Child/ren | B8: $105,000+ | C8: 105000 | D8: Individual + Child/ren$105,000+ | E8: 9364.44 | F8: 6447.6 | G8: 5244.24 | H8: 3452.28 | J8: =+P42 -> 780.37 | K8: =+P46 -> 537.3 | L8: =+P50 -> 437.02 | M8: =+P54 -> 287.69 | O8: Base
A9: Family | B9: < $55,000 | C9: 0 | D9: =A9&B9 -> Family< $55,000 | E9: 7389.36 | F9: 4276.32 | G9: 2942.16 | H9: 1006.32 | J9: =+P7 -> 615.78 | K9: =+P11 -> 356.36 | L9: =+P15 -> 245.18 | M9: =+P19 -> 83.86 | O9: Individual | P9: =+'[1]2025 Rates & Contributions'!S12 -> 148.17
A10: Family | B10: $55,000 - $104,999 | C10: 55000 | D10: =A10&B10 -> Family$55,000 - $104,999 | E10: 8880.48 | F10: 5715.12 | G10: 4380.96 | H10: 2418.96 | J10: =+P25 -> 740.04 | K10: =+P29 -> 476.26 | L10: =+P33 -> 365.08 | M10: =+P37 -> 201.58 | O10: EE+Child(ren) | P10: =+'[1]2025 Rates & Contributions'!S13 -> 319.3
A11: Family | B11: $105,000+ | C11: 105000 | D11: =A11&B11 -> Family$105,000+ | E11: 10371.6 | F11: 7167 | G11: 5832.84 | H11: 3844.68 | J11: =+P43 -> 864.3 | K11: =+P47 -> 597.25 | L11: =+P51 -> 486.07 | M11: =+P55 -> 320.39 | O11: Family | P11: =+'[1]2025 Rates & Contributions'!S14 -> 356.36
O12: Value
O13: Individual | P13: =+'[1]2025 Rates & Contributions'!S16 -> 100.21
O14: EE+Child(ren) | P14: =+'[1]2025 Rates & Contributions'!S17 -> 220.11
O15: Family | P15: =+'[1]2025 Rates & Contributions'!S18 -> 245.18
O16: HDHP
O17: Individual | P17: =+'[1]2025 Rates & Contributions'!S20 -> 31.54
O18: EE+Child(ren) | P18: =+'[1]2025 Rates & Contributions'!S21 -> 74.05
O19: Family | P19: =+'[1]2025 Rates & Contributions'!S22 -> 83.86
O21: $55,000-$105,000
O22: Premium
O23: Individual | P23: =+'[1]2025 Rates & Contributions'!S26 -> 311.67
O24: EE+Child(ren) | P24: =+'[1]2025 Rates & Contributions'!S27 -> 668.1
O25: Family | P25: =+'[1]2025 Rates & Contributions'!S28 -> 740.04
O26: Base
O27: Individual | P27: =+'[1]2025 Rates & Contributions'!S30 -> 199.4
O28: EE+Child(ren) | P28: =+'[1]2025 Rates & Contributions'!S31 -> 428.3
O29: Family | P29: =+'[1]2025 Rates & Contributions'!S32 -> 476.26
O30: Value
O31: Individual | P31: =+'[1]2025 Rates & Contributions'!S34 -> 152.53
O32: EE+Child(ren) | P32: =+'[1]2025 Rates & Contributions'!S35 -> 328.02
O33: Family | P33: =+'[1]2025 Rates & Contributions'!S36 -> 365.08
O34: HDHP
O35: Individual | P35: =+'[1]2025 Rates & Contributions'!S38 -> 81.68
O36: EE+Child(ren) | P36: =+'[1]2025 Rates & Contributions'!S39 -> 180.87
O37: Family | P37: =+'[1]2025 Rates & Contributions'!S40 -> 201.58
O39: $105,000+
O40: Premium
O41: Individual | P41: =+'[1]2025 Rates & Contributions'!S44 -> 363.99
O42: EE+Child(ren) | P42: =+'[1]2025 Rates & Contributions'!S45 -> 780.37
O43: Family | P43: =+'[1]2025 Rates & Contributions'!S46 -> 864.3
O44: Base
O45: Individual | P45: =+'[1]2025 Rates & Contributions'!S48 -> 250.63
O46: EE+Child(ren) | P46: =+'[1]2025 Rates & Contributions'!S49 -> 537.3
O47: Family | P47: =+'[1]2025 Rates & Contributions'!S50 -> 597.25
O48: Value
O49: Individual | P49: =+'[1]2025 Rates & Contributions'!S52 -> 203.76
O50: EE+Child(ren) | P50: =+'[1]2025 Rates & Contributions'!S53 -> 437.02
O51: Family | P51: =+'[1]2025 Rates & Contributions'!S54 -> 486.07
O52: HDHP
O53: Individual | P53: =+'[1]2025 Rates & Contributions'!S56 -> 131.82
O54: EE+Child(ren) | P54: =+'[1]2025 Rates & Contributions'!S57 -> 287.69
O55: Family | P55: =+'[1]2025 Rates & Contributions'!S58 -> 320.39

Sheet Data | Model (hidden)
B1: NOTE MODEL CHANGE THAT REMOVES SPECIALTY MAIL ORDER
AU2: In-Network | AW2: Out-of-Network | AZ2: Medical/(Rx) In-Network Deductible Accumulators | BC2: Medical/(Rx) Out-of-Network Deductible Accumulators | BF2: Rx In-Network Deductible Accumulators | BI2: Rx Out-of-Network Deductible Accumulators | BQ2: In-Network | BS2: Out-of-Network | BU2: Medical/(Rx) In-Network OOPM Accumulators | BX2: Medical/(Rx) Out-of-Network OOPM Accumulators | CA2: Rx In-Network OOPM Accumulators | CD2: Rx Out-of-Network OOPM Accumulators | CG2: Total Accumulated Out-of-Pocket Costs | CJ2: Total Member Out-of-Pocket Costs | CM2: Total Subscriber Out-of-Pocket Costs
A3: Unique Subscriber ID | B3: Unique Member ID | C3: Division Indicator | D3: Annual Benefit Base Pay | E3: Medical Plan Election | F3: Medical Plan Tier Election | G3: In-Network / Out-of-Network Indicator | H3: Service Type | I3: Service Description | J3: Rx Tier | K3: Preventive or 100% Covered Under ACA | L3: Number of Claims / Services / Scripts | M3: Total Inpatient Days | N3: Total Allowed Amount (Eligible Charges) | O3: Total Plan Paid Amount | P3: Total Employee Paid Amount | Q3: Illustrative Allowed Amount | R3: Begin Member | S3: Begin Subscriber | T3: Member Row Count | U3: Subscriber Row Count | V3: End Member | W3: End Subscriber | X3: Plan Name Modeled | Y3: Plan Lookup | Z3: Tier Lookup | AA3: OON Option Available? | AB3: Network In/Out Lookup | AC3: Service Lookup | AD3: Preventive and In-Network? | AE3: Med / Rx | AF3: Separate Rx Deductible | AG3: Separate Rx OOPM | AH3: Apply Deductible? | AI3: Deductible Type | AJ3: OOPM Type | AK3: Apply Coinsurance? | AL3: Coinsurance | AM3: Min Copay | AN3: Standard Copay | AO3: Max Copay | AP3: Trend Factor | AQ3: Trended Allowed Amount | AR3: Average Allowed Amount | AS3: Accumulated Member Allowed | AT3: Accumulated Subscriber Allowed | AU3: Member Deductible | AV3: Subscriber Deductible | AW3: Member Deductible | AX3: Subscriber Deductible | AY3: Amount Applied Towards Deductible | AZ3: Member Additional Amount | BA3: Member Accumulated Amount | BB3: Subscriber Accumulated Amount | BC3: Member Additional Amount | BD3: Member Accumulated Amount | BE3: Subscriber Accumulated Amount | BF3: Member Additional Amount | BG3: Member Accumulated Amount | BH3: Subscriber Accumulated Amount | BI3: Member Additional Amount | BJ3: Member Accumulated Amount | BK3: Subscriber Accumulated Amount | BL3: Allowed Amount Remaining After Deductible | BM3: # of Copays to Charge | BN3: Total Copay Charges | BO3: Total Coinsurance Charges | BP3: Total Amount Applied Towards OOPM | BQ3: Member OOPM | BR3: Subscriber OOPM | BS3: Member OOPM | BT3: Subscriber OOPM | BU3: Member Additional Amount | BV3: Member Accumulated Amount | BW3: Subscriber Accumulated Amount | BX3: Member Additional Amount | BY3: Member Accumulated Amount | BZ3: Subscriber Accumulated Amount | CA3: Member Additional Amount | CB3: Member Accumulated Amount | CC3: Subscriber Accumulated Amount | CD3: Member Additional Amount | CE3: Member Accumulated Amount | CF3: Subscriber Accumulated Amount | CG3: In-Network | CH3: Out-of-Network | CI3: Total | CJ3: In-Network | CK3: Out-of-Network | CL3: Total | CM3: In-Network | CN3: Out-of-Network | CO3: Total
A4: 1 | B4: 1 | C4: — | D4: — | E4: =+'Employee Cost Model'!$D$6 -> Base Plan | F4: =+'Employee Cost Model'!$C$2 -> Employee Only | G4: In | H4: Inp | I4: Hospital | K4: N | L4: =+'Employee Cost Model'!C$15 -> 0 | M4: 0 | N4: =+L4*Q4 -> 0 | O4: — | P4: — | Q4: 24527.13205 | R4: =IF(AND(B4=B3,S4=0),0,1) -> 1 | S4: =IF(A4=A3,0,1) -> 1 | T4: =IF(R4,R4,T3+1) -> 1 | U4: =IF(S4,S4,U3+1) -> 1 | V4: =IF(AND(B4=B5,W4=0),0,1) -> 0 | W4: =IF(A4=A5,0,1) -> 0 | X4: =E4 -> Base Plan | Y4: =MATCH(X4,PlanList,0) -> 2 | Z4: =IF(F4="Employee Only",0,1) -> 0 | AA4: =VLOOKUP(Y4,PlanIndex,4,0) -> 0 | AB4: =IF(G4="In",0,1) -> 0 | AC4: =IF(H4="Rx",H4&I4&MIN(J4,4),H4&I4) -> InpHospital | AD4: =IF(K4&AB4="Y0",1,0) -> 0 | AE4: =IF(H4<>"Rx",0,1) -> 0 | AF4: =IF(OFFSET(OffsetStart,SepRxDed-1,MATCH(Y4,PlanLookupRange,0)-1+3*AA4*AB4)="No",0,1) -> 0 | AG4: =IF(OFFSET(OffsetStart,SepRxOOPM-1,MATCH(Y4,PlanLookupRange,0)-1+3*AA4*AB4)="No",0,1) -> 0 | AH4: =OFFSET(OffsetStart, MATCH(AC4,ServiceLookups,0)-1,MATCH(Y4,PlanLookupRange,0)-1+3*AA4*AB4) -> 2 | AI4: =IF(OFFSET(OffsetStart,DedTypeRange-1,MATCH(Y4,PlanLookupRange,0)-1+3*AA4*AB4)="Embedded",0,1) -> 0 | AJ4: =IF(OFFSET(OffsetStart,OOPMTypeRange-1,MATCH(Y4,PlanLookupRange,0)-1+3*AA4*AB4)="Embedded",0,1) -> 0 | AK4: =OFFSET(OffsetStart, MATCH(AC4,ServiceLookups,0)-1,MATCH(Y4,PlanLookupRange,0)+3*AA4*AB4) -> 2 | AL4: =IF(AD4, 0, CHOOSE(AK4,OFFSET(OffsetStart,CoinsRange-1,MATCH(Y4,PlanLookupRange,0)-1+3*AA4*AB4),0,IF(AE4,OFFSET(OffsetStart,MATCH(AC4,ServiceLookups,0),MATCH(Y4,PlanLookupRange,0)-1+3*AA4*AB4)))) -> 0 | AM4: =IF(OR(AD4,AE4=0), 0, OFFSET(OffsetStart,MATCH(AC4,ServiceLookups,0),MATCH(Y4,PlanLookupRange,0)+3*AA4*AB4)) -> 0 | AN4: =IF(AD4, 0, OFFSET(OffsetStart, MATCH(AC4,ServiceLookups,0)-1,MATCH(Y4,PlanLookupRange,0)+1+3*AA4*AB4)) -> 0 | AO4: =IF(OR(AD4,AE4=0), 0, OFFSET(OffsetStart,MATCH(AC4,ServiceLookups,0),MATCH(Y4,PlanLookupRange,0)+1+3*AA4*AB4)) -> 0 | AP4: =CHOOSE(AE4+1,(1+VLOOKUP(LEFT(AC4,3),TrendLookup,3,0))^(TrendMonths/12),(1+VLOOKUP(H4&J4,TrendLookup,3,0))^(TrendMonths/12)) -> 1 | AQ4: =+AP4*N4 -> 0 | AR4: =IFERROR(AQ4/L4,AQ4) -> 0 | AS4: =IF(R4,AQ4,AQ4+AS3) -> 0 | AT4: =IF(S4,AQ4,AQ4+AT3) -> 0 | AU4: =IF(AND(AE4,AF4),OFFSET(OffsetStart,RxDedRange-1+1*Z4*AI4,MATCH(Y4,PlanLookupRange,0)-1), OFFSET(OffsetStart,MedDedRange-1+1*Z4*AI4,MATCH(Y4,PlanLookupRange,0)-1)) -> 500 | AV4: =IF(AND(AE4,AF4),OFFSET(OffsetStart,RxDedRange-1+1*Z4,MATCH(Y4,PlanLookupRange,0)-1), OFFSET(OffsetStart,MedDedRange-1+1*Z4,MATCH(Y4,PlanLookupRange,0)-1)) -> 500 | AW4: =IF(AA4=0,0, IF(AND(AE4,AF4), OFFSET(OffsetStart,RxDedRange-1+1*Z4*AI4,MATCH(Y4,PlanLookupRange,0)+2), OFFSET(OffsetStart,MedDedRange-1+1*Z4*AI4,MATCH(Y4,PlanLookupRange,0)+2))) -> 0 | AX4: =IF(AA4=0,0, IF(AND(AE4,AF4),OFFSET(OffsetStart,RxDedRange-1+1*Z4,MATCH(Y4,PlanLookupRange,0)+2), OFFSET(OffsetStart,MedDedRange-1+1*Z4,MATCH(Y4,PlanLookupRange,0)+2))) -> 0 | AY4: =IF(OR(AD4=1,AH4=1),0,AQ4) -> 0 | AZ4: =IF(OR(AB4=1,AH4=1,AND(AF4=1,AE4=1)), 0, IF(OR(AND(BA3=AU4,R4=0),AND(BB3=AV4,S4=0)), 0, CHOOSE(R4+S4+1, MIN(AY4,AU4,MAX(AU4-BA3,0),MAX(AV4-BB3,0)), MIN(AY4,AU4,MAX(AV4-BB3,0)), MIN(AY4,AU4)))) -> 0 | BA4: =IF(R4,AZ4,MIN(AU4,SUM(OFFSET(AZ4,-(T4-1),0,T4)))) -> 0 | BB4: =IF(S4,AZ4,MIN(AV4,SUM(OFFSET(AZ4,-(U4-1),0,U4)))) -> 0 | BC4: =IF(OR(AB4=0,AH4=1,AND(AF4=1,AE4=1)), 0, IF(OR(AND(BD3=AW4,R4=0),AND(BE3=AX4,S4=0)), 0, CHOOSE(R4+S4+1, MIN(AY4,AW4,MAX(AW4-BD3,0),MAX(AX4-BE3,0)), MIN(AY4,AW4,MAX(AX4-BE3,0)), MIN(AY4,AW4)))) -> 0 | BD4: =IF(R4,BC4,MIN(AW4,SUM(OFFSET(BC4,-(T4-1),0,T4)))) -> 0 | BE4: =IF(S4,BC4,MIN(AX4,SUM(OFFSET(BC4,-(U4-1),0,U4)))) -> 0 | BF4: =IF(OR(AB4=1,AH4=1,AE4=0,AF4=0), 0, IF(OR(AND(BG3=AU4,R4=0),AND(BH3=AV4,S4=0)), 0, CHOOSE(R4+S4+1, MIN(AY4,AU4,MAX(AU4-BG3,0),MAX(AV4-BH3,0)), MIN(AY4,AU4,MAX(AV4-BH3,0)), MIN(AY4,AU4)))) -> 0 | BG4: =IF(R4,BF4,MIN(AU4,SUM(OFFSET(BF4,-(T4-1),0,T4)))) -> 0 | BH4: =IF(S4,BF4,MIN(AV4,SUM(OFFSET(BF4,-(U4-1),0,U4)))) -> 0 | BI4: =IF(OR(AB4=0,AH4=1,AE4=0,AF4=0), 0, IF(OR(AND(BJ3=AW4,R4=0),AND(BK3=AX4,S4=0)), 0, CHOOSE(R4+S4+1, MIN(AY4,AW4,MAX(AW4-BJ3,0),MAX(AX4-BK3,0)), MIN(AY4,AW4,MAX(AX4-BK3,0)), MIN(AY4,AW4)))) -> 0 | BJ4: =IF(R4,BI4,MIN(AW4,SUM(OFFSET(BI4,-(T4-1),0,T4)))) -> 0 | BK4: =IF(S4,BI4,MIN(AX4,SUM(OFFSET(BI4,-(U4-1),0,U4)))) -> 0 | BL4: =AQ4-AZ4-BC4-BF4-BI4 -> 0 | BM4: =IFERROR(IF(AE4=0,CHOOSE(AK4,0,MIN(L4,MAX(ROUNDUP(BL4/AR4,0),0)),MIN(M4,MAX(ROUNDUP(BL4/AR4,0),0))), CHOOSE(AK4,0,MIN(L4,MAX(ROUNDUP(BL4/AR4,0),0)),MIN(L4,MAX(ROUNDUP(BL4/AR4,0),0)))),0) -> 0 | BN4: =+IF(AE4, CHOOSE(AK4,0,AN4*BM4,MIN(MAX(AM4*BM4,AL4*AR4*BM4),AO4*BM4)), IF(AN4=0,0,IF(BL4>=0,MIN(BM4*AN4,BL4),MAX(BM4*AN4,BL4)))) -> 0 | BO4: =+IF(AND(AE4,AK4=3),0,BL4*AL4) -> 0 | BP4: =+BN4+BO4+AZ4+BC4+BF4+BI4 -> 0 | BQ4: =IF(AND(AE4,AG4),OFFSET(OffsetStart,RxOOPMRange-1+1*Z4*AJ4,MATCH(Y4,PlanLookupRange,0)-1), OFFSET(OffsetStart,MedOOPMRange-1+1*Z4*AJ4,MATCH(Y4,PlanLookupRange,0)-1)) -> 3500 | BR4: =IF(AND(AE4,AG4),OFFSET(OffsetStart,RxOOPMRange-1+1*Z4,MATCH(Y4,PlanLookupRange,0)-1), OFFSET(OffsetStart,MedOOPMRange-1+1*Z4,MATCH(Y4,PlanLookupRange,0)-1)) -> 3500 | BS4: =IF(AA4=0,0, IF(AND(AE4,AG4), OFFSET(OffsetStart,RxOOPMRange-1+1*Z4*AJ4,MATCH(Y4,PlanLookupRange,0)+2), OFFSET(OffsetStart,MedOOPMRange-1+1*Z4*AI4,MATCH(Y4,PlanLookupRange,0)+2))) -> 0 | BT4: =IF(AA4=0,0, IF(AND(AE4,AG4),OFFSET(OffsetStart,RxOOPMRange-1+1*Z4,MATCH(Y4,PlanLookupRange,0)+2), OFFSET(OffsetStart,MedOOPMRange-1+1*Z4,MATCH(Y4,PlanLookupRange,0)+2))) -> 0 | BU4: =IF(OR(AB4=1,AND(AG4=1,AE4=1)), 0, IF(OR(AND(BV3=BQ4,R4=0,BP4<0),AND(BW3=BR4,S4=0,BP4<0)), MAX(BP4,-BQ4), CHOOSE(R4+S4+1, MIN(BP4,BQ4,MAX(BQ4-BV3,0),MAX(BR4-BW3,0)), MIN(BP4,BQ4,MAX(BR4-BW3,0)), MIN(BP4,BQ4)))) -> 0 | BV4: =IF(R4,BU4,MIN(BQ4,SUM(OFFSET(BU4,-(T4-1),0,T4)))) -> 0 | BW4: =IF(S4,BU4,MIN(BR4,SUM(OFFSET(BU4,-(U4-1),0,U4)))) -> 0 | BX4: =IF(OR(AB4=0,AND(AG4=1,AE4=1)), 0, IF(OR(AND(BY3=BS4,R4=0,BP4<0),AND(BZ3=BT4,S4=0,BP4<0)), MAX(BP4,-BS4), CHOOSE(R4+S4+1, MIN(BP4,BS4,MAX(BS4-BY3,0),MAX(BT4-BZ3,0)), MIN(BP4,BS4,MAX(BT4-BZ3,0)), MIN(BP4,BS4)))) -> 0 | BY4: =IF(R4,BX4,MIN(BS4,SUM(OFFSET(BX4,-(T4-1),0,T4)))) -> 0 | BZ4: =IF(S4,BX4,MIN(BT4,SUM(OFFSET(BX4,-(U4-1),0,U4)))) -> 0 | CA4: =IF(OR(AB4=1,AE4=0,AG4=0), 0, IF(OR(AND(CB3=BQ4,R4=0,BP4<0),AND(CC3=BR4,S4=0,BP4<0)), MAX(BP4,-BQ4), CHOOSE(R4+S4+1, MIN(BP4,BQ4,MAX(BQ4-CB3,0),MAX(BR4-CC3,0)), MIN(BP4,BQ4,MAX(BR4-CC3,0)), MIN(BP4,BQ4)))) -> 0 | CB4: =IF(R4,CA4,MIN(BQ4,SUM(OFFSET(CA4,-(T4-1),0,T4)))) -> 0 | CC4: =IF(S4,CA4,MIN(BR4,SUM(OFFSET(CA4,-(U4-1),0,U4)))) -> 0 | CD4: =IF(OR(AB4=0,AE4=0,AG4=0), 0, IF(OR(AND(CE3=BS4,R4=0,BP4<0),AND(CF3=BT4,S4=0,BP4<0)), MAX(BP4,-BS4), CHOOSE(R4+S4+1, MIN(BP4,BS4,MAX(BS4-CE3,0),MAX(BT4-CF3,0)), MIN(BP4,BS4,MAX(BT4-CF3,0)), MIN(BP4,BS4)))) -> 0 | CE4: =IF(R4,CD4,MIN(BS4,SUM(OFFSET(CD4,-(T4-1),0,T4)))) -> 0 | CF4: =IF(S4,CD4,MIN(BT4,SUM(OFFSET(CD4,-(U4-1),0,U4)))) -> 0 | CG4: =IF(S4,BU4+CA4,BU4+CA4+CG3) -> 0 | CH4: =IF(S4,BX4+CD4,BX4+CD4+CH3) -> 0 | CI4: =+CG4+CH4 -> 0 | CJ4: =+CG4*$V4 -> 0 | CK4: =+CH4*$V4 -> 0 | CL4: =+CI4*$V4 -> 0 | CM4: =+CG4*$W4 -> 0 | CN4: =+CH4*$W4 -> 0 | CO4: =+CI4*$W4 -> 0
A5: 1 | B5: 1 | C5: — | D5: — | E5: =+E4 -> Base Plan | F5: =+'Employee Cost Model'!$C$2 -> Employee Only | G5: In | H5: Inp | I5: MHSA | K5: N | L5: =+'Employee Cost Model'!C$16 -> 0 | M5: 0 | N5: =+L5*Q5 -> 0 | O5: — | P5: — | Q5: 11851.45063 | R5: =IF(AND(B5=B4,S5=0),0,1) -> 0 | S5: =IF(A5=A4,0,1) -> 0 | T5: =IF(R5,R5,T4+1) -> 2 | U5: =IF(S5,S5,U4+1) -> 2 | V5: =IF(AND(B5=B6,W5=0),0,1) -> 0 | W5: =IF(A5=A6,0,1) -> 0 | X5: =E5 -> Base Plan | Y5: =MATCH(X5,PlanList,0) -> 2 | Z5: 0 | AA5: =VLOOKUP(Y5,PlanIndex,4,0) -> 0 | AB5: =IF(G5="In",0,1) -> 0 | AC5: =IF(H5="Rx",H5&I5&MIN(J5,4),H5&I5) -> InpMHSA | AD5: =IF(K5&AB5="Y0",1,0) -> 0 | AE5: =IF(H5<>"Rx",0,1) -> 0 | AF5: =IF(OFFSET(OffsetStart,SepRxDed-1,MATCH(Y5,PlanLookupRange,0)-1+3*AA5*AB5)="No",0,1) -> 0 | AG5: =IF(OFFSET(OffsetStart,SepRxOOPM-1,MATCH(Y5,PlanLookupRange,0)-1+3*AA5*AB5)="No",0,1) -> 0 | AH5: =OFFSET(OffsetStart, MATCH(AC5,ServiceLookups,0)-1,MATCH(Y5,PlanLookupRange,0)-1+3*AA5*AB5) -> 2 | AI5: =IF(OFFSET(OffsetStart,DedTypeRange-1,MATCH(Y5,PlanLookupRange,0)-1+3*AA5*AB5)="Embedded",0,1) -> 0 | AJ5: =IF(OFFSET(OffsetStart,OOPMTypeRange-1,MATCH(Y5,PlanLookupRange,0)-1+3*AA5*AB5)="Embedded",0,1) -> 0 | AK5: =OFFSET(OffsetStart, MATCH(AC5,ServiceLookups,0)-1,MATCH(Y5,PlanLookupRange,0)+3*AA5*AB5) -> 2 | AL5: =IF(AD5, 0, CHOOSE(AK5,OFFSET(OffsetStart,CoinsRange-1,MATCH(Y5,PlanLookupRange,0)-1+3*AA5*AB5),0,IF(AE5,OFFSET(OffsetStart,MATCH(AC5,ServiceLookups,0),MATCH(Y5,PlanLookupRange,0)-1+3*AA5*AB5)))) -> 0 | AM5: =IF(OR(AD5,AE5=0), 0, OFFSET(OffsetStart,MATCH(AC5,ServiceLookups,0),MATCH(Y5,PlanLookupRange,0)+3*AA5*AB5)) -> 0 | AN5: =IF(AD5, 0, OFFSET(OffsetStart, MATCH(AC5,ServiceLookups,0)-1,MATCH(Y5,PlanLookupRange,0)+1+3*AA5*AB5)) -> 0 | AO5: =IF(OR(AD5,AE5=0), 0, OFFSET(OffsetStart,MATCH(AC5,ServiceLookups,0),MATCH(Y5,PlanLookupRange,0)+1+3*AA5*AB5)) -> 0 | AP5: =CHOOSE(AE5+1,(1+VLOOKUP(LEFT(AC5,3),TrendLookup,3,0))^(TrendMonths/12),(1+VLOOKUP(H5&J5,TrendLookup,3,0))^(TrendMonths/12)) -> 1 | AQ5: =+AP5*N5 -> 0 | AR5: =IFERROR(AQ5/L5,AQ5) -> 0 | AS5: =IF(R5,AQ5,AQ5+AS4) -> 0 | AT5: =IF(S5,AQ5,AQ5+AT4) -> 0 | AU5: =IF(AND(AE5,AF5),OFFSET(OffsetStart,RxDedRange-1+1*Z5*AI5,MATCH(Y5,PlanLookupRange,0)-1), OFFSET(OffsetStart,MedDedRange-1+1*Z5*AI5,MATCH(Y5,PlanLookupRange,0)-1)) -> 500 | AV5: =IF(AND(AE5,AF5),OFFSET(OffsetStart,RxDedRange-1+1*Z5,MATCH(Y5,PlanLookupRange,0)-1), OFFSET(OffsetStart,MedDedRange-1+1*Z5,MATCH(Y5,PlanLookupRange,0)-1)) -> 500 | AW5: =IF(AA5=0,0, IF(AND(AE5,AF5), OFFSET(OffsetStart,RxDedRange-1+1*Z5*AI5,MATCH(Y5,PlanLookupRange,0)+2), OFFSET(OffsetStart,MedDedRange-1+1*Z5*AI5,MATCH(Y5,PlanLookupRange,0)+2))) -> 0 | AX5: =IF(AA5=0,0, IF(AND(AE5,AF5),OFFSET(OffsetStart,RxDedRange-1+1*Z5,MATCH(Y5,PlanLookupRange,0)+2), OFFSET(OffsetStart,MedDedRange-1+1*Z5,MATCH(Y5,PlanLookupRange,0)+2))) -> 0 | AY5: =IF(OR(AD5=1,AH5=1),0,AQ5) -> 0 | AZ5: =IF(OR(AB5=1,AH5=1,AND(AF5=1,AE5=1)), 0, IF(OR(AND(BA4=AU5,R5=0),AND(BB4=AV5,S5=0)), 0, CHOOSE(R5+S5+1, MIN(AY5,AU5,MAX(AU5-BA4,0),MAX(AV5-BB4,0)), MIN(AY5,AU5,MAX(AV5-BB4,0)), MIN(AY5,AU5)))) -> 0 | BA5: =IF(R5,AZ5,MIN(AU5,SUM(OFFSET(AZ5,-(T5-1),0,T5)))) -> 0 | BB5: =IF(S5,AZ5,MIN(AV5,SUM(OFFSET(AZ5,-(U5-1),0,U5)))) -> 0 | BC5: =IF(OR(AB5=0,AH5=1,AND(AF5=1,AE5=1)), 0, IF(OR(AND(BD4=AW5,R5=0),AND(BE4=AX5,S5=0)), 0, CHOOSE(R5+S5+1, MIN(AY5,AW5,MAX(AW5-BD4,0),MAX(AX5-BE4,0)), MIN(AY5,AW5,MAX(AX5-BE4,0)), MIN(AY5,AW5)))) -> 0 | BD5: =IF(R5,BC5,MIN(AW5,SUM(OFFSET(BC5,-(T5-1),0,T5)))) -> 0 | BE5: =IF(S5,BC5,MIN(AX5,SUM(OFFSET(BC5,-(U5-1),0,U5)))) -> 0 | BF5: =IF(OR(AB5=1,AH5=1,AE5=0,AF5=0), 0, IF(OR(AND(BG4=AU5,R5=0),AND(BH4=AV5,S5=0)), 0, CHOOSE(R5+S5+1, MIN(AY5,AU5,MAX(AU5-BG4,0),MAX(AV5-BH4,0)), MIN(AY5,AU5,MAX(AV5-BH4,0)), MIN(AY5,AU5)))) -> 0 | BG5: =IF(R5,BF5,MIN(AU5,SUM(OFFSET(BF5,-(T5-1),0,T5)))) -> 0 | BH5: =IF(S5,BF5,MIN(AV5,SUM(OFFSET(BF5,-(U5-1),0,U5)))) -> 0 | BI5: =IF(OR(AB5=0,AH5=1,AE5=0,AF5=0), 0, IF(OR(AND(BJ4=AW5,R5=0),AND(BK4=AX5,S5=0)), 0, CHOOSE(R5+S5+1, MIN(AY5,AW5,MAX(AW5-BJ4,0),MAX(AX5-BK4,0)), MIN(AY5,AW5,MAX(AX5-BK4,0)), MIN(AY5,AW5)))) -> 0 | BJ5: =IF(R5,BI5,MIN(AW5,SUM(OFFSET(BI5,-(T5-1),0,T5)))) -> 0 | BK5: =IF(S5,BI5,MIN(AX5,SUM(OFFSET(BI5,-(U5-1),0,U5)))) -> 0 | BL5: =AQ5-AZ5-BC5-BF5-BI5 -> 0 | BM5: =IFERROR(IF(AE5=0,CHOOSE(AK5,0,MIN(L5,MAX(ROUNDUP(BL5/AR5,0),0)),MIN(M5,MAX(ROUNDUP(BL5/AR5,0),0))), CHOOSE(AK5,0,MIN(L5,MAX(ROUNDUP(BL5/AR5,0),0)),MIN(L5,MAX(ROUNDUP(BL5/AR5,0),0)))),0) -> 0 | BN5: =+IF(AE5, CHOOSE(AK5,0,AN5*BM5,MIN(MAX(AM5*BM5,AL5*AR5*BM5),AO5*BM5)), IF(AN5=0,0,IF(BL5>=0,MIN(BM5*AN5,BL5),MAX(BM5*AN5,BL5)))) -> 0 | BO5: =+IF(AND(AE5,AK5=3),0,BL5*AL5) -> 0 | BP5: =+BN5+BO5+AZ5+BC5+BF5+BI5 -> 0 | BQ5: =IF(AND(AE5,AG5),OFFSET(OffsetStart,RxOOPMRange-1+1*Z5*AJ5,MATCH(Y5,PlanLookupRange,0)-1), OFFSET(OffsetStart,MedOOPMRange-1+1*Z5*AJ5,MATCH(Y5,PlanLookupRange,0)-1)) -> 3500 | BR5: =IF(AND(AE5,AG5),OFFSET(OffsetStart,RxOOPMRange-1+1*Z5,MATCH(Y5,PlanLookupRange,0)-1), OFFSET(OffsetStart,MedOOPMRange-1+1*Z5,MATCH(Y5,PlanLookupRange,0)-1)) -> 3500 | BS5: =IF(AA5=0,0, IF(AND(AE5,AG5), OFFSET(OffsetStart,RxOOPMRange-1+1*Z5*AJ5,MATCH(Y5,PlanLookupRange,0)+2), OFFSET(OffsetStart,MedOOPMRange-1+1*Z5*AI5,MATCH(Y5,PlanLookupRange,0)+2))) -> 0 | BT5: =IF(AA5=0,0, IF(AND(AE5,AG5),OFFSET(OffsetStart,RxOOPMRange-1+1*Z5,MATCH(Y5,PlanLookupRange,0)+2), OFFSET(OffsetStart,MedOOPMRange-1+1*Z5,MATCH(Y5,PlanLookupRange,0)+2))) -> 0 | BU5: =IF(OR(AB5=1,AND(AG5=1,AE5=1)), 0, IF(OR(AND(BV4=BQ5,R5=0,BP5<0),AND(BW4=BR5,S5=0,BP5<0)), MAX(BP5,-BQ5), CHOOSE(R5+S5+1, MIN(BP5,BQ5,MAX(BQ5-BV4,0),MAX(BR5-BW4,0)), MIN(BP5,BQ5,MAX(BR5-BW4,0)), MIN(BP5,BQ5)))) -> 0 | BV5: =IF(R5,BU5,MIN(BQ5,SUM(OFFSET(BU5,-(T5-1),0,T5)))) -> 0 | BW5: =IF(S5,BU5,MIN(BR5,SUM(OFFSET(BU5,-(U5-1),0,U5)))) -> 0 | BX5: =IF(OR(AB5=0,AND(AG5=1,AE5=1)), 0, IF(OR(AND(BY4=BS5,R5=0,BP5<0),AND(BZ4=BT5,S5=0,BP5<0)), MAX(BP5,-BS5), CHOOSE(R5+S5+1, MIN(BP5,BS5,MAX(BS5-BY4,0),MAX(BT5-BZ4,0)), MIN(BP5,BS5,MAX(BT5-BZ4,0)), MIN(BP5,BS5)))) -> 0 | BY5: =IF(R5,BX5,MIN(BS5,SUM(OFFSET(BX5,-(T5-1),0,T5)))) -> 0 | BZ5: =IF(S5,BX5,MIN(BT5,SUM(OFFSET(BX5,-(U5-1),0,U5)))) -> 0 | CA5: =IF(OR(AB5=1,AE5=0,AG5=0), 0, IF(OR(AND(CB4=BQ5,R5=0,BP5<0),AND(CC4=BR5,S5=0,BP5<0)), MAX(BP5,-BQ5), CHOOSE(R5+S5+1, MIN(BP5,BQ5,MAX(BQ5-CB4,0),MAX(BR5-CC4,0)), MIN(BP5,BQ5,MAX(BR5-CC4,0)), MIN(BP5,BQ5)))) -> 0 | CB5: =IF(R5,CA5,MIN(BQ5,SUM(OFFSET(CA5,-(T5-1),0,T5)))) -> 0 | CC5: =IF(S5,CA5,MIN(BR5,SUM(OFFSET(CA5,-(U5-1),0,U5)))) -> 0 | CD5: =IF(OR(AB5=0,AE5=0,AG5=0), 0, IF(OR(AND(CE4=BS5,R5=0,BP5<0),AND(CF4=BT5,S5=0,BP5<0)), MAX(BP5,-BS5), CHOOSE(R5+S5+1, MIN(BP5,BS5,MAX(BS5-CE4,0),MAX(BT5-CF4,0)), MIN(BP5,BS5,MAX(BT5-CF4,0)), MIN(BP5,BS5)))) -> 0 | CE5: =IF(R5,CD5,MIN(BS5,SUM(OFFSET(CD5,-(T5-1),0,T5)))) -> 0 | CF5: =IF(S5,CD5,MIN(BT5,SUM(OFFSET(CD5,-(U5-1),0,U5)))) -> 0 | CG5: =IF(S5,BU5+CA5,BU5+CA5+CG4) -> 0 | CH5: =IF(S5,BX5+CD5,BX5+CD5+CH4) -> 0 | CI5: =+CG5+CH5 -> 0 | CJ5: =+CG5*$V5 -> 0 | CK5: =+CH5*$V5 -> 0 | CL5: =+CI5*$V5 -> 0 | CM5: =+CG5*$W5 -> 0 | CN5: =+CH5*$W5 -> 0 | CO5: =+CI5*$W5 -> 0
A6: 1 | B6: 1 | C6: — | D6: — | E6: =+E5 -> Base Plan | F6: =+'Employee Cost Model'!$C$2 -> Employee Only | G6: In | H6: Inp | I6: SNF | K6: N | L6: =+'Employee Cost Model'!C$17 -> 0 | M6: 0 | N6: =+L6*Q6 -> 0 | O6: — | P6: — | Q6: 6523.462072 | R6: =IF(AND(B6=B5,S6=0),0,1) -> 0 | S6: =IF(A6=A5,0,1) -> 0 | T6: =IF(R6,R6,T5+1) -> 3 | U6: =IF(S6,S6,U5+1) -> 3 | V6: =IF(AND(B6=B7,W6=0),0,1) -> 0 | W6: =IF(A6=A7,0,1) -> 0 | X6: =E6 -> Base Plan | Y6: =MATCH(X6,PlanList,0) -> 2 | Z6: 0 | AA6: =VLOOKUP(Y6,PlanIndex,4,0) -> 0 | AB6: =IF(G6="In",0,1) -> 0 | AC6: =IF(H6="Rx",H6&I6&MIN(J6,4),H6&I6) -> InpSNF | AD6: =IF(K6&AB6="Y0",1,0) -> 0 | AE6: =IF(H6<>"Rx",0,1) -> 0 | AF6: =IF(OFFSET(OffsetStart,SepRxDed-1,MATCH(Y6,PlanLookupRange,0)-1+3*AA6*AB6)="No",0,1) -> 0 | AG6: =IF(OFFSET(OffsetStart,SepRxOOPM-1,MATCH(Y6,PlanLookupRange,0)-1+3*AA6*AB6)="No",0,1) -> 0 | AH6: =OFFSET(OffsetStart, MATCH(AC6,ServiceLookups,0)-1,MATCH(Y6,PlanLookupRange,0)-1+3*AA6*AB6) -> 2 | AI6: =IF(OFFSET(OffsetStart,DedTypeRange-1,MATCH(Y6,PlanLookupRange,0)-1+3*AA6*AB6)="Embedded",0,1) -> 0 | AJ6: =IF(OFFSET(OffsetStart,OOPMTypeRange-1,MATCH(Y6,PlanLookupRange,0)-1+3*AA6*AB6)="Embedded",0,1) -> 0 | AK6: =OFFSET(OffsetStart, MATCH(AC6,ServiceLookups,0)-1,MATCH(Y6,PlanLookupRange,0)+3*AA6*AB6) -> 2 | AL6: =IF(AD6, 0, CHOOSE(AK6,OFFSET(OffsetStart,CoinsRange-1,MATCH(Y6,PlanLookupRange,0)-1+3*AA6*AB6),0,IF(AE6,OFFSET(OffsetStart,MATCH(AC6,ServiceLookups,0),MATCH(Y6,PlanLookupRange,0)-1+3*AA6*AB6)))) -> 0 | AM6: =IF(OR(AD6,AE6=0), 0, OFFSET(OffsetStart,MATCH(AC6,ServiceLookups,0),MATCH(Y6,PlanLookupRange,0)+3*AA6*AB6)) -> 0 | AN6: =IF(AD6, 0, OFFSET(OffsetStart, MATCH(AC6,ServiceLookups,0)-1,MATCH(Y6,PlanLookupRange,0)+1+3*AA6*AB6)) -> 0 | AO6: =IF(OR(AD6,AE6=0), 0, OFFSET(OffsetStart,MATCH(AC6,ServiceLookups,0),MATCH(Y6,PlanLookupRange,0)+1+3*AA6*AB6)) -> 0 | AP6: =CHOOSE(AE6+1,(1+VLOOKUP(LEFT(AC6,3),TrendLookup,3,0))^(TrendMonths/12),(1+VLOOKUP(H6&J6,TrendLookup,3,0))^(TrendMonths/12)) -> 1 | AQ6: =+AP6*N6 -> 0 | AR6: =IFERROR(AQ6/L6,AQ6) -> 0 | AS6: =IF(R6,AQ6,AQ6+AS5) -> 0 | AT6: =IF(S6,AQ6,AQ6+AT5) -> 0 | AU6: =IF(AND(AE6,AF6),OFFSET(OffsetStart,RxDedRange-1+1*Z6*AI6,MATCH(Y6,PlanLookupRange,0)-1), OFFSET(OffsetStart,MedDedRange-1+1*Z6*AI6,MATCH(Y6,PlanLookupRange,0)-1)) -> 500 | AV6: =IF(AND(AE6,AF6),OFFSET(OffsetStart,RxDedRange-1+1*Z6,MATCH(Y6,PlanLookupRange,0)-1), OFFSET(OffsetStart,MedDedRange-1+1*Z6,MATCH(Y6,PlanLookupRange,0)-1)) -> 500 | AW6: =IF(AA6=0,0, IF(AND(AE6,AF6), OFFSET(OffsetStart,RxDedRange-1+1*Z6*AI6,MATCH(Y6,PlanLookupRange,0)+2), OFFSET(OffsetStart,MedDedRange-1+1*Z6*AI6,MATCH(Y6,PlanLookupRange,0)+2))) -> 0 | AX6: =IF(AA6=0,0, IF(AND(AE6,AF6),OFFSET(OffsetStart,RxDedRange-1+1*Z6,MATCH(Y6,PlanLookupRange,0)+2), OFFSET(OffsetStart,MedDedRange-1+1*Z6,MATCH(Y6,PlanLookupRange,0)+2))) -> 0 | AY6: =IF(OR(AD6=1,AH6=1),0,AQ6) -> 0 | AZ6: =IF(OR(AB6=1,AH6=1,AND(AF6=1,AE6=1)), 0, IF(OR(AND(BA5=AU6,R6=0),AND(BB5=AV6,S6=0)), 0, CHOOSE(R6+S6+1, MIN(AY6,AU6,MAX(AU6-BA5,0),MAX(AV6-BB5,0)), MIN(AY6,AU6,MAX(AV6-BB5,0)), MIN(AY6,AU6)))) -> 0 | BA6: =IF(R6,AZ6,MIN(AU6,SUM(OFFSET(AZ6,-(T6-1),0,T6)))) -> 0 | BB6: =IF(S6,AZ6,MIN(AV6,SUM(OFFSET(AZ6,-(U6-1),0,U6)))) -> 0 | BC6: =IF(OR(AB6=0,AH6=1,AND(AF6=1,AE6=1)), 0, IF(OR(AND(BD5=AW6,R6=0),AND(BE5=AX6,S6=0)), 0, CHOOSE(R6+S6+1, MIN(AY6,AW6,MAX(AW6-BD5,0),MAX(AX6-BE5,0)), MIN(AY6,AW6,MAX(AX6-BE5,0)), MIN(AY6,AW6)))) -> 0 | BD6: =IF(R6,BC6,MIN(AW6,SUM(OFFSET(BC6,-(T6-1),0,T6)))) -> 0 | BE6: =IF(S6,BC6,MIN(AX6,SUM(OFFSET(BC6,-(U6-1),0,U6)))) -> 0 | BF6: =IF(OR(AB6=1,AH6=1,AE6=0,AF6=0), 0, IF(OR(AND(BG5=AU6,R6=0),AND(BH5=AV6,S6=0)), 0, CHOOSE(R6+S6+1, MIN(AY6,AU6,MAX(AU6-BG5,0),MAX(AV6-BH5,0)), MIN(AY6,AU6,MAX(AV6-BH5,0)), MIN(AY6,AU6)))) -> 0 | BG6: =IF(R6,BF6,MIN(AU6,SUM(OFFSET(BF6,-(T6-1),0,T6)))) -> 0 | BH6: =IF(S6,BF6,MIN(AV6,SUM(OFFSET(BF6,-(U6-1),0,U6)))) -> 0 | BI6: =IF(OR(AB6=0,AH6=1,AE6=0,AF6=0), 0, IF(OR(AND(BJ5=AW6,R6=0),AND(BK5=AX6,S6=0)), 0, CHOOSE(R6+S6+1, MIN(AY6,AW6,MAX(AW6-BJ5,0),MAX(AX6-BK5,0)), MIN(AY6,AW6,MAX(AX6-BK5,0)), MIN(AY6,AW6)))) -> 0 | BJ6: =IF(R6,BI6,MIN(AW6,SUM(OFFSET(BI6,-(T6-1),0,T6)))) -> 0 | BK6: =IF(S6,BI6,MIN(AX6,SUM(OFFSET(BI6,-(U6-1),0,U6)))) -> 0 | BL6: =AQ6-AZ6-BC6-BF6-BI6 -> 0 | BM6: =IFERROR(IF(AE6=0,CHOOSE(AK6,0,MIN(L6,MAX(ROUNDUP(BL6/AR6,0),0)),MIN(M6,MAX(ROUNDUP(BL6/AR6,0),0))), CHOOSE(AK6,0,MIN(L6,MAX(ROUNDUP(BL6/AR6,0),0)),MIN(L6,MAX(ROUNDUP(BL6/AR6,0),0)))),0) -> 0 | BN6: =+IF(AE6, CHOOSE(AK6,0,AN6*BM6,MIN(MAX(AM6*BM6,AL6*AR6*BM6),AO6*BM6)), IF(AN6=0,0,IF(BL6>=0,MIN(BM6*AN6,BL6),MAX(BM6*AN6,BL6)))) -> 0 | BO6: =+IF(AND(AE6,AK6=3),0,BL6*AL6) -> 0 | BP6: =+BN6+BO6+AZ6+BC6+BF6+BI6 -> 0 | BQ6: =IF(AND(AE6,AG6),OFFSET(OffsetStart,RxOOPMRange-1+1*Z6*AJ6,MATCH(Y6,PlanLookupRange,0)-1), OFFSET(OffsetStart,MedOOPMRange-1+1*Z6*AJ6,MATCH(Y6,PlanLookupRange,0)-1)) -> 3500 | BR6: =IF(AND(AE6,AG6),OFFSET(OffsetStart,RxOOPMRange-1+1*Z6,MATCH(Y6,PlanLookupRange,0)-1), OFFSET(OffsetStart,MedOOPMRange-1+1*Z6,MATCH(Y6,PlanLookupRange,0)-1)) -> 3500 | BS6: =IF(AA6=0,0, IF(AND(AE6,AG6), OFFSET(OffsetStart,RxOOPMRange-1+1*Z6*AJ6,MATCH(Y6,PlanLookupRange,0)+2), OFFSET(OffsetStart,MedOOPMRange-1+1*Z6*AI6,MATCH(Y6,PlanLookupRange,0)+2))) -> 0 | BT6: =IF(AA6=0,0, IF(AND(AE6,AG6),OFFSET(OffsetStart,RxOOPMRange-1+1*Z6,MATCH(Y6,PlanLookupRange,0)+2), OFFSET(OffsetStart,MedOOPMRange-1+1*Z6,MATCH(Y6,PlanLookupRange,0)+2))) -> 0 | BU6: =IF(OR(AB6=1,AND(AG6=1,AE6=1)), 0, IF(OR(AND(BV5=BQ6,R6=0,BP6<0),AND(BW5=BR6,S6=0,BP6<0)), MAX(BP6,-BQ6), CHOOSE(R6+S6+1, MIN(BP6,BQ6,MAX(BQ6-BV5,0),MAX(BR6-BW5,0)), MIN(BP6,BQ6,MAX(BR6-BW5,0)), MIN(BP6,BQ6)))) -> 0 | BV6: =IF(R6,BU6,MIN(BQ6,SUM(OFFSET(BU6,-(T6-1),0,T6)))) -> 0 | BW6: =IF(S6,BU6,MIN(BR6,SUM(OFFSET(BU6,-(U6-1),0,U6)))) -> 0 | BX6: =IF(OR(AB6=0,AND(AG6=1,AE6=1)), 0, IF(OR(AND(BY5=BS6,R6=0,BP6<0),AND(BZ5=BT6,S6=0,BP6<0)), MAX(BP6,-BS6), CHOOSE(R6+S6+1, MIN(BP6,BS6,MAX(BS6-BY5,0),MAX(BT6-BZ5,0)), MIN(BP6,BS6,MAX(BT6-BZ5,0)), MIN(BP6,BS6)))) -> 0 | BY6: =IF(R6,BX6,MIN(BS6,SUM(OFFSET(BX6,-(T6-1),0,T6)))) -> 0 | BZ6: =IF(S6,BX6,MIN(BT6,SUM(OFFSET(BX6,-(U6-1),0,U6)))) -> 0 | CA6: =IF(OR(AB6=1,AE6=0,AG6=0), 0, IF(OR(AND(CB5=BQ6,R6=0,BP6<0),AND(CC5=BR6,S6=0,BP6<0)), MAX(BP6,-BQ6), CHOOSE(R6+S6+1, MIN(BP6,BQ6,MAX(BQ6-CB5,0),MAX(BR6-CC5,0)), MIN(BP6,BQ6,MAX(BR6-CC5,0)), MIN(BP6,BQ6)))) -> 0 | CB6: =IF(R6,CA6,MIN(BQ6,SUM(OFFSET(CA6,-(T6-1),0,T6)))) -> 0 | CC6: =IF(S6,CA6,MIN(BR6,SUM(OFFSET(CA6,-(U6-1),0,U6)))) -> 0 | CD6: =IF(OR(AB6=0,AE6=0,AG6=0), 0, IF(OR(AND(CE5=BS6,R6=0,BP6<0),AND(CF5=BT6,S6=0,BP6<0)), MAX(BP6,-BS6), CHOOSE(R6+S6+1, MIN(BP6,BS6,MAX(BS6-CE5,0),MAX(BT6-CF5,0)), MIN(BP6,BS6,MAX(BT6-CF5,0)), MIN(BP6,BS6)))) -> 0 | CE6: =IF(R6,CD6,MIN(BS6,SUM(OFFSET(CD6,-(T6-1),0,T6)))) -> 0 | CF6: =IF(S6,CD6,MIN(BT6,SUM(OFFSET(CD6,-(U6-1),0,U6)))) -> 0 | CG6: =IF(S6,BU6+CA6,BU6+CA6+CG5) -> 0 | CH6: =IF(S6,BX6+CD6,BX6+CD6+CH5) -> 0 | CI6: =+CG6+CH6 -> 0 | CJ6: =+CG6*$V6 -> 0 | CK6: =+CH6*$V6 -> 0 | CL6: =+CI6*$V6 -> 0 | CM6: =+CG6*$W6 -> 0 | CN6: =+CH6*$W6 -> 0 | CO6: =+CI6*$W6 -> 0
A7: 1 | B7: 1 | C7: — | D7: — | E7: Base Plan | F7: =+'Employee Cost Model'!$C$2 -> Employee Only | G7: In | H7: Out | I7: ER | K7: N | L7: =+'Employee Cost Model'!C$23 -> 0 | M7: 0 | N7: 0 | O7: — | P7: — | Q7: 1458.770268 | R7: 0 | S7: 0 | T7: 4 | U7: 4 | V7: 0 | W7: 0 | X7: Base Plan | Y7: 2 | Z7: 0 | AA7: 0 | AB7: 0 | AC7: OutER | AD7: 0 | AE7: 0 | AF7: 0 | AG7: 0 | AH7: 1 | AI7: 0 | AJ7: 0 | AK7: 2 | AL7: 0 | AM7: 0 | AN7: 125 | AO7: 0 | AP7: 1 | AQ7: 0 | AR7: 0 | AS7: 0 | AT7: 0 | AU7: 500 | AV7: 500 | AW7: 0 | AX7: 0 | AY7: 0 | AZ7: 0 | BA7: 0 | BB7: 0 | BC7: 0 | BD7: 0 | BE7: 0 | BF7: 0 | BG7: 0 | BH7: 0 | BI7: 0 | BJ7: 0 | BK7: 0 | BL7: 0 | BM7: 0 | BN7: 0 | BO7: 0 | BP7: 0 | BQ7: 3500 | BR7: 3500 | BS7: 0 | BT7: 0 | BU7: 0 | BV7: 0 | BW7: 0 | BX7: 0 | BY7: 0 | BZ7: 0 | CA7: 0 | CB7: 0 | CC7: 0 | CD7: 0 | CE7: 0 | CF7: 0 | CG7: 0 | CH7: 0 | CI7: 0 | CJ7: 0 | CK7: 0 | CL7: 0 | CM7: 0 | CN7: 0 | CO7: 0
A8: 1 | B8: 1 | C8: — | D8: — | E8: Base Plan | F8: =+'Employee Cost Model'!$C$2 -> Employee Only | G8: In | H8: Out | I8: UC | K8: N | L8: =+'Employee Cost Model'!C$24 -> 0 | M8: 0 | N8: 0 | O8: — | P8: — | Q8: 167.7490597 | R8: 0 | S8: 0 | T8: 5 | U8: 5 | V8: 0 | W8: 0 | X8: Base Plan | Y8: 2 | Z8: 0 | AA8: 0 | AB8: 0 | AC8: OutUC | AD8: 0 | AE8: 0 | AF8: 0 | AG8: 0 | AH8: 1 | AI8: 0 | AJ8: 0 | AK8: 2 | AL8: 0 | AM8: 0 | AN8: 50 | AO8: 0 | AP8: 1 | AQ8: 0 | AR8: 0 | AS8: 0 | AT8: 0 | AU8: 500 | AV8: 500 | AW8: 0 | AX8: 0 | AY8: 0 | AZ8: 0 | BA8: 0 | BB8: 0 | BC8: 0 | BD8: 0 | BE8: 0 | BF8: 0 | BG8: 0 | BH8: 0 | BI8: 0 | BJ8: 0 | BK8: 0 | BL8: 0 | BM8: 0 | BN8: 0 | BO8: 0 | BP8: 0 | BQ8: 3500 | BR8: 3500 | BS8: 0 | BT8: 0 | BU8: 0 | BV8: 0 | BW8: 0 | BX8: 0 | BY8: 0 | BZ8: 0 | CA8: 0 | CB8: 0 | CC8: 0 | CD8: 0 | CE8: 0 | CF8: 0 | CG8: 0 | CH8: 0 | CI8: 0 | CJ8: 0 | CK8: 0 | CL8: 0 | CM8: 0 | CN8: 0 | CO8: 0
A9: 1 | B9: 1 | C9: — | D9: — | E9: Base Plan | F9: =+'Employee Cost Model'!$C$2 -> Employee Only | G9: In | H9: Out | I9: Surgery | K9: N | L9: =+'Employee Cost Model'!C$20 -> 0 | M9: 0 | N9: 0 | O9: — | P9: — | Q9: 3651.604864 | R9: 0 | S9: 0 | T9: 6 | U9: 6 | V9: 0 | W9: 0 | X9: Base Plan | Y9: 2 | Z9: 0 | AA9: 0 | AB9: 0 | AC9: OutSurgery | AD9: 0 | AE9: 0 | AF9: 0 | AG9: 0 | AH9: 2 | AI9: 0 | AJ9: 0 | AK9: 2 | AL9: 0 | AM9: 0 | AN9: 0 | AO9: 0 | AP9: 1 | AQ9: 0 | AR9: 0 | AS9: 0 | AT9: 0 | AU9: 500 | AV9: 500 | AW9: 0 | AX9: 0 | AY9: 0 | AZ9: 0 | BA9: 0 | BB9: 0 | BC9: 0 | BD9: 0 | BE9: 0 | BF9: 0 | BG9: 0 | BH9: 0 | BI9: 0 | BJ9: 0 | BK9: 0 | BL9: 0 | BM9: 0 | BN9: 0 | BO9: 0 | BP9: 0 | BQ9: 3500 | BR9: 3500 | BS9: 0 | BT9: 0 | BU9: 0 | BV9: 0 | BW9: 0 | BX9: 0 | BY9: 0 | BZ9: 0 | CA9: 0 | CB9: 0 | CC9: 0 | CD9: 0 | CE9: 0 | CF9: 0 | CG9: 0 | CH9: 0 | CI9: 0 | CJ9: 0 | CK9: 0 | CL9: 0 | CM9: 0 | CN9: 0 | CO9: 0
A10: 1 | B10: 1 | C10: — | D10: — | E10: Base Plan | F10: =+'Employee Cost Model'!$C$2 -> Employee Only | G10: In | H10: Out | I10: X-ray/Lab | K10: N | L10: =+'Employee Cost Model'!C$26 -> 0 | M10: 0 | N10: 0 | O10: — | P10: — | Q10: 223.9676734 | R10: 0 | S10: 0 | T10: 7 | U10: 7 | V10: 0 | W10: 0 | X10: Base Plan | Y10: 2 | Z10: 0 | AA10: 0 | AB10: 0 | AC10: OutX-ray/Lab | AD10: 0 | AE10: 0 | AF10: 0 | AG10: 0 | AH10: 2 | AI10: 0 | AJ10: 0 | AK10: 2 | AL10: 0 | AM10: 0 | AN10: 0 | AO10: 0 | AP10: 1 | AQ10: 0 | AR10: 0 | AS10: 0 | AT10: 0 | AU10: 500 | AV10: 500 | AW10: 0 | AX10: 0 | AY10: 0 | AZ10: 0 | BA10: 0 | BB10: 0 | BC10: 0 | BD10: 0 | BE10: 0 | BF10: 0 | BG10: 0 | BH10: 0 | BI10: 0 | BJ10: 0 | BK10: 0 | BL10: 0 | BM10: 0 | BN10: 0 | BO10: 0 | BP10: 0 | BQ10: 3500 | BR10: 3500 | BS10: 0 | BT10: 0 | BU10: 0 | BV10: 0 | BW10: 0 | BX10: 0 | BY10: 0 | BZ10: 0 | CA10: 0 | CB10: 0 | CC10: 0 | CD10: 0 | CE10: 0 | CF10: 0 | CG10: 0 | CH10: 0 | CI10: 0 | CJ10: 0 | CK10: 0 | CL10: 0 | CM10: 0 | CN10: 0 | CO10: 0
A11: 1 | B11: 1 | C11: — | D11: — | E11: Base Plan | F11: =+'Employee Cost Model'!$C$2 -> Employee Only | G11: In | H11: Out | I11: Adv Rad | K11: N | L11: =+'Employee Cost Model'!C$27 -> 0 | M11: 0 | N11: 0 | O11: — | P11: — | Q11: 995.6214691 | R11: 0 | S11: 0 | T11: 8 | U11: 8 | V11: 0 | W11: 0 | X11: Base Plan | Y11: 2 | Z11: 0 | AA11: 0 | AB11: 0 | AC11: OutAdv Rad | AD11: 0 | AE11: 0 | AF11: 0 | AG11: 0 | AH11: 2 | AI11: 0 | AJ11: 0 | AK11: 2 | AL11: 0 | AM11: 0 | AN11: 0 | AO11: 0 | AP11: 1 | AQ11: 0 | AR11: 0 | AS11: 0 | AT11: 0 | AU11: 500 | AV11: 500 | AW11: 0 | AX11: 0 | AY11: 0 | AZ11: 0 | BA11: 0 | BB11: 0 | BC11: 0 | BD11: 0 | BE11: 0 | BF11: 0 | BG11: 0 | BH11: 0 | BI11: 0 | BJ11: 0 | BK11: 0 | BL11: 0 | BM11: 0 | BN11: 0 | BO11: 0 | BP11: 0 | BQ11: 3500 | BR11: 3500 | BS11: 0 | BT11: 0 | BU11: 0 | BV11: 0 | BW11: 0 | BX11: 0 | BY11: 0 | BZ11: 0 | CA11: 0 | CB11: 0 | CC11: 0 | CD11: 0 | CE11: 0 | CF11: 0 | CG11: 0 | CH11: 0 | CI11: 0 | CJ11: 0 | CK11: 0 | CL11: 0 | CM11: 0 | CN11: 0 | CO11: 0
A12: 1 | B12: 1 | C12: — | D12: — | E12: Base Plan | F12: =+'Employee Cost Model'!$C$2 -> Employee Only | G12: In | H12: Professional | I12: PCP | K12: N | L12: =+'Employee Cost Model'!C$29 -> 0 | M12: 0 | N12: 0 | O12: — | P12: — | Q12: 167.4628453 | R12: 0 | S12: 0 | T12: 9 | U12: 9 | V12: 0 | W12: 0 | X12: Base Plan | Y12: 2 | Z12: 0 | AA12: 0 | AB12: 0 | AC12: ProfessionalPCP | AD12: 0 | AE12: 0 | AF12: 0 | AG12: 0 | AH12: 1 | AI12: 0 | AJ12: 0 | AK12: 2 | AL12: 0 | AM12: 0 | AN12: 15 | AO12: 0 | AP12: 1 | AQ12: 0 | AR12: 0 | AS12: 0 | AT12: 0 | AU12: 500 | AV12: 500 | AW12: 0 | AX12: 0 | AY12: 0 | AZ12: 0 | BA12: 0 | BB12: 0 | BC12: 0 | BD12: 0 | BE12: 0 | BF12: 0 | BG12: 0 | BH12: 0 | BI12: 0 | BJ12: 0 | BK12: 0 | BL12: 0 | BM12: 0 | BN12: 0 | BO12: 0 | BP12: 0 | BQ12: 3500 | BR12: 3500 | BS12: 0 | BT12: 0 | BU12: 0 | BV12: 0 | BW12: 0 | BX12: 0 | BY12: 0 | BZ12: 0 | CA12: 0 | CB12: 0 | CC12: 0 | CD12: 0 | CE12: 0 | CF12: 0 | CG12: 0 | CH12: 0 | CI12: 0 | CJ12: 0 | CK12: 0 | CL12: 0 | CM12: 0 | CN12: 0 | CO12: 0
A13: 1 | B13: 1 | C13: — | D13: — | E13: Base Plan | F13: =+'Employee Cost Model'!$C$2 -> Employee Only | G13: In | H13: Professional | I13: SCP | K13: N | L13: =+'Employee Cost Model'!C$30 -> 0 | M13: 0 | N13: 0 | O13: — | P13: — | Q13: 190.3145998 | R13: 0 | S13: 0 | T13: 10 | U13: 10 | V13: 0 | W13: 0 | X13: Base Plan | Y13: 2 | Z13: 0 | AA13: 0 | AB13: 0 | AC13: ProfessionalSCP | AD13: 0 | AE13: 0 | AF13: 0 | AG13: 0 | AH13: 1 | AI13: 0 | AJ13: 0 | AK13: 2 | AL13: 0 | AM13: 0 | AN13: 30 | AO13: 0 | AP13: 1 | AQ13: 0 | AR13: 0 | AS13: 0 | AT13: 0 | AU13: 500 | AV13: 500 | AW13: 0 | AX13: 0 | AY13: 0 | AZ13: 0 | BA13: 0 | BB13: 0 | BC13: 0 | BD13: 0 | BE13: 0 | BF13: 0 | BG13: 0 | BH13: 0 | BI13: 0 | BJ13: 0 | BK13: 0 | BL13: 0 | BM13: 0 | BN13: 0 | BO13: 0 | BP13: 0 | BQ13: 3500 | BR13: 3500 | BS13: 0 | BT13: 0 | BU13: 0 | BV13: 0 | BW13: 0 | BX13: 0 | BY13: 0 | BZ13: 0 | CA13: 0 | CB13: 0 | CC13: 0 | CD13: 0 | CE13: 0 | CF13: 0 | CG13: 0 | CH13: 0 | CI13: 0 | CJ13: 0 | CK13: 0 | CL13: 0 | CM13: 0 | CN13: 0 | CO13: 0
A14: 1 | B14: 1 | C14: — | D14: — | E14: Base Plan | F14: =+'Employee Cost Model'!$C$2 -> Employee Only | G14: In | H14: Professional | I14: Maternity | K14: N | L14: =+'Employee Cost Model'!C$31 -> 0 | M14: 0 | N14: 0 | O14: — | P14: — | Q14: 23659.20645 | R14: 0 | S14: 0 | T14: 11 | U14: 11 | V14: 0 | W14: 0 | X14: Base Plan | Y14: 2 | Z14: 0 | AA14: 0 | AB14: 0 | AC14: ProfessionalMaternity | AD14: 0 | AE14: 0 | AF14: 0 | AG14: 0 | AH14: 2 | AI14: 0 | AJ14: 0 | AK14: 2 | AL14: 0 | AM14: 0 | AN14: 0 | AO14: 0 | AP14: 1 | AQ14: 0 | AR14: 0 | AS14: 0 | AT14: 0 | AU14: 500 | AV14: 500 | AW14: 0 | AX14: 0 | AY14: 0 | AZ14: 0 | BA14: 0 | BB14: 0 | BC14: 0 | BD14: 0 | BE14: 0 | BF14: 0 | BG14: 0 | BH14: 0 | BI14: 0 | BJ14: 0 | BK14: 0 | BL14: 0 | BM14: 0 | BN14: 0 | BO14: 0 | BP14: 0 | BQ14: 3500 | BR14: 3500 | BS14: 0 | BT14: 0 | BU14: 0 | BV14: 0 | BW14: 0 | BX14: 0 | BY14: 0 | BZ14: 0 | CA14: 0 | CB14: 0 | CC14: 0 | CD14: 0 | CE14: 0 | CF14: 0 | CG14: 0 | CH14: 0 | CI14: 0 | CJ14: 0 | CK14: 0 | CL14: 0 | CM14: 0 | CN14: 0 | CO14: 0
A15: 1 | B15: 1 | C15: — | D15: — | E15: Base Plan | F15: =+'Employee Cost Model'!$C$2 -> Employee Only | G15: In | H15: Professional | I15: Off Surgery | K15: N | L15: =+'Employee Cost Model'!C$21 -> 0 | M15: 0 | N15: 0 | O15: — | P15: — | Q15: 988.0543893 | R15: 0 | S15: 0 | T15: 12 | U15: 12 | V15: 0 | W15: 0 | X15: Base Plan | Y15: 2 | Z15: 0 | AA15: 0 | AB15: 0 | AC15: ProfessionalOff Surgery | AD15: 0 | AE15: 0 | AF15: 0 | AG15: 0 | AH15: 2 | AI15: 0 | AJ15: 0 | AK15: 2 | AL15: 0 | AM15: 0 | AN15: 0 | AO15: 0 | AP15: 1 | AQ15: 0 | AR15: 0 | AS15: 0 | AT15: 0 | AU15: 500 | AV15: 500 | AW15: 0 | AX15: 0 | AY15: 0 | AZ15: 0 | BA15: 0 | BB15: 0 | BC15: 0 | BD15: 0 | BE15: 0 | BF15: 0 | BG15: 0 | BH15: 0 | BI15: 0 | BJ15: 0 | BK15: 0 | BL15: 0 | BM15: 0 | BN15: 0 | BO15: 0 | BP15: 0 | BQ15: 3500 | BR15: 3500 | BS15: 0 | BT15: 0 | BU15: 0 | BV15: 0 | BW15: 0 | BX15: 0 | BY15: 0 | BZ15: 0 | CA15: 0 | CB15: 0 | CC15: 0 | CD15: 0 | CE15: 0 | CF15: 0 | CG15: 0 | CH15: 0 | CI15: 0 | CJ15: 0 | CK15: 0 | CL15: 0 | CM15: 0 | CN15: 0 | CO15: 0
A16: 1 | B16: 1 | C16: — | D16: — | E16: Base Plan | F16: =+'Employee Cost Model'!$C$2 -> Employee Only | G16: In | H16: Professional | I16: MHSA | K16: N | L16: =+'Employee Cost Model'!C$34 -> 0 | M16: 0 | N16: 0 | O16: — | P16: — | Q16: 125.9770284 | R16: 0 | S16: 0 | T16: 13 | U16: 13 | V16: 0 | W16: 0 | X16: Base Plan | Y16: 2 | Z16: 0 | AA16: 0 | AB16: 0 | AC16: ProfessionalMHSA | AD16: 0 | AE16: 0 | AF16: 0 | AG16: 0 | AH16: 1 | AI16: 0 | AJ16: 0 | AK16: 2 | AL16: 0 | AM16: 0 | AN16: 15 | AO16: 0 | AP16: 1 | AQ16: 0 | AR16: 0 | AS16: 0 | AT16: 0 | AU16: 500 | AV16: 500 | AW16: 0 | AX16: 0 | AY16: 0 | AZ16: 0 | BA16: 0 | BB16: 0 | BC16: 0 | BD16: 0 | BE16: 0 | BF16: 0 | BG16: 0 | BH16: 0 | BI16: 0 | BJ16: 0 | BK16: 0 | BL16: 0 | BM16: 0 | BN16: 0 | BO16: 0 | BP16: 0 | BQ16: 3500 | BR16: 3500 | BS16: 0 | BT16: 0 | BU16: 0 | BV16: 0 | BW16: 0 | BX16: 0 | BY16: 0 | BZ16: 0 | CA16: 0 | CB16: 0 | CC16: 0 | CD16: 0 | CE16: 0 | CF16: 0 | CG16: 0 | CH16: 0 | CI16: 0 | CJ16: 0 | CK16: 0 | CL16: 0 | CM16: 0 | CN16: 0 | CO16: 0
A17: 1 | B17: 1 | C17: — | D17: — | E17: Base Plan | F17: =+'Employee Cost Model'!$C$2 -> Employee Only | G17: In | H17: Professional | I17: PhyTh/SpTh/OccTh | K17: N | L17: =+'Employee Cost Model'!C$32 -> 0 | M17: 0 | N17: 0 | O17: — | P17: — | Q17: 165.3990089 | R17: 0 | S17: 0 | T17: 14 | U17: 14 | V17: 0 | W17: 0 | X17: Base Plan | Y17: 2 | Z17: 0 | AA17: 0 | AB17: 0 | AC17: ProfessionalPhyTh/SpTh/OccTh | AD17: 0 | AE17: 0 | AF17: 0 | AG17: 0 | AH17: 1 | AI17: 0 | AJ17: 0 | AK17: 2 | AL17: 0 | AM17: 0 | AN17: 33.07980179 | AO17: 0 | AP17: 1 | AQ17: 0 | AR17: 0 | AS17: 0 | AT17: 0 | AU17: 500 | AV17: 500 | AW17: 0 | AX17: 0 | AY17: 0 | AZ17: 0 | BA17: 0 | BB17: 0 | BC17: 0 | BD17: 0 | BE17: 0 | BF17: 0 | BG17: 0 | BH17: 0 | BI17: 0 | BJ17: 0 | BK17: 0 | BL17: 0 | BM17: 0 | BN17: 0 | BO17: 0 | BP17: 0 | BQ17: 3500 | BR17: 3500 | BS17: 0 | BT17: 0 | BU17: 0 | BV17: 0 | BW17: 0 | BX17: 0 | BY17: 0 | BZ17: 0 | CA17: 0 | CB17: 0 | CC17: 0 | CD17: 0 | CE17: 0 | CF17: 0 | CG17: 0 | CH17: 0 | CI17: 0 | CJ17: 0 | CK17: 0 | CL17: 0 | CM17: 0 | CN17: 0 | CO17: 0
A18: 1 | B18: 1 | C18: — | D18: — | E18: Base Plan | F18: =+'Employee Cost Model'!$C$2 -> Employee Only | G18: In | H18: Professional | I18: Chiro | K18: N | L18: =+'Employee Cost Model'!C$33 -> 0 | M18: 0 | N18: 0 | O18: — | P18: — | Q18: 79.45445144 | R18: 0 | S18: 0 | T18: 15 | U18: 15 | V18: 0 | W18: 0 | X18: Base Plan | Y18: 2 | Z18: 0 | AA18: 0 | AB18: 0 | AC18: ProfessionalChiro | AD18: 0 | AE18: 0 | AF18: 0 | AG18: 0 | AH18: 1 | AI18: 0 | AJ18: 0 | AK18: 2 | AL18: 0 | AM18: 0 | AN18: 30 | AO18: 0 | AP18: 1 | AQ18: 0 | AR18: 0 | AS18: 0 | AT18: 0 | AU18: 500 | AV18: 500 | AW18: 0 | AX18: 0 | AY18: 0 | AZ18: 0 | BA18: 0 | BB18: 0 | BC18: 0 | BD18: 0 | BE18: 0 | BF18: 0 | BG18: 0 | BH18: 0 | BI18: 0 | BJ18: 0 | BK18: 0 | BL18: 0 | BM18: 0 | BN18: 0 | BO18: 0 | BP18: 0 | BQ18: 3500 | BR18: 3500 | BS18: 0 | BT18: 0 | BU18: 0 | BV18: 0 | BW18: 0 | BX18: 0 | BY18: 0 | BZ18: 0 | CA18: 0 | CB18: 0 | CC18: 0 | CD18: 0 | CE18: 0 | CF18: 0 | CG18: 0 | CH18: 0 | CI18: 0 | CJ18: 0 | CK18: 0 | CL18: 0 | CM18: 0 | CN18: 0 | CO18: 0
A19: 1 | B19: 1 | C19: — | D19: — | E19: Base Plan | F19: =+'Employee Cost Model'!$C$2 -> Employee Only | G19: In | H19: Rx | I19: R | J19: 1 | K19: N | L19: =+'Employee Cost Model'!C$38 -> 0 | M19: 0 | N19: 0 | O19: — | P19: — | Q19: 50.83329564 | R19: 0 | S19: 0 | T19: 16 | U19: 16 | V19: 0 | W19: 0 | X19: Base Plan | Y19: 2 | Z19: 0 | AA19: 0 | AB19: 0 | AC19: RxR1 | AD19: 0 | AE19: 1 | AF19: 0 | AG19: 0 | AH19: 1 | AI19: 0 | AJ19: 0 | AK19: 2 | AL19: 0 | AM19: 0 | AN19: 5 | AO19: 0 | AP19: 1 | AQ19: 0 | AR19: 0 | AS19: 0 | AT19: 0 | AU19: 500 | AV19: 500 | AW19: 0 | AX19: 0 | AY19: 0 | AZ19: 0 | BA19: 0 | BB19: 0 | BC19: 0 | BD19: 0 | BE19: 0 | BF19: 0 | BG19: 0 | BH19: 0 | BI19: 0 | BJ19: 0 | BK19: 0 | BL19: 0 | BM19: 0 | BN19: 0 | BO19: 0 | BP19: 0 | BQ19: 3500 | BR19: 3500 | BS19: 0 | BT19: 0 | BU19: 0 | BV19: 0 | BW19: 0 | BX19: 0 | BY19: 0 | BZ19: 0 | CA19: 0 | CB19: 0 | CC19: 0 | CD19: 0 | CE19: 0 | CF19: 0 | CG19: 0 | CH19: 0 | CI19: 0 | CJ19: 0 | CK19: 0 | CL19: 0 | CM19: 0 | CN19: 0 | CO19: 0
A20: 1 | B20: 1 | C20: — | D20: — | E20: Base Plan | F20: =+'Employee Cost Model'!$C$2 -> Employee Only | G20: In | H20: Rx | I20: R | J20: 2 | K20: N | L20: =+'Employee Cost Model'!C$39 -> 0 | M20: 0 | N20: 0 | O20: — | P20: — | Q20: 389.8130676 | R20: 0 | S20: 0 | T20: 17 | U20: 17 | V20: 0 | W20: 0 | X20: Base Plan | Y20: 2 | Z20: 0 | AA20: 0 | AB20: 0 | AC20: RxR2 | AD20: 0 | AE20: 1 | AF20: 0 | AG20: 0 | AH20: 1 | AI20: 0 | AJ20: 0 | AK20: 2 | AL20: 0 | AM20: 0 | AN20: 35 | AO20: 0 | AP20: 1 | AQ20: 0 | AR20: 0 | AS20: 0 | AT20: 0 | AU20: 500 | AV20: 500 | AW20: 0 | AX20: 0 | AY20: 0 | AZ20: 0 | BA20: 0 | BB20: 0 | BC20: 0 | BD20: 0 | BE20: 0 | BF20: 0 | BG20: 0 | BH20: 0 | BI20: 0 | BJ20: 0 | BK20: 0 | BL20: 0 | BM20: 0 | BN20: 0 | BO20: 0 | BP20: 0 | BQ20: 3500 | BR20: 3500 | BS20: 0 | BT20: 0 | BU20: 0 | BV20: 0 | BW20: 0 | BX20: 0 | BY20: 0 | BZ20: 0 | CA20: 0 | CB20: 0 | CC20: 0 | CD20: 0 | CE20: 0 | CF20: 0 | CG20: 0 | CH20: 0 | CI20: 0 | CJ20: 0 | CK20: 0 | CL20: 0 | CM20: 0 | CN20: 0 | CO20: 0
A21: 1 | B21: 1 | C21: — | D21: — | E21: Base Plan | F21: =+'Employee Cost Model'!$C$2 -> Employee Only | G21: In | H21: Rx | I21: R | J21: 3 | K21: N | L21: =+'Employee Cost Model'!C$40 -> 0 | M21: 0 | N21: 0 | O21: — | P21: — | Q21: 651.9493716 | R21: 0 | S21: 0 | T21: 18 | U21: 18 | V21: 0 | W21: 0 | X21: Base Plan | Y21: 2 | Z21: 0 | AA21: 0 | AB21: 0 | AC21: RxR3 | AD21: 0 | AE21: 1 | AF21: 0 | AG21: 0 | AH21: 1 | AI21: 0 | AJ21: 0 | AK21: 2 | AL21: 0 | AM21: 0 | AN21: 60 | AO21: 0 | AP21: 1 | AQ21: 0 | AR21: 0 | AS21: 0 | AT21: 0 | AU21: 500 | AV21: 500 | AW21: 0 | AX21: 0 | AY21: 0 | AZ21: 0 | BA21: 0 | BB21: 0 | BC21: 0 | BD21: 0 | BE21: 0 | BF21: 0 | BG21: 0 | BH21: 0 | BI21: 0 | BJ21: 0 | BK21: 0 | BL21: 0 | BM21: 0 | BN21: 0 | BO21: 0 | BP21: 0 | BQ21: 3500 | BR21: 3500 | BS21: 0 | BT21: 0 | BU21: 0 | BV21: 0 | BW21: 0 | BX21: 0 | BY21: 0 | BZ21: 0 | CA21: 0 | CB21: 0 | CC21: 0 | CD21: 0 | CE21: 0 | CF21: 0 | CG21: 0 | CH21: 0 | CI21: 0 | CJ21: 0 | CK21: 0 | CL21: 0 | CM21: 0 | CN21: 0 | CO21: 0
A22: 1 | B22: 1 | C22: — | D22: — | E22: Base Plan | F22: =+'Employee Cost Model'!$C$2 -> Employee Only | G22: In | H22: Rx | I22: R | J22: 4 | K22: N | L22: =+'Employee Cost Model'!C$41 -> 0 | M22: 0 | N22: =+L22*Q22 -> 0 | O22: — | P22: — | Q22: 8251.270121 | R22: 0 | S22: 0 | T22: 19 | U22: 19 | V22: 0 | W22: 0 | X22: Base Plan | Y22: 2 | Z22: 0 | AA22: 0 | AB22: 0 | AC22: RxR4 | AD22: 0 | AE22: 1 | AF22: 0 | AG22: 0 | AH22: 1 | AI22: 0 | AJ22: 0 | AK22: 2 | AL22: 0 | AM22: 0 | AN22: 60 | AO22: 0 | AP22: 1 | AQ22: 0 | AR22: 0 | AS22: 0 | AT22: 0 | AU22: 500 | AV22: 500 | AW22: 0 | AX22: 0 | AY22: 0 | AZ22: 0 | BA22: 0 | BB22: 0 | BC22: 0 | BD22: 0 | BE22: 0 | BF22: 0 | BG22: 0 | BH22: 0 | BI22: 0 | BJ22: 0 | BK22: 0 | BL22: 0 | BM22: 0 | BN22: 0 | BO22: 0 | BP22: 0 | BQ22: 3500 | BR22: 3500 | BS22: 0 | BT22: 0 | BU22: 0 | BV22: 0 | BW22: 0 | BX22: 0 | BY22: 0 | BZ22: 0 | CA22: 0 | CB22: 0 | CC22: 0 | CD22: 0 | CE22: 0 | CF22: 0 | CG22: 0 | CH22: 0 | CI22: 0 | CJ22: 0 | CK22: 0 | CL22: 0 | CM22: 0 | CN22: 0 | CO22: 0
A23: 1 | B23: 1 | C23: — | D23: — | E23: Base Plan | F23: =+'Employee Cost Model'!$C$2 -> Employee Only | G23: In | H23: Rx | I23: M | J23: 1 | K23: N | L23: =+'Employee Cost Model'!C$43 -> 0 | M23: 0 | N23: 0 | O23: — | P23: — | Q23: 88.65973424 | R23: 0 | S23: 0 | T23: 20 | U23: 20 | V23: 0 | W23: 0 | X23: Base Plan | Y23: 2 | Z23: 0 | AA23: 0 | AB23: 0 | AC23: RxM1 | AD23: 0 | AE23: 1 | AF23: 0 | AG23: 0 | AH23: 1 | AI23: 0 | AJ23: 0 | AK23: 2 | AL23: 0 | AM23: 0 | AN23: 12.5 | AO23: 0 | AP23: 1 | AQ23: 0 | AR23: 0 | AS23: 0 | AT23: 0 | AU23: 500 | AV23: 500 | AW23: 0 | AX23: 0 | AY23: 0 | AZ23: 0 | BA23: 0 | BB23: 0 | BC23: 0 | BD23: 0 | BE23: 0 | BF23: 0 | BG23: 0 | BH23: 0 | BI23: 0 | BJ23: 0 | BK23: 0 | BL23: 0 | BM23: 0 | BN23: 0 | BO23: 0 | BP23: 0 | BQ23: 3500 | BR23: 3500 | BS23: 0 | BT23: 0 | BU23: 0 | BV23: 0 | BW23: 0 | BX23: 0 | BY23: 0 | BZ23: 0 | CA23: 0 | CB23: 0 | CC23: 0 | CD23: 0 | CE23: 0 | CF23: 0 | CG23: 0 | CH23: 0 | CI23: 0 | CJ23: 0 | CK23: 0 | CL23: 0 | CM23: 0 | CN23: 0 | CO23: 0
A24: 1 | B24: 1 | C24: — | D24: — | E24: Base Plan | F24: =+'Employee Cost Model'!$C$2 -> Employee Only | G24: In | H24: Rx | I24: M | J24: 2 | K24: N | L24: =+'Employee Cost Model'!C$44 -> 0 | M24: 0 | N24: 0 | O24: — | P24: — | Q24: 857.5887486 | R24: 0 | S24: 0 | T24: 21 | U24: 21 | V24: 0 | W24: 0 | X24: Base Plan | Y24: 2 | Z24: 0 | AA24: 0 | AB24: 0 | AC24: RxM2 | AD24: 0 | AE24: 1 | AF24: 0 | AG24: 0 | AH24: 1 | AI24: 0 | AJ24: 0 | AK24: 2 | AL24: 0 | AM24: 0 | AN24: 67.5 | AO24: 0 | AP24: 1 | AQ24: 0 | AR24: 0 | AS24: 0 | AT24: 0 | AU24: 500 | AV24: 500 | AW24: 0 | AX24: 0 | AY24: 0 | AZ24: 0 | BA24: 0 | BB24: 0 | BC24: 0 | BD24: 0 | BE24: 0 | BF24: 0 | BG24: 0 | BH24: 0 | BI24: 0 | BJ24: 0 | BK24: 0 | BL24: 0 | BM24: 0 | BN24: 0 | BO24: 0 | BP24: 0 | BQ24: 3500 | BR24: 3500 | BS24: 0 | BT24: 0 | BU24: 0 | BV24: 0 | BW24: 0 | BX24: 0 | BY24: 0 | BZ24: 0 | CA24: 0 | CB24: 0 | CC24: 0 | CD24: 0 | CE24: 0 | CF24: 0 | CG24: 0 | CH24: 0 | CI24: 0 | CJ24: 0 | CK24: 0 | CL24: 0 | CM24: 0 | CN24: 0 | CO24: 0
A25: 1 | B25: 1 | C25: — | D25: — | E25: Base Plan | F25: =+'Employee Cost Model'!$C$2 -> Employee Only | G25: In | H25: Rx | I25: M | J25: 3 | K25: N | L25: =+'Employee Cost Model'!C$45 -> 0 | M25: 0 | N25: 0 | O25: — | P25: — | Q25: 1250.793205 | R25: 0 | S25: 0 | T25: 22 | U25: 22 | V25: 1 | W25: 0 | X25: Base Plan | Y25: 2 | Z25: 0 | AA25: 0 | AB25: 0 | AC25: RxM3 | AD25: 0 | AE25: 1 | AF25: 0 | AG25: 0 | AH25: 1 | AI25: 0 | AJ25: 0 | AK25: 2 | AL25: 0 | AM25: 0 | AN25: 135 | AO25: 0 | AP25: 1 | AQ25: 0 | AR25: 0 | AS25: 0 | AT25: 0 | AU25: 500 | AV25: 500 | AW25: 0 | AX25: 0 | AY25: 0 | AZ25: 0 | BA25: 0 | BB25: 0 | BC25: 0 | BD25: 0 | BE25: 0 | BF25: 0 | BG25: 0 | BH25: 0 | BI25: 0 | BJ25: 0 | BK25: 0 | BL25: 0 | BM25: 0 | BN25: 0 | BO25: 0 | BP25: 0 | BQ25: 3500 | BR25: 3500 | BS25: 0 | BT25: 0 | BU25: 0 | BV25: 0 | BW25: 0 | BX25: 0 | BY25: 0 | BZ25: 0 | CA25: 0 | CB25: 0 | CC25: 0 | CD25: 0 | CE25: 0 | CF25: 0 | CG25: 0 | CH25: 0 | CI25: 0 | CJ25: 0 | CK25: 0 | CL25: 0 | CM25: 0 | CN25: 0 | CO25: 0
A26: 1 | B26: 2 | C26: — | D26: — | E26: Base Plan | F26: =+'Employee Cost Model'!$C$2 -> Employee Only | G26: In | H26: Inp | I26: Hospital | K26: N | L26: =+IF(OR('Employee Cost Model'!$C$2="Employee + Spouse + Child(ren)",'Employee Cost Model'!$C$2="Employee + Spouse"),'Employee Cost Model'!D$15,0) -> 0 | M26: 0 | N26: 0 | O26: — | P26: — | Q26: =+Q4 -> 24527.13205 | R26: 1 | S26: 0 | T26: 1 | U26: 23 | V26: 0 | W26: 0 | X26: Base Plan | Y26: 2 | Z26: 0 | AA26: 0 | AB26: 0 | AC26: InpHospital | AD26: 0 | AE26: 0 | AF26: 0 | AG26: 0 | AH26: 2 | AI26: 0 | AJ26: 0 | AK26: 2 | AL26: 0 | AM26: 0 | AN26: 0 | AO26: 0 | AP26: 1 | AQ26: 0 | AR26: 0 | AS26: 0 | AT26: 0 | AU26: 500 | AV26: 500 | AW26: 0 | AX26: 0 | AY26: 0 | AZ26: 0 | BA26: 0 | BB26: 0 | BC26: 0 | BD26: 0 | BE26: 0 | BF26: 0 | BG26: 0 | BH26: 0 | BI26: 0 | BJ26: 0 | BK26: 0 | BL26: 0 | BM26: 0 | BN26: 0 | BO26: 0 | BP26: 0 | BQ26: 3500 | BR26: 3500 | BS26: 0 | BT26: 0 | BU26: 0 | BV26: 0 | BW26: 0 | BX26: 0 | BY26: 0 | BZ26: 0 | CA26: 0 | CB26: 0 | CC26: 0 | CD26: 0 | CE26: 0 | CF26: 0 | CG26: 0 | CH26: 0 | CI26: 0 | CJ26: 0 | CK26: 0 | CL26: 0 | CM26: 0 | CN26: 0 | CO26: 0
A27: 1 | B27: 2 | C27: — | D27: — | E27: Base Plan | F27: =+'Employee Cost Model'!$C$2 -> Employee Only | G27: In | H27: Inp | I27: MHSA | K27: N | L27: =+IF(OR('Employee Cost Model'!$C$2="Employee + Spouse + Child(ren)",'Employee Cost Model'!$C$2="Employee + Spouse"),'Employee Cost Model'!D$16,0) -> 0 | M27: 0 | N27: 0 | O27: — | P27: — | Q27: 11851.45063 | R27: 0 | S27: 0 | T27: 2 | U27: 24 | V27: 0 | W27: 0 | X27: Base Plan | Y27: 2 | Z27: 0 | AA27: 0 | AB27: 0 | AC27: InpMHSA | AD27: 0 | AE27: 0 | AF27: 0 | AG27: 0 | AH27: 2 | AI27: 0 | AJ27: 0 | AK27: 2 | AL27: 0 | AM27: 0 | AN27: 0 | AO27: 0 | AP27: 1 | AQ27: 0 | AR27: 0 | AS27: 0 | AT27: 0 | AU27: 500 | AV27: 500 | AW27: 0 | AX27: 0 | AY27: 0 | AZ27: 0 | BA27: 0 | BB27: 0 | BC27: 0 | BD27: 0 | BE27: 0 | BF27: 0 | BG27: 0 | BH27: 0 | BI27: 0 | BJ27: 0 | BK27: 0 | BL27: 0 | BM27: 0 | BN27: 0 | BO27: 0 | BP27: 0 | BQ27: 3500 | BR27: 3500 | BS27: 0 | BT27: 0 | BU27: 0 | BV27: 0 | BW27: 0 | BX27: 0 | BY27: 0 | BZ27: 0 | CA27: 0 | CB27: 0 | CC27: 0 | CD27: 0 | CE27: 0 | CF27: 0 | CG27: 0 | CH27: 0 | CI27: 0 | CJ27: 0 | CK27: 0 | CL27: 0 | CM27: 0 | CN27: 0 | CO27: 0
A28: 1 | B28: 2 | C28: — | D28: — | E28: Base Plan | F28: =+'Employee Cost Model'!$C$2 -> Employee Only | G28: In | H28: Inp | I28: SNF | K28: N | L28: =+IF(OR('Employee Cost Model'!$C$2="Employee + Spouse + Child(ren)",'Employee Cost Model'!$C$2="Employee + Spouse"),'Employee Cost Model'!D$17,0) -> 0 | M28: 0 | N28: 0 | O28: — | P28: — | Q28: 6523.462072 | R28: 0 | S28: 0 | T28: 3 | U28: 25 | V28: 0 | W28: 0 | X28: Base Plan | Y28: 2 | Z28: 0 | AA28: 0 | AB28: 0 | AC28: InpSNF | AD28: 0 | AE28: 0 | AF28: 0 | AG28: 0 | AH28: 2 | AI28: 0 | AJ28: 0 | AK28: 2 | AL28: 0 | AM28: 0 | AN28: 0 | AO28: 0 | AP28: 1 | AQ28: 0 | AR28: 0 | AS28: 0 | AT28: 0 | AU28: 500 | AV28: 500 | AW28: 0 | AX28: 0 | AY28: 0 | AZ28: 0 | BA28: 0 | BB28: 0 | BC28: 0 | BD28: 0 | BE28: 0 | BF28: 0 | BG28: 0 | BH28: 0 | BI28: 0 | BJ28: 0 | BK28: 0 | BL28: 0 | BM28: 0 | BN28: 0 | BO28: 0 | BP28: 0 | BQ28: 3500 | BR28: 3500 | BS28: 0 | BT28: 0 | BU28: 0 | BV28: 0 | BW28: 0 | BX28: 0 | BY28: 0 | BZ28: 0 | CA28: 0 | CB28: 0 | CC28: 0 | CD28: 0 | CE28: 0 | CF28: 0 | CG28: 0 | CH28: 0 | CI28: 0 | CJ28: 0 | CK28: 0 | CL28: 0 | CM28: 0 | CN28: 0 | CO28: 0
A29: 1 | B29: 2 | C29: — | D29: — | E29: Base Plan | F29: =+'Employee Cost Model'!$C$2 -> Employee Only | G29: In | H29: Out | I29: ER | K29: N | L29: =+IF(OR('Employee Cost Model'!$C$2="Employee + Spouse + Child(ren)",'Employee Cost Model'!$C$2="Employee + Spouse"),'Employee Cost Model'!D$23,0) -> 0 | M29: 0 | N29: 0 | O29: — | P29: — | Q29: 1458.770268 | R29: 0 | S29: 0 | T29: 4 | U29: 26 | V29: 0 | W29: 0 | X29: Base Plan | Y29: 2 | Z29: 0 | AA29: 0 | AB29: 0 | AC29: OutER | AD29: 0 | AE29: 0 | AF29: 0 | AG29: 0 | AH29: 1 | AI29: 0 | AJ29: 0 | AK29: 2 | AL29: 0 | AM29: 0 | AN29: 125 | AO29: 0 | AP29: 1 | AQ29: 0 | AR29: 0 | AS29: 0 | AT29: 0 | AU29: 500 | AV29: 500 | AW29: 0 | AX29: 0 | AY29: 0 | AZ29: 0 | BA29: 0 | BB29: 0 | BC29: 0 | BD29: 0 | BE29: 0 | BF29: 0 | BG29: 0 | BH29: 0 | BI29: 0 | BJ29: 0 | BK29: 0 | BL29: 0 | BM29: 0 | BN29: 0 | BO29: 0 | BP29: 0 | BQ29: 3500 | BR29: 3500 | BS29: 0 | BT29: 0 | BU29: 0 | BV29: 0 | BW29: 0 | BX29: 0 | BY29: 0 | BZ29: 0 | CA29: 0 | CB29: 0 | CC29: 0 | CD29: 0 | CE29: 0 | CF29: 0 | CG29: 0 | CH29: 0 | CI29: 0 | CJ29: 0 | CK29: 0 | CL29: 0 | CM29: 0 | CN29: 0 | CO29: 0
A30: 1 | B30: 2 | C30: — | D30: — | E30: Base Plan | F30: =+'Employee Cost Model'!$C$2 -> Employee Only | G30: In | H30: Out | I30: UC | K30: N | L30: =+IF(OR('Employee Cost Model'!$C$2="Employee + Spouse + Child(ren)",'Employee Cost Model'!$C$2="Employee + Spouse"),'Employee Cost Model'!D$24,0) -> 0 | M30: 0 | N30: 0 | O30: — | P30: — | Q30: 167.7490597 | R30: 0 | S30: 0 | T30: 5 | U30: 27 | V30: 0 | W30: 0 | X30: Base Plan | Y30: 2 | Z30: 0 | AA30: 0 | AB30: 0 | AC30: OutUC | AD30: 0 | AE30: 0 | AF30: 0 | AG30: 0 | AH30: 1 | AI30: 0 | AJ30: 0 | AK30: 2 | AL30: 0 | AM30: 0 | AN30: 50 | AO30: 0 | AP30: 1 | AQ30: 0 | AR30: 0 | AS30: 0 | AT30: 0 | AU30: 500 | AV30: 500 | AW30: 0 | AX30: 0 | AY30: 0 | AZ30: 0 | BA30: 0 | BB30: 0 | BC30: 0 | BD30: 0 | BE30: 0 | BF30: 0 | BG30: 0 | BH30: 0 | BI30: 0 | BJ30: 0 | BK30: 0 | BL30: 0 | BM30: 0 | BN30: 0 | BO30: 0 | BP30: 0 | BQ30: 3500 | BR30: 3500 | BS30: 0 | BT30: 0 | BU30: 0 | BV30: 0 | BW30: 0 | BX30: 0 | BY30: 0 | BZ30: 0 | CA30: 0 | CB30: 0 | CC30: 0 | CD30: 0 | CE30: 0 | CF30: 0 | CG30: 0 | CH30: 0 | CI30: 0 | CJ30: 0 | CK30: 0 | CL30: 0 | CM30: 0 | CN30: 0 | CO30: 0
A31: 1 | B31: 2 | C31: — | D31: — | E31: Base Plan | F31: =+'Employee Cost Model'!$C$2 -> Employee Only | G31: In | H31: Out | I31: Surgery | K31: N | L31: =+IF(OR('Employee Cost Model'!$C$2="Employee + Spouse + Child(ren)",'Employee Cost Model'!$C$2="Employee + Spouse"),'Employee Cost Model'!D$20,0) -> 0 | M31: 0 | N31: 0 | O31: — | P31: — | Q31: 3651.604864 | R31: 0 | S31: 0 | T31: 6 | U31: 28 | V31: 0 | W31: 0 | X31: Base Plan | Y31: 2 | Z31: 0 | AA31: 0 | AB31: 0 | AC31: OutSurgery | AD31: 0 | AE31: 0 | AF31: 0 | AG31: 0 | AH31: 2 | AI31: 0 | AJ31: 0 | AK31: 2 | AL31: 0 | AM31: 0 | AN31: 0 | AO31: 0 | AP31: 1 | AQ31: 0 | AR31: 0 | AS31: 0 | AT31: 0 | AU31: 500 | AV31: 500 | AW31: 0 | AX31: 0 | AY31: 0 | AZ31: 0 | BA31: 0 | BB31: 0 | BC31: 0 | BD31: 0 | BE31: 0 | BF31: 0 | BG31: 0 | BH31: 0 | BI31: 0 | BJ31: 0 | BK31: 0 | BL31: 0 | BM31: 0 | BN31: 0 | BO31: 0 | BP31: 0 | BQ31: 3500 | BR31: 3500 | BS31: 0 | BT31: 0 | BU31: 0 | BV31: 0 | BW31: 0 | BX31: 0 | BY31: 0 | BZ31: 0 | CA31: 0 | CB31: 0 | CC31: 0 | CD31: 0 | CE31: 0 | CF31: 0 | CG31: 0 | CH31: 0 | CI31: 0 | CJ31: 0 | CK31: 0 | CL31: 0 | CM31: 0 | CN31: 0 | CO31: 0
A32: 1 | B32: 2 | C32: — | D32: — | E32: Base Plan | F32: =+'Employee Cost Model'!$C$2 -> Employee Only | G32: In | H32: Out | I32: X-ray/Lab | K32: N | L32: =+IF(OR('Employee Cost Model'!$C$2="Employee + Spouse + Child(ren)",'Employee Cost Model'!$C$2="Employee + Spouse"),'Employee Cost Model'!D$26,0) -> 0 | M32: 0 | N32: 0 | O32: — | P32: — | Q32: 223.9676734 | R32: 0 | S32: 0 | T32: 7 | U32: 29 | V32: 0 | W32: 0 | X32: Base Plan | Y32: 2 | Z32: 0 | AA32: 0 | AB32: 0 | AC32: OutX-ray/Lab | AD32: 0 | AE32: 0 | AF32: 0 | AG32: 0 | AH32: 2 | AI32: 0 | AJ32: 0 | AK32: 2 | AL32: 0 | AM32: 0 | AN32: 0 | AO32: 0 | AP32: 1 | AQ32: 0 | AR32: 0 | AS32: 0 | AT32: 0 | AU32: 500 | AV32: 500 | AW32: 0 | AX32: 0 | AY32: 0 | AZ32: 0 | BA32: 0 | BB32: 0 | BC32: 0 | BD32: 0 | BE32: 0 | BF32: 0 | BG32: 0 | BH32: 0 | BI32: 0 | BJ32: 0 | BK32: 0 | BL32: 0 | BM32: 0 | BN32: 0 | BO32: 0 | BP32: 0 | BQ32: 3500 | BR32: 3500 | BS32: 0 | BT32: 0 | BU32: 0 | BV32: 0 | BW32: 0 | BX32: 0 | BY32: 0 | BZ32: 0 | CA32: 0 | CB32: 0 | CC32: 0 | CD32: 0 | CE32: 0 | CF32: 0 | CG32: 0 | CH32: 0 | CI32: 0 | CJ32: 0 | CK32: 0 | CL32: 0 | CM32: 0 | CN32: 0 | CO32: 0
A33: 1 | B33: 2 | C33: — | D33: — | E33: Base Plan | F33: =+'Employee Cost Model'!$C$2 -> Employee Only | G33: In | H33: Out | I33: Adv Rad | K33: N | L33: =+IF(OR('Employee Cost Model'!$C$2="Employee + Spouse + Child(ren)",'Employee Cost Model'!$C$2="Employee + Spouse"),'Employee Cost Model'!D$27,0) -> 0 | M33: 0 | N33: 0 | O33: — | P33: — | Q33: 995.6214691 | R33: 0 | S33: 0 | T33: 8 | U33: 30 | V33: 0 | W33: 0 | X33: Base Plan | Y33: 2 | Z33: 0 | AA33: 0 | AB33: 0 | AC33: OutAdv Rad | AD33: 0 | AE33: 0 | AF33: 0 | AG33: 0 | AH33: 2 | AI33: 0 | AJ33: 0 | AK33: 2 | AL33: 0 | AM33: 0 | AN33: 0 | AO33: 0 | AP33: 1 | AQ33: 0 | AR33: 0 | AS33: 0 | AT33: 0 | AU33: 500 | AV33: 500 | AW33: 0 | AX33: 0 | AY33: 0 | AZ33: 0 | BA33: 0 | BB33: 0 | BC33: 0 | BD33: 0 | BE33: 0 | BF33: 0 | BG33: 0 | BH33: 0 | BI33: 0 | BJ33: 0 | BK33: 0 | BL33: 0 | BM33: 0 | BN33: 0 | BO33: 0 | BP33: 0 | BQ33: 3500 | BR33: 3500 | BS33: 0 | BT33: 0 | BU33: 0 | BV33: 0 | BW33: 0 | BX33: 0 | BY33: 0 | BZ33: 0 | CA33: 0 | CB33: 0 | CC33: 0 | CD33: 0 | CE33: 0 | CF33: 0 | CG33: 0 | CH33: 0 | CI33: 0 | CJ33: 0 | CK33: 0 | CL33: 0 | CM33: 0 | CN33: 0 | CO33: 0
A34: 1 | B34: 2 | C34: — | D34: — | E34: Base Plan | F34: =+'Employee Cost Model'!$C$2 -> Employee Only | G34: In | H34: Professional | I34: PCP | K34: N | L34: =+IF(OR('Employee Cost Model'!$C$2="Employee + Spouse + Child(ren)",'Employee Cost Model'!$C$2="Employee + Spouse"),'Employee Cost Model'!D$29,0) -> 0 | M34: 0 | N34: 0 | O34: — | P34: — | Q34: 167.4628453 | R34: 0 | S34: 0 | T34: 9 | U34: 31 | V34: 0 | W34: 0 | X34: Base Plan | Y34: 2 | Z34: 0 | AA34: 0 | AB34: 0 | AC34: ProfessionalPCP | AD34: 0 | AE34: 0 | AF34: 0 | AG34: 0 | AH34: 1 | AI34: 0 | AJ34: 0 | AK34: 2 | AL34: 0 | AM34: 0 | AN34: 15 | AO34: 0 | AP34: 1 | AQ34: 0 | AR34: 0 | AS34: 0 | AT34: 0 | AU34: 500 | AV34: 500 | AW34: 0 | AX34: 0 | AY34: 0 | AZ34: 0 | BA34: 0 | BB34: 0 | BC34: 0 | BD34: 0 | BE34: 0 | BF34: 0 | BG34: 0 | BH34: 0 | BI34: 0 | BJ34: 0 | BK34: 0 | BL34: 0 | BM34: 0 | BN34: 0 | BO34: 0 | BP34: 0 | BQ34: 3500 | BR34: 3500 | BS34: 0 | BT34: 0 | BU34: 0 | BV34: 0 | BW34: 0 | BX34: 0 | BY34: 0 | BZ34: 0 | CA34: 0 | CB34: 0 | CC34: 0 | CD34: 0 | CE34: 0 | CF34: 0 | CG34: 0 | CH34: 0 | CI34: 0 | CJ34: 0 | CK34: 0 | CL34: 0 | CM34: 0 | CN34: 0 | CO34: 0
A35: 1 | B35: 2 | C35: — | D35: — | E35: Base Plan | F35: =+'Employee Cost Model'!$C$2 -> Employee Only | G35: In | H35: Professional | I35: SCP | K35: N | L35: =+IF(OR('Employee Cost Model'!$C$2="Employee + Spouse + Child(ren)",'Employee Cost Model'!$C$2="Employee + Spouse"),'Employee Cost Model'!D$30,0) -> 0 | M35: 0 | N35: 0 | O35: — | P35: — | Q35: 190.3145998 | R35: 0 | S35: 0 | T35: 10 | U35: 32 | V35: 0 | W35: 0 | X35: Base Plan | Y35: 2 | Z35: 0 | AA35: 0 | AB35: 0 | AC35: ProfessionalSCP | AD35: 0 | AE35: 0 | AF35: 0 | AG35: 0 | AH35: 1 | AI35: 0 | AJ35: 0 | AK35: 2 | AL35: 0 | AM35: 0 | AN35: 30 | AO35: 0 | AP35: 1 | AQ35: 0 | AR35: 0 | AS35: 0 | AT35: 0 | AU35: 500 | AV35: 500 | AW35: 0 | AX35: 0 | AY35: 0 | AZ35: 0 | BA35: 0 | BB35: 0 | BC35: 0 | BD35: 0 | BE35: 0 | BF35: 0 | BG35: 0 | BH35: 0 | BI35: 0 | BJ35: 0 | BK35: 0 | BL35: 0 | BM35: 0 | BN35: 0 | BO35: 0 | BP35: 0 | BQ35: 3500 | BR35: 3500 | BS35: 0 | BT35: 0 | BU35: 0 | BV35: 0 | BW35: 0 | BX35: 0 | BY35: 0 | BZ35: 0 | CA35: 0 | CB35: 0 | CC35: 0 | CD35: 0 | CE35: 0 | CF35: 0 | CG35: 0 | CH35: 0 | CI35: 0 | CJ35: 0 | CK35: 0 | CL35: 0 | CM35: 0 | CN35: 0 | CO35: 0
A36: 1 | B36: 2 | C36: — | D36: — | E36: Base Plan | F36: =+'Employee Cost Model'!$C$2 -> Employee Only | G36: In | H36: Professional | I36: Maternity | K36: N | L36: =+IF(OR('Employee Cost Model'!$C$2="Employee + Spouse + Child(ren)",'Employee Cost Model'!$C$2="Employee + Spouse"),'Employee Cost Model'!D$31,0) -> 0 | M36: 0 | N36: 0 | O36: — | P36: — | Q36: 23659.20645 | R36: 0 | S36: 0 | T36: 11 | U36: 33 | V36: 0 | W36: 0 | X36: Base Plan | Y36: 2 | Z36: 0 | AA36: 0 | AB36: 0 | AC36: ProfessionalMaternity | AD36: 0 | AE36: 0 | AF36: 0 | AG36: 0 | AH36: 2 | AI36: 0 | AJ36: 0 | AK36: 2 | AL36: 0 | AM36: 0 | AN36: 0 | AO36: 0 | AP36: 1 | AQ36: 0 | AR36: 0 | AS36: 0 | AT36: 0 | AU36: 500 | AV36: 500 | AW36: 0 | AX36: 0 | AY36: 0 | AZ36: 0 | BA36: 0 | BB36: 0 | BC36: 0 | BD36: 0 | BE36: 0 | BF36: 0 | BG36: 0 | BH36: 0 | BI36: 0 | BJ36: 0 | BK36: 0 | BL36: 0 | BM36: 0 | BN36: 0 | BO36: 0 | BP36: 0 | BQ36: 3500 | BR36: 3500 | BS36: 0 | BT36: 0 | BU36: 0 | BV36: 0 | BW36: 0 | BX36: 0 | BY36: 0 | BZ36: 0 | CA36: 0 | CB36: 0 | CC36: 0 | CD36: 0 | CE36: 0 | CF36: 0 | CG36: 0 | CH36: 0 | CI36: 0 | CJ36: 0 | CK36: 0 | CL36: 0 | CM36: 0 | CN36: 0 | CO36: 0
A37: 1 | B37: 2 | C37: — | D37: — | E37: Base Plan | F37: =+'Employee Cost Model'!$C$2 -> Employee Only | G37: In | H37: Professional | I37: Off Surgery | K37: N | L37: =+IF(OR('Employee Cost Model'!$C$2="Employee + Spouse + Child(ren)",'Employee Cost Model'!$C$2="Employee + Spouse"),'Employee Cost Model'!D$21,0) -> 0 | M37: 0 | N37: 0 | O37: — | P37: — | Q37: 988.0543893 | R37: 0 | S37: 0 | T37: 12 | U37: 34 | V37: 0 | W37: 0 | X37: Base Plan | Y37: 2 | Z37: 0 | AA37: 0 | AB37: 0 | AC37: ProfessionalOff Surgery | AD37: 0 | AE37: 0 | AF37: 0 | AG37: 0 | AH37: 2 | AI37: 0 | AJ37: 0 | AK37: 2 | AL37: 0 | AM37: 0 | AN37: 0 | AO37: 0 | AP37: 1 | AQ37: 0 | AR37: 0 | AS37: 0 | AT37: 0 | AU37: 500 | AV37: 500 | AW37: 0 | AX37: 0 | AY37: 0 | AZ37: 0 | BA37: 0 | BB37: 0 | BC37: 0 | BD37: 0 | BE37: 0 | BF37: 0 | BG37: 0 | BH37: 0 | BI37: 0 | BJ37: 0 | BK37: 0 | BL37: 0 | BM37: 0 | BN37: 0 | BO37: 0 | BP37: 0 | BQ37: 3500 | BR37: 3500 | BS37: 0 | BT37: 0 | BU37: 0 | BV37: 0 | BW37: 0 | BX37: 0 | BY37: 0 | BZ37: 0 | CA37: 0 | CB37: 0 | CC37: 0 | CD37: 0 | CE37: 0 | CF37: 0 | CG37: 0 | CH37: 0 | CI37: 0 | CJ37: 0 | CK37: 0 | CL37: 0 | CM37: 0 | CN37: 0 | CO37: 0
A38: 1 | B38: 2 | C38: — | D38: — | E38: Base Plan | F38: =+'Employee Cost Model'!$C$2 -> Employee Only | G38: In | H38: Professional | I38: MHSA | K38: N | L38: =+IF(OR('Employee Cost Model'!$C$2="Employee + Spouse + Child(ren)",'Employee Cost Model'!$C$2="Employee + Spouse"),'Employee Cost Model'!D$34,0) -> 0 | M38: 0 | N38: 0 | O38: — | P38: — | Q38: 125.9770284 | R38: 0 | S38: 0 | T38: 13 | U38: 35 | V38: 0 | W38: 0 | X38: Base Plan | Y38: 2 | Z38: 0 | AA38: 0 | AB38: 0 | AC38: ProfessionalMHSA | AD38: 0 | AE38: 0 | AF38: 0 | AG38: 0 | AH38: 1 | AI38: 0 | AJ38: 0 | AK38: 2 | AL38: 0 | AM38: 0 | AN38: 15 | AO38: 0 | AP38: 1 | AQ38: 0 | AR38: 0 | AS38: 0 | AT38: 0 | AU38: 500 | AV38: 500 | AW38: 0 | AX38: 0 | AY38: 0 | AZ38: 0 | BA38: 0 | BB38: 0 | BC38: 0 | BD38: 0 | BE38: 0 | BF38: 0 | BG38: 0 | BH38: 0 | BI38: 0 | BJ38: 0 | BK38: 0 | BL38: 0 | BM38: 0 | BN38: 0 | BO38: 0 | BP38: 0 | BQ38: 3500 | BR38: 3500 | BS38: 0 | BT38: 0 | BU38: 0 | BV38: 0 | BW38: 0 | BX38: 0 | BY38: 0 | BZ38: 0 | CA38: 0 | CB38: 0 | CC38: 0 | CD38: 0 | CE38: 0 | CF38: 0 | CG38: 0 | CH38: 0 | CI38: 0 | CJ38: 0 | CK38: 0 | CL38: 0 | CM38: 0 | CN38: 0 | CO38: 0
A39: 1 | B39: 2 | C39: — | D39: — | E39: Base Plan | F39: =+'Employee Cost Model'!$C$2 -> Employee Only | G39: In | H39: Professional | I39: PhyTh/SpTh/OccTh | K39: N | L39: =+IF(OR('Employee Cost Model'!$C$2="Employee + Spouse + Child(ren)",'Employee Cost Model'!$C$2="Employee + Spouse"),'Employee Cost Model'!D$32,0) -> 0 | M39: 0 | N39: 0 | O39: — | P39: — | Q39: 165.3990089 | R39: 0 | S39: 0 | T39: 14 | U39: 36 | V39: 0 | W39: 0 | X39: Base Plan | Y39: 2 | Z39: 0 | AA39: 0 | AB39: 0 | AC39: ProfessionalPhyTh/SpTh/OccTh | AD39: 0 | AE39: 0 | AF39: 0 | AG39: 0 | AH39: 1 | AI39: 0 | AJ39: 0 | AK39: 2 | AL39: 0 | AM39: 0 | AN39: 33.07980179 | AO39: 0 | AP39: 1 | AQ39: 0 | AR39: 0 | AS39: 0 | AT39: 0 | AU39: 500 | AV39: 500 | AW39: 0 | AX39: 0 | AY39: 0 | AZ39: 0 | BA39: 0 | BB39: 0 | BC39: 0 | BD39: 0 | BE39: 0 | BF39: 0 | BG39: 0 | BH39: 0 | BI39: 0 | BJ39: 0 | BK39: 0 | BL39: 0 | BM39: 0 | BN39: 0 | BO39: 0 | BP39: 0 | BQ39: 3500 | BR39: 3500 | BS39: 0 | BT39: 0 | BU39: 0 | BV39: 0 | BW39: 0 | BX39: 0 | BY39: 0 | BZ39: 0 | CA39: 0 | CB39: 0 | CC39: 0 | CD39: 0 | CE39: 0 | CF39: 0 | CG39: 0 | CH39: 0 | CI39: 0 | CJ39: 0 | CK39: 0 | CL39: 0 | CM39: 0 | CN39: 0 | CO39: 0
A40: 1 | B40: 2 | C40: — | D40: — | E40: Base Plan | F40: =+'Employee Cost Model'!$C$2 -> Employee Only | G40: In | H40: Professional | I40: Chiro | K40: N | L40: =+IF(OR('Employee Cost Model'!$C$2="Employee + Spouse + Child(ren)",'Employee Cost Model'!$C$2="Employee + Spouse"),'Employee Cost Model'!D$33,0) -> 0 | M40: 0 | N40: 0 | O40: — | P40: — | Q40: 79.45445144 | R40: 0 | S40: 0 | T40: 15 | U40: 37 | V40: 0 | W40: 0 | X40: Base Plan | Y40: 2 | Z40: 0 | AA40: 0 | AB40: 0 | AC40: ProfessionalChiro | AD40: 0 | AE40: 0 | AF40: 0 | AG40: 0 | AH40: 1 | AI40: 0 | AJ40: 0 | AK40: 2 | AL40: 0 | AM40: 0 | AN40: 30 | AO40: 0 | AP40: 1 | AQ40: 0 | AR40: 0 | AS40: 0 | AT40: 0 | AU40: 500 | AV40: 500 | AW40: 0 | AX40: 0 | AY40: 0 | AZ40: 0 | BA40: 0 | BB40: 0 | BC40: 0 | BD40: 0 | BE40: 0 | BF40: 0 | BG40: 0 | BH40: 0 | BI40: 0 | BJ40: 0 | BK40: 0 | BL40: 0 | BM40: 0 | BN40: 0 | BO40: 0 | BP40: 0 | BQ40: 3500 | BR40: 3500 | BS40: 0 | BT40: 0 | BU40: 0 | BV40: 0 | BW40: 0 | BX40: 0 | BY40: 0 | BZ40: 0 | CA40: 0 | CB40: 0 | CC40: 0 | CD40: 0 | CE40: 0 | CF40: 0 | CG40: 0 | CH40: 0 | CI40: 0 | CJ40: 0 | CK40: 0 | CL40: 0 | CM40: 0 | CN40: 0 | CO40: 0
A41: 1 | B41: 2 | C41: — | D41: — | E41: Base Plan | F41: =+'Employee Cost Model'!$C$2 -> Employee Only | G41: In | H41: Rx | I41: R | J41: 1 | K41: N | L41: =+IF(OR('Employee Cost Model'!$C$2="Employee + Spouse + Child(ren)",'Employee Cost Model'!$C$2="Employee + Spouse"),'Employee Cost Model'!D$38,0) -> 0 | M41: 0 | N41: 0 | O41: — | P41: — | Q41: 50.83329564 | R41: 0 | S41: 0 | T41: 16 | U41: 38 | V41: 0 | W41: 0 | X41: Base Plan | Y41: 2 | Z41: 0 | AA41: 0 | AB41: 0 | AC41: RxR1 | AD41: 0 | AE41: 1 | AF41: 0 | AG41: 0 | AH41: 1 | AI41: 0 | AJ41: 0 | AK41: 2 | AL41: 0 | AM41: 0 | AN41: 5 | AO41: 0 | AP41: 1 | AQ41: 0 | AR41: 0 | AS41: 0 | AT41: 0 | AU41: 500 | AV41: 500 | AW41: 0 | AX41: 0 | AY41: 0 | AZ41: 0 | BA41: 0 | BB41: 0 | BC41: 0 | BD41: 0 | BE41: 0 | BF41: 0 | BG41: 0 | BH41: 0 | BI41: 0 | BJ41: 0 | BK41: 0 | BL41: 0 | BM41: 0 | BN41: 0 | BO41: 0 | BP41: 0 | BQ41: 3500 | BR41: 3500 | BS41: 0 | BT41: 0 | BU41: 0 | BV41: 0 | BW41: 0 | BX41: 0 | BY41: 0 | BZ41: 0 | CA41: 0 | CB41: 0 | CC41: 0 | CD41: 0 | CE41: 0 | CF41: 0 | CG41: 0 | CH41: 0 | CI41: 0 | CJ41: 0 | CK41: 0 | CL41: 0 | CM41: 0 | CN41: 0 | CO41: 0
A42: 1 | B42: 2 | C42: — | D42: — | E42: Base Plan | F42: =+'Employee Cost Model'!$C$2 -> Employee Only | G42: In | H42: Rx | I42: R | J42: 2 | K42: N | L42: =+IF(OR('Employee Cost Model'!$C$2="Employee + Spouse + Child(ren)",'Employee Cost Model'!$C$2="Employee + Spouse"),'Employee Cost Model'!D$39,0) -> 0 | M42: 0 | N42: 0 | O42: — | P42: — | Q42: 389.8130676 | R42: 0 | S42: 0 | T42: 17 | U42: 39 | V42: 0 | W42: 0 | X42: Base Plan | Y42: 2 | Z42: 0 | AA42: 0 | AB42: 0 | AC42: RxR2 | AD42: 0 | AE42: 1 | AF42: 0 | AG42: 0 | AH42: 1 | AI42: 0 | AJ42: 0 | AK42: 2 | AL42: 0 | AM42: 0 | AN42: 35 | AO42: 0 | AP42: 1 | AQ42: 0 | AR42: 0 | AS42: 0 | AT42: 0 | AU42: 500 | AV42: 500 | AW42: 0 | AX42: 0 | AY42: 0 | AZ42: 0 | BA42: 0 | BB42: 0 | BC42: 0 | BD42: 0 | BE42: 0 | BF42: 0 | BG42: 0 | BH42: 0 | BI42: 0 | BJ42: 0 | BK42: 0 | BL42: 0 | BM42: 0 | BN42: 0 | BO42: 0 | BP42: 0 | BQ42: 3500 | BR42: 3500 | BS42: 0 | BT42: 0 | BU42: 0 | BV42: 0 | BW42: 0 | BX42: 0 | BY42: 0 | BZ42: 0 | CA42: 0 | CB42: 0 | CC42: 0 | CD42: 0 | CE42: 0 | CF42: 0 | CG42: 0 | CH42: 0 | CI42: 0 | CJ42: 0 | CK42: 0 | CL42: 0 | CM42: 0 | CN42: 0 | CO42: 0
A43: 1 | B43: 2 | C43: — | D43: — | E43: Base Plan | F43: =+'Employee Cost Model'!$C$2 -> Employee Only | G43: In | H43: Rx | I43: R | J43: 3 | K43: N | L43: =+IF(OR('Employee Cost Model'!$C$2="Employee + Spouse + Child(ren)",'Employee Cost Model'!$C$2="Employee + Spouse"),'Employee Cost Model'!D$40,0) -> 0 | M43: 0 | N43: 0 | O43: — | P43: — | Q43: 651.9493716 | R43: 0 | S43: 0 | T43: 18 | U43: 40 | V43: 0 | W43: 0 | X43: Base Plan | Y43: 2 | Z43: 0 | AA43: 0 | AB43: 0 | AC43: RxR3 | AD43: 0 | AE43: 1 | AF43: 0 | AG43: 0 | AH43: 1 | AI43: 0 | AJ43: 0 | AK43: 2 | AL43: 0 | AM43: 0 | AN43: 60 | AO43: 0 | AP43: 1 | AQ43: 0 | AR43: 0 | AS43: 0 | AT43: 0 | AU43: 500 | AV43: 500 | AW43: 0 | AX43: 0 | AY43: 0 | AZ43: 0 | BA43: 0 | BB43: 0 | BC43: 0 | BD43: 0 | BE43: 0 | BF43: 0 | BG43: 0 | BH43: 0 | BI43: 0 | BJ43: 0 | BK43: 0 | BL43: 0 | BM43: 0 | BN43: 0 | BO43: 0 | BP43: 0 | BQ43: 3500 | BR43: 3500 | BS43: 0 | BT43: 0 | BU43: 0 | BV43: 0 | BW43: 0 | BX43: 0 | BY43: 0 | BZ43: 0 | CA43: 0 | CB43: 0 | CC43: 0 | CD43: 0 | CE43: 0 | CF43: 0 | CG43: 0 | CH43: 0 | CI43: 0 | CJ43: 0 | CK43: 0 | CL43: 0 | CM43: 0 | CN43: 0 | CO43: 0
A44: 1 | B44: 2 | C44: — | D44: — | E44: Base Plan | F44: =+'Employee Cost Model'!$C$2 -> Employee Only | G44: In | H44: Rx | I44: R | J44: 4 | K44: N | L44: =+IF(OR('Employee Cost Model'!$C$2="Employee + Spouse + Child(ren)",'Employee Cost Model'!$C$2="Employee + Spouse"),'Employee Cost Model'!D$41,0) -> 0 | M44: 0 | N44: =+L44*Q44 -> 0 | O44: — | P44: — | Q44: 8251.270121 | R44: 0 | S44: 0 | T44: 19 | U44: 41 | V44: 0 | W44: 0 | X44: Base Plan | Y44: 2 | Z44: 0 | AA44: 0 | AB44: 0 | AC44: RxR4 | AD44: 0 | AE44: 1 | AF44: 0 | AG44: 0 | AH44: 1 | AI44: 0 | AJ44: 0 | AK44: 2 | AL44: 0 | AM44: 0 | AN44: 60 | AO44: 0 | AP44: 1 | AQ44: 0 | AR44: 0 | AS44: 0 | AT44: 0 | AU44: 500 | AV44: 500 | AW44: 0 | AX44: 0 | AY44: 0 | AZ44: 0 | BA44: 0 | BB44: 0 | BC44: 0 | BD44: 0 | BE44: 0 | BF44: 0 | BG44: 0 | BH44: 0 | BI44: 0 | BJ44: 0 | BK44: 0 | BL44: 0 | BM44: 0 | BN44: 0 | BO44: 0 | BP44: 0 | BQ44: 3500 | BR44: 3500 | BS44: 0 | BT44: 0 | BU44: 0 | BV44: 0 | BW44: 0 | BX44: 0 | BY44: 0 | BZ44: 0 | CA44: 0 | CB44: 0 | CC44: 0 | CD44: 0 | CE44: 0 | CF44: 0 | CG44: 0 | CH44: 0 | CI44: 0 | CJ44: 0 | CK44: 0 | CL44: 0 | CM44: 0 | CN44: 0 | CO44: 0
A45: 1 | B45: 2 | C45: — | D45: — | E45: Base Plan | F45: =+'Employee Cost Model'!$C$2 -> Employee Only | G45: In | H45: Rx | I45: M | J45: 1 | K45: N | L45: =+IF(OR('Employee Cost Model'!$C$2="Employee + Spouse + Child(ren)",'Employee Cost Model'!$C$2="Employee + Spouse"),'Employee Cost Model'!D$43,0) -> 0 | M45: 0 | N45: 0 | O45: — | P45: — | Q45: 88.65973424 | R45: 0 | S45: 0 | T45: 20 | U45: 42 | V45: 0 | W45: 0 | X45: Base Plan | Y45: 2 | Z45: 0 | AA45: 0 | AB45: 0 | AC45: RxM1 | AD45: 0 | AE45: 1 | AF45: 0 | AG45: 0 | AH45: 1 | AI45: 0 | AJ45: 0 | AK45: 2 | AL45: 0 | AM45: 0 | AN45: 12.5 | AO45: 0 | AP45: 1 | AQ45: 0 | AR45: 0 | AS45: 0 | AT45: 0 | AU45: 500 | AV45: 500 | AW45: 0 | AX45: 0 | AY45: 0 | AZ45: 0 | BA45: 0 | BB45: 0 | BC45: 0 | BD45: 0 | BE45: 0 | BF45: 0 | BG45: 0 | BH45: 0 | BI45: 0 | BJ45: 0 | BK45: 0 | BL45: 0 | BM45: 0 | BN45: 0 | BO45: 0 | BP45: 0 | BQ45: 3500 | BR45: 3500 | BS45: 0 | BT45: 0 | BU45: 0 | BV45: 0 | BW45: 0 | BX45: 0 | BY45: 0 | BZ45: 0 | CA45: 0 | CB45: 0 | CC45: 0 | CD45: 0 | CE45: 0 | CF45: 0 | CG45: 0 | CH45: 0 | CI45: 0 | CJ45: 0 | CK45: 0 | CL45: 0 | CM45: 0 | CN45: 0 | CO45: 0
A46: 1 | B46: 2 | C46: — | D46: — | E46: Base Plan | F46: =+'Employee Cost Model'!$C$2 -> Employee Only | G46: In | H46: Rx | I46: M | J46: 2 | K46: N | L46: =+IF(OR('Employee Cost Model'!$C$2="Employee + Spouse + Child(ren)",'Employee Cost Model'!$C$2="Employee + Spouse"),'Employee Cost Model'!D$44,0) -> 0 | M46: 0 | N46: 0 | O46: — | P46: — | Q46: 857.5887486 | R46: 0 | S46: 0 | T46: 21 | U46: 43 | V46: 0 | W46: 0 | X46: Base Plan | Y46: 2 | Z46: 0 | AA46: 0 | AB46: 0 | AC46: RxM2 | AD46: 0 | AE46: 1 | AF46: 0 | AG46: 0 | AH46: 1 | AI46: 0 | AJ46: 0 | AK46: 2 | AL46: 0 | AM46: 0 | AN46: 67.5 | AO46: 0 | AP46: 1 | AQ46: 0 | AR46: 0 | AS46: 0 | AT46: 0 | AU46: 500 | AV46: 500 | AW46: 0 | AX46: 0 | AY46: 0 | AZ46: 0 | BA46: 0 | BB46: 0 | BC46: 0 | BD46: 0 | BE46: 0 | BF46: 0 | BG46: 0 | BH46: 0 | BI46: 0 | BJ46: 0 | BK46: 0 | BL46: 0 | BM46: 0 | BN46: 0 | BO46: 0 | BP46: 0 | BQ46: 3500 | BR46: 3500 | BS46: 0 | BT46: 0 | BU46: 0 | BV46: 0 | BW46: 0 | BX46: 0 | BY46: 0 | BZ46: 0 | CA46: 0 | CB46: 0 | CC46: 0 | CD46: 0 | CE46: 0 | CF46: 0 | CG46: 0 | CH46: 0 | CI46: 0 | CJ46: 0 | CK46: 0 | CL46: 0 | CM46: 0 | CN46: 0 | CO46: 0
A47: 1 | B47: 2 | C47: — | D47: — | E47: Base Plan | F47: =+'Employee Cost Model'!$C$2 -> Employee Only | G47: In | H47: Rx | I47: M | J47: 3 | K47: N | L47: =+IF(OR('Employee Cost Model'!$C$2="Employee + Spouse + Child(ren)",'Employee Cost Model'!$C$2="Employee + Spouse"),'Employee Cost Model'!D$45,0) -> 0 | M47: 0 | N47: 0 | O47: — | P47: — | Q47: 1250.793205 | R47: 0 | S47: 0 | T47: 22 | U47: 44 | V47: 1 | W47: 0 | X47: Base Plan | Y47: 2 | Z47: 0 | AA47: 0 | AB47: 0 | AC47: RxM3 | AD47: 0 | AE47: 1 | AF47: 0 | AG47: 0 | AH47: 1 | AI47: 0 | AJ47: 0 | AK47: 2 | AL47: 0 | AM47: 0 | AN47: 135 | AO47: 0 | AP47: 1 | AQ47: 0 | AR47: 0 | AS47: 0 | AT47: 0 | AU47: 500 | AV47: 500 | AW47: 0 | AX47: 0 | AY47: 0 | AZ47: 0 | BA47: 0 | BB47: 0 | BC47: 0 | BD47: 0 | BE47: 0 | BF47: 0 | BG47: 0 | BH47: 0 | BI47: 0 | BJ47: 0 | BK47: 0 | BL47: 0 | BM47: 0 | BN47: 0 | BO47: 0 | BP47: 0 | BQ47: 3500 | BR47: 3500 | BS47: 0 | BT47: 0 | BU47: 0 | BV47: 0 | BW47: 0 | BX47: 0 | BY47: 0 | BZ47: 0 | CA47: 0 | CB47: 0 | CC47: 0 | CD47: 0 | CE47: 0 | CF47: 0 | CG47: 0 | CH47: 0 | CI47: 0 | CJ47: 0 | CK47: 0 | CL47: 0 | CM47: 0 | CN47: 0 | CO47: 0
A48: 1 | B48: 3 | C48: — | D48: — | E48: Base Plan | F48: =+'Employee Cost Model'!$C$2 -> Employee Only | G48: In | H48: Inp | I48: Hospital | K48: N | L48: =+IF(OR('Employee Cost Model'!$C$2="Employee + Spouse + Child(ren)",'Employee Cost Model'!$C$2="Employee + Child(ren)"),'Employee Cost Model'!E$15,0) -> 0 | M48: 0 | N48: =+L48*Q48 -> 0 | O48: — | P48: — | Q48: 24527.13205 | R48: 1 | S48: 0 | T48: 1 | U48: 45 | V48: 0 | W48: 0 | X48: Base Plan | Y48: 2 | Z48: 0 | AA48: 0 | AB48: 0 | AC48: InpHospital | AD48: 0 | AE48: 0 | AF48: 0 | AG48: 0 | AH48: 2 | AI48: 0 | AJ48: 0 | AK48: 2 | AL48: 0 | AM48: 0 | AN48: 0 | AO48: 0 | AP48: 1 | AQ48: 0 | AR48: 0 | AS48: 0 | AT48: 0 | AU48: 500 | AV48: 500 | AW48: 0 | AX48: 0 | AY48: 0 | AZ48: 0 | BA48: 0 | BB48: 0 | BC48: 0 | BD48: 0 | BE48: 0 | BF48: 0 | BG48: 0 | BH48: 0 | BI48: 0 | BJ48: 0 | BK48: 0 | BL48: 0 | BM48: 0 | BN48: 0 | BO48: 0 | BP48: 0 | BQ48: 3500 | BR48: 3500 | BS48: 0 | BT48: 0 | BU48: 0 | BV48: 0 | BW48: 0 | BX48: 0 | BY48: 0 | BZ48: 0 | CA48: 0 | CB48: 0 | CC48: 0 | CD48: 0 | CE48: 0 | CF48: 0 | CG48: 0 | CH48: 0 | CI48: 0 | CJ48: 0 | CK48: 0 | CL48: 0 | CM48: 0 | CN48: 0 | CO48: 0
A49: 1 | B49: 3 | C49: — | D49: — | E49: Base Plan | F49: =+'Employee Cost Model'!$C$2 -> Employee Only | G49: In | H49: Inp | I49: MHSA | K49: N | L49: =+IF(OR('Employee Cost Model'!$C$2="Employee + Spouse + Child(ren)",'Employee Cost Model'!$C$2="Employee + Child(ren)"),'Employee Cost Model'!E$16,0) -> 0 | M49: 0 | N49: 0 | O49: — | P49: — | Q49: 11851.45063 | R49: 0 | S49: 0 | T49: 2 | U49: 46 | V49: 0 | W49: 0 | X49: Base Plan | Y49: 2 | Z49: 0 | AA49: 0 | AB49: 0 | AC49: InpMHSA | AD49: 0 | AE49: 0 | AF49: 0 | AG49: 0 | AH49: 2 | AI49: 0 | AJ49: 0 | AK49: 2 | AL49: 0 | AM49: 0 | AN49: 0 | AO49: 0 | AP49: 1 | AQ49: 0 | AR49: 0 | AS49: 0 | AT49: 0 | AU49: 500 | AV49: 500 | AW49: 0 | AX49: 0 | AY49: 0 | AZ49: 0 | BA49: 0 | BB49: 0 | BC49: 0 | BD49: 0 | BE49: 0 | BF49: 0 | BG49: 0 | BH49: 0 | BI49: 0 | BJ49: 0 | BK49: 0 | BL49: 0 | BM49: 0 | BN49: 0 | BO49: 0 | BP49: 0 | BQ49: 3500 | BR49: 3500 | BS49: 0 | BT49: 0 | BU49: 0 | BV49: 0 | BW49: 0 | BX49: 0 | BY49: 0 | BZ49: 0 | CA49: 0 | CB49: 0 | CC49: 0 | CD49: 0 | CE49: 0 | CF49: 0 | CG49: 0 | CH49: 0 | CI49: 0 | CJ49: 0 | CK49: 0 | CL49: 0 | CM49: 0 | CN49: 0 | CO49: 0
A50: 1 | B50: 3 | C50: — | D50: — | E50: Base Plan | F50: =+'Employee Cost Model'!$C$2 -> Employee Only | G50: In | H50: Inp | I50: SNF | K50: N | L50: =+IF(OR('Employee Cost Model'!$C$2="Employee + Spouse + Child(ren)",'Employee Cost Model'!$C$2="Employee + Child(ren)"),'Employee Cost Model'!E$17,0) -> 0 | M50: 0 | N50: 0 | O50: — | P50: — | Q50: 6523.462072 | R50: 0 | S50: 0 | T50: 3 | U50: 47 | V50: 0 | W50: 0 | X50: Base Plan | Y50: 2 | Z50: 0 | AA50: 0 | AB50: 0 | AC50: InpSNF | AD50: 0 | AE50: 0 | AF50: 0 | AG50: 0 | AH50: 2 | AI50: 0 | AJ50: 0 | AK50: 2 | AL50: 0 | AM50: 0 | AN50: 0 | AO50: 0 | AP50: 1 | AQ50: 0 | AR50: 0 | AS50: 0 | AT50: 0 | AU50: 500 | AV50: 500 | AW50: 0 | AX50: 0 | AY50: 0 | AZ50: 0 | BA50: 0 | BB50: 0 | BC50: 0 | BD50: 0 | BE50: 0 | BF50: 0 | BG50: 0 | BH50: 0 | BI50: 0 | BJ50: 0 | BK50: 0 | BL50: 0 | BM50: 0 | BN50: 0 | BO50: 0 | BP50: 0 | BQ50: 3500 | BR50: 3500 | BS50: 0 | BT50: 0 | BU50: 0 | BV50: 0 | BW50: 0 | BX50: 0 | BY50: 0 | BZ50: 0 | CA50: 0 | CB50: 0 | CC50: 0 | CD50: 0 | CE50: 0 | CF50: 0 | CG50: 0 | CH50: 0 | CI50: 0 | CJ50: 0 | CK50: 0 | CL50: 0 | CM50: 0 | CN50: 0 | CO50: 0
A51: 1 | B51: 3 | C51: — | D51: — | E51: Base Plan | F51: =+'Employee Cost Model'!$C$2 -> Employee Only | G51: In | H51: Out | I51: ER | K51: N | L51: =+IF(OR('Employee Cost Model'!$C$2="Employee + Spouse + Child(ren)",'Employee Cost Model'!$C$2="Employee + Child(ren)"),'Employee Cost Model'!E$23,0) -> 0 | M51: 0 | N51: 0 | O51: — | P51: — | Q51: 1458.770268 | R51: 0 | S51: 0 | T51: 4 | U51: 48 | V51: 0 | W51: 0 | X51: Base Plan | Y51: 2 | Z51: 0 | AA51: 0 | AB51: 0 | AC51: OutER | AD51: 0 | AE51: 0 | AF51: 0 | AG51: 0 | AH51: 1 | AI51: 0 | AJ51: 0 | AK51: 2 | AL51: 0 | AM51: 0 | AN51: 125 | AO51: 0 | AP51: 1 | AQ51: 0 | AR51: 0 | AS51: 0 | AT51: 0 | AU51: 500 | AV51: 500 | AW51: 0 | AX51: 0 | AY51: 0 | AZ51: 0 | BA51: 0 | BB51: 0 | BC51: 0 | BD51: 0 | BE51: 0 | BF51: 0 | BG51: 0 | BH51: 0 | BI51: 0 | BJ51: 0 | BK51: 0 | BL51: 0 | BM51: 0 | BN51: 0 | BO51: 0 | BP51: 0 | BQ51: 3500 | BR51: 3500 | BS51: 0 | BT51: 0 | BU51: 0 | BV51: 0 | BW51: 0 | BX51: 0 | BY51: 0 | BZ51: 0 | CA51: 0 | CB51: 0 | CC51: 0 | CD51: 0 | CE51: 0 | CF51: 0 | CG51: 0 | CH51: 0 | CI51: 0 | CJ51: 0 | CK51: 0 | CL51: 0 | CM51: 0 | CN51: 0 | CO51: 0
A52: 1 | B52: 3 | C52: — | D52: — | E52: Base Plan | F52: =+'Employee Cost Model'!$C$2 -> Employee Only | G52: In | H52: Out | I52: UC | K52: N | L52: =+IF(OR('Employee Cost Model'!$C$2="Employee + Spouse + Child(ren)",'Employee Cost Model'!$C$2="Employee + Child(ren)"),'Employee Cost Model'!E$24,0) -> 0 | M52: 0 | N52: 0 | O52: — | P52: — | Q52: 167.7490597 | R52: 0 | S52: 0 | T52: 5 | U52: 49 | V52: 0 | W52: 0 | X52: Base Plan | Y52: 2 | Z52: 0 | AA52: 0 | AB52: 0 | AC52: OutUC | AD52: 0 | AE52: 0 | AF52: 0 | AG52: 0 | AH52: 1 | AI52: 0 | AJ52: 0 | AK52: 2 | AL52: 0 | AM52: 0 | AN52: 50 | AO52: 0 | AP52: 1 | AQ52: 0 | AR52: 0 | AS52: 0 | AT52: 0 | AU52: 500 | AV52: 500 | AW52: 0 | AX52: 0 | AY52: 0 | AZ52: 0 | BA52: 0 | BB52: 0 | BC52: 0 | BD52: 0 | BE52: 0 | BF52: 0 | BG52: 0 | BH52: 0 | BI52: 0 | BJ52: 0 | BK52: 0 | BL52: 0 | BM52: 0 | BN52: 0 | BO52: 0 | BP52: 0 | BQ52: 3500 | BR52: 3500 | BS52: 0 | BT52: 0 | BU52: 0 | BV52: 0 | BW52: 0 | BX52: 0 | BY52: 0 | BZ52: 0 | CA52: 0 | CB52: 0 | CC52: 0 | CD52: 0 | CE52: 0 | CF52: 0 | CG52: 0 | CH52: 0 | CI52: 0 | CJ52: 0 | CK52: 0 | CL52: 0 | CM52: 0 | CN52: 0 | CO52: 0
A53: 1 | B53: 3 | C53: — | D53: — | E53: Base Plan | F53: =+'Employee Cost Model'!$C$2 -> Employee Only | G53: In | H53: Out | I53: Surgery | K53: N | L53: =+IF(OR('Employee Cost Model'!$C$2="Employee + Spouse + Child(ren)",'Employee Cost Model'!$C$2="Employee + Child(ren)"),'Employee Cost Model'!E$20,0) -> 0 | M53: 0 | N53: 0 | O53: — | P53: — | Q53: 3651.604864 | R53: 0 | S53: 0 | T53: 6 | U53: 50 | V53: 0 | W53: 0 | X53: Base Plan | Y53: 2 | Z53: 0 | AA53: 0 | AB53: 0 | AC53: OutSurgery | AD53: 0 | AE53: 0 | AF53: 0 | AG53: 0 | AH53: 2 | AI53: 0 | AJ53: 0 | AK53: 2 | AL53: 0 | AM53: 0 | AN53: 0 | AO53: 0 | AP53: 1 | AQ53: 0 | AR53: 0 | AS53: 0 | AT53: 0 | AU53: 500 | AV53: 500 | AW53: 0 | AX53: 0 | AY53: 0 | AZ53: 0 | BA53: 0 | BB53: 0 | BC53: 0 | BD53: 0 | BE53: 0 | BF53: 0 | BG53: 0 | BH53: 0 | BI53: 0 | BJ53: 0 | BK53: 0 | BL53: 0 | BM53: 0 | BN53: 0 | BO53: 0 | BP53: 0 | BQ53: 3500 | BR53: 3500 | BS53: 0 | BT53: 0 | BU53: 0 | BV53: 0 | BW53: 0 | BX53: 0 | BY53: 0 | BZ53: 0 | CA53: 0 | CB53: 0 | CC53: 0 | CD53: 0 | CE53: 0 | CF53: 0 | CG53: 0 | CH53: 0 | CI53: 0 | CJ53: 0 | CK53: 0 | CL53: 0 | CM53: 0 | CN53: 0 | CO53: 0
A54: 1 | B54: 3 | C54: — | D54: — | E54: Base Plan | F54: =+'Employee Cost Model'!$C$2 -> Employee Only | G54: In | H54: Out | I54: X-ray/Lab | K54: N | L54: =+IF(OR('Employee Cost Model'!$C$2="Employee + Spouse + Child(ren)",'Employee Cost Model'!$C$2="Employee + Child(ren)"),'Employee Cost Model'!E$26,0) -> 0 | M54: 0 | N54: 0 | O54: — | P54: — | Q54: 223.9676734 | R54: 0 | S54: 0 | T54: 7 | U54: 51 | V54: 0 | W54: 0 | X54: Base Plan | Y54: 2 | Z54: 0 | AA54: 0 | AB54: 0 | AC54: OutX-ray/Lab | AD54: 0 | AE54: 0 | AF54: 0 | AG54: 0 | AH54: 2 | AI54: 0 | AJ54: 0 | AK54: 2 | AL54: 0 | AM54: 0 | AN54: 0 | AO54: 0 | AP54: 1 | AQ54: 0 | AR54: 0 | AS54: 0 | AT54: 0 | AU54: 500 | AV54: 500 | AW54: 0 | AX54: 0 | AY54: 0 | AZ54: 0 | BA54: 0 | BB54: 0 | BC54: 0 | BD54: 0 | BE54: 0 | BF54: 0 | BG54: 0 | BH54: 0 | BI54: 0 | BJ54: 0 | BK54: 0 | BL54: 0 | BM54: 0 | BN54: 0 | BO54: 0 | BP54: 0 | BQ54: 3500 | BR54: 3500 | BS54: 0 | BT54: 0 | BU54: 0 | BV54: 0 | BW54: 0 | BX54: 0 | BY54: 0 | BZ54: 0 | CA54: 0 | CB54: 0 | CC54: 0 | CD54: 0 | CE54: 0 | CF54: 0 | CG54: 0 | CH54: 0 | CI54: 0 | CJ54: 0 | CK54: 0 | CL54: 0 | CM54: 0 | CN54: 0 | CO54: 0
A55: 1 | B55: 3 | C55: — | D55: — | E55: Base Plan | F55: =+'Employee Cost Model'!$C$2 -> Employee Only | G55: In | H55: Out | I55: Adv Rad | K55: N | L55: =+IF(OR('Employee Cost Model'!$C$2="Employee + Spouse + Child(ren)",'Employee Cost Model'!$C$2="Employee + Child(ren)"),'Employee Cost Model'!E$27,0) -> 0 | M55: 0 | N55: 0 | O55: — | P55: — | Q55: 995.6214691 | R55: 0 | S55: 0 | T55: 8 | U55: 52 | V55: 0 | W55: 0 | X55: Base Plan | Y55: 2 | Z55: 0 | AA55: 0 | AB55: 0 | AC55: OutAdv Rad | AD55: 0 | AE55: 0 | AF55: 0 | AG55: 0 | AH55: 2 | AI55: 0 | AJ55: 0 | AK55: 2 | AL55: 0 | AM55: 0 | AN55: 0 | AO55: 0 | AP55: 1 | AQ55: 0 | AR55: 0 | AS55: 0 | AT55: 0 | AU55: 500 | AV55: 500 | AW55: 0 | AX55: 0 | AY55: 0 | AZ55: 0 | BA55: 0 | BB55: 0 | BC55: 0 | BD55: 0 | BE55: 0 | BF55: 0 | BG55: 0 | BH55: 0 | BI55: 0 | BJ55: 0 | BK55: 0 | BL55: 0 | BM55: 0 | BN55: 0 | BO55: 0 | BP55: 0 | BQ55: 3500 | BR55: 3500 | BS55: 0 | BT55: 0 | BU55: 0 | BV55: 0 | BW55: 0 | BX55: 0 | BY55: 0 | BZ55: 0 | CA55: 0 | CB55: 0 | CC55: 0 | CD55: 0 | CE55: 0 | CF55: 0 | CG55: 0 | CH55: 0 | CI55: 0 | CJ55: 0 | CK55: 0 | CL55: 0 | CM55: 0 | CN55: 0 | CO55: 0
A56: 1 | B56: 3 | C56: — | D56: — | E56: Base Plan | F56: =+'Employee Cost Model'!$C$2 -> Employee Only | G56: In | H56: Professional | I56: PCP | K56: N | L56: =+IF(OR('Employee Cost Model'!$C$2="Employee + Spouse + Child(ren)",'Employee Cost Model'!$C$2="Employee + Child(ren)"),'Employee Cost Model'!E$29,0) -> 0 | M56: 0 | N56: 0 | O56: — | P56: — | Q56: 167.4628453 | R56: 0 | S56: 0 | T56: 9 | U56: 53 | V56: 0 | W56: 0 | X56: Base Plan | Y56: 2 | Z56: 0 | AA56: 0 | AB56: 0 | AC56: ProfessionalPCP | AD56: 0 | AE56: 0 | AF56: 0 | AG56: 0 | AH56: 1 | AI56: 0 | AJ56: 0 | AK56: 2 | AL56: 0 | AM56: 0 | AN56: 15 | AO56: 0 | AP56: 1 | AQ56: 0 | AR56: 0 | AS56: 0 | AT56: 0 | AU56: 500 | AV56: 500 | AW56: 0 | AX56: 0 | AY56: 0 | AZ56: 0 | BA56: 0 | BB56: 0 | BC56: 0 | BD56: 0 | BE56: 0 | BF56: 0 | BG56: 0 | BH56: 0 | BI56: 0 | BJ56: 0 | BK56: 0 | BL56: 0 | BM56: 0 | BN56: 0 | BO56: 0 | BP56: 0 | BQ56: 3500 | BR56: 3500 | BS56: 0 | BT56: 0 | BU56: 0 | BV56: 0 | BW56: 0 | BX56: 0 | BY56: 0 | BZ56: 0 | CA56: 0 | CB56: 0 | CC56: 0 | CD56: 0 | CE56: 0 | CF56: 0 | CG56: 0 | CH56: 0 | CI56: 0 | CJ56: 0 | CK56: 0 | CL56: 0 | CM56: 0 | CN56: 0 | CO56: 0
A57: 1 | B57: 3 | C57: — | D57: — | E57: Base Plan | F57: =+'Employee Cost Model'!$C$2 -> Employee Only | G57: In | H57: Professional | I57: SCP | K57: N | L57: =+IF(OR('Employee Cost Model'!$C$2="Employee + Spouse + Child(ren)",'Employee Cost Model'!$C$2="Employee + Child(ren)"),'Employee Cost Model'!E$30,0) -> 0 | M57: 0 | N57: 0 | O57: — | P57: — | Q57: 190.3145998 | R57: 0 | S57: 0 | T57: 10 | U57: 54 | V57: 0 | W57: 0 | X57: Base Plan | Y57: 2 | Z57: 0 | AA57: 0 | AB57: 0 | AC57: ProfessionalSCP | AD57: 0 | AE57: 0 | AF57: 0 | AG57: 0 | AH57: 1 | AI57: 0 | AJ57: 0 | AK57: 2 | AL57: 0 | AM57: 0 | AN57: 30 | AO57: 0 | AP57: 1 | AQ57: 0 | AR57: 0 | AS57: 0 | AT57: 0 | AU57: 500 | AV57: 500 | AW57: 0 | AX57: 0 | AY57: 0 | AZ57: 0 | BA57: 0 | BB57: 0 | BC57: 0 | BD57: 0 | BE57: 0 | BF57: 0 | BG57: 0 | BH57: 0 | BI57: 0 | BJ57: 0 | BK57: 0 | BL57: 0 | BM57: 0 | BN57: 0 | BO57: 0 | BP57: 0 | BQ57: 3500 | BR57: 3500 | BS57: 0 | BT57: 0 | BU57: 0 | BV57: 0 | BW57: 0 | BX57: 0 | BY57: 0 | BZ57: 0 | CA57: 0 | CB57: 0 | CC57: 0 | CD57: 0 | CE57: 0 | CF57: 0 | CG57: 0 | CH57: 0 | CI57: 0 | CJ57: 0 | CK57: 0 | CL57: 0 | CM57: 0 | CN57: 0 | CO57: 0
A58: 1 | B58: 3 | C58: — | D58: — | E58: Base Plan | F58: =+'Employee Cost Model'!$C$2 -> Employee Only | G58: In | H58: Professional | I58: Maternity | K58: N | L58: =+IF(OR('Employee Cost Model'!$C$2="Employee + Spouse + Child(ren)",'Employee Cost Model'!$C$2="Employee + Child(ren)"),'Employee Cost Model'!E$31,0) -> 0 | M58: 0 | N58: 0 | O58: — | P58: — | Q58: 23659.20645 | R58: 0 | S58: 0 | T58: 11 | U58: 55 | V58: 0 | W58: 0 | X58: Base Plan | Y58: 2 | Z58: 0 | AA58: 0 | AB58: 0 | AC58: ProfessionalMaternity | AD58: 0 | AE58: 0 | AF58: 0 | AG58: 0 | AH58: 2 | AI58: 0 | AJ58: 0 | AK58: 2 | AL58: 0 | AM58: 0 | AN58: 0 | AO58: 0 | AP58: 1 | AQ58: 0 | AR58: 0 | AS58: 0 | AT58: 0 | AU58: 500 | AV58: 500 | AW58: 0 | AX58: 0 | AY58: 0 | AZ58: 0 | BA58: 0 | BB58: 0 | BC58: 0 | BD58: 0 | BE58: 0 | BF58: 0 | BG58: 0 | BH58: 0 | BI58: 0 | BJ58: 0 | BK58: 0 | BL58: 0 | BM58: 0 | BN58: 0 | BO58: 0 | BP58: 0 | BQ58: 3500 | BR58: 3500 | BS58: 0 | BT58: 0 | BU58: 0 | BV58: 0 | BW58: 0 | BX58: 0 | BY58: 0 | BZ58: 0 | CA58: 0 | CB58: 0 | CC58: 0 | CD58: 0 | CE58: 0 | CF58: 0 | CG58: 0 | CH58: 0 | CI58: 0 | CJ58: 0 | CK58: 0 | CL58: 0 | CM58: 0 | CN58: 0 | CO58: 0
A59: 1 | B59: 3 | C59: — | D59: — | E59: Base Plan | F59: =+'Employee Cost Model'!$C$2 -> Employee Only | G59: In | H59: Professional | I59: Off Surgery | K59: N | L59: =+IF(OR('Employee Cost Model'!$C$2="Employee + Spouse + Child(ren)",'Employee Cost Model'!$C$2="Employee + Child(ren)"),'Employee Cost Model'!E$21,0) -> 0 | M59: 0 | N59: 0 | O59: — | P59: — | Q59: 988.0543893 | R59: 0 | S59: 0 | T59: 12 | U59: 56 | V59: 0 | W59: 0 | X59: Base Plan | Y59: 2 | Z59: 0 | AA59: 0 | AB59: 0 | AC59: ProfessionalOff Surgery | AD59: 0 | AE59: 0 | AF59: 0 | AG59: 0 | AH59: 2 | AI59: 0 | AJ59: 0 | AK59: 2 | AL59: 0 | AM59: 0 | AN59: 0 | AO59: 0 | AP59: 1 | AQ59: 0 | AR59: 0 | AS59: 0 | AT59: 0 | AU59: 500 | AV59: 500 | AW59: 0 | AX59: 0 | AY59: 0 | AZ59: 0 | BA59: 0 | BB59: 0 | BC59: 0 | BD59: 0 | BE59: 0 | BF59: 0 | BG59: 0 | BH59: 0 | BI59: 0 | BJ59: 0 | BK59: 0 | BL59: 0 | BM59: 0 | BN59: 0 | BO59: 0 | BP59: 0 | BQ59: 3500 | BR59: 3500 | BS59: 0 | BT59: 0 | BU59: 0 | BV59: 0 | BW59: 0 | BX59: 0 | BY59: 0 | BZ59: 0 | CA59: 0 | CB59: 0 | CC59: 0 | CD59: 0 | CE59: 0 | CF59: 0 | CG59: 0 | CH59: 0 | CI59: 0 | CJ59: 0 | CK59: 0 | CL59: 0 | CM59: 0 | CN59: 0 | CO59: 0
A60: 1 | B60: 3 | C60: — | D60: — | E60: Base Plan | F60: =+'Employee Cost Model'!$C$2 -> Employee Only | G60: In | H60: Professional | I60: MHSA | K60: N | L60: =+IF(OR('Employee Cost Model'!$C$2="Employee + Spouse + Child(ren)",'Employee Cost Model'!$C$2="Employee + Child(ren)"),'Employee Cost Model'!E$34,0) -> 0 | M60: 0 | N60: 0 | O60: — | P60: — | Q60: 125.9770284 | R60: 0 | S60: 0 | T60: 13 | U60: 57 | V60: 0 | W60: 0 | X60: Base Plan | Y60: 2 | Z60: 0 | AA60: 0 | AB60: 0 | AC60: ProfessionalMHSA | AD60: 0 | AE60: 0 | AF60: 0 | AG60: 0 | AH60: 1 | AI60: 0 | AJ60: 0 | AK60: 2 | AL60: 0 | AM60: 0 | AN60: 15 | AO60: 0 | AP60: 1 | AQ60: 0 | AR60: 0 | AS60: 0 | AT60: 0 | AU60: 500 | AV60: 500 | AW60: 0 | AX60: 0 | AY60: 0 | AZ60: 0 | BA60: 0 | BB60: 0 | BC60: 0 | BD60: 0 | BE60: 0 | BF60: 0 | BG60: 0 | BH60: 0 | BI60: 0 | BJ60: 0 | BK60: 0 | BL60: 0 | BM60: 0 | BN60: 0 | BO60: 0 | BP60: 0 | BQ60: 3500 | BR60: 3500 | BS60: 0 | BT60: 0 | BU60: 0 | BV60: 0 | BW60: 0 | BX60: 0 | BY60: 0 | BZ60: 0 | CA60: 0 | CB60: 0 | CC60: 0 | CD60: 0 | CE60: 0 | CF60: 0 | CG60: 0 | CH60: 0 | CI60: 0 | CJ60: 0 | CK60: 0 | CL60: 0 | CM60: 0 | CN60: 0 | CO60: 0
A61: 1 | B61: 3 | C61: — | D61: — | E61: Base Plan | F61: =+'Employee Cost Model'!$C$2 -> Employee Only | G61: In | H61: Professional | I61: PhyTh/SpTh/OccTh | K61: N | L61: =+IF(OR('Employee Cost Model'!$C$2="Employee + Spouse + Child(ren)",'Employee Cost Model'!$C$2="Employee + Child(ren)"),'Employee Cost Model'!E$32,0) -> 0 | M61: 0 | N61: 0 | O61: — | P61: — | Q61: 165.3990089 | R61: 0 | S61: 0 | T61: 14 | U61: 58 | V61: 0 | W61: 0 | X61: Base Plan | Y61: 2 | Z61: 0 | AA61: 0 | AB61: 0 | AC61: ProfessionalPhyTh/SpTh/OccTh | AD61: 0 | AE61: 0 | AF61: 0 | AG61: 0 | AH61: 1 | AI61: 0 | AJ61: 0 | AK61: 2 | AL61: 0 | AM61: 0 | AN61: 33.07980179 | AO61: 0 | AP61: 1 | AQ61: 0 | AR61: 0 | AS61: 0 | AT61: 0 | AU61: 500 | AV61: 500 | AW61: 0 | AX61: 0 | AY61: 0 | AZ61: 0 | BA61: 0 | BB61: 0 | BC61: 0 | BD61: 0 | BE61: 0 | BF61: 0 | BG61: 0 | BH61: 0 | BI61: 0 | BJ61: 0 | BK61: 0 | BL61: 0 | BM61: 0 | BN61: 0 | BO61: 0 | BP61: 0 | BQ61: 3500 | BR61: 3500 | BS61: 0 | BT61: 0 | BU61: 0 | BV61: 0 | BW61: 0 | BX61: 0 | BY61: 0 | BZ61: 0 | CA61: 0 | CB61: 0 | CC61: 0 | CD61: 0 | CE61: 0 | CF61: 0 | CG61: 0 | CH61: 0 | CI61: 0 | CJ61: 0 | CK61: 0 | CL61: 0 | CM61: 0 | CN61: 0 | CO61: 0
A62: 1 | B62: 3 | C62: — | D62: — | E62: Base Plan | F62: =+'Employee Cost Model'!$C$2 -> Employee Only | G62: In | H62: Professional | I62: Chiro | K62: N | L62: =+IF(OR('Employee Cost Model'!$C$2="Employee + Spouse + Child(ren)",'Employee Cost Model'!$C$2="Employee + Child(ren)"),'Employee Cost Model'!E$33,0) -> 0 | M62: 0 | N62: 0 | O62: — | P62: — | Q62: 79.45445144 | R62: 0 | S62: 0 | T62: 15 | U62: 59 | V62: 0 | W62: 0 | X62: Base Plan | Y62: 2 | Z62: 0 | AA62: 0 | AB62: 0 | AC62: ProfessionalChiro | AD62: 0 | AE62: 0 | AF62: 0 | AG62: 0 | AH62: 1 | AI62: 0 | AJ62: 0 | AK62: 2 | AL62: 0 | AM62: 0 | AN62: 30 | AO62: 0 | AP62: 1 | AQ62: 0 | AR62: 0 | AS62: 0 | AT62: 0 | AU62: 500 | AV62: 500 | AW62: 0 | AX62: 0 | AY62: 0 | AZ62: 0 | BA62: 0 | BB62: 0 | BC62: 0 | BD62: 0 | BE62: 0 | BF62: 0 | BG62: 0 | BH62: 0 | BI62: 0 | BJ62: 0 | BK62: 0 | BL62: 0 | BM62: 0 | BN62: 0 | BO62: 0 | BP62: 0 | BQ62: 3500 | BR62: 3500 | BS62: 0 | BT62: 0 | BU62: 0 | BV62: 0 | BW62: 0 | BX62: 0 | BY62: 0 | BZ62: 0 | CA62: 0 | CB62: 0 | CC62: 0 | CD62: 0 | CE62: 0 | CF62: 0 | CG62: 0 | CH62: 0 | CI62: 0 | CJ62: 0 | CK62: 0 | CL62: 0 | CM62: 0 | CN62: 0 | CO62: 0
A63: 1 | B63: 3 | C63: — | D63: — | E63: Base Plan | F63: =+'Employee Cost Model'!$C$2 -> Employee Only | G63: In | H63: Rx | I63: R | J63: 1 | K63: N | L63: =+IF(OR('Employee Cost Model'!$C$2="Employee + Spouse + Child(ren)",'Employee Cost Model'!$C$2="Employee + Child(ren)"),'Employee Cost Model'!E$38,0) -> 0 | M63: 0 | N63: 0 | O63: — | P63: — | Q63: 50.83329564 | R63: 0 | S63: 0 | T63: 16 | U63: 60 | V63: 0 | W63: 0 | X63: Base Plan | Y63: 2 | Z63: 0 | AA63: 0 | AB63: 0 | AC63: RxR1 | AD63: 0 | AE63: 1 | AF63: 0 | AG63: 0 | AH63: 1 | AI63: 0 | AJ63: 0 | AK63: 2 | AL63: 0 | AM63: 0 | AN63: 5 | AO63: 0 | AP63: 1 | AQ63: 0 | AR63: 0 | AS63: 0 | AT63: 0 | AU63: 500 | AV63: 500 | AW63: 0 | AX63: 0 | AY63: 0 | AZ63: 0 | BA63: 0 | BB63: 0 | BC63: 0 | BD63: 0 | BE63: 0 | BF63: 0 | BG63: 0 | BH63: 0 | BI63: 0 | BJ63: 0 | BK63: 0 | BL63: 0 | BM63: 0 | BN63: 0 | BO63: 0 | BP63: 0 | BQ63: 3500 | BR63: 3500 | BS63: 0 | BT63: 0 | BU63: 0 | BV63: 0 | BW63: 0 | BX63: 0 | BY63: 0 | BZ63: 0 | CA63: 0 | CB63: 0 | CC63: 0 | CD63: 0 | CE63: 0 | CF63: 0 | CG63: 0 | CH63: 0 | CI63: 0 | CJ63: 0 | CK63: 0 | CL63: 0 | CM63: 0 | CN63: 0 | CO63: 0
A64: 1 | B64: 3 | C64: — | D64: — | E64: Base Plan | F64: =+'Employee Cost Model'!$C$2 -> Employee Only | G64: In | H64: Rx | I64: R | J64: 2 | K64: N | L64: =+IF(OR('Employee Cost Model'!$C$2="Employee + Spouse + Child(ren)",'Employee Cost Model'!$C$2="Employee + Child(ren)"),'Employee Cost Model'!E$39,0) -> 0 | M64: 0 | N64: 0 | O64: — | P64: — | Q64: 389.8130676 | R64: 0 | S64: 0 | T64: 17 | U64: 61 | V64: 0 | W64: 0 | X64: Base Plan | Y64: 2 | Z64: 0 | AA64: 0 | AB64: 0 | AC64: RxR2 | AD64: 0 | AE64: 1 | AF64: 0 | AG64: 0 | AH64: 1 | AI64: 0 | AJ64: 0 | AK64: 2 | AL64: 0 | AM64: 0 | AN64: 35 | AO64: 0 | AP64: 1 | AQ64: 0 | AR64: 0 | AS64: 0 | AT64: 0 | AU64: 500 | AV64: 500 | AW64: 0 | AX64: 0 | AY64: 0 | AZ64: 0 | BA64: 0 | BB64: 0 | BC64: 0 | BD64: 0 | BE64: 0 | BF64: 0 | BG64: 0 | BH64: 0 | BI64: 0 | BJ64: 0 | BK64: 0 | BL64: 0 | BM64: 0 | BN64: 0 | BO64: 0 | BP64: 0 | BQ64: 3500 | BR64: 3500 | BS64: 0 | BT64: 0 | BU64: 0 | BV64: 0 | BW64: 0 | BX64: 0 | BY64: 0 | BZ64: 0 | CA64: 0 | CB64: 0 | CC64: 0 | CD64: 0 | CE64: 0 | CF64: 0 | CG64: 0 | CH64: 0 | CI64: 0 | CJ64: 0 | CK64: 0 | CL64: 0 | CM64: 0 | CN64: 0 | CO64: 0
A65: 1 | B65: 3 | C65: — | D65: — | E65: Base Plan | F65: =+'Employee Cost Model'!$C$2 -> Employee Only | G65: In | H65: Rx | I65: R | J65: 3 | K65: N | L65: =+IF(OR('Employee Cost Model'!$C$2="Employee + Spouse + Child(ren)",'Employee Cost Model'!$C$2="Employee + Child(ren)"),'Employee Cost Model'!E$40,0) -> 0 | M65: 0 | N65: 0 | O65: — | P65: — | Q65: 651.9493716 | R65: 0 | S65: 0 | T65: 18 | U65: 62 | V65: 0 | W65: 0 | X65: Base Plan | Y65: 2 | Z65: 0 | AA65: 0 | AB65: 0 | AC65: RxR3 | AD65: 0 | AE65: 1 | AF65: 0 | AG65: 0 | AH65: 1 | AI65: 0 | AJ65: 0 | AK65: 2 | AL65: 0 | AM65: 0 | AN65: 60 | AO65: 0 | AP65: 1 | AQ65: 0 | AR65: 0 | AS65: 0 | AT65: 0 | AU65: 500 | AV65: 500 | AW65: 0 | AX65: 0 | AY65: 0 | AZ65: 0 | BA65: 0 | BB65: 0 | BC65: 0 | BD65: 0 | BE65: 0 | BF65: 0 | BG65: 0 | BH65: 0 | BI65: 0 | BJ65: 0 | BK65: 0 | BL65: 0 | BM65: 0 | BN65: 0 | BO65: 0 | BP65: 0 | BQ65: 3500 | BR65: 3500 | BS65: 0 | BT65: 0 | BU65: 0 | BV65: 0 | BW65: 0 | BX65: 0 | BY65: 0 | BZ65: 0 | CA65: 0 | CB65: 0 | CC65: 0 | CD65: 0 | CE65: 0 | CF65: 0 | CG65: 0 | CH65: 0 | CI65: 0 | CJ65: 0 | CK65: 0 | CL65: 0 | CM65: 0 | CN65: 0 | CO65: 0
A66: 1 | B66: 3 | C66: — | D66: — | E66: Base Plan | F66: =+'Employee Cost Model'!$C$2 -> Employee Only | G66: In | H66: Rx | I66: R | J66: 4 | K66: N | L66: =+IF(OR('Employee Cost Model'!$C$2="Employee + Spouse + Child(ren)",'Employee Cost Model'!$C$2="Employee + Child(ren)"),'Employee Cost Model'!E$41,0) -> 0 | M66: 0 | N66: 0 | O66: — | P66: — | Q66: 8251.270121 | R66: 0 | S66: 0 | T66: 19 | U66: 63 | V66: 0 | W66: 0 | X66: Base Plan | Y66: 2 | Z66: 0 | AA66: 0 | AB66: 0 | AC66: RxR4 | AD66: 0 | AE66: 1 | AF66: 0 | AG66: 0 | AH66: 1 | AI66: 0 | AJ66: 0 | AK66: 2 | AL66: 0 | AM66: 0 | AN66: 60 | AO66: 0 | AP66: 1 | AQ66: 0 | AR66: 0 | AS66: 0 | AT66: 0 | AU66: 500 | AV66: 500 | AW66: 0 | AX66: 0 | AY66: 0 | AZ66: 0 | BA66: 0 | BB66: 0 | BC66: 0 | BD66: 0 | BE66: 0 | BF66: 0 | BG66: 0 | BH66: 0 | BI66: 0 | BJ66: 0 | BK66: 0 | BL66: 0 | BM66: 0 | BN66: 0 | BO66: 0 | BP66: 0 | BQ66: 3500 | BR66: 3500 | BS66: 0 | BT66: 0 | BU66: 0 | BV66: 0 | BW66: 0 | BX66: 0 | BY66: 0 | BZ66: 0 | CA66: 0 | CB66: 0 | CC66: 0 | CD66: 0 | CE66: 0 | CF66: 0 | CG66: 0 | CH66: 0 | CI66: 0 | CJ66: 0 | CK66: 0 | CL66: 0 | CM66: 0 | CN66: 0 | CO66: 0
A67: 1 | B67: 3 | C67: — | D67: — | E67: Base Plan | F67: =+'Employee Cost Model'!$C$2 -> Employee Only | G67: In | H67: Rx | I67: M | J67: 1 | K67: N | L67: =+IF(OR('Employee Cost Model'!$C$2="Employee + Spouse + Child(ren)",'Employee Cost Model'!$C$2="Employee + Child(ren)"),'Employee Cost Model'!E$43,0) -> 0 | M67: 0 | N67: 0 | O67: — | P67: — | Q67: 88.65973424 | R67: 0 | S67: 0 | T67: 20 | U67: 64 | V67: 0 | W67: 0 | X67: Base Plan | Y67: 2 | Z67: 0 | AA67: 0 | AB67: 0 | AC67: RxM1 | AD67: 0 | AE67: 1 | AF67: 0 | AG67: 0 | AH67: 1 | AI67: 0 | AJ67: 0 | AK67: 2 | AL67: 0 | AM67: 0 | AN67: 12.5 | AO67: 0 | AP67: 1 | AQ67: 0 | AR67: 0 | AS67: 0 | AT67: 0 | AU67: 500 | AV67: 500 | AW67: 0 | AX67: 0 | AY67: 0 | AZ67: 0 | BA67: 0 | BB67: 0 | BC67: 0 | BD67: 0 | BE67: 0 | BF67: 0 | BG67: 0 | BH67: 0 | BI67: 0 | BJ67: 0 | BK67: 0 | BL67: 0 | BM67: 0 | BN67: 0 | BO67: 0 | BP67: 0 | BQ67: 3500 | BR67: 3500 | BS67: 0 | BT67: 0 | BU67: 0 | BV67: 0 | BW67: 0 | BX67: 0 | BY67: 0 | BZ67: 0 | CA67: 0 | CB67: 0 | CC67: 0 | CD67: 0 | CE67: 0 | CF67: 0 | CG67: 0 | CH67: 0 | CI67: 0 | CJ67: 0 | CK67: 0 | CL67: 0 | CM67: 0 | CN67: 0 | CO67: 0
A68: 1 | B68: 3 | C68: — | D68: — | E68: Base Plan | F68: =+'Employee Cost Model'!$C$2 -> Employee Only | G68: In | H68: Rx | I68: M | J68: 2 | K68: N | L68: =+IF(OR('Employee Cost Model'!$C$2="Employee + Spouse + Child(ren)",'Employee Cost Model'!$C$2="Employee + Child(ren)"),'Employee Cost Model'!E$44,0) -> 0 | M68: 0 | N68: 0 | O68: — | P68: — | Q68: 857.5887486 | R68: 0 | S68: 0 | T68: 21 | U68: 65 | V68: 0 | W68: 0 | X68: Base Plan | Y68: 2 | Z68: =IF(F68="Employee Only",0,1) -> 0 | AA68: 0 | AB68: 0 | AC68: RxM2 | AD68: 0 | AE68: 1 | AF68: 0 | AG68: 0 | AH68: 1 | AI68: 0 | AJ68: 0 | AK68: 2 | AL68: 0 | AM68: 0 | AN68: 67.5 | AO68: 0 | AP68: 1 | AQ68: 0 | AR68: 0 | AS68: 0 | AT68: 0 | AU68: 500 | AV68: 500 | AW68: 0 | AX68: 0 | AY68: 0 | AZ68: 0 | BA68: 0 | BB68: 0 | BC68: 0 | BD68: 0 | BE68: 0 | BF68: 0 | BG68: 0 | BH68: 0 | BI68: 0 | BJ68: 0 | BK68: 0 | BL68: 0 | BM68: 0 | BN68: 0 | BO68: 0 | BP68: 0 | BQ68: 3500 | BR68: 3500 | BS68: 0 | BT68: 0 | BU68: 0 | BV68: 0 | BW68: 0 | BX68: 0 | BY68: 0 | BZ68: 0 | CA68: 0 | CB68: 0 | CC68: 0 | CD68: 0 | CE68: 0 | CF68: 0 | CG68: 0 | CH68: 0 | CI68: 0 | CJ68: 0 | CK68: 0 | CL68: 0 | CM68: 0 | CN68: 0 | CO68: 0
A69: 1 | B69: 3 | C69: — | D69: — | E69: Base Plan | F69: =+'Employee Cost Model'!$C$2 -> Employee Only | G69: In | H69: Rx | I69: M | J69: 3 | K69: N | L69: =+IF(OR('Employee Cost Model'!$C$2="Employee + Spouse + Child(ren)",'Employee Cost Model'!$C$2="Employee + Child(ren)"),'Employee Cost Model'!E$45,0) -> 0 | M69: 0 | N69: 0 | O69: — | P69: — | Q69: 1250.793205 | R69: 0 | S69: 0 | T69: 22 | U69: 66 | V69: 1 | W69: 0 | X69: Base Plan | Y69: 2 | Z69: 0 | AA69: 0 | AB69: 0 | AC69: RxM3 | AD69: 0 | AE69: 1 | AF69: 0 | AG69: 0 | AH69: 1 | AI69: 0 | AJ69: 0 | AK69: 2 | AL69: 0 | AM69: 0 | AN69: 135 | AO69: 0 | AP69: 1 | AQ69: 0 | AR69: 0 | AS69: 0 | AT69: 0 | AU69: 500 | AV69: 500 | AW69: 0 | AX69: 0 | AY69: 0 | AZ69: 0 | BA69: 0 | BB69: 0 | BC69: 0 | BD69: 0 | BE69: 0 | BF69: 0 | BG69: 0 | BH69: 0 | BI69: 0 | BJ69: 0 | BK69: 0 | BL69: 0 | BM69: 0 | BN69: 0 | BO69: 0 | BP69: 0 | BQ69: 3500 | BR69: 3500 | BS69: 0 | BT69: 0 | BU69: 0 | BV69: 0 | BW69: 0 | BX69: 0 | BY69: 0 | BZ69: 0 | CA69: 0 | CB69: 0 | CC69: 0 | CD69: 0 | CE69: 0 | CF69: 0 | CG69: 0 | CH69: 0 | CI69: 0 | CJ69: 0 | CK69: 0 | CL69: 0 | CM69: 0 | CN69: 0 | CO69: 0
A70: 1 | B70: 4 | C70: — | D70: — | E70: =+E69 -> Base Plan | F70: =+'Employee Cost Model'!$C$2 -> Employee Only | G70: In | H70: Inp | I70: Hospital | K70: N | L70: =+IF(OR('Employee Cost Model'!$C$2="Employee + Spouse + Child(ren)",'Employee Cost Model'!$C$2="Employee + Child(ren)"),'Employee Cost Model'!F$15,0) -> 0 | M70: 0 | N70: =+L70*Q70 -> 0 | O70: — | P70: — | Q70: 24527.13205 | R70: =IF(AND(B70=B69,S70=0),0,1) -> 1 | S70: =IF(A70=A69,0,1) -> 0 | T70: =IF(R70,R70,T69+1) -> 1 | U70: =IF(S70,S70,U69+1) -> 67 | V70: =IF(AND(B70=B71,W70=0),0,1) -> 0 | W70: =IF(A70=A71,0,1) -> 0 | X70: =E70 -> Base Plan | Y70: =MATCH(X70,PlanList,0) -> 2 | Z70: 0 | AA70: =VLOOKUP(Y70,PlanIndex,4,0) -> 0 | AB70: =IF(G70="In",0,1) -> 0 | AC70: =IF(H70="Rx",H70&I70&MIN(J70,4),H70&I70) -> InpHospital | AD70: =IF(K70&AB70="Y0",1,0) -> 0 | AE70: =IF(H70<>"Rx",0,1) -> 0 | AF70: =IF(OFFSET(OffsetStart,SepRxDed-1,MATCH(Y70,PlanLookupRange,0)-1+3*AA70*AB70)="No",0,1) -> 0 | AG70: =IF(OFFSET(OffsetStart,SepRxOOPM-1,MATCH(Y70,PlanLookupRange,0)-1+3*AA70*AB70)="No",0,1) -> 0 | AH70: =OFFSET(OffsetStart, MATCH(AC70,ServiceLookups,0)-1,MATCH(Y70,PlanLookupRange,0)-1+3*AA70*AB70) -> 2 | AI70: =IF(OFFSET(OffsetStart,DedTypeRange-1,MATCH(Y70,PlanLookupRange,0)-1+3*AA70*AB70)="Embedded",0,1) -> 0 | AJ70: =IF(OFFSET(OffsetStart,OOPMTypeRange-1,MATCH(Y70,PlanLookupRange,0)-1+3*AA70*AB70)="Embedded",0,1) -> 0 | AK70: =OFFSET(OffsetStart, MATCH(AC70,ServiceLookups,0)-1,MATCH(Y70,PlanLookupRange,0)+3*AA70*AB70) -> 2 | AL70: =IF(AD70, 0, CHOOSE(AK70,OFFSET(OffsetStart,CoinsRange-1,MATCH(Y70,PlanLookupRange,0)-1+3*AA70*AB70),0,IF(AE70,OFFSET(OffsetStart,MATCH(AC70,ServiceLookups,0),MATCH(Y70,PlanLookupRange,0)-1+3*AA70*AB70)))) -> 0 | AM70: =IF(OR(AD70,AE70=0), 0, OFFSET(OffsetStart,MATCH(AC70,ServiceLookups,0),MATCH(Y70,PlanLookupRange,0)+3*AA70*AB70)) -> 0 | AN70: =IF(AD70, 0, OFFSET(OffsetStart, MATCH(AC70,ServiceLookups,0)-1,MATCH(Y70,PlanLookupRange,0)+1+3*AA70*AB70)) -> 0 | AO70: =IF(OR(AD70,AE70=0), 0, OFFSET(OffsetStart,MATCH(AC70,ServiceLookups,0),MATCH(Y70,PlanLookupRange,0)+1+3*AA70*AB70)) -> 0 | AP70: =CHOOSE(AE70+1,(1+VLOOKUP(LEFT(AC70,3),TrendLookup,3,0))^(TrendMonths/12),(1+VLOOKUP(H70&J70,TrendLookup,3,0))^(TrendMonths/12)) -> 1 | AQ70: =+AP70*N70 -> 0 | AR70: =IFERROR(AQ70/L70,AQ70) -> 0 | AS70: =IF(R70,AQ70,AQ70+AS69) -> 0 | AT70: =IF(S70,AQ70,AQ70+AT69) -> 0 | AU70: =IF(AND(AE70,AF70),OFFSET(OffsetStart,RxDedRange-1+1*Z70*AI70,MATCH(Y70,PlanLookupRange,0)-1), OFFSET(OffsetStart,MedDedRange-1+1*Z70*AI70,MATCH(Y70,PlanLookupRange,0)-1)) -> 500 | AV70: =IF(AND(AE70,AF70),OFFSET(OffsetStart,RxDedRange-1+1*Z70,MATCH(Y70,PlanLookupRange,0)-1), OFFSET(OffsetStart,MedDedRange-1+1*Z70,MATCH(Y70,PlanLookupRange,0)-1)) -> 500 | AW70: =IF(AA70=0,0, IF(AND(AE70,AF70), OFFSET(OffsetStart,RxDedRange-1+1*Z70*AI70,MATCH(Y70,PlanLookupRange,0)+2), OFFSET(OffsetStart,MedDedRange-1+1*Z70*AI70,MATCH(Y70,PlanLookupRange,0)+2))) -> 0 | AX70: =IF(AA70=0,0, IF(AND(AE70,AF70),OFFSET(OffsetStart,RxDedRange-1+1*Z70,MATCH(Y70,PlanLookupRange,0)+2), OFFSET(OffsetStart,MedDedRange-1+1*Z70,MATCH(Y70,PlanLookupRange,0)+2))) -> 0 | AY70: =IF(OR(AD70=1,AH70=1),0,AQ70) -> 0 | AZ70: =IF(OR(AB70=1,AH70=1,AND(AF70=1,AE70=1)), 0, IF(OR(AND(BA69=AU70,R70=0),AND(BB69=AV70,S70=0)), 0, CHOOSE(R70+S70+1, MIN(AY70,AU70,MAX(AU70-BA69,0),MAX(AV70-BB69,0)), MIN(AY70,AU70,MAX(AV70-BB69,0)), MIN(AY70,AU70)))) -> 0 | BA70: =IF(R70,AZ70,MIN(AU70,SUM(OFFSET(AZ70,-(T70-1),0,T70)))) -> 0 | BB70: =IF(S70,AZ70,MIN(AV70,SUM(OFFSET(AZ70,-(U70-1),0,U70)))) -> 0 | BC70: =IF(OR(AB70=0,AH70=1,AND(AF70=1,AE70=1)), 0, IF(OR(AND(BD69=AW70,R70=0),AND(BE69=AX70,S70=0)), 0, CHOOSE(R70+S70+1, MIN(AY70,AW70,MAX(AW70-BD69,0),MAX(AX70-BE69,0)), MIN(AY70,AW70,MAX(AX70-BE69,0)), MIN(AY70,AW70)))) -> 0 | BD70: =IF(R70,BC70,MIN(AW70,SUM(OFFSET(BC70,-(T70-1),0,T70)))) -> 0 | BE70: =IF(S70,BC70,MIN(AX70,SUM(OFFSET(BC70,-(U70-1),0,U70)))) -> 0 | BF70: =IF(OR(AB70=1,AH70=1,AE70=0,AF70=0), 0, IF(OR(AND(BG69=AU70,R70=0),AND(BH69=AV70,S70=0)), 0, CHOOSE(R70+S70+1, MIN(AY70,AU70,MAX(AU70-BG69,0),MAX(AV70-BH69,0)), MIN(AY70,AU70,MAX(AV70-BH69,0)), MIN(AY70,AU70)))) -> 0 | BG70: =IF(R70,BF70,MIN(AU70,SUM(OFFSET(BF70,-(T70-1),0,T70)))) -> 0 | BH70: =IF(S70,BF70,MIN(AV70,SUM(OFFSET(BF70,-(U70-1),0,U70)))) -> 0 | BI70: =IF(OR(AB70=0,AH70=1,AE70=0,AF70=0), 0, IF(OR(AND(BJ69=AW70,R70=0),AND(BK69=AX70,S70=0)), 0, CHOOSE(R70+S70+1, MIN(AY70,AW70,MAX(AW70-BJ69,0),MAX(AX70-BK69,0)), MIN(AY70,AW70,MAX(AX70-BK69,0)), MIN(AY70,AW70)))) -> 0 | BJ70: =IF(R70,BI70,MIN(AW70,SUM(OFFSET(BI70,-(T70-1),0,T70)))) -> 0 | BK70: =IF(S70,BI70,MIN(AX70,SUM(OFFSET(BI70,-(U70-1),0,U70)))) -> 0 | BL70: =AQ70-AZ70-BC70-BF70-BI70 -> 0 | BM70: =IFERROR(IF(AE70=0,CHOOSE(AK70,0,MIN(L70,MAX(ROUNDUP(BL70/AR70,0),0)),MIN(M70,MAX(ROUNDUP(BL70/AR70,0),0))), CHOOSE(AK70,0,MIN(L70,MAX(ROUNDUP(BL70/AR70,0),0)),MIN(L70,MAX(ROUNDUP(BL70/AR70,0),0)))),0) -> 0 | BN70: =+IF(AE70, CHOOSE(AK70,0,AN70*BM70,MIN(MAX(AM70*BM70,AL70*AR70*BM70),AO70*BM70)), IF(AN70=0,0,IF(BL70>=0,MIN(BM70*AN70,BL70),MAX(BM70*AN70,BL70)))) -> 0 | BO70: =+IF(AND(AE70,AK70=3),0,BL70*AL70) -> 0 | BP70: =+BN70+BO70+AZ70+BC70+BF70+BI70 -> 0 | BQ70: =IF(AND(AE70,AG70),OFFSET(OffsetStart,RxOOPMRange-1+1*Z70*AJ70,MATCH(Y70,PlanLookupRange,0)-1), OFFSET(OffsetStart,MedOOPMRange-1+1*Z70*AJ70,MATCH(Y70,PlanLookupRange,0)-1)) -> 3500 | BR70: =IF(AND(AE70,AG70),OFFSET(OffsetStart,RxOOPMRange-1+1*Z70,MATCH(Y70,PlanLookupRange,0)-1), OFFSET(OffsetStart,MedOOPMRange-1+1*Z70,MATCH(Y70,PlanLookupRange,0)-1)) -> 3500 | BS70: =IF(AA70=0,0, IF(AND(AE70,AG70), OFFSET(OffsetStart,RxOOPMRange-1+1*Z70*AJ70,MATCH(Y70,PlanLookupRange,0)+2), OFFSET(OffsetStart,MedOOPMRange-1+1*Z70*AI70,MATCH(Y70,PlanLookupRange,0)+2))) -> 0 | BT70: =IF(AA70=0,0, IF(AND(AE70,AG70),OFFSET(OffsetStart,RxOOPMRange-1+1*Z70,MATCH(Y70,PlanLookupRange,0)+2), OFFSET(OffsetStart,MedOOPMRange-1+1*Z70,MATCH(Y70,PlanLookupRange,0)+2))) -> 0 | BU70: =IF(OR(AB70=1,AND(AG70=1,AE70=1)), 0, IF(OR(AND(BV69=BQ70,R70=0,BP70<0),AND(BW69=BR70,S70=0,BP70<0)), MAX(BP70,-BQ70), CHOOSE(R70+S70+1, MIN(BP70,BQ70,MAX(BQ70-BV69,0),MAX(BR70-BW69,0)), MIN(BP70,BQ70,MAX(BR70-BW69,0)), MIN(BP70,BQ70)))) -> 0 | BV70: =IF(R70,BU70,MIN(BQ70,SUM(OFFSET(BU70,-(T70-1),0,T70)))) -> 0 | BW70: =IF(S70,BU70,MIN(BR70,SUM(OFFSET(BU70,-(U70-1),0,U70)))) -> 0 | BX70: =IF(OR(AB70=0,AND(AG70=1,AE70=1)), 0, IF(OR(AND(BY69=BS70,R70=0,BP70<0),AND(BZ69=BT70,S70=0,BP70<0)), MAX(BP70,-BS70), CHOOSE(R70+S70+1, MIN(BP70,BS70,MAX(BS70-BY69,0),MAX(BT70-BZ69,0)), MIN(BP70,BS70,MAX(BT70-BZ69,0)), MIN(BP70,BS70)))) -> 0 | BY70: =IF(R70,BX70,MIN(BS70,SUM(OFFSET(BX70,-(T70-1),0,T70)))) -> 0 | BZ70: =IF(S70,BX70,MIN(BT70,SUM(OFFSET(BX70,-(U70-1),0,U70)))) -> 0 | CA70: =IF(OR(AB70=1,AE70=0,AG70=0), 0, IF(OR(AND(CB69=BQ70,R70=0,BP70<0),AND(CC69=BR70,S70=0,BP70<0)), MAX(BP70,-BQ70), CHOOSE(R70+S70+1, MIN(BP70,BQ70,MAX(BQ70-CB69,0),MAX(BR70-CC69,0)), MIN(BP70,BQ70,MAX(BR70-CC69,0)), MIN(BP70,BQ70)))) -> 0 | CB70: =IF(R70,CA70,MIN(BQ70,SUM(OFFSET(CA70,-(T70-1),0,T70)))) -> 0 | CC70: =IF(S70,CA70,MIN(BR70,SUM(OFFSET(CA70,-(U70-1),0,U70)))) -> 0 | CD70: =IF(OR(AB70=0,AE70=0,AG70=0), 0, IF(OR(AND(CE69=BS70,R70=0,BP70<0),AND(CF69=BT70,S70=0,BP70<0)), MAX(BP70,-BS70), CHOOSE(R70+S70+1, MIN(BP70,BS70,MAX(BS70-CE69,0),MAX(BT70-CF69,0)), MIN(BP70,BS70,MAX(BT70-CF69,0)), MIN(BP70,BS70)))) -> 0 | CE70: =IF(R70,CD70,MIN(BS70,SUM(OFFSET(CD70,-(T70-1),0,T70)))) -> 0 | CF70: =IF(S70,CD70,MIN(BT70,SUM(OFFSET(CD70,-(U70-1),0,U70)))) -> 0 | CG70: =IF(S70,BU70+CA70,BU70+CA70+CG69) -> 0 | CH70: =IF(S70,BX70+CD70,BX70+CD70+CH69) -> 0 | CI70: =+CG70+CH70 -> 0 | CJ70: =+CG70*$V70 -> 0 | CK70: =+CH70*$V70 -> 0 | CL70: =+CI70*$V70 -> 0 | CM70: =+CG70*$W70 -> 0 | CN70: =+CH70*$W70 -> 0 | CO70: =+CI70*$W70 -> 0
A71: 1 | B71: 4 | C71: — | D71: — | E71: Base Plan | F71: =+'Employee Cost Model'!$C$2 -> Employee Only | G71: In | H71: Inp | I71: MHSA | K71: N | L71: =+IF(OR('Employee Cost Model'!$C$2="Employee + Spouse + Child(ren)",'Employee Cost Model'!$C$2="Employee + Child(ren)"),'Employee Cost Model'!F$16,0) -> 0 | M71: 0 | N71: 0 | O71: — | P71: — | Q71: 11851.45063 | R71: 0 | S71: 0 | T71: 2 | U71: 68 | V71: 0 | W71: 0 | X71: Base Plan | Y71: 2 | Z71: 0 | AA71: 0 | AB71: 0 | AC71: InpMHSA | AD71: 0 | AE71: 0 | AF71: 0 | AG71: 0 | AH71: 2 | AI71: 0 | AJ71: 0 | AK71: 2 | AL71: 0 | AM71: 0 | AN71: 0 | AO71: 0 | AP71: 1 | AQ71: 0 | AR71: 0 | AS71: 0 | AT71: 0 | AU71: 500 | AV71: 500 | AW71: 0 | AX71: 0 | AY71: 0 | AZ71: 0 | BA71: 0 | BB71: 0 | BC71: 0 | BD71: 0 | BE71: 0 | BF71: 0 | BG71: 0 | BH71: 0 | BI71: 0 | BJ71: 0 | BK71: 0 | BL71: 0 | BM71: 0 | BN71: 0 | BO71: 0 | BP71: 0 | BQ71: 3500 | BR71: 3500 | BS71: 0 | BT71: 0 | BU71: 0 | BV71: 0 | BW71: 0 | BX71: 0 | BY71: 0 | BZ71: 0 | CA71: 0 | CB71: 0 | CC71: 0 | CD71: 0 | CE71: 0 | CF71: 0 | CG71: 0 | CH71: 0 | CI71: 0 | CJ71: 0 | CK71: 0 | CL71: 0 | CM71: 0 | CN71: 0 | CO71: 0
A72: 1 | B72: 4 | C72: — | D72: — | E72: Base Plan | F72: =+'Employee Cost Model'!$C$2 -> Employee Only | G72: In | H72: Inp | I72: SNF | K72: N | L72: =+IF(OR('Employee Cost Model'!$C$2="Employee + Spouse + Child(ren)",'Employee Cost Model'!$C$2="Employee + Child(ren)"),'Employee Cost Model'!F$17,0) -> 0 | M72: 0 | N72: 0 | O72: — | P72: — | Q72: 6523.462072 | R72: 0 | S72: 0 | T72: 3 | U72: 69 | V72: 0 | W72: 0 | X72: Base Plan | Y72: 2 | Z72: 0 | AA72: 0 | AB72: 0 | AC72: InpSNF | AD72: 0 | AE72: 0 | AF72: 0 | AG72: 0 | AH72: 2 | AI72: 0 | AJ72: 0 | AK72: 2 | AL72: 0 | AM72: 0 | AN72: 0 | AO72: 0 | AP72: 1 | AQ72: 0 | AR72: 0 | AS72: 0 | AT72: 0 | AU72: 500 | AV72: 500 | AW72: 0 | AX72: 0 | AY72: 0 | AZ72: 0 | BA72: 0 | BB72: 0 | BC72: 0 | BD72: 0 | BE72: 0 | BF72: 0 | BG72: 0 | BH72: 0 | BI72: 0 | BJ72: 0 | BK72: 0 | BL72: 0 | BM72: 0 | BN72: 0 | BO72: 0 | BP72: 0 | BQ72: 3500 | BR72: 3500 | BS72: 0 | BT72: 0 | BU72: 0 | BV72: 0 | BW72: 0 | BX72: 0 | BY72: 0 | BZ72: 0 | CA72: 0 | CB72: 0 | CC72: 0 | CD72: 0 | CE72: 0 | CF72: 0 | CG72: 0 | CH72: 0 | CI72: 0 | CJ72: 0 | CK72: 0 | CL72: 0 | CM72: 0 | CN72: 0 | CO72: 0
A73: 1 | B73: 4 | C73: — | D73: — | E73: Base Plan | F73: =+'Employee Cost Model'!$C$2 -> Employee Only | G73: In | H73: Out | I73: ER | K73: N | L73: =+IF(OR('Employee Cost Model'!$C$2="Employee + Spouse + Child(ren)",'Employee Cost Model'!$C$2="Employee + Child(ren)"),'Employee Cost Model'!F$23,0) -> 0 | M73: 0 | N73: 0 | O73: — | P73: — | Q73: 1458.770268 | R73: 0 | S73: 0 | T73: 4 | U73: 70 | V73: 0 | W73: 0 | X73: Base Plan | Y73: 2 | Z73: 0 | AA73: 0 | AB73: 0 | AC73: OutER | AD73: 0 | AE73: 0 | AF73: 0 | AG73: 0 | AH73: 1 | AI73: 0 | AJ73: 0 | AK73: 2 | AL73: 0 | AM73: 0 | AN73: 125 | AO73: 0 | AP73: 1 | AQ73: 0 | AR73: 0 | AS73: 0 | AT73: 0 | AU73: 500 | AV73: 500 | AW73: 0 | AX73: 0 | AY73: 0 | AZ73: 0 | BA73: 0 | BB73: 0 | BC73: 0 | BD73: 0 | BE73: 0 | BF73: 0 | BG73: 0 | BH73: 0 | BI73: 0 | BJ73: 0 | BK73: 0 | BL73: 0 | BM73: 0 | BN73: 0 | BO73: 0 | BP73: 0 | BQ73: 3500 | BR73: 3500 | BS73: 0 | BT73: 0 | BU73: 0 | BV73: 0 | BW73: 0 | BX73: 0 | BY73: 0 | BZ73: 0 | CA73: 0 | CB73: 0 | CC73: 0 | CD73: 0 | CE73: 0 | CF73: 0 | CG73: 0 | CH73: 0 | CI73: 0 | CJ73: 0 | CK73: 0 | CL73: 0 | CM73: 0 | CN73: 0 | CO73: 0
A74: 1 | B74: 4 | C74: — | D74: — | E74: Base Plan | F74: =+'Employee Cost Model'!$C$2 -> Employee Only | G74: In | H74: Out | I74: UC | K74: N | L74: =+IF(OR('Employee Cost Model'!$C$2="Employee + Spouse + Child(ren)",'Employee Cost Model'!$C$2="Employee + Child(ren)"),'Employee Cost Model'!F$24,0) -> 0 | M74: 0 | N74: 0 | O74: — | P74: — | Q74: 167.7490597 | R74: 0 | S74: 0 | T74: 5 | U74: 71 | V74: 0 | W74: 0 | X74: Base Plan | Y74: 2 | Z74: 0 | AA74: 0 | AB74: 0 | AC74: OutUC | AD74: 0 | AE74: 0 | AF74: 0 | AG74: 0 | AH74: 1 | AI74: 0 | AJ74: 0 | AK74: 2 | AL74: 0 | AM74: 0 | AN74: 50 | AO74: 0 | AP74: 1 | AQ74: 0 | AR74: 0 | AS74: 0 | AT74: 0 | AU74: 500 | AV74: 500 | AW74: 0 | AX74: 0 | AY74: 0 | AZ74: 0 | BA74: 0 | BB74: 0 | BC74: 0 | BD74: 0 | BE74: 0 | BF74: 0 | BG74: 0 | BH74: 0 | BI74: 0 | BJ74: 0 | BK74: 0 | BL74: 0 | BM74: 0 | BN74: 0 | BO74: 0 | BP74: 0 | BQ74: 3500 | BR74: 3500 | BS74: 0 | BT74: 0 | BU74: 0 | BV74: 0 | BW74: 0 | BX74: 0 | BY74: 0 | BZ74: 0 | CA74: 0 | CB74: 0 | CC74: 0 | CD74: 0 | CE74: 0 | CF74: 0 | CG74: 0 | CH74: 0 | CI74: 0 | CJ74: 0 | CK74: 0 | CL74: 0 | CM74: 0 | CN74: 0 | CO74: 0
A75: 1 | B75: 4 | C75: — | D75: — | E75: Base Plan | F75: =+'Employee Cost Model'!$C$2 -> Employee Only | G75: In | H75: Out | I75: Surgery | K75: N | L75: =+IF(OR('Employee Cost Model'!$C$2="Employee + Spouse + Child(ren)",'Employee Cost Model'!$C$2="Employee + Child(ren)"),'Employee Cost Model'!F$20,0) -> 0 | M75: 0 | N75: 0 | O75: — | P75: — | Q75: 3651.604864 | R75: 0 | S75: 0 | T75: 6 | U75: 72 | V75: 0 | W75: 0 | X75: Base Plan | Y75: 2 | Z75: 0 | AA75: 0 | AB75: 0 | AC75: OutSurgery | AD75: 0 | AE75: 0 | AF75: 0 | AG75: 0 | AH75: 2 | AI75: 0 | AJ75: 0 | AK75: 2 | AL75: 0 | AM75: 0 | AN75: 0 | AO75: 0 | AP75: 1 | AQ75: 0 | AR75: 0 | AS75: 0 | AT75: 0 | AU75: 500 | AV75: 500 | AW75: 0 | AX75: 0 | AY75: 0 | AZ75: 0 | BA75: 0 | BB75: 0 | BC75: 0 | BD75: 0 | BE75: 0 | BF75: 0 | BG75: 0 | BH75: 0 | BI75: 0 | BJ75: 0 | BK75: 0 | BL75: 0 | BM75: 0 | BN75: 0 | BO75: 0 | BP75: 0 | BQ75: 3500 | BR75: 3500 | BS75: 0 | BT75: 0 | BU75: 0 | BV75: 0 | BW75: 0 | BX75: 0 | BY75: 0 | BZ75: 0 | CA75: 0 | CB75: 0 | CC75: 0 | CD75: 0 | CE75: 0 | CF75: 0 | CG75: 0 | CH75: 0 | CI75: 0 | CJ75: 0 | CK75: 0 | CL75: 0 | CM75: 0 | CN75: 0 | CO75: 0
A76: 1 | B76: 4 | C76: — | D76: — | E76: Base Plan | F76: =+'Employee Cost Model'!$C$2 -> Employee Only | G76: In | H76: Out | I76: X-ray/Lab | K76: N | L76: =+IF(OR('Employee Cost Model'!$C$2="Employee + Spouse + Child(ren)",'Employee Cost Model'!$C$2="Employee + Child(ren)"),'Employee Cost Model'!F$26,0) -> 0 | M76: 0 | N76: 0 | O76: — | P76: — | Q76: 223.9676734 | R76: 0 | S76: 0 | T76: 7 | U76: 73 | V76: 0 | W76: 0 | X76: Base Plan | Y76: 2 | Z76: 0 | AA76: 0 | AB76: 0 | AC76: OutX-ray/Lab | AD76: 0 | AE76: 0 | AF76: 0 | AG76: 0 | AH76: 2 | AI76: 0 | AJ76: 0 | AK76: 2 | AL76: 0 | AM76: 0 | AN76: 0 | AO76: 0 | AP76: 1 | AQ76: 0 | AR76: 0 | AS76: 0 | AT76: 0 | AU76: 500 | AV76: 500 | AW76: 0 | AX76: 0 | AY76: 0 | AZ76: 0 | BA76: 0 | BB76: 0 | BC76: 0 | BD76: 0 | BE76: 0 | BF76: 0 | BG76: 0 | BH76: 0 | BI76: 0 | BJ76: 0 | BK76: 0 | BL76: 0 | BM76: 0 | BN76: 0 | BO76: 0 | BP76: 0 | BQ76: 3500 | BR76: 3500 | BS76: 0 | BT76: 0 | BU76: 0 | BV76: 0 | BW76: 0 | BX76: 0 | BY76: 0 | BZ76: 0 | CA76: 0 | CB76: 0 | CC76: 0 | CD76: 0 | CE76: 0 | CF76: 0 | CG76: 0 | CH76: 0 | CI76: 0 | CJ76: 0 | CK76: 0 | CL76: 0 | CM76: 0 | CN76: 0 | CO76: 0
A77: 1 | B77: 4 | C77: — | D77: — | E77: Base Plan | F77: =+'Employee Cost Model'!$C$2 -> Employee Only | G77: In | H77: Out | I77: Adv Rad | K77: N | L77: =+IF(OR('Employee Cost Model'!$C$2="Employee + Spouse + Child(ren)",'Employee Cost Model'!$C$2="Employee + Child(ren)"),'Employee Cost Model'!F$27,0) -> 0 | M77: 0 | N77: 0 | O77: — | P77: — | Q77: 995.6214691 | R77: 0 | S77: 0 | T77: 8 | U77: 74 | V77: 0 | W77: 0 | X77: Base Plan | Y77: 2 | Z77: 0 | AA77: 0 | AB77: 0 | AC77: OutAdv Rad | AD77: 0 | AE77: 0 | AF77: 0 | AG77: 0 | AH77: 2 | AI77: 0 | AJ77: 0 | AK77: 2 | AL77: 0 | AM77: 0 | AN77: 0 | AO77: 0 | AP77: 1 | AQ77: 0 | AR77: 0 | AS77: 0 | AT77: 0 | AU77: 500 | AV77: 500 | AW77: 0 | AX77: 0 | AY77: 0 | AZ77: 0 | BA77: 0 | BB77: 0 | BC77: 0 | BD77: 0 | BE77: 0 | BF77: 0 | BG77: 0 | BH77: 0 | BI77: 0 | BJ77: 0 | BK77: 0 | BL77: 0 | BM77: 0 | BN77: 0 | BO77: 0 | BP77: 0 | BQ77: 3500 | BR77: 3500 | BS77: 0 | BT77: 0 | BU77: 0 | BV77: 0 | BW77: 0 | BX77: 0 | BY77: 0 | BZ77: 0 | CA77: 0 | CB77: 0 | CC77: 0 | CD77: 0 | CE77: 0 | CF77: 0 | CG77: 0 | CH77: 0 | CI77: 0 | CJ77: 0 | CK77: 0 | CL77: 0 | CM77: 0 | CN77: 0 | CO77: 0
A78: 1 | B78: 4 | C78: — | D78: — | E78: Base Plan | F78: =+'Employee Cost Model'!$C$2 -> Employee Only | G78: In | H78: Professional | I78: PCP | K78: N | L78: =+IF(OR('Employee Cost Model'!$C$2="Employee + Spouse + Child(ren)",'Employee Cost Model'!$C$2="Employee + Child(ren)"),'Employee Cost Model'!F$29,0) -> 0 | M78: 0 | N78: 0 | O78: — | P78: — | Q78: 167.4628453 | R78: 0 | S78: 0 | T78: 9 | U78: 75 | V78: 0 | W78: 0 | X78: Base Plan | Y78: 2 | Z78: 0 | AA78: 0 | AB78: 0 | AC78: ProfessionalPCP | AD78: 0 | AE78: 0 | AF78: 0 | AG78: 0 | AH78: 1 | AI78: 0 | AJ78: 0 | AK78: 2 | AL78: 0 | AM78: 0 | AN78: 15 | AO78: 0 | AP78: 1 | AQ78: 0 | AR78: 0 | AS78: 0 | AT78: 0 | AU78: 500 | AV78: 500 | AW78: 0 | AX78: 0 | AY78: 0 | AZ78: 0 | BA78: 0 | BB78: 0 | BC78: 0 | BD78: 0 | BE78: 0 | BF78: 0 | BG78: 0 | BH78: 0 | BI78: 0 | BJ78: 0 | BK78: 0 | BL78: 0 | BM78: 0 | BN78: 0 | BO78: 0 | BP78: 0 | BQ78: 3500 | BR78: 3500 | BS78: 0 | BT78: 0 | BU78: 0 | BV78: 0 | BW78: 0 | BX78: 0 | BY78: 0 | BZ78: 0 | CA78: 0 | CB78: 0 | CC78: 0 | CD78: 0 | CE78: 0 | CF78: 0 | CG78: 0 | CH78: 0 | CI78: 0 | CJ78: 0 | CK78: 0 | CL78: 0 | CM78: 0 | CN78: 0 | CO78: 0
A79: 1 | B79: 4 | C79: — | D79: — | E79: Base Plan | F79: =+'Employee Cost Model'!$C$2 -> Employee Only | G79: In | H79: Professional | I79: SCP | K79: N | L79: =+IF(OR('Employee Cost Model'!$C$2="Employee + Spouse + Child(ren)",'Employee Cost Model'!$C$2="Employee + Child(ren)"),'Employee Cost Model'!F$30,0) -> 0 | M79: 0 | N79: 0 | O79: — | P79: — | Q79: 190.3145998 | R79: 0 | S79: 0 | T79: 10 | U79: 76 | V79: 0 | W79: 0 | X79: Base Plan | Y79: 2 | Z79: 0 | AA79: 0 | AB79: 0 | AC79: ProfessionalSCP | AD79: 0 | AE79: 0 | AF79: 0 | AG79: 0 | AH79: 1 | AI79: 0 | AJ79: 0 | AK79: 2 | AL79: 0 | AM79: 0 | AN79: 30 | AO79: 0 | AP79: 1 | AQ79: 0 | AR79: 0 | AS79: 0 | AT79: 0 | AU79: 500 | AV79: 500 | AW79: 0 | AX79: 0 | AY79: 0 | AZ79: 0 | BA79: 0 | BB79: 0 | BC79: 0 | BD79: 0 | BE79: 0 | BF79: 0 | BG79: 0 | BH79: 0 | BI79: 0 | BJ79: 0 | BK79: 0 | BL79: 0 | BM79: 0 | BN79: 0 | BO79: 0 | BP79: 0 | BQ79: 3500 | BR79: 3500 | BS79: 0 | BT79: 0 | BU79: 0 | BV79: 0 | BW79: 0 | BX79: 0 | BY79: 0 | BZ79: 0 | CA79: 0 | CB79: 0 | CC79: 0 | CD79: 0 | CE79: 0 | CF79: 0 | CG79: 0 | CH79: 0 | CI79: 0 | CJ79: 0 | CK79: 0 | CL79: 0 | CM79: 0 | CN79: 0 | CO79: 0
A80: 1 | B80: 4 | C80: — | D80: — | E80: Base Plan | F80: =+'Employee Cost Model'!$C$2 -> Employee Only | G80: In | H80: Professional | I80: Maternity | K80: N | L80: =+IF(OR('Employee Cost Model'!$C$2="Employee + Spouse + Child(ren)",'Employee Cost Model'!$C$2="Employee + Child(ren)"),'Employee Cost Model'!F$31,0) -> 0 | M80: 0 | N80: 0 | O80: — | P80: — | Q80: 23659.20645 | R80: 0 | S80: 0 | T80: 11 | U80: 77 | V80: 0 | W80: 0 | X80: Base Plan | Y80: 2 | Z80: 0 | AA80: 0 | AB80: 0 | AC80: ProfessionalMaternity | AD80: 0 | AE80: 0 | AF80: 0 | AG80: 0 | AH80: 2 | AI80: 0 | AJ80: 0 | AK80: 2 | AL80: 0 | AM80: 0 | AN80: 0 | AO80: 0 | AP80: 1 | AQ80: 0 | AR80: 0 | AS80: 0 | AT80: 0 | AU80: 500 | AV80: 500 | AW80: 0 | AX80: 0 | AY80: 0 | AZ80: 0 | BA80: 0 | BB80: 0 | BC80: 0 | BD80: 0 | BE80: 0 | BF80: 0 | BG80: 0 | BH80: 0 | BI80: 0 | BJ80: 0 | BK80: 0 | BL80: 0 | BM80: 0 | BN80: 0 | BO80: 0 | BP80: 0 | BQ80: 3500 | BR80: 3500 | BS80: 0 | BT80: 0 | BU80: 0 | BV80: 0 | BW80: 0 | BX80: 0 | BY80: 0 | BZ80: 0 | CA80: 0 | CB80: 0 | CC80: 0 | CD80: 0 | CE80: 0 | CF80: 0 | CG80: 0 | CH80: 0 | CI80: 0 | CJ80: 0 | CK80: 0 | CL80: 0 | CM80: 0 | CN80: 0 | CO80: 0
A81: 1 | B81: 4 | C81: — | D81: — | E81: Base Plan | F81: =+'Employee Cost Model'!$C$2 -> Employee Only | G81: In | H81: Professional | I81: Off Surgery | K81: N | L81: =+IF(OR('Employee Cost Model'!$C$2="Employee + Spouse + Child(ren)",'Employee Cost Model'!$C$2="Employee + Child(ren)"),'Employee Cost Model'!F$21,0) -> 0 | M81: 0 | N81: 0 | O81: — | P81: — | Q81: 988.0543893 | R81: 0 | S81: 0 | T81: 12 | U81: 78 | V81: 0 | W81: 0 | X81: Base Plan | Y81: 2 | Z81: 0 | AA81: 0 | AB81: 0 | AC81: ProfessionalOff Surgery | AD81: 0 | AE81: 0 | AF81: 0 | AG81: 0 | AH81: 2 | AI81: 0 | AJ81: 0 | AK81: 2 | AL81: 0 | AM81: 0 | AN81: 0 | AO81: 0 | AP81: 1 | AQ81: 0 | AR81: 0 | AS81: 0 | AT81: 0 | AU81: 500 | AV81: 500 | AW81: 0 | AX81: 0 | AY81: 0 | AZ81: 0 | BA81: 0 | BB81: 0 | BC81: 0 | BD81: 0 | BE81: 0 | BF81: 0 | BG81: 0 | BH81: 0 | BI81: 0 | BJ81: 0 | BK81: 0 | BL81: 0 | BM81: 0 | BN81: 0 | BO81: 0 | BP81: 0 | BQ81: 3500 | BR81: 3500 | BS81: 0 | BT81: 0 | BU81: 0 | BV81: 0 | BW81: 0 | BX81: 0 | BY81: 0 | BZ81: 0 | CA81: 0 | CB81: 0 | CC81: 0 | CD81: 0 | CE81: 0 | CF81: 0 | CG81: 0 | CH81: 0 | CI81: 0 | CJ81: 0 | CK81: 0 | CL81: 0 | CM81: 0 | CN81: 0 | CO81: 0
A82: 1 | B82: 4 | C82: — | D82: — | E82: Base Plan | F82: =+'Employee Cost Model'!$C$2 -> Employee Only | G82: In | H82: Professional | I82: MHSA | K82: N | L82: =+IF(OR('Employee Cost Model'!$C$2="Employee + Spouse + Child(ren)",'Employee Cost Model'!$C$2="Employee + Child(ren)"),'Employee Cost Model'!F$34,0) -> 0 | M82: 0 | N82: 0 | O82: — | P82: — | Q82: 125.9770284 | R82: 0 | S82: 0 | T82: 13 | U82: 79 | V82: 0 | W82: 0 | X82: Base Plan | Y82: 2 | Z82: 0 | AA82: 0 | AB82: 0 | AC82: ProfessionalMHSA | AD82: 0 | AE82: 0 | AF82: 0 | AG82: 0 | AH82: 1 | AI82: 0 | AJ82: 0 | AK82: 2 | AL82: 0 | AM82: 0 | AN82: 15 | AO82: 0 | AP82: 1 | AQ82: 0 | AR82: 0 | AS82: 0 | AT82: 0 | AU82: 500 | AV82: 500 | AW82: 0 | AX82: 0 | AY82: 0 | AZ82: 0 | BA82: 0 | BB82: 0 | BC82: 0 | BD82: 0 | BE82: 0 | BF82: 0 | BG82: 0 | BH82: 0 | BI82: 0 | BJ82: 0 | BK82: 0 | BL82: 0 | BM82: 0 | BN82: 0 | BO82: 0 | BP82: 0 | BQ82: 3500 | BR82: 3500 | BS82: 0 | BT82: 0 | BU82: 0 | BV82: 0 | BW82: 0 | BX82: 0 | BY82: 0 | BZ82: 0 | CA82: 0 | CB82: 0 | CC82: 0 | CD82: 0 | CE82: 0 | CF82: 0 | CG82: 0 | CH82: 0 | CI82: 0 | CJ82: 0 | CK82: 0 | CL82: 0 | CM82: 0 | CN82: 0 | CO82: 0
A83: 1 | B83: 4 | C83: — | D83: — | E83: Base Plan | F83: =+'Employee Cost Model'!$C$2 -> Employee Only | G83: In | H83: Professional | I83: PhyTh/SpTh/OccTh | K83: N | L83: =+IF(OR('Employee Cost Model'!$C$2="Employee + Spouse + Child(ren)",'Employee Cost Model'!$C$2="Employee + Child(ren)"),'Employee Cost Model'!F$32,0) -> 0 | M83: 0 | N83: 0 | O83: — | P83: — | Q83: 165.3990089 | R83: 0 | S83: 0 | T83: 14 | U83: 80 | V83: 0 | W83: 0 | X83: Base Plan | Y83: 2 | Z83: 0 | AA83: 0 | AB83: 0 | AC83: ProfessionalPhyTh/SpTh/OccTh | AD83: 0 | AE83: 0 | AF83: 0 | AG83: 0 | AH83: 1 | AI83: 0 | AJ83: 0 | AK83: 2 | AL83: 0 | AM83: 0 | AN83: 33.07980179 | AO83: 0 | AP83: 1 | AQ83: 0 | AR83: 0 | AS83: 0 | AT83: 0 | AU83: 500 | AV83: 500 | AW83: 0 | AX83: 0 | AY83: 0 | AZ83: 0 | BA83: 0 | BB83: 0 | BC83: 0 | BD83: 0 | BE83: 0 | BF83: 0 | BG83: 0 | BH83: 0 | BI83: 0 | BJ83: 0 | BK83: 0 | BL83: 0 | BM83: 0 | BN83: 0 | BO83: 0 | BP83: 0 | BQ83: 3500 | BR83: 3500 | BS83: 0 | BT83: 0 | BU83: 0 | BV83: 0 | BW83: 0 | BX83: 0 | BY83: 0 | BZ83: 0 | CA83: 0 | CB83: 0 | CC83: 0 | CD83: 0 | CE83: 0 | CF83: 0 | CG83: 0 | CH83: 0 | CI83: 0 | CJ83: 0 | CK83: 0 | CL83: 0 | CM83: 0 | CN83: 0 | CO83: 0
A84: 1 | B84: 4 | C84: — | D84: — | E84: Base Plan | F84: =+'Employee Cost Model'!$C$2 -> Employee Only | G84: In | H84: Professional | I84: Chiro | K84: N | L84: =+IF(OR('Employee Cost Model'!$C$2="Employee + Spouse + Child(ren)",'Employee Cost Model'!$C$2="Employee + Child(ren)"),'Employee Cost Model'!F$33,0) -> 0 | M84: 0 | N84: 0 | O84: — | P84: — | Q84: 79.45445144 | R84: 0 | S84: 0 | T84: 15 | U84: 81 | V84: 0 | W84: 0 | X84: Base Plan | Y84: 2 | Z84: 0 | AA84: 0 | AB84: 0 | AC84: ProfessionalChiro | AD84: 0 | AE84: 0 | AF84: 0 | AG84: 0 | AH84: 1 | AI84: 0 | AJ84: 0 | AK84: 2 | AL84: 0 | AM84: 0 | AN84: 30 | AO84: 0 | AP84: 1 | AQ84: 0 | AR84: 0 | AS84: 0 | AT84: 0 | AU84: 500 | AV84: 500 | AW84: 0 | AX84: 0 | AY84: 0 | AZ84: 0 | BA84: 0 | BB84: 0 | BC84: 0 | BD84: 0 | BE84: 0 | BF84: 0 | BG84: 0 | BH84: 0 | BI84: 0 | BJ84: 0 | BK84: 0 | BL84: 0 | BM84: 0 | BN84: 0 | BO84: 0 | BP84: 0 | BQ84: 3500 | BR84: 3500 | BS84: 0 | BT84: 0 | BU84: 0 | BV84: 0 | BW84: 0 | BX84: 0 | BY84: 0 | BZ84: 0 | CA84: 0 | CB84: 0 | CC84: 0 | CD84: 0 | CE84: 0 | CF84: 0 | CG84: 0 | CH84: 0 | CI84: 0 | CJ84: 0 | CK84: 0 | CL84: 0 | CM84: 0 | CN84: 0 | CO84: 0
A85: 1 | B85: 4 | C85: — | D85: — | E85: Base Plan | F85: =+'Employee Cost Model'!$C$2 -> Employee Only | G85: In | H85: Rx | I85: R | J85: 1 | K85: N | L85: =+IF(OR('Employee Cost Model'!$C$2="Employee + Spouse + Child(ren)",'Employee Cost Model'!$C$2="Employee + Child(ren)"),'Employee Cost Model'!F$38,0) -> 0 | M85: 0 | N85: 0 | O85: — | P85: — | Q85: 50.83329564 | R85: 0 | S85: 0 | T85: 16 | U85: 82 | V85: 0 | W85: 0 | X85: Base Plan | Y85: 2 | Z85: 0 | AA85: 0 | AB85: 0 | AC85: RxR1 | AD85: 0 | AE85: 1 | AF85: 0 | AG85: 0 | AH85: 1 | AI85: 0 | AJ85: 0 | AK85: 2 | AL85: 0 | AM85: 0 | AN85: 5 | AO85: 0 | AP85: 1 | AQ85: 0 | AR85: 0 | AS85: 0 | AT85: 0 | AU85: 500 | AV85: 500 | AW85: 0 | AX85: 0 | AY85: 0 | AZ85: 0 | BA85: 0 | BB85: 0 | BC85: 0 | BD85: 0 | BE85: 0 | BF85: 0 | BG85: 0 | BH85: 0 | BI85: 0 | BJ85: 0 | BK85: 0 | BL85: 0 | BM85: 0 | BN85: 0 | BO85: 0 | BP85: 0 | BQ85: 3500 | BR85: 3500 | BS85: 0 | BT85: 0 | BU85: 0 | BV85: 0 | BW85: 0 | BX85: 0 | BY85: 0 | BZ85: 0 | CA85: 0 | CB85: 0 | CC85: 0 | CD85: 0 | CE85: 0 | CF85: 0 | CG85: 0 | CH85: 0 | CI85: 0 | CJ85: 0 | CK85: 0 | CL85: 0 | CM85: 0 | CN85: 0 | CO85: 0
A86: 1 | B86: 4 | C86: — | D86: — | E86: Base Plan | F86: =+'Employee Cost Model'!$C$2 -> Employee Only | G86: In | H86: Rx | I86: R | J86: 2 | K86: N | L86: =+IF(OR('Employee Cost Model'!$C$2="Employee + Spouse + Child(ren)",'Employee Cost Model'!$C$2="Employee + Child(ren)"),'Employee Cost Model'!F$39,0) -> 0 | M86: 0 | N86: 0 | O86: — | P86: — | Q86: 389.8130676 | R86: 0 | S86: 0 | T86: 17 | U86: 83 | V86: 0 | W86: 0 | X86: Base Plan | Y86: 2 | Z86: 0 | AA86: 0 | AB86: 0 | AC86: RxR2 | AD86: 0 | AE86: 1 | AF86: 0 | AG86: 0 | AH86: 1 | AI86: 0 | AJ86: 0 | AK86: 2 | AL86: 0 | AM86: 0 | AN86: 35 | AO86: 0 | AP86: 1 | AQ86: 0 | AR86: 0 | AS86: 0 | AT86: 0 | AU86: 500 | AV86: 500 | AW86: 0 | AX86: 0 | AY86: 0 | AZ86: 0 | BA86: 0 | BB86: 0 | BC86: 0 | BD86: 0 | BE86: 0 | BF86: 0 | BG86: 0 | BH86: 0 | BI86: 0 | BJ86: 0 | BK86: 0 | BL86: 0 | BM86: 0 | BN86: 0 | BO86: 0 | BP86: 0 | BQ86: 3500 | BR86: 3500 | BS86: 0 | BT86: 0 | BU86: 0 | BV86: 0 | BW86: 0 | BX86: 0 | BY86: 0 | BZ86: 0 | CA86: 0 | CB86: 0 | CC86: 0 | CD86: 0 | CE86: 0 | CF86: 0 | CG86: 0 | CH86: 0 | CI86: 0 | CJ86: 0 | CK86: 0 | CL86: 0 | CM86: 0 | CN86: 0 | CO86: 0
A87: 1 | B87: 4 | C87: — | D87: — | E87: Base Plan | F87: =+'Employee Cost Model'!$C$2 -> Employee Only | G87: In | H87: Rx | I87: R | J87: 3 | K87: N | L87: =+IF(OR('Employee Cost Model'!$C$2="Employee + Spouse + Child(ren)",'Employee Cost Model'!$C$2="Employee + Child(ren)"),'Employee Cost Model'!F$40,0) -> 0 | M87: 0 | N87: 0 | O87: — | P87: — | Q87: 651.9493716 | R87: 0 | S87: 0 | T87: 18 | U87: 84 | V87: 0 | W87: 0 | X87: Base Plan | Y87: 2 | Z87: 0 | AA87: 0 | AB87: 0 | AC87: RxR3 | AD87: 0 | AE87: 1 | AF87: 0 | AG87: 0 | AH87: 1 | AI87: 0 | AJ87: 0 | AK87: 2 | AL87: 0 | AM87: 0 | AN87: 60 | AO87: 0 | AP87: 1 | AQ87: 0 | AR87: 0 | AS87: 0 | AT87: 0 | AU87: 500 | AV87: 500 | AW87: 0 | AX87: 0 | AY87: 0 | AZ87: 0 | BA87: 0 | BB87: 0 | BC87: 0 | BD87: 0 | BE87: 0 | BF87: 0 | BG87: 0 | BH87: 0 | BI87: 0 | BJ87: 0 | BK87: 0 | BL87: 0 | BM87: 0 | BN87: 0 | BO87: 0 | BP87: 0 | BQ87: 3500 | BR87: 3500 | BS87: 0 | BT87: 0 | BU87: 0 | BV87: 0 | BW87: 0 | BX87: 0 | BY87: 0 | BZ87: 0 | CA87: 0 | CB87: 0 | CC87: 0 | CD87: 0 | CE87: 0 | CF87: 0 | CG87: 0 | CH87: 0 | CI87: 0 | CJ87: 0 | CK87: 0 | CL87: 0 | CM87: 0 | CN87: 0 | CO87: 0
A88: 1 | B88: 4 | C88: — | D88: — | E88: Base Plan | F88: =+'Employee Cost Model'!$C$2 -> Employee Only | G88: In | H88: Rx | I88: R | J88: 4 | K88: N | L88: =+IF(OR('Employee Cost Model'!$C$2="Employee + Spouse + Child(ren)",'Employee Cost Model'!$C$2="Employee + Child(ren)"),'Employee Cost Model'!F$41,0) -> 0 | M88: 0 | N88: 0 | O88: — | P88: — | Q88: 8251.270121 | R88: 0 | S88: 0 | T88: 19 | U88: 85 | V88: 0 | W88: 0 | X88: Base Plan | Y88: 2 | Z88: 0 | AA88: 0 | AB88: 0 | AC88: RxR4 | AD88: 0 | AE88: 1 | AF88: 0 | AG88: 0 | AH88: 1 | AI88: 0 | AJ88: 0 | AK88: 2 | AL88: 0 | AM88: 0 | AN88: 60 | AO88: 0 | AP88: 1 | AQ88: 0 | AR88: 0 | AS88: 0 | AT88: 0 | AU88: 500 | AV88: 500 | AW88: 0 | AX88: 0 | AY88: 0 | AZ88: 0 | BA88: 0 | BB88: 0 | BC88: 0 | BD88: 0 | BE88: 0 | BF88: 0 | BG88: 0 | BH88: 0 | BI88: 0 | BJ88: 0 | BK88: 0 | BL88: 0 | BM88: 0 | BN88: 0 | BO88: 0 | BP88: 0 | BQ88: 3500 | BR88: 3500 | BS88: 0 | BT88: 0 | BU88: 0 | BV88: 0 | BW88: 0 | BX88: 0 | BY88: 0 | BZ88: 0 | CA88: 0 | CB88: 0 | CC88: 0 | CD88: 0 | CE88: 0 | CF88: 0 | CG88: 0 | CH88: 0 | CI88: 0 | CJ88: 0 | CK88: 0 | CL88: 0 | CM88: 0 | CN88: 0 | CO88: 0
A89: 1 | B89: 4 | C89: — | D89: — | E89: Base Plan | F89: =+'Employee Cost Model'!$C$2 -> Employee Only | G89: In | H89: Rx | I89: M | J89: 1 | K89: N | L89: =+IF(OR('Employee Cost Model'!$C$2="Employee + Spouse + Child(ren)",'Employee Cost Model'!$C$2="Employee + Child(ren)"),'Employee Cost Model'!F$43,0) -> 0 | M89: 0 | N89: 0 | O89: — | P89: — | Q89: 88.65973424 | R89: 0 | S89: 0 | T89: 20 | U89: 86 | V89: 0 | W89: 0 | X89: Base Plan | Y89: 2 | Z89: 0 | AA89: 0 | AB89: 0 | AC89: RxM1 | AD89: 0 | AE89: 1 | AF89: 0 | AG89: 0 | AH89: 1 | AI89: 0 | AJ89: 0 | AK89: 2 | AL89: 0 | AM89: 0 | AN89: 12.5 | AO89: 0 | AP89: 1 | AQ89: 0 | AR89: 0 | AS89: 0 | AT89: 0 | AU89: 500 | AV89: 500 | AW89: 0 | AX89: 0 | AY89: 0 | AZ89: 0 | BA89: 0 | BB89: 0 | BC89: 0 | BD89: 0 | BE89: 0 | BF89: 0 | BG89: 0 | BH89: 0 | BI89: 0 | BJ89: 0 | BK89: 0 | BL89: 0 | BM89: 0 | BN89: 0 | BO89: 0 | BP89: 0 | BQ89: 3500 | BR89: 3500 | BS89: 0 | BT89: 0 | BU89: 0 | BV89: 0 | BW89: 0 | BX89: 0 | BY89: 0 | BZ89: 0 | CA89: 0 | CB89: 0 | CC89: 0 | CD89: 0 | CE89: 0 | CF89: 0 | CG89: 0 | CH89: 0 | CI89: 0 | CJ89: 0 | CK89: 0 | CL89: 0 | CM89: 0 | CN89: 0 | CO89: 0
A90: 1 | B90: 4 | C90: — | D90: — | E90: Base Plan | F90: =+'Employee Cost Model'!$C$2 -> Employee Only | G90: In | H90: Rx | I90: M | J90: 2 | K90: N | L90: =+IF(OR('Employee Cost Model'!$C$2="Employee + Spouse + Child(ren)",'Employee Cost Model'!$C$2="Employee + Child(ren)"),'Employee Cost Model'!F$44,0) -> 0 | M90: 0 | N90: 0 | O90: — | P90: — | Q90: =+Q68 -> 857.5887486 | R90: 0 | S90: 0 | T90: 21 | U90: 87 | V90: 0 | W90: 0 | X90: Base Plan | Y90: 2 | Z90: 0 | AA90: 0 | AB90: 0 | AC90: RxM2 | AD90: 0 | AE90: 1 | AF90: 0 | AG90: 0 | AH90: 1 | AI90: 0 | AJ90: 0 | AK90: 2 | AL90: 0 | AM90: 0 | AN90: 67.5 | AO90: 0 | AP90: 1 | AQ90: 0 | AR90: 0 | AS90: 0 | AT90: 0 | AU90: 500 | AV90: 500 | AW90: 0 | AX90: 0 | AY90: 0 | AZ90: 0 | BA90: 0 | BB90: 0 | BC90: 0 | BD90: 0 | BE90: 0 | BF90: 0 | BG90: 0 | BH90: 0 | BI90: 0 | BJ90: 0 | BK90: 0 | BL90: 0 | BM90: 0 | BN90: 0 | BO90: 0 | BP90: 0 | BQ90: 3500 | BR90: 3500 | BS90: 0 | BT90: 0 | BU90: 0 | BV90: 0 | BW90: 0 | BX90: 0 | BY90: 0 | BZ90: 0 | CA90: 0 | CB90: 0 | CC90: 0 | CD90: 0 | CE90: 0 | CF90: 0 | CG90: 0 | CH90: 0 | CI90: 0 | CJ90: 0 | CK90: 0 | CL90: 0 | CM90: 0 | CN90: 0 | CO90: 0
A91: 1 | B91: 4 | C91: — | D91: — | E91: Base Plan | F91: =+'Employee Cost Model'!$C$2 -> Employee Only | G91: In | H91: Rx | I91: M | J91: 3 | K91: N | L91: =+IF(OR('Employee Cost Model'!$C$2="Employee + Spouse + Child(ren)",'Employee Cost Model'!$C$2="Employee + Child(ren)"),'Employee Cost Model'!F$45,0) -> 0 | M91: 0 | N91: 0 | O91: — | P91: — | Q91: 1250.793205 | R91: 0 | S91: 0 | T91: 22 | U91: 88 | V91: 1 | W91: 0 | X91: Base Plan | Y91: 2 | Z91: 0 | AA91: 0 | AB91: 0 | AC91: RxM3 | AD91: 0 | AE91: 1 | AF91: 0 | AG91: 0 | AH91: 1 | AI91: 0 | AJ91: 0 | AK91: 2 | AL91: 0 | AM91: 0 | AN91: 135 | AO91: 0 | AP91: 1 | AQ91: 0 | AR91: 0 | AS91: 0 | AT91: 0 | AU91: 500 | AV91: 500 | AW91: 0 | AX91: 0 | AY91: 0 | AZ91: 0 | BA91: 0 | BB91: 0 | BC91: 0 | BD91: 0 | BE91: 0 | BF91: 0 | BG91: 0 | BH91: 0 | BI91: 0 | BJ91: 0 | BK91: 0 | BL91: 0 | BM91: 0 | BN91: 0 | BO91: 0 | BP91: 0 | BQ91: 3500 | BR91: 3500 | BS91: 0 | BT91: 0 | BU91: 0 | BV91: 0 | BW91: 0 | BX91: 0 | BY91: 0 | BZ91: 0 | CA91: 0 | CB91: 0 | CC91: 0 | CD91: 0 | CE91: 0 | CF91: 0 | CG91: 0 | CH91: 0 | CI91: 0 | CJ91: 0 | CK91: 0 | CL91: 0 | CM91: 0 | CN91: 0 | CO91: 0
A92: 1 | B92: 5 | C92: — | D92: — | E92: Base Plan | F92: =+'Employee Cost Model'!$C$2 -> Employee Only | G92: In | H92: Inp | I92: Hospital | K92: N | L92: =+IF(OR('Employee Cost Model'!$C$2="Employee + Spouse + Child(ren)",'Employee Cost Model'!$C$2="Employee + Child(ren)"),'Employee Cost Model'!G$15,0) -> 0 | M92: 0 | N92: =+L92*Q92 -> 0 | O92: — | P92: — | Q92: 24527.13205 | R92: 1 | S92: 0 | T92: 1 | U92: 89 | V92: 0 | W92: 0 | X92: Base Plan | Y92: 2 | Z92: 0 | AA92: 0 | AB92: 0 | AC92: InpHospital | AD92: 0 | AE92: 0 | AF92: 0 | AG92: 0 | AH92: 2 | AI92: 0 | AJ92: 0 | AK92: 2 | AL92: 0 | AM92: 0 | AN92: 0 | AO92: 0 | AP92: 1 | AQ92: 0 | AR92: 0 | AS92: 0 | AT92: 0 | AU92: 500 | AV92: 500 | AW92: 0 | AX92: 0 | AY92: 0 | AZ92: 0 | BA92: 0 | BB92: 0 | BC92: 0 | BD92: 0 | BE92: 0 | BF92: 0 | BG92: 0 | BH92: 0 | BI92: 0 | BJ92: 0 | BK92: 0 | BL92: 0 | BM92: 0 | BN92: 0 | BO92: 0 | BP92: 0 | BQ92: 3500 | BR92: 3500 | BS92: 0 | BT92: 0 | BU92: 0 | BV92: 0 | BW92: 0 | BX92: 0 | BY92: 0 | BZ92: 0 | CA92: 0 | CB92: 0 | CC92: 0 | CD92: 0 | CE92: 0 | CF92: 0 | CG92: 0 | CH92: 0 | CI92: 0 | CJ92: 0 | CK92: 0 | CL92: 0 | CM92: 0 | CN92: 0 | CO92: 0
A93: 1 | B93: 5 | C93: — | D93: — | E93: Base Plan | F93: =+'Employee Cost Model'!$C$2 -> Employee Only | G93: In | H93: Inp | I93: MHSA | K93: N | L93: =+IF(OR('Employee Cost Model'!$C$2="Employee + Spouse + Child(ren)",'Employee Cost Model'!$C$2="Employee + Child(ren)"),'Employee Cost Model'!G$16,0) -> 0 | M93: 0 | N93: 0 | O93: — | P93: — | Q93: 11851.45063 | R93: 0 | S93: 0 | T93: 2 | U93: 90 | V93: 0 | W93: 0 | X93: Base Plan | Y93: 2 | Z93: 0 | AA93: 0 | AB93: 0 | AC93: InpMHSA | AD93: 0 | AE93: 0 | AF93: 0 | AG93: 0 | AH93: 2 | AI93: 0 | AJ93: 0 | AK93: 2 | AL93: 0 | AM93: 0 | AN93: 0 | AO93: 0 | AP93: 1 | AQ93: 0 | AR93: 0 | AS93: 0 | AT93: 0 | AU93: 500 | AV93: 500 | AW93: 0 | AX93: 0 | AY93: 0 | AZ93: 0 | BA93: 0 | BB93: 0 | BC93: 0 | BD93: 0 | BE93: 0 | BF93: 0 | BG93: 0 | BH93: 0 | BI93: 0 | BJ93: 0 | BK93: 0 | BL93: 0 | BM93: 0 | BN93: 0 | BO93: 0 | BP93: 0 | BQ93: 3500 | BR93: 3500 | BS93: 0 | BT93: 0 | BU93: 0 | BV93: 0 | BW93: 0 | BX93: 0 | BY93: 0 | BZ93: 0 | CA93: 0 | CB93: 0 | CC93: 0 | CD93: 0 | CE93: 0 | CF93: 0 | CG93: 0 | CH93: 0 | CI93: 0 | CJ93: 0 | CK93: 0 | CL93: 0 | CM93: 0 | CN93: 0 | CO93: 0
A94: 1 | B94: 5 | C94: — | D94: — | E94: Base Plan | F94: =+'Employee Cost Model'!$C$2 -> Employee Only | G94: In | H94: Inp | I94: SNF | K94: N | L94: =+IF(OR('Employee Cost Model'!$C$2="Employee + Spouse + Child(ren)",'Employee Cost Model'!$C$2="Employee + Child(ren)"),'Employee Cost Model'!G$17,0) -> 0 | M94: 0 | N94: 0 | O94: — | P94: — | Q94: 6523.462072 | R94: 0 | S94: 0 | T94: 3 | U94: 91 | V94: 0 | W94: 0 | X94: Base Plan | Y94: 2 | Z94: 0 | AA94: 0 | AB94: 0 | AC94: InpSNF | AD94: 0 | AE94: 0 | AF94: 0 | AG94: 0 | AH94: 2 | AI94: 0 | AJ94: 0 | AK94: 2 | AL94: 0 | AM94: 0 | AN94: 0 | AO94: 0 | AP94: 1 | AQ94: 0 | AR94: 0 | AS94: 0 | AT94: 0 | AU94: 500 | AV94: 500 | AW94: 0 | AX94: 0 | AY94: 0 | AZ94: 0 | BA94: 0 | BB94: 0 | BC94: 0 | BD94: 0 | BE94: 0 | BF94: 0 | BG94: 0 | BH94: 0 | BI94: 0 | BJ94: 0 | BK94: 0 | BL94: 0 | BM94: 0 | BN94: 0 | BO94: 0 | BP94: 0 | BQ94: 3500 | BR94: 3500 | BS94: 0 | BT94: 0 | BU94: 0 | BV94: 0 | BW94: 0 | BX94: 0 | BY94: 0 | BZ94: 0 | CA94: 0 | CB94: 0 | CC94: 0 | CD94: 0 | CE94: 0 | CF94: 0 | CG94: 0 | CH94: 0 | CI94: 0 | CJ94: 0 | CK94: 0 | CL94: 0 | CM94: 0 | CN94: 0 | CO94: 0
A95: 1 | B95: 5 | C95: — | D95: — | E95: Base Plan | F95: =+'Employee Cost Model'!$C$2 -> Employee Only | G95: In | H95: Out | I95: ER | K95: N | L95: =+IF(OR('Employee Cost Model'!$C$2="Employee + Spouse + Child(ren)",'Employee Cost Model'!$C$2="Employee + Child(ren)"),'Employee Cost Model'!G$23,0) -> 0 | M95: 0 | N95: 0 | O95: — | P95: — | Q95: 1458.770268 | R95: 0 | S95: 0 | T95: 4 | U95: 92 | V95: 0 | W95: 0 | X95: Base Plan | Y95: 2 | Z95: 0 | AA95: 0 | AB95: 0 | AC95: OutER | AD95: 0 | AE95: 0 | AF95: 0 | AG95: 0 | AH95: 1 | AI95: 0 | AJ95: 0 | AK95: 2 | AL95: 0 | AM95: 0 | AN95: 125 | AO95: 0 | AP95: 1 | AQ95: 0 | AR95: 0 | AS95: 0 | AT95: 0 | AU95: 500 | AV95: 500 | AW95: 0 | AX95: 0 | AY95: 0 | AZ95: 0 | BA95: 0 | BB95: 0 | BC95: 0 | BD95: 0 | BE95: 0 | BF95: 0 | BG95: 0 | BH95: 0 | BI95: 0 | BJ95: 0 | BK95: 0 | BL95: 0 | BM95: 0 | BN95: 0 | BO95: 0 | BP95: 0 | BQ95: 3500 | BR95: 3500 | BS95: 0 | BT95: 0 | BU95: 0 | BV95: 0 | BW95: 0 | BX95: 0 | BY95: 0 | BZ95: 0 | CA95: 0 | CB95: 0 | CC95: 0 | CD95: 0 | CE95: 0 | CF95: 0 | CG95: 0 | CH95: 0 | CI95: 0 | CJ95: 0 | CK95: 0 | CL95: 0 | CM95: 0 | CN95: 0 | CO95: 0
A96: 1 | B96: 5 | C96: — | D96: — | E96: Base Plan | F96: =+'Employee Cost Model'!$C$2 -> Employee Only | G96: In | H96: Out | I96: UC | K96: N | L96: =+IF(OR('Employee Cost Model'!$C$2="Employee + Spouse + Child(ren)",'Employee Cost Model'!$C$2="Employee + Child(ren)"),'Employee Cost Model'!G$24,0) -> 0 | M96: 0 | N96: 0 | O96: — | P96: — | Q96: 167.7490597 | R96: 0 | S96: 0 | T96: 5 | U96: 93 | V96: 0 | W96: 0 | X96: Base Plan | Y96: 2 | Z96: 0 | AA96: 0 | AB96: 0 | AC96: OutUC | AD96: 0 | AE96: 0 | AF96: 0 | AG96: 0 | AH96: 1 | AI96: 0 | AJ96: 0 | AK96: 2 | AL96: 0 | AM96: 0 | AN96: 50 | AO96: 0 | AP96: 1 | AQ96: 0 | AR96: 0 | AS96: 0 | AT96: 0 | AU96: 500 | AV96: 500 | AW96: 0 | AX96: 0 | AY96: 0 | AZ96: 0 | BA96: 0 | BB96: 0 | BC96: 0 | BD96: 0 | BE96: 0 | BF96: 0 | BG96: 0 | BH96: 0 | BI96: 0 | BJ96: 0 | BK96: 0 | BL96: 0 | BM96: 0 | BN96: 0 | BO96: 0 | BP96: 0 | BQ96: 3500 | BR96: 3500 | BS96: 0 | BT96: 0 | BU96: 0 | BV96: 0 | BW96: 0 | BX96: 0 | BY96: 0 | BZ96: 0 | CA96: 0 | CB96: 0 | CC96: 0 | CD96: 0 | CE96: 0 | CF96: 0 | CG96: 0 | CH96: 0 | CI96: 0 | CJ96: 0 | CK96: 0 | CL96: 0 | CM96: 0 | CN96: 0 | CO96: 0
A97: 1 | B97: 5 | C97: — | D97: — | E97: Base Plan | F97: =+'Employee Cost Model'!$C$2 -> Employee Only | G97: In | H97: Out | I97: Surgery | K97: N | L97: =+IF(OR('Employee Cost Model'!$C$2="Employee + Spouse + Child(ren)",'Employee Cost Model'!$C$2="Employee + Child(ren)"),'Employee Cost Model'!G$20,0) -> 0 | M97: 0 | N97: 0 | O97: — | P97: — | Q97: 3651.604864 | R97: 0 | S97: 0 | T97: 6 | U97: 94 | V97: 0 | W97: 0 | X97: Base Plan | Y97: 2 | Z97: 0 | AA97: 0 | AB97: 0 | AC97: OutSurgery | AD97: 0 | AE97: 0 | AF97: 0 | AG97: 0 | AH97: 2 | AI97: 0 | AJ97: 0 | AK97: 2 | AL97: 0 | AM97: 0 | AN97: 0 | AO97: 0 | AP97: 1 | AQ97: 0 | AR97: 0 | AS97: 0 | AT97: 0 | AU97: 500 | AV97: 500 | AW97: 0 | AX97: 0 | AY97: 0 | AZ97: 0 | BA97: 0 | BB97: 0 | BC97: 0 | BD97: 0 | BE97: 0 | BF97: 0 | BG97: 0 | BH97: 0 | BI97: 0 | BJ97: 0 | BK97: 0 | BL97: 0 | BM97: 0 | BN97: 0 | BO97: 0 | BP97: 0 | BQ97: 3500 | BR97: 3500 | BS97: 0 | BT97: 0 | BU97: 0 | BV97: 0 | BW97: 0 | BX97: 0 | BY97: 0 | BZ97: 0 | CA97: 0 | CB97: 0 | CC97: 0 | CD97: 0 | CE97: 0 | CF97: 0 | CG97: 0 | CH97: 0 | CI97: 0 | CJ97: 0 | CK97: 0 | CL97: 0 | CM97: 0 | CN97: 0 | CO97: 0
A98: 1 | B98: 5 | C98: — | D98: — | E98: Base Plan | F98: =+'Employee Cost Model'!$C$2 -> Employee Only | G98: In | H98: Out | I98: X-ray/Lab | K98: N | L98: =+IF(OR('Employee Cost Model'!$C$2="Employee + Spouse + Child(ren)",'Employee Cost Model'!$C$2="Employee + Child(ren)"),'Employee Cost Model'!G$26,0) -> 0 | M98: 0 | N98: 0 | O98: — | P98: — | Q98: 223.9676734 | R98: 0 | S98: 0 | T98: 7 | U98: 95 | V98: 0 | W98: 0 | X98: Base Plan | Y98: 2 | Z98: 0 | AA98: 0 | AB98: 0 | AC98: OutX-ray/Lab | AD98: 0 | AE98: 0 | AF98: 0 | AG98: 0 | AH98: 2 | AI98: 0 | AJ98: 0 | AK98: 2 | AL98: 0 | AM98: 0 | AN98: 0 | AO98: 0 | AP98: 1 | AQ98: 0 | AR98: 0 | AS98: 0 | AT98: 0 | AU98: 500 | AV98: 500 | AW98: 0 | AX98: 0 | AY98: 0 | AZ98: 0 | BA98: 0 | BB98: 0 | BC98: 0 | BD98: 0 | BE98: 0 | BF98: 0 | BG98: 0 | BH98: 0 | BI98: 0 | BJ98: 0 | BK98: 0 | BL98: 0 | BM98: 0 | BN98: 0 | BO98: 0 | BP98: 0 | BQ98: 3500 | BR98: 3500 | BS98: 0 | BT98: 0 | BU98: 0 | BV98: 0 | BW98: 0 | BX98: 0 | BY98: 0 | BZ98: 0 | CA98: 0 | CB98: 0 | CC98: 0 | CD98: 0 | CE98: 0 | CF98: 0 | CG98: 0 | CH98: 0 | CI98: 0 | CJ98: 0 | CK98: 0 | CL98: 0 | CM98: 0 | CN98: 0 | CO98: 0
A99: 1 | B99: 5 | C99: — | D99: — | E99: Base Plan | F99: =+'Employee Cost Model'!$C$2 -> Employee Only | G99: In | H99: Out | I99: Adv Rad | K99: N | L99: =+IF(OR('Employee Cost Model'!$C$2="Employee + Spouse + Child(ren)",'Employee Cost Model'!$C$2="Employee + Child(ren)"),'Employee Cost Model'!G$27,0) -> 0 | M99: 0 | N99: 0 | O99: — | P99: — | Q99: 995.6214691 | R99: 0 | S99: 0 | T99: 8 | U99: 96 | V99: 0 | W99: 0 | X99: Base Plan | Y99: 2 | Z99: 0 | AA99: 0 | AB99: 0 | AC99: OutAdv Rad | AD99: 0 | AE99: 0 | AF99: 0 | AG99: 0 | AH99: 2 | AI99: 0 | AJ99: 0 | AK99: 2 | AL99: 0 | AM99: 0 | AN99: 0 | AO99: 0 | AP99: 1 | AQ99: 0 | AR99: 0 | AS99: 0 | AT99: 0 | AU99: 500 | AV99: 500 | AW99: 0 | AX99: 0 | AY99: 0 | AZ99: 0 | BA99: 0 | BB99: 0 | BC99: 0 | BD99: 0 | BE99: 0 | BF99: 0 | BG99: 0 | BH99: 0 | BI99: 0 | BJ99: 0 | BK99: 0 | BL99: 0 | BM99: 0 | BN99: 0 | BO99: 0 | BP99: 0 | BQ99: 3500 | BR99: 3500 | BS99: 0 | BT99: 0 | BU99: 0 | BV99: 0 | BW99: 0 | BX99: 0 | BY99: 0 | BZ99: 0 | CA99: 0 | CB99: 0 | CC99: 0 | CD99: 0 | CE99: 0 | CF99: 0 | CG99: 0 | CH99: 0 | CI99: 0 | CJ99: 0 | CK99: 0 | CL99: 0 | CM99: 0 | CN99: 0 | CO99: 0
A100: 1 | B100: 5 | C100: — | D100: — | E100: Base Plan | F100: =+'Employee Cost Model'!$C$2 -> Employee Only | G100: In | H100: Professional | I100: PCP | K100: N | L100: =+IF(OR('Employee Cost Model'!$C$2="Employee + Spouse + Child(ren)",'Employee Cost Model'!$C$2="Employee + Child(ren)"),'Employee Cost Model'!G$29,0) -> 0 | M100: 0 | N100: 0 | O100: — | P100: — | Q100: 167.4628453 | R100: 0 | S100: 0 | T100: 9 | U100: 97 | V100: 0 | W100: 0 | X100: Base Plan | Y100: 2 | Z100: 0 | AA100: 0 | AB100: 0 | AC100: ProfessionalPCP | AD100: 0 | AE100: 0 | AF100: 0 | AG100: 0 | AH100: 1 | AI100: 0 | AJ100: 0 | AK100: 2 | AL100: 0 | AM100: 0 | AN100: 15 | AO100: 0 | AP100: 1 | AQ100: 0 | AR100: 0 | AS100: 0 | AT100: 0 | AU100: 500 | AV100: 500 | AW100: 0 | AX100: 0 | AY100: 0 | AZ100: 0 | BA100: 0 | BB100: 0 | BC100: 0 | BD100: 0 | BE100: 0 | BF100: 0 | BG100: 0 | BH100: 0 | BI100: 0 | BJ100: 0 | BK100: 0 | BL100: 0 | BM100: 0 | BN100: 0 | BO100: 0 | BP100: 0 | BQ100: 3500 | BR100: 3500 | BS100: 0 | BT100: 0 | BU100: 0 | BV100: 0 | BW100: 0 | BX100: 0 | BY100: 0 | BZ100: 0 | CA100: 0 | CB100: 0 | CC100: 0 | CD100: 0 | CE100: 0 | CF100: 0 | CG100: 0 | CH100: 0 | CI100: 0 | CJ100: 0 | CK100: 0 | CL100: 0 | CM100: 0 | CN100: 0 | CO100: 0
A101: 1 | B101: 5 | C101: — | D101: — | E101: Base Plan | F101: =+'Employee Cost Model'!$C$2 -> Employee Only | G101: In | H101: Professional | I101: SCP | K101: N | L101: =+IF(OR('Employee Cost Model'!$C$2="Employee + Spouse + Child(ren)",'Employee Cost Model'!$C$2="Employee + Child(ren)"),'Employee Cost Model'!G$30,0) -> 0 | M101: 0 | N101: 0 | O101: — | P101: — | Q101: 190.3145998 | R101: 0 | S101: 0 | T101: 10 | U101: 98 | V101: 0 | W101: 0 | X101: Base Plan | Y101: 2 | Z101: 0 | AA101: 0 | AB101: 0 | AC101: ProfessionalSCP | AD101: 0 | AE101: 0 | AF101: 0 | AG101: 0 | AH101: 1 | AI101: 0 | AJ101: 0 | AK101: 2 | AL101: 0 | AM101: 0 | AN101: 30 | AO101: 0 | AP101: 1 | AQ101: 0 | AR101: 0 | AS101: 0 | AT101: 0 | AU101: 500 | AV101: 500 | AW101: 0 | AX101: 0 | AY101: 0 | AZ101: 0 | BA101: 0 | BB101: 0 | BC101: 0 | BD101: 0 | BE101: 0 | BF101: 0 | BG101: 0 | BH101: 0 | BI101: 0 | BJ101: 0 | BK101: 0 | BL101: 0 | BM101: 0 | BN101: 0 | BO101: 0 | BP101: 0 | BQ101: 3500 | BR101: 3500 | BS101: 0 | BT101: 0 | BU101: 0 | BV101: 0 | BW101: 0 | BX101: 0 | BY101: 0 | BZ101: 0 | CA101: 0 | CB101: 0 | CC101: 0 | CD101: 0 | CE101: 0 | CF101: 0 | CG101: 0 | CH101: 0 | CI101: 0 | CJ101: 0 | CK101: 0 | CL101: 0 | CM101: 0 | CN101: 0 | CO101: 0
A102: 1 | B102: 5 | C102: — | D102: — | E102: Base Plan | F102: =+'Employee Cost Model'!$C$2 -> Employee Only | G102: In | H102: Professional | I102: Maternity | K102: N | L102: =+IF(OR('Employee Cost Model'!$C$2="Employee + Spouse + Child(ren)",'Employee Cost Model'!$C$2="Employee + Child(ren)"),'Employee Cost Model'!G$31,0) -> 0 | M102: 0 | N102: 0 | O102: — | P102: — | Q102: 23659.20645 | R102: 0 | S102: 0 | T102: 11 | U102: 99 | V102: 0 | W102: 0 | X102: Base Plan | Y102: 2 | Z102: 0 | AA102: 0 | AB102: 0 | AC102: ProfessionalMaternity | AD102: 0 | AE102: 0 | AF102: 0 | AG102: 0 | AH102: 2 | AI102: 0 | AJ102: 0 | AK102: 2 | AL102: 0 | AM102: 0 | AN102: 0 | AO102: 0 | AP102: 1 | AQ102: 0 | AR102: 0 | AS102: 0 | AT102: 0 | AU102: 500 | AV102: 500 | AW102: 0 | AX102: 0 | AY102: 0 | AZ102: 0 | BA102: 0 | BB102: 0 | BC102: 0 | BD102: 0 | BE102: 0 | BF102: 0 | BG102: 0 | BH102: 0 | BI102: 0 | BJ102: 0 | BK102: 0 | BL102: 0 | BM102: 0 | BN102: 0 | BO102: 0 | BP102: 0 | BQ102: 3500 | BR102: 3500 | BS102: 0 | BT102: 0 | BU102: 0 | BV102: 0 | BW102: 0 | BX102: 0 | BY102: 0 | BZ102: 0 | CA102: 0 | CB102: 0 | CC102: 0 | CD102: 0 | CE102: 0 | CF102: 0 | CG102: 0 | CH102: 0 | CI102: 0 | CJ102: 0 | CK102: 0 | CL102: 0 | CM102: 0 | CN102: 0 | CO102: 0
A103: 1 | B103: 5 | C103: — | D103: — | E103: Base Plan | F103: =+'Employee Cost Model'!$C$2 -> Employee Only | G103: In | H103: Professional | I103: Off Surgery | K103: N | L103: =+IF(OR('Employee Cost Model'!$C$2="Employee + Spouse + Child(ren)",'Employee Cost Model'!$C$2="Employee + Child(ren)"),'Employee Cost Model'!G$21,0) -> 0 | M103: 0 | N103: 0 | O103: — | P103: — | Q103: 988.0543893 | R103: 0 | S103: 0 | T103: 12 | U103: 100 | V103: 0 | W103: 0 | X103: Base Plan | Y103: 2 | Z103: 0 | AA103: 0 | AB103: 0 | AC103: ProfessionalOff Surgery | AD103: 0 | AE103: 0 | AF103: 0 | AG103: 0 | AH103: 2 | AI103: 0 | AJ103: 0 | AK103: 2 | AL103: 0 | AM103: 0 | AN103: 0 | AO103: 0 | AP103: 1 | AQ103: 0 | AR103: 0 | AS103: 0 | AT103: 0 | AU103: 500 | AV103: 500 | AW103: 0 | AX103: 0 | AY103: 0 | AZ103: 0 | BA103: 0 | BB103: 0 | BC103: 0 | BD103: 0 | BE103: 0 | BF103: 0 | BG103: 0 | BH103: 0 | BI103: 0 | BJ103: 0 | BK103: 0 | BL103: 0 | BM103: 0 | BN103: 0 | BO103: 0 | BP103: 0 | BQ103: 3500 | BR103: 3500 | BS103: 0 | BT103: 0 | BU103: 0 | BV103: 0 | BW103: 0 | BX103: 0 | BY103: 0 | BZ103: 0 | CA103: 0 | CB103: 0 | CC103: 0 | CD103: 0 | CE103: 0 | CF103: 0 | CG103: 0 | CH103: 0 | CI103: 0 | CJ103: 0 | CK103: 0 | CL103: 0 | CM103: 0 | CN103: 0 | CO103: 0
A104: 1 | B104: 5 | C104: — | D104: — | E104: Base Plan | F104: =+'Employee Cost Model'!$C$2 -> Employee Only | G104: In | H104: Professional | I104: MHSA | K104: N | L104: =+IF(OR('Employee Cost Model'!$C$2="Employee + Spouse + Child(ren)",'Employee Cost Model'!$C$2="Employee + Child(ren)"),'Employee Cost Model'!G$34,0) -> 0 | M104: 0 | N104: 0 | O104: — | P104: — | Q104: 125.9770284 | R104: 0 | S104: 0 | T104: 13 | U104: 101 | V104: 0 | W104: 0 | X104: Base Plan | Y104: 2 | Z104: 0 | AA104: 0 | AB104: 0 | AC104: ProfessionalMHSA | AD104: 0 | AE104: 0 | AF104: 0 | AG104: 0 | AH104: 1 | AI104: 0 | AJ104: 0 | AK104: 2 | AL104: 0 | AM104: 0 | AN104: 15 | AO104: 0 | AP104: 1 | AQ104: 0 | AR104: 0 | AS104: 0 | AT104: 0 | AU104: 500 | AV104: 500 | AW104: 0 | AX104: 0 | AY104: 0 | AZ104: 0 | BA104: 0 | BB104: 0 | BC104: 0 | BD104: 0 | BE104: 0 | BF104: 0 | BG104: 0 | BH104: 0 | BI104: 0 | BJ104: 0 | BK104: 0 | BL104: 0 | BM104: 0 | BN104: 0 | BO104: 0 | BP104: 0 | BQ104: 3500 | BR104: 3500 | BS104: 0 | BT104: 0 | BU104: 0 | BV104: 0 | BW104: 0 | BX104: 0 | BY104: 0 | BZ104: 0 | CA104: 0 | CB104: 0 | CC104: 0 | CD104: 0 | CE104: 0 | CF104: 0 | CG104: 0 | CH104: 0 | CI104: 0 | CJ104: 0 | CK104: 0 | CL104: 0 | CM104: 0 | CN104: 0 | CO104: 0
A105: 1 | B105: 5 | C105: — | D105: — | E105: Base Plan | F105: =+'Employee Cost Model'!$C$2 -> Employee Only | G105: In | H105: Professional | I105: PhyTh/SpTh/OccTh | K105: N | L105: =+IF(OR('Employee Cost Model'!$C$2="Employee + Spouse + Child(ren)",'Employee Cost Model'!$C$2="Employee + Child(ren)"),'Employee Cost Model'!G$32,0) -> 0 | M105: 0 | N105: 0 | O105: — | P105: — | Q105: 165.3990089 | R105: 0 | S105: 0 | T105: 14 | U105: 102 | V105: 0 | W105: 0 | X105: Base Plan | Y105: 2 | Z105: 0 | AA105: 0 | AB105: 0 | AC105: ProfessionalPhyTh/SpTh/OccTh | AD105: 0 | AE105: 0 | AF105: 0 | AG105: 0 | AH105: 1 | AI105: 0 | AJ105: 0 | AK105: 2 | AL105: 0 | AM105: 0 | AN105: 33.07980179 | AO105: 0 | AP105: 1 | AQ105: 0 | AR105: 0 | AS105: 0 | AT105: 0 | AU105: 500 | AV105: 500 | AW105: 0 | AX105: 0 | AY105: 0 | AZ105: 0 | BA105: 0 | BB105: 0 | BC105: 0 | BD105: 0 | BE105: 0 | BF105: 0 | BG105: 0 | BH105: 0 | BI105: 0 | BJ105: 0 | BK105: 0 | BL105: 0 | BM105: 0 | BN105: 0 | BO105: 0 | BP105: 0 | BQ105: 3500 | BR105: 3500 | BS105: 0 | BT105: 0 | BU105: 0 | BV105: 0 | BW105: 0 | BX105: 0 | BY105: 0 | BZ105: 0 | CA105: 0 | CB105: 0 | CC105: 0 | CD105: 0 | CE105: 0 | CF105: 0 | CG105: 0 | CH105: 0 | CI105: 0 | CJ105: 0 | CK105: 0 | CL105: 0 | CM105: 0 | CN105: 0 | CO105: 0
A106: 1 | B106: 5 | C106: — | D106: — | E106: Base Plan | F106: =+'Employee Cost Model'!$C$2 -> Employee Only | G106: In | H106: Professional | I106: Chiro | K106: N | L106: =+IF(OR('Employee Cost Model'!$C$2="Employee + Spouse + Child(ren)",'Employee Cost Model'!$C$2="Employee + Child(ren)"),'Employee Cost Model'!G$33,0) -> 0 | M106: 0 | N106: 0 | O106: — | P106: — | Q106: 79.45445144 | R106: 0 | S106: 0 | T106: 15 | U106: 103 | V106: 0 | W106: 0 | X106: Base Plan | Y106: 2 | Z106: 0 | AA106: 0 | AB106: 0 | AC106: ProfessionalChiro | AD106: 0 | AE106: 0 | AF106: 0 | AG106: 0 | AH106: 1 | AI106: 0 | AJ106: 0 | AK106: 2 | AL106: 0 | AM106: 0 | AN106: 30 | AO106: 0 | AP106: 1 | AQ106: 0 | AR106: 0 | AS106: 0 | AT106: 0 | AU106: 500 | AV106: 500 | AW106: 0 | AX106: 0 | AY106: 0 | AZ106: 0 | BA106: 0 | BB106: 0 | BC106: 0 | BD106: 0 | BE106: 0 | BF106: 0 | BG106: 0 | BH106: 0 | BI106: 0 | BJ106: 0 | BK106: 0 | BL106: 0 | BM106: 0 | BN106: 0 | BO106: 0 | BP106: 0 | BQ106: 3500 | BR106: 3500 | BS106: 0 | BT106: 0 | BU106: 0 | BV106: 0 | BW106: 0 | BX106: 0 | BY106: 0 | BZ106: 0 | CA106: 0 | CB106: 0 | CC106: 0 | CD106: 0 | CE106: 0 | CF106: 0 | CG106: 0 | CH106: 0 | CI106: 0 | CJ106: 0 | CK106: 0 | CL106: 0 | CM106: 0 | CN106: 0 | CO106: 0
A107: 1 | B107: 5 | C107: — | D107: — | E107: Base Plan | F107: =+'Employee Cost Model'!$C$2 -> Employee Only | G107: In | H107: Rx | I107: R | J107: 1 | K107: N | L107: =+IF(OR('Employee Cost Model'!$C$2="Employee + Spouse + Child(ren)",'Employee Cost Model'!$C$2="Employee + Child(ren)"),'Employee Cost Model'!G$38,0) -> 0 | M107: 0 | N107: 0 | O107: — | P107: — | Q107: 50.83329564 | R107: 0 | S107: 0 | T107: 16 | U107: 104 | V107: 0 | W107: 0 | X107: Base Plan | Y107: 2 | Z107: 0 | AA107: 0 | AB107: 0 | AC107: RxR1 | AD107: 0 | AE107: 1 | AF107: 0 | AG107: 0 | AH107: 1 | AI107: 0 | AJ107: 0 | AK107: 2 | AL107: 0 | AM107: 0 | AN107: 5 | AO107: 0 | AP107: 1 | AQ107: 0 | AR107: 0 | AS107: 0 | AT107: 0 | AU107: 500 | AV107: 500 | AW107: 0 | AX107: 0 | AY107: 0 | AZ107: 0 | BA107: 0 | BB107: 0 | BC107: 0 | BD107: 0 | BE107: 0 | BF107: 0 | BG107: 0 | BH107: 0 | BI107: 0 | BJ107: 0 | BK107: 0 | BL107: 0 | BM107: 0 | BN107: 0 | BO107: 0 | BP107: 0 | BQ107: 3500 | BR107: 3500 | BS107: 0 | BT107: 0 | BU107: 0 | BV107: 0 | BW107: 0 | BX107: 0 | BY107: 0 | BZ107: 0 | CA107: 0 | CB107: 0 | CC107: 0 | CD107: 0 | CE107: 0 | CF107: 0 | CG107: 0 | CH107: 0 | CI107: 0 | CJ107: 0 | CK107: 0 | CL107: 0 | CM107: 0 | CN107: 0 | CO107: 0
A108: 1 | B108: 5 | C108: — | D108: — | E108: Base Plan | F108: =+'Employee Cost Model'!$C$2 -> Employee Only | G108: In | H108: Rx | I108: R | J108: 2 | K108: N | L108: =+IF(OR('Employee Cost Model'!$C$2="Employee + Spouse + Child(ren)",'Employee Cost Model'!$C$2="Employee + Child(ren)"),'Employee Cost Model'!G$39,0) -> 0 | M108: 0 | N108: 0 | O108: — | P108: — | Q108: 389.8130676 | R108: 0 | S108: 0 | T108: 17 | U108: 105 | V108: 0 | W108: 0 | X108: Base Plan | Y108: 2 | Z108: 0 | AA108: 0 | AB108: 0 | AC108: RxR2 | AD108: 0 | AE108: 1 | AF108: 0 | AG108: 0 | AH108: 1 | AI108: 0 | AJ108: 0 | AK108: 2 | AL108: 0 | AM108: 0 | AN108: 35 | AO108: 0 | AP108: 1 | AQ108: 0 | AR108: 0 | AS108: 0 | AT108: 0 | AU108: 500 | AV108: 500 | AW108: 0 | AX108: 0 | AY108: 0 | AZ108: 0 | BA108: 0 | BB108: 0 | BC108: 0 | BD108: 0 | BE108: 0 | BF108: 0 | BG108: 0 | BH108: 0 | BI108: 0 | BJ108: 0 | BK108: 0 | BL108: 0 | BM108: 0 | BN108: 0 | BO108: 0 | BP108: 0 | BQ108: 3500 | BR108: 3500 | BS108: 0 | BT108: 0 | BU108: 0 | BV108: 0 | BW108: 0 | BX108: 0 | BY108: 0 | BZ108: 0 | CA108: 0 | CB108: 0 | CC108: 0 | CD108: 0 | CE108: 0 | CF108: 0 | CG108: 0 | CH108: 0 | CI108: 0 | CJ108: 0 | CK108: 0 | CL108: 0 | CM108: 0 | CN108: 0 | CO108: 0
A109: 1 | B109: 5 | C109: — | D109: — | E109: Base Plan | F109: =+'Employee Cost Model'!$C$2 -> Employee Only | G109: In | H109: Rx | I109: R | J109: 3 | K109: N | L109: =+IF(OR('Employee Cost Model'!$C$2="Employee + Spouse + Child(ren)",'Employee Cost Model'!$C$2="Employee + Child(ren)"),'Employee Cost Model'!G$40,0) -> 0 | M109: 0 | N109: 0 | O109: — | P109: — | Q109: 651.9493716 | R109: 0 | S109: 0 | T109: 18 | U109: 106 | V109: 0 | W109: 0 | X109: Base Plan | Y109: 2 | Z109: 0 | AA109: 0 | AB109: 0 | AC109: RxR3 | AD109: 0 | AE109: 1 | AF109: 0 | AG109: 0 | AH109: 1 | AI109: 0 | AJ109: 0 | AK109: 2 | AL109: 0 | AM109: 0 | AN109: 60 | AO109: 0 | AP109: 1 | AQ109: 0 | AR109: 0 | AS109: 0 | AT109: 0 | AU109: 500 | AV109: 500 | AW109: 0 | AX109: 0 | AY109: 0 | AZ109: 0 | BA109: 0 | BB109: 0 | BC109: 0 | BD109: 0 | BE109: 0 | BF109: 0 | BG109: 0 | BH109: 0 | BI109: 0 | BJ109: 0 | BK109: 0 | BL109: 0 | BM109: 0 | BN109: 0 | BO109: 0 | BP109: 0 | BQ109: 3500 | BR109: 3500 | BS109: 0 | BT109: 0 | BU109: 0 | BV109: 0 | BW109: 0 | BX109: 0 | BY109: 0 | BZ109: 0 | CA109: 0 | CB109: 0 | CC109: 0 | CD109: 0 | CE109: 0 | CF109: 0 | CG109: 0 | CH109: 0 | CI109: 0 | CJ109: 0 | CK109: 0 | CL109: 0 | CM109: 0 | CN109: 0 | CO109: 0
A110: 1 | B110: 5 | C110: — | D110: — | E110: Base Plan | F110: =+'Employee Cost Model'!$C$2 -> Employee Only | G110: In | H110: Rx | I110: R | J110: 4 | K110: N | L110: =+IF(OR('Employee Cost Model'!$C$2="Employee + Spouse + Child(ren)",'Employee Cost Model'!$C$2="Employee + Child(ren)"),'Employee Cost Model'!G$41,0) -> 0 | M110: 0 | N110: 0 | O110: — | P110: — | Q110: 8251.270121 | R110: 0 | S110: 0 | T110: 19 | U110: 107 | V110: 0 | W110: 0 | X110: Base Plan | Y110: 2 | Z110: 0 | AA110: 0 | AB110: 0 | AC110: RxR4 | AD110: 0 | AE110: 1 | AF110: 0 | AG110: 0 | AH110: 1 | AI110: 0 | AJ110: 0 | AK110: 2 | AL110: 0 | AM110: 0 | AN110: 60 | AO110: 0 | AP110: 1 | AQ110: 0 | AR110: 0 | AS110: 0 | AT110: 0 | AU110: 500 | AV110: 500 | AW110: 0 | AX110: 0 | AY110: 0 | AZ110: 0 | BA110: 0 | BB110: 0 | BC110: 0 | BD110: 0 | BE110: 0 | BF110: 0 | BG110: 0 | BH110: 0 | BI110: 0 | BJ110: 0 | BK110: 0 | BL110: 0 | BM110: 0 | BN110: 0 | BO110: 0 | BP110: 0 | BQ110: 3500 | BR110: 3500 | BS110: 0 | BT110: 0 | BU110: 0 | BV110: 0 | BW110: 0 | BX110: 0 | BY110: 0 | BZ110: 0 | CA110: 0 | CB110: 0 | CC110: 0 | CD110: 0 | CE110: 0 | CF110: 0 | CG110: 0 | CH110: 0 | CI110: 0 | CJ110: 0 | CK110: 0 | CL110: 0 | CM110: 0 | CN110: 0 | CO110: 0
A111: 1 | B111: 5 | C111: — | D111: — | E111: Base Plan | F111: =+'Employee Cost Model'!$C$2 -> Employee Only | G111: In | H111: Rx | I111: M | J111: 1 | K111: N | L111: =+IF(OR('Employee Cost Model'!$C$2="Employee + Spouse + Child(ren)",'Employee Cost Model'!$C$2="Employee + Child(ren)"),'Employee Cost Model'!G$43,0) -> 0 | M111: 0 | N111: 0 | O111: — | P111: — | Q111: 88.65973424 | R111: 0 | S111: 0 | T111: 20 | U111: 108 | V111: 0 | W111: 0 | X111: Base Plan | Y111: 2 | Z111: 0 | AA111: 0 | AB111: 0 | AC111: RxM1 | AD111: 0 | AE111: 1 | AF111: 0 | AG111: 0 | AH111: 1 | AI111: 0 | AJ111: 0 | AK111: 2 | AL111: 0 | AM111: 0 | AN111: 12.5 | AO111: 0 | AP111: 1 | AQ111: 0 | AR111: 0 | AS111: 0 | AT111: 0 | AU111: 500 | AV111: 500 | AW111: 0 | AX111: 0 | AY111: 0 | AZ111: 0 | BA111: 0 | BB111: 0 | BC111: 0 | BD111: 0 | BE111: 0 | BF111: 0 | BG111: 0 | BH111: 0 | BI111: 0 | BJ111: 0 | BK111: 0 | BL111: 0 | BM111: 0 | BN111: 0 | BO111: 0 | BP111: 0 | BQ111: 3500 | BR111: 3500 | BS111: 0 | BT111: 0 | BU111: 0 | BV111: 0 | BW111: 0 | BX111: 0 | BY111: 0 | BZ111: 0 | CA111: 0 | CB111: 0 | CC111: 0 | CD111: 0 | CE111: 0 | CF111: 0 | CG111: 0 | CH111: 0 | CI111: 0 | CJ111: 0 | CK111: 0 | CL111: 0 | CM111: 0 | CN111: 0 | CO111: 0
A112: 1 | B112: 5 | C112: — | D112: — | E112: Base Plan | F112: =+'Employee Cost Model'!$C$2 -> Employee Only | G112: In | H112: Rx | I112: M | J112: 2 | K112: N | L112: =+IF(OR('Employee Cost Model'!$C$2="Employee + Spouse + Child(ren)",'Employee Cost Model'!$C$2="Employee + Child(ren)"),'Employee Cost Model'!G$44,0) -> 0 | M112: 0 | N112: 0 | O112: — | P112: — | Q112: 857.5887486 | R112: 0 | S112: 0 | T112: 21 | U112: 109 | V112: 0 | W112: 0 | X112: Base Plan | Y112: 2 | Z112: 0 | AA112: 0 | AB112: 0 | AC112: RxM2 | AD112: 0 | AE112: 1 | AF112: 0 | AG112: 0 | AH112: 1 | AI112: 0 | AJ112: 0 | AK112: 2 | AL112: 0 | AM112: 0 | AN112: 67.5 | AO112: 0 | AP112: 1 | AQ112: 0 | AR112: 0 | AS112: 0 | AT112: 0 | AU112: 500 | AV112: 500 | AW112: 0 | AX112: 0 | AY112: 0 | AZ112: 0 | BA112: 0 | BB112: 0 | BC112: 0 | BD112: 0 | BE112: 0 | BF112: 0 | BG112: 0 | BH112: 0 | BI112: 0 | BJ112: 0 | BK112: 0 | BL112: 0 | BM112: 0 | BN112: 0 | BO112: 0 | BP112: 0 | BQ112: 3500 | BR112: 3500 | BS112: 0 | BT112: 0 | BU112: 0 | BV112: 0 | BW112: 0 | BX112: 0 | BY112: 0 | BZ112: 0 | CA112: 0 | CB112: 0 | CC112: 0 | CD112: 0 | CE112: 0 | CF112: 0 | CG112: 0 | CH112: 0 | CI112: 0 | CJ112: 0 | CK112: 0 | CL112: 0 | CM112: 0 | CN112: 0 | CO112: 0
A113: 1 | B113: 5 | C113: — | D113: — | E113: Base Plan | F113: =+'Employee Cost Model'!$C$2 -> Employee Only | G113: In | H113: Rx | I113: M | J113: 3 | K113: N | L113: =+IF(OR('Employee Cost Model'!$C$2="Employee + Spouse + Child(ren)",'Employee Cost Model'!$C$2="Employee + Child(ren)"),'Employee Cost Model'!G$45,0) -> 0 | M113: 0 | N113: 0 | O113: — | P113: — | Q113: 1250.793205 | R113: 0 | S113: 0 | T113: 22 | U113: 110 | V113: 1 | W113: 1 | X113: Base Plan | Y113: 2 | Z113: 0 | AA113: 0 | AB113: 0 | AC113: RxM3 | AD113: 0 | AE113: 1 | AF113: 0 | AG113: 0 | AH113: 1 | AI113: 0 | AJ113: 0 | AK113: 2 | AL113: 0 | AM113: 0 | AN113: 135 | AO113: 0 | AP113: 1 | AQ113: 0 | AR113: 0 | AS113: 0 | AT113: 0 | AU113: 500 | AV113: 500 | AW113: 0 | AX113: 0 | AY113: 0 | AZ113: 0 | BA113: 0 | BB113: 0 | BC113: 0 | BD113: 0 | BE113: 0 | BF113: 0 | BG113: 0 | BH113: 0 | BI113: 0 | BJ113: 0 | BK113: 0 | BL113: 0 | BM113: 0 | BN113: 0 | BO113: 0 | BP113: 0 | BQ113: 3500 | BR113: 3500 | BS113: 0 | BT113: 0 | BU113: 0 | BV113: 0 | BW113: 0 | BX113: 0 | BY113: 0 | BZ113: 0 | CA113: 0 | CB113: 0 | CC113: 0 | CD113: 0 | CE113: 0 | CF113: 0 | CG113: 0 | CH113: 0 | CI113: 0 | CJ113: 0 | CK113: 0 | CL113: 0 | CM113: 0 | CN113: 0 | CO113: 0
A114: =1+A4 -> 2 | B114: =+B4 -> 1 | C114: — | D114: — | E114: =+'Employee Cost Model'!$C$6 -> Premium Plan | F114: =+'Employee Cost Model'!$C$2 -> Employee Only | G114: In | H114: Inp | I114: Hospital | K114: N | L114: =+L4 -> 0 | M114: 0 | N114: =+L114*Q114 -> 0 | O114: — | P114: — | Q114: 24527.13205 | R114: 1 | S114: 1 | T114: 1 | U114: 1 | V114: 0 | W114: 0 | X114: Premium Plan | Y114: 1 | Z114: 0 | AA114: 0 | AB114: 0 | AC114: InpHospital | AD114: 0 | AE114: 0 | AF114: 0 | AG114: 0 | AH114: 2 | AI114: 0 | AJ114: 0 | AK114: 2 | AL114: 0 | AM114: 0 | AN114: 0 | AO114: 0 | AP114: 1 | AQ114: 0 | AR114: 0 | AS114: 0 | AT114: 0 | AU114: 250 | AV114: 250 | AW114: 0 | AX114: 0 | AY114: 0 | AZ114: 0 | BA114: 0 | BB114: 0 | BC114: 0 | BD114: 0 | BE114: 0 | BF114: 0 | BG114: 0 | BH114: 0 | BI114: 0 | BJ114: 0 | BK114: 0 | BL114: 0 | BM114: 0 | BN114: 0 | BO114: 0 | BP114: 0 | BQ114: 3500 | BR114: 3500 | BS114: 0 | BT114: 0 | BU114: 0 | BV114: 0 | BW114: 0 | BX114: 0 | BY114: 0 | BZ114: 0 | CA114: 0 | CB114: 0 | CC114: 0 | CD114: 0 | CE114: 0 | CF114: 0 | CG114: 0 | CH114: 0 | CI114: 0 | CJ114: 0 | CK114: 0 | CL114: 0 | CM114: 0 | CN114: 0 | CO114: 0
A115: 2 | B115: 1 | C115: — | D115: — | E115: =+E114 -> Premium Plan | F115: =+'Employee Cost Model'!$C$2 -> Employee Only | G115: In | H115: Inp | I115: MHSA | K115: N | L115: 0 | M115: 0 | N115: 0 | O115: — | P115: — | Q115: 11851.45063 | R115: 0 | S115: 0 | T115: 2 | U115: 2 | V115: 0 | W115: 0 | X115: Premium Plan | Y115: 1 | Z115: 0 | AA115: 0 | AB115: 0 | AC115: InpMHSA | AD115: 0 | AE115: 0 | AF115: 0 | AG115: 0 | AH115: 2 | AI115: 0 | AJ115: 0 | AK115: 2 | AL115: 0 | AM115: 0 | AN115: 0 | AO115: 0 | AP115: 1 | AQ115: 0 | AR115: 0 | AS115: 0 | AT115: 0 | AU115: 250 | AV115: 250 | AW115: 0 | AX115: 0 | AY115: 0 | AZ115: 0 | BA115: 0 | BB115: 0 | BC115: 0 | BD115: 0 | BE115: 0 | BF115: 0 | BG115: 0 | BH115: 0 | BI115: 0 | BJ115: 0 | BK115: 0 | BL115: 0 | BM115: 0 | BN115: 0 | BO115: 0 | BP115: 0 | BQ115: 3500 | BR115: 3500 | BS115: 0 | BT115: 0 | BU115: 0 | BV115: 0 | BW115: 0 | BX115: 0 | BY115: 0 | BZ115: 0 | CA115: 0 | CB115: 0 | CC115: 0 | CD115: 0 | CE115: 0 | CF115: 0 | CG115: 0 | CH115: 0 | CI115: 0 | CJ115: 0 | CK115: 0 | CL115: 0 | CM115: 0 | CN115: 0 | CO115: 0
A116: 2 | B116: 1 | C116: — | D116: — | E116: =+E115 -> Premium Plan | F116: =+'Employee Cost Model'!$C$2 -> Employee Only | G116: In | H116: Inp | I116: SNF | K116: N | L116: 0 | M116: 0 | N116: 0 | O116: — | P116: — | Q116: 6523.462072 | R116: 0 | S116: 0 | T116: 3 | U116: 3 | V116: 0 | W116: 0 | X116: Premium Plan | Y116: 1 | Z116: 0 | AA116: 0 | AB116: 0 | AC116: InpSNF | AD116: 0 | AE116: 0 | AF116: 0 | AG116: 0 | AH116: 2 | AI116: 0 | AJ116: 0 | AK116: 2 | AL116: 0 | AM116: 0 | AN116: 0 | AO116: 0 | AP116: 1 | AQ116: 0 | AR116: 0 | AS116: 0 | AT116: 0 | AU116: 250 | AV116: 250 | AW116: 0 | AX116: 0 | AY116: 0 | AZ116: 0 | BA116: 0 | BB116: 0 | BC116: 0 | BD116: 0 | BE116: 0 | BF116: 0 | BG116: 0 | BH116: 0 | BI116: 0 | BJ116: 0 | BK116: 0 | BL116: 0 | BM116: 0 | BN116: 0 | BO116: 0 | BP116: 0 | BQ116: 3500 | BR116: 3500 | BS116: 0 | BT116: 0 | BU116: 0 | BV116: 0 | BW116: 0 | BX116: 0 | BY116: 0 | BZ116: 0 | CA116: 0 | CB116: 0 | CC116: 0 | CD116: 0 | CE116: 0 | CF116: 0 | CG116: 0 | CH116: 0 | CI116: 0 | CJ116: 0 | CK116: 0 | CL116: 0 | CM116: 0 | CN116: 0 | CO116: 0
A117: 2 | B117: 1 | C117: — | D117: — | E117: Premium Plan | F117: =+'Employee Cost Model'!$C$2 -> Employee Only | G117: In | H117: Out | I117: ER | K117: N | L117: 0 | M117: 0 | N117: 0 | O117: — | P117: — | Q117: 1458.770268 | R117: 0 | S117: 0 | T117: 4 | U117: 4 | V117: 0 | W117: 0 | X117: Premium Plan | Y117: 1 | Z117: 0 | AA117: 0 | AB117: 0 | AC117: OutER | AD117: 0 | AE117: 0 | AF117: 0 | AG117: 0 | AH117: 1 | AI117: 0 | AJ117: 0 | AK117: 2 | AL117: 0 | AM117: 0 | AN117: 75 | AO117: 0 | AP117: 1 | AQ117: 0 | AR117: 0 | AS117: 0 | AT117: 0 | AU117: 250 | AV117: 250 | AW117: 0 | AX117: 0 | AY117: 0 | AZ117: 0 | BA117: 0 | BB117: 0 | BC117: 0 | BD117: 0 | BE117: 0 | BF117: 0 | BG117: 0 | BH117: 0 | BI117: 0 | BJ117: 0 | BK117: 0 | BL117: 0 | BM117: 0 | BN117: 0 | BO117: 0 | BP117: 0 | BQ117: 3500 | BR117: 3500 | BS117: 0 | BT117: 0 | BU117: 0 | BV117: 0 | BW117: 0 | BX117: 0 | BY117: 0 | BZ117: 0 | CA117: 0 | CB117: 0 | CC117: 0 | CD117: 0 | CE117: 0 | CF117: 0 | CG117: 0 | CH117: 0 | CI117: 0 | CJ117: 0 | CK117: 0 | CL117: 0 | CM117: 0 | CN117: 0 | CO117: 0
A118: 2 | B118: 1 | C118: — | D118: — | E118: Premium Plan | F118: =+'Employee Cost Model'!$C$2 -> Employee Only | G118: In | H118: Out | I118: UC | K118: N | L118: 0 | M118: 0 | N118: 0 | O118: — | P118: — | Q118: 167.7490597 | R118: 0 | S118: 0 | T118: 5 | U118: 5 | V118: 0 | W118: 0 | X118: Premium Plan | Y118: 1 | Z118: 0 | AA118: 0 | AB118: 0 | AC118: OutUC | AD118: 0 | AE118: 0 | AF118: 0 | AG118: 0 | AH118: 1 | AI118: 0 | AJ118: 0 | AK118: 2 | AL118: 0 | AM118: 0 | AN118: 10 | AO118: 0 | AP118: 1 | AQ118: 0 | AR118: 0 | AS118: 0 | AT118: 0 | AU118: 250 | AV118: 250 | AW118: 0 | AX118: 0 | AY118: 0 | AZ118: 0 | BA118: 0 | BB118: 0 | BC118: 0 | BD118: 0 | BE118: 0 | BF118: 0 | BG118: 0 | BH118: 0 | BI118: 0 | BJ118: 0 | BK118: 0 | BL118: 0 | BM118: 0 | BN118: 0 | BO118: 0 | BP118: 0 | BQ118: 3500 | BR118: 3500 | BS118: 0 | BT118: 0 | BU118: 0 | BV118: 0 | BW118: 0 | BX118: 0 | BY118: 0 | BZ118: 0 | CA118: 0 | CB118: 0 | CC118: 0 | CD118: 0 | CE118: 0 | CF118: 0 | CG118: 0 | CH118: 0 | CI118: 0 | CJ118: 0 | CK118: 0 | CL118: 0 | CM118: 0 | CN118: 0 | CO118: 0
A119: 2 | B119: 1 | C119: — | D119: — | E119: Premium Plan | F119: =+'Employee Cost Model'!$C$2 -> Employee Only | G119: In | H119: Out | I119: Surgery | K119: N | L119: 0 | M119: 0 | N119: 0 | O119: — | P119: — | Q119: 3651.604864 | R119: 0 | S119: 0 | T119: 6 | U119: 6 | V119: 0 | W119: 0 | X119: Premium Plan | Y119: 1 | Z119: 0 | AA119: 0 | AB119: 0 | AC119: OutSurgery | AD119: 0 | AE119: 0 | AF119: 0 | AG119: 0 | AH119: 2 | AI119: 0 | AJ119: 0 | AK119: 2 | AL119: 0 | AM119: 0 | AN119: 0 | AO119: 0 | AP119: 1 | AQ119: 0 | AR119: 0 | AS119: 0 | AT119: 0 | AU119: 250 | AV119: 250 | AW119: 0 | AX119: 0 | AY119: 0 | AZ119: 0 | BA119: 0 | BB119: 0 | BC119: 0 | BD119: 0 | BE119: 0 | BF119: 0 | BG119: 0 | BH119: 0 | BI119: 0 | BJ119: 0 | BK119: 0 | BL119: 0 | BM119: 0 | BN119: 0 | BO119: 0 | BP119: 0 | BQ119: 3500 | BR119: 3500 | BS119: 0 | BT119: 0 | BU119: 0 | BV119: 0 | BW119: 0 | BX119: 0 | BY119: 0 | BZ119: 0 | CA119: 0 | CB119: 0 | CC119: 0 | CD119: 0 | CE119: 0 | CF119: 0 | CG119: 0 | CH119: 0 | CI119: 0 | CJ119: 0 | CK119: 0 | CL119: 0 | CM119: 0 | CN119: 0 | CO119: 0
A120: 2 | B120: 1 | C120: — | D120: — | E120: Premium Plan | F120: =+'Employee Cost Model'!$C$2 -> Employee Only | G120: In | H120: Out | I120: X-ray/Lab | K120: N | L120: 0 | M120: 0 | N120: 0 | O120: — | P120: — | Q120: 223.9676734 | R120: 0 | S120: 0 | T120: 7 | U120: 7 | V120: 0 | W120: 0 | X120: Premium Plan | Y120: 1 | Z120: 0 | AA120: 0 | AB120: 0 | AC120: OutX-ray/Lab | AD120: 0 | AE120: 0 | AF120: 0 | AG120: 0 | AH120: 2 | AI120: 0 | AJ120: 0 | AK120: 2 | AL120: 0 | AM120: 0 | AN120: 0 | AO120: 0 | AP120: 1 | AQ120: 0 | AR120: 0 | AS120: 0 | AT120: 0 | AU120: 250 | AV120: 250 | AW120: 0 | AX120: 0 | AY120: 0 | AZ120: 0 | BA120: 0 | BB120: 0 | BC120: 0 | BD120: 0 | BE120: 0 | BF120: 0 | BG120: 0 | BH120: 0 | BI120: 0 | BJ120: 0 | BK120: 0 | BL120: 0 | BM120: 0 | BN120: 0 | BO120: 0 | BP120: 0 | BQ120: 3500 | BR120: 3500 | BS120: 0 | BT120: 0 | BU120: 0 | BV120: 0 | BW120: 0 | BX120: 0 | BY120: 0 | BZ120: 0 | CA120: 0 | CB120: 0 | CC120: 0 | CD120: 0 | CE120: 0 | CF120: 0 | CG120: 0 | CH120: 0 | CI120: 0 | CJ120: 0 | CK120: 0 | CL120: 0 | CM120: 0 | CN120: 0 | CO120: 0
A121: 2 | B121: 1 | C121: — | D121: — | E121: Premium Plan | F121: =+'Employee Cost Model'!$C$2 -> Employee Only | G121: In | H121: Out | I121: Adv Rad | K121: N | L121: 0 | M121: 0 | N121: 0 | O121: — | P121: — | Q121: 995.6214691 | R121: 0 | S121: 0 | T121: 8 | U121: 8 | V121: 0 | W121: 0 | X121: Premium Plan | Y121: 1 | Z121: 0 | AA121: 0 | AB121: 0 | AC121: OutAdv Rad | AD121: 0 | AE121: 0 | AF121: 0 | AG121: 0 | AH121: 2 | AI121: 0 | AJ121: 0 | AK121: 2 | AL121: 0 | AM121: 0 | AN121: 0 | AO121: 0 | AP121: 1 | AQ121: 0 | AR121: 0 | AS121: 0 | AT121: 0 | AU121: 250 | AV121: 250 | AW121: 0 | AX121: 0 | AY121: 0 | AZ121: 0 | BA121: 0 | BB121: 0 | BC121: 0 | BD121: 0 | BE121: 0 | BF121: 0 | BG121: 0 | BH121: 0 | BI121: 0 | BJ121: 0 | BK121: 0 | BL121: 0 | BM121: 0 | BN121: 0 | BO121: 0 | BP121: 0 | BQ121: 3500 | BR121: 3500 | BS121: 0 | BT121: 0 | BU121: 0 | BV121: 0 | BW121: 0 | BX121: 0 | BY121: 0 | BZ121: 0 | CA121: 0 | CB121: 0 | CC121: 0 | CD121: 0 | CE121: 0 | CF121: 0 | CG121: 0 | CH121: 0 | CI121: 0 | CJ121: 0 | CK121: 0 | CL121: 0 | CM121: 0 | CN121: 0 | CO121: 0
A122: 2 | B122: 1 | C122: — | D122: — | E122: Premium Plan | F122: =+'Employee Cost Model'!$C$2 -> Employee Only | G122: In | H122: Professional | I122: PCP | K122: N | L122: 0 | M122: 0 | N122: 0 | O122: — | P122: — | Q122: 167.4628453 | R122: 0 | S122: 0 | T122: 9 | U122: 9 | V122: 0 | W122: 0 | X122: Premium Plan | Y122: 1 | Z122: 0 | AA122: 0 | AB122: 0 | AC122: ProfessionalPCP | AD122: 0 | AE122: 0 | AF122: 0 | AG122: 0 | AH122: 1 | AI122: 0 | AJ122: 0 | AK122: 2 | AL122: 0 | AM122: 0 | AN122: 10 | AO122: 0 | AP122: 1 | AQ122: 0 | AR122: 0 | AS122: 0 | AT122: 0 | AU122: 250 | AV122: 250 | AW122: 0 | AX122: 0 | AY122: 0 | AZ122: 0 | BA122: 0 | BB122: 0 | BC122: 0 | BD122: 0 | BE122: 0 | BF122: 0 | BG122: 0 | BH122: 0 | BI122: 0 | BJ122: 0 | BK122: 0 | BL122: 0 | BM122: 0 | BN122: 0 | BO122: 0 | BP122: 0 | BQ122: 3500 | BR122: 3500 | BS122: 0 | BT122: 0 | BU122: 0 | BV122: 0 | BW122: 0 | BX122: 0 | BY122: 0 | BZ122: 0 | CA122: 0 | CB122: 0 | CC122: 0 | CD122: 0 | CE122: 0 | CF122: 0 | CG122: 0 | CH122: 0 | CI122: 0 | CJ122: 0 | CK122: 0 | CL122: 0 | CM122: 0 | CN122: 0 | CO122: 0
A123: 2 | B123: 1 | C123: — | D123: — | E123: Premium Plan | F123: =+'Employee Cost Model'!$C$2 -> Employee Only | G123: In | H123: Professional | I123: SCP | K123: N | L123: 0 | M123: 0 | N123: 0 | O123: — | P123: — | Q123: 190.3145998 | R123: 0 | S123: 0 | T123: 10 | U123: 10 | V123: 0 | W123: 0 | X123: Premium Plan | Y123: 1 | Z123: 0 | AA123: 0 | AB123: 0 | AC123: ProfessionalSCP | AD123: 0 | AE123: 0 | AF123: 0 | AG123: 0 | AH123: 1 | AI123: 0 | AJ123: 0 | AK123: 2 | AL123: 0 | AM123: 0 | AN123: 15 | AO123: 0 | AP123: 1 | AQ123: 0 | AR123: 0 | AS123: 0 | AT123: 0 | AU123: 250 | AV123: 250 | AW123: 0 | AX123: 0 | AY123: 0 | AZ123: 0 | BA123: 0 | BB123: 0 | BC123: 0 | BD123: 0 | BE123: 0 | BF123: 0 | BG123: 0 | BH123: 0 | BI123: 0 | BJ123: 0 | BK123: 0 | BL123: 0 | BM123: 0 | BN123: 0 | BO123: 0 | BP123: 0 | BQ123: 3500 | BR123: 3500 | BS123: 0 | BT123: 0 | BU123: 0 | BV123: 0 | BW123: 0 | BX123: 0 | BY123: 0 | BZ123: 0 | CA123: 0 | CB123: 0 | CC123: 0 | CD123: 0 | CE123: 0 | CF123: 0 | CG123: 0 | CH123: 0 | CI123: 0 | CJ123: 0 | CK123: 0 | CL123: 0 | CM123: 0 | CN123: 0 | CO123: 0
A124: 2 | B124: 1 | C124: — | D124: — | E124: Premium Plan | F124: =+'Employee Cost Model'!$C$2 -> Employee Only | G124: In | H124: Professional | I124: Maternity | K124: N | L124: 0 | M124: 0 | N124: 0 | O124: — | P124: — | Q124: 23659.20645 | R124: 0 | S124: 0 | T124: 11 | U124: 11 | V124: 0 | W124: 0 | X124: Premium Plan | Y124: 1 | Z124: 0 | AA124: 0 | AB124: 0 | AC124: ProfessionalMaternity | AD124: 0 | AE124: 0 | AF124: 0 | AG124: 0 | AH124: 2 | AI124: 0 | AJ124: 0 | AK124: 2 | AL124: 0 | AM124: 0 | AN124: 0 | AO124: 0 | AP124: 1 | AQ124: 0 | AR124: 0 | AS124: 0 | AT124: 0 | AU124: 250 | AV124: 250 | AW124: 0 | AX124: 0 | AY124: 0 | AZ124: 0 | BA124: 0 | BB124: 0 | BC124: 0 | BD124: 0 | BE124: 0 | BF124: 0 | BG124: 0 | BH124: 0 | BI124: 0 | BJ124: 0 | BK124: 0 | BL124: 0 | BM124: 0 | BN124: 0 | BO124: 0 | BP124: 0 | BQ124: 3500 | BR124: 3500 | BS124: 0 | BT124: 0 | BU124: 0 | BV124: 0 | BW124: 0 | BX124: 0 | BY124: 0 | BZ124: 0 | CA124: 0 | CB124: 0 | CC124: 0 | CD124: 0 | CE124: 0 | CF124: 0 | CG124: 0 | CH124: 0 | CI124: 0 | CJ124: 0 | CK124: 0 | CL124: 0 | CM124: 0 | CN124: 0 | CO124: 0
A125: 2 | B125: 1 | C125: — | D125: — | E125: Premium Plan | F125: =+'Employee Cost Model'!$C$2 -> Employee Only | G125: In | H125: Professional | I125: Off Surgery | K125: N | L125: 0 | M125: 0 | N125: 0 | O125: — | P125: — | Q125: 988.0543893 | R125: 0 | S125: 0 | T125: 12 | U125: 12 | V125: 0 | W125: 0 | X125: Premium Plan | Y125: 1 | Z125: 0 | AA125: 0 | AB125: 0 | AC125: ProfessionalOff Surgery | AD125: 0 | AE125: 0 | AF125: 0 | AG125: 0 | AH125: 2 | AI125: 0 | AJ125: 0 | AK125: 2 | AL125: 0 | AM125: 0 | AN125: 0 | AO125: 0 | AP125: 1 | AQ125: 0 | AR125: 0 | AS125: 0 | AT125: 0 | AU125: 250 | AV125: 250 | AW125: 0 | AX125: 0 | AY125: 0 | AZ125: 0 | BA125: 0 | BB125: 0 | BC125: 0 | BD125: 0 | BE125: 0 | BF125: 0 | BG125: 0 | BH125: 0 | BI125: 0 | BJ125: 0 | BK125: 0 | BL125: 0 | BM125: 0 | BN125: 0 | BO125: 0 | BP125: 0 | BQ125: 3500 | BR125: 3500 | BS125: 0 | BT125: 0 | BU125: 0 | BV125: 0 | BW125: 0 | BX125: 0 | BY125: 0 | BZ125: 0 | CA125: 0 | CB125: 0 | CC125: 0 | CD125: 0 | CE125: 0 | CF125: 0 | CG125: 0 | CH125: 0 | CI125: 0 | CJ125: 0 | CK125: 0 | CL125: 0 | CM125: 0 | CN125: 0 | CO125: 0
A126: 2 | B126: 1 | C126: — | D126: — | E126: Premium Plan | F126: =+'Employee Cost Model'!$C$2 -> Employee Only | G126: In | H126: Professional | I126: MHSA | K126: N | L126: 0 | M126: 0 | N126: 0 | O126: — | P126: — | Q126: 125.9770284 | R126: 0 | S126: 0 | T126: 13 | U126: 13 | V126: 0 | W126: 0 | X126: Premium Plan | Y126: 1 | Z126: 0 | AA126: 0 | AB126: 0 | AC126: ProfessionalMHSA | AD126: 0 | AE126: 0 | AF126: 0 | AG126: 0 | AH126: 1 | AI126: 0 | AJ126: 0 | AK126: 2 | AL126: 0 | AM126: 0 | AN126: 10 | AO126: 0 | AP126: 1 | AQ126: 0 | AR126: 0 | AS126: 0 | AT126: 0 | AU126: 250 | AV126: 250 | AW126: 0 | AX126: 0 | AY126: 0 | AZ126: 0 | BA126: 0 | BB126: 0 | BC126: 0 | BD126: 0 | BE126: 0 | BF126: 0 | BG126: 0 | BH126: 0 | BI126: 0 | BJ126: 0 | BK126: 0 | BL126: 0 | BM126: 0 | BN126: 0 | BO126: 0 | BP126: 0 | BQ126: 3500 | BR126: 3500 | BS126: 0 | BT126: 0 | BU126: 0 | BV126: 0 | BW126: 0 | BX126: 0 | BY126: 0 | BZ126: 0 | CA126: 0 | CB126: 0 | CC126: 0 | CD126: 0 | CE126: 0 | CF126: 0 | CG126: 0 | CH126: 0 | CI126: 0 | CJ126: 0 | CK126: 0 | CL126: 0 | CM126: 0 | CN126: 0 | CO126: 0
A127: 2 | B127: 1 | C127: — | D127: — | E127: Premium Plan | F127: =+'Employee Cost Model'!$C$2 -> Employee Only | G127: In | H127: Professional | I127: PhyTh/SpTh/OccTh | K127: N | L127: 0 | M127: 0 | N127: 0 | O127: — | P127: — | Q127: 165.3990089 | R127: 0 | S127: 0 | T127: 14 | U127: 14 | V127: 0 | W127: 0 | X127: Premium Plan | Y127: 1 | Z127: 0 | AA127: 0 | AB127: 0 | AC127: ProfessionalPhyTh/SpTh/OccTh | AD127: 0 | AE127: 0 | AF127: 0 | AG127: 0 | AH127: 1 | AI127: 0 | AJ127: 0 | AK127: 2 | AL127: 0 | AM127: 0 | AN127: 33.07980179 | AO127: 0 | AP127: 1 | AQ127: 0 | AR127: 0 | AS127: 0 | AT127: 0 | AU127: 250 | AV127: 250 | AW127: 0 | AX127: 0 | AY127: 0 | AZ127: 0 | BA127: 0 | BB127: 0 | BC127: 0 | BD127: 0 | BE127: 0 | BF127: 0 | BG127: 0 | BH127: 0 | BI127: 0 | BJ127: 0 | BK127: 0 | BL127: 0 | BM127: 0 | BN127: 0 | BO127: 0 | BP127: 0 | BQ127: 3500 | BR127: 3500 | BS127: 0 | BT127: 0 | BU127: 0 | BV127: 0 | BW127: 0 | BX127: 0 | BY127: 0 | BZ127: 0 | CA127: 0 | CB127: 0 | CC127: 0 | CD127: 0 | CE127: 0 | CF127: 0 | CG127: 0 | CH127: 0 | CI127: 0 | CJ127: 0 | CK127: 0 | CL127: 0 | CM127: 0 | CN127: 0 | CO127: 0
A128: 2 | B128: 1 | C128: — | D128: — | E128: Premium Plan | F128: =+'Employee Cost Model'!$C$2 -> Employee Only | G128: In | H128: Professional | I128: Chiro | K128: N | L128: 0 | M128: 0 | N128: 0 | O128: — | P128: — | Q128: 79.45445144 | R128: 0 | S128: 0 | T128: 15 | U128: 15 | V128: 0 | W128: 0 | X128: Premium Plan | Y128: 1 | Z128: 0 | AA128: 0 | AB128: 0 | AC128: ProfessionalChiro | AD128: 0 | AE128: 0 | AF128: 0 | AG128: 0 | AH128: 1 | AI128: 0 | AJ128: 0 | AK128: 2 | AL128: 0 | AM128: 0 | AN128: 15 | AO128: 0 | AP128: 1 | AQ128: 0 | AR128: 0 | AS128: 0 | AT128: 0 | AU128: 250 | AV128: 250 | AW128: 0 | AX128: 0 | AY128: 0 | AZ128: 0 | BA128: 0 | BB128: 0 | BC128: 0 | BD128: 0 | BE128: 0 | BF128: 0 | BG128: 0 | BH128: 0 | BI128: 0 | BJ128: 0 | BK128: 0 | BL128: 0 | BM128: 0 | BN128: 0 | BO128: 0 | BP128: 0 | BQ128: 3500 | BR128: 3500 | BS128: 0 | BT128: 0 | BU128: 0 | BV128: 0 | BW128: 0 | BX128: 0 | BY128: 0 | BZ128: 0 | CA128: 0 | CB128: 0 | CC128: 0 | CD128: 0 | CE128: 0 | CF128: 0 | CG128: 0 | CH128: 0 | CI128: 0 | CJ128: 0 | CK128: 0 | CL128: 0 | CM128: 0 | CN128: 0 | CO128: 0
A129: 2 | B129: 1 | C129: — | D129: — | E129: Premium Plan | F129: =+'Employee Cost Model'!$C$2 -> Employee Only | G129: In | H129: Rx | I129: R | J129: 1 | K129: N | L129: 0 | M129: 0 | N129: 0 | O129: — | P129: — | Q129: 50.83329564 | R129: 0 | S129: 0 | T129: 16 | U129: 16 | V129: 0 | W129: 0 | X129: Premium Plan | Y129: 1 | Z129: 0 | AA129: 0 | AB129: 0 | AC129: RxR1 | AD129: 0 | AE129: 1 | AF129: 0 | AG129: 0 | AH129: 1 | AI129: 0 | AJ129: 0 | AK129: 2 | AL129: 0 | AM129: 0 | AN129: 5 | AO129: 0 | AP129: 1 | AQ129: 0 | AR129: 0 | AS129: 0 | AT129: 0 | AU129: 250 | AV129: 250 | AW129: 0 | AX129: 0 | AY129: 0 | AZ129: 0 | BA129: 0 | BB129: 0 | BC129: 0 | BD129: 0 | BE129: 0 | BF129: 0 | BG129: 0 | BH129: 0 | BI129: 0 | BJ129: 0 | BK129: 0 | BL129: 0 | BM129: 0 | BN129: 0 | BO129: 0 | BP129: 0 | BQ129: 3500 | BR129: 3500 | BS129: 0 | BT129: 0 | BU129: 0 | BV129: 0 | BW129: 0 | BX129: 0 | BY129: 0 | BZ129: 0 | CA129: 0 | CB129: 0 | CC129: 0 | CD129: 0 | CE129: 0 | CF129: 0 | CG129: 0 | CH129: 0 | CI129: 0 | CJ129: 0 | CK129: 0 | CL129: 0 | CM129: 0 | CN129: 0 | CO129: 0
A130: 2 | B130: 1 | C130: — | D130: — | E130: Premium Plan | F130: =+'Employee Cost Model'!$C$2 -> Employee Only | G130: In | H130: Rx | I130: R | J130: 2 | K130: N | L130: 0 | M130: 0 | N130: 0 | O130: — | P130: — | Q130: 389.8130676 | R130: 0 | S130: 0 | T130: 17 | U130: 17 | V130: 0 | W130: 0 | X130: Premium Plan | Y130: 1 | Z130: 0 | AA130: 0 | AB130: 0 | AC130: RxR2 | AD130: 0 | AE130: 1 | AF130: 0 | AG130: 0 | AH130: 1 | AI130: 0 | AJ130: 0 | AK130: 2 | AL130: 0 | AM130: 0 | AN130: 25 | AO130: 0 | AP130: 1 | AQ130: 0 | AR130: 0 | AS130: 0 | AT130: 0 | AU130: 250 | AV130: 250 | AW130: 0 | AX130: 0 | AY130: 0 | AZ130: 0 | BA130: 0 | BB130: 0 | BC130: 0 | BD130: 0 | BE130: 0 | BF130: 0 | BG130: 0 | BH130: 0 | BI130: 0 | BJ130: 0 | BK130: 0 | BL130: 0 | BM130: 0 | BN130: 0 | BO130: 0 | BP130: 0 | BQ130: 3500 | BR130: 3500 | BS130: 0 | BT130: 0 | BU130: 0 | BV130: 0 | BW130: 0 | BX130: 0 | BY130: 0 | BZ130: 0 | CA130: 0 | CB130: 0 | CC130: 0 | CD130: 0 | CE130: 0 | CF130: 0 | CG130: 0 | CH130: 0 | CI130: 0 | CJ130: 0 | CK130: 0 | CL130: 0 | CM130: 0 | CN130: 0 | CO130: 0
A131: 2 | B131: 1 | C131: — | D131: — | E131: Premium Plan | F131: =+'Employee Cost Model'!$C$2 -> Employee Only | G131: In | H131: Rx | I131: R | J131: 3 | K131: N | L131: 0 | M131: 0 | N131: 0 | O131: — | P131: — | Q131: 651.9493716 | R131: 0 | S131: 0 | T131: 18 | U131: 18 | V131: 0 | W131: 0 | X131: Premium Plan | Y131: 1 | Z131: 0 | AA131: 0 | AB131: 0 | AC131: RxR3 | AD131: 0 | AE131: 1 | AF131: 0 | AG131: 0 | AH131: 1 | AI131: 0 | AJ131: 0 | AK131: 2 | AL131: 0 | AM131: 0 | AN131: 40 | AO131: 0 | AP131: 1 | AQ131: 0 | AR131: 0 | AS131: 0 | AT131: 0 | AU131: 250 | AV131: 250 | AW131: 0 | AX131: 0 | AY131: 0 | AZ131: 0 | BA131: 0 | BB131: 0 | BC131: 0 | BD131: 0 | BE131: 0 | BF131: 0 | BG131: 0 | BH131: 0 | BI131: 0 | BJ131: 0 | BK131: 0 | BL131: 0 | BM131: 0 | BN131: 0 | BO131: 0 | BP131: 0 | BQ131: 3500 | BR131: 3500 | BS131: 0 | BT131: 0 | BU131: 0 | BV131: 0 | BW131: 0 | BX131: 0 | BY131: 0 | BZ131: 0 | CA131: 0 | CB131: 0 | CC131: 0 | CD131: 0 | CE131: 0 | CF131: 0 | CG131: 0 | CH131: 0 | CI131: 0 | CJ131: 0 | CK131: 0 | CL131: 0 | CM131: 0 | CN131: 0 | CO131: 0
A132: 2 | B132: 1 | C132: — | D132: — | E132: Premium Plan | F132: =+'Employee Cost Model'!$C$2 -> Employee Only | G132: In | H132: Rx | I132: R | J132: 4 | K132: N | L132: 0 | M132: 0 | N132: 0 | O132: — | P132: — | Q132: 8251.270121 | R132: 0 | S132: 0 | T132: 19 | U132: 19 | V132: 0 | W132: 0 | X132: Premium Plan | Y132: 1 | Z132: =IF(F132="Employee Only",0,1) -> 0 | AA132: 0 | AB132: 0 | AC132: RxR4 | AD132: 0 | AE132: 1 | AF132: 0 | AG132: 0 | AH132: 1 | AI132: 0 | AJ132: 0 | AK132: 2 | AL132: 0 | AM132: 0 | AN132: 40 | AO132: 0 | AP132: 1 | AQ132: 0 | AR132: 0 | AS132: 0 | AT132: 0 | AU132: 250 | AV132: 250 | AW132: 0 | AX132: 0 | AY132: 0 | AZ132: 0 | BA132: 0 | BB132: 0 | BC132: 0 | BD132: 0 | BE132: 0 | BF132: 0 | BG132: 0 | BH132: 0 | BI132: 0 | BJ132: 0 | BK132: 0 | BL132: 0 | BM132: 0 | BN132: 0 | BO132: 0 | BP132: 0 | BQ132: 3500 | BR132: 3500 | BS132: 0 | BT132: 0 | BU132: 0 | BV132: 0 | BW132: 0 | BX132: 0 | BY132: 0 | BZ132: 0 | CA132: 0 | CB132: 0 | CC132: 0 | CD132: 0 | CE132: 0 | CF132: 0 | CG132: 0 | CH132: 0 | CI132: 0 | CJ132: 0 | CK132: 0 | CL132: 0 | CM132: 0 | CN132: 0 | CO132: 0
A133: 2 | B133: 1 | C133: — | D133: — | E133: Premium Plan | F133: =+'Employee Cost Model'!$C$2 -> Employee Only | G133: In | H133: Rx | I133: M | J133: 1 | K133: N | L133: 0 | M133: 0 | N133: 0 | O133: — | P133: — | Q133: 88.65973424 | R133: 0 | S133: 0 | T133: 20 | U133: 20 | V133: 0 | W133: 0 | X133: Premium Plan | Y133: 1 | Z133: 0 | AA133: 0 | AB133: 0 | AC133: RxM1 | AD133: 0 | AE133: 1 | AF133: 0 | AG133: 0 | AH133: 1 | AI133: 0 | AJ133: 0 | AK133: 2 | AL133: 0 | AM133: 0 | AN133: 12.5 | AO133: 0 | AP133: 1 | AQ133: 0 | AR133: 0 | AS133: 0 | AT133: 0 | AU133: 250 | AV133: 250 | AW133: 0 | AX133: 0 | AY133: 0 | AZ133: 0 | BA133: 0 | BB133: 0 | BC133: 0 | BD133: 0 | BE133: 0 | BF133: 0 | BG133: 0 | BH133: 0 | BI133: 0 | BJ133: 0 | BK133: 0 | BL133: 0 | BM133: 0 | BN133: 0 | BO133: 0 | BP133: 0 | BQ133: 3500 | BR133: 3500 | BS133: 0 | BT133: 0 | BU133: 0 | BV133: 0 | BW133: 0 | BX133: 0 | BY133: 0 | BZ133: 0 | CA133: 0 | CB133: 0 | CC133: 0 | CD133: 0 | CE133: 0 | CF133: 0 | CG133: 0 | CH133: 0 | CI133: 0 | CJ133: 0 | CK133: 0 | CL133: 0 | CM133: 0 | CN133: 0 | CO133: 0
A134: 2 | B134: 1 | C134: — | D134: — | E134: Premium Plan | F134: =+'Employee Cost Model'!$C$2 -> Employee Only | G134: In | H134: Rx | I134: M | J134: 2 | K134: N | L134: 0 | M134: 0 | N134: 0 | O134: — | P134: — | Q134: 857.5887486 | R134: =IF(AND(B134=B133,S134=0),0,1) -> 0 | S134: =IF(A134=A133,0,1) -> 0 | T134: =IF(R134,R134,T133+1) -> 21 | U134: =IF(S134,S134,U133+1) -> 21 | V134: =IF(AND(B134=B135,W134=0),0,1) -> 0 | W134: =IF(A134=A135,0,1) -> 0 | X134: =E134 -> Premium Plan | Y134: =MATCH(X134,PlanList,0) -> 1 | Z134: 0 | AA134: =VLOOKUP(Y134,PlanIndex,4,0) -> 0 | AB134: =IF(G134="In",0,1) -> 0 | AC134: =IF(H134="Rx",H134&I134&MIN(J134,4),H134&I134) -> RxM2 | AD134: =IF(K134&AB134="Y0",1,0) -> 0 | AE134: =IF(H134<>"Rx",0,1) -> 1 | AF134: =IF(OFFSET(OffsetStart,SepRxDed-1,MATCH(Y134,PlanLookupRange,0)-1+3*AA134*AB134)="No",0,1) -> 0 | AG134: =IF(OFFSET(OffsetStart,SepRxOOPM-1,MATCH(Y134,PlanLookupRange,0)-1+3*AA134*AB134)="No",0,1) -> 0 | AH134: =OFFSET(OffsetStart, MATCH(AC134,ServiceLookups,0)-1,MATCH(Y134,PlanLookupRange,0)-1+3*AA134*AB134) -> 1 | AI134: =IF(OFFSET(OffsetStart,DedTypeRange-1,MATCH(Y134,PlanLookupRange,0)-1+3*AA134*AB134)="Embedded",0,1) -> 0 | AJ134: =IF(OFFSET(OffsetStart,OOPMTypeRange-1,MATCH(Y134,PlanLookupRange,0)-1+3*AA134*AB134)="Embedded",0,1) -> 0 | AK134: =OFFSET(OffsetStart, MATCH(AC134,ServiceLookups,0)-1,MATCH(Y134,PlanLookupRange,0)+3*AA134*AB134) -> 2 | AL134: =IF(AD134, 0, CHOOSE(AK134,OFFSET(OffsetStart,CoinsRange-1,MATCH(Y134,PlanLookupRange,0)-1+3*AA134*AB134),0,IF(AE134,OFFSET(OffsetStart,MATCH(AC134,ServiceLookups,0),MATCH(Y134,PlanLookupRange,0)-1+3*AA134*AB134)))) -> 0 | AM134: =IF(OR(AD134,AE134=0), 0, OFFSET(OffsetStart,MATCH(AC134,ServiceLookups,0),MATCH(Y134,PlanLookupRange,0)+3*AA134*AB134)) -> 0 | AN134: =IF(AD134, 0, OFFSET(OffsetStart, MATCH(AC134,ServiceLookups,0)-1,MATCH(Y134,PlanLookupRange,0)+1+3*AA134*AB134)) -> 42.5 | AO134: =IF(OR(AD134,AE134=0), 0, OFFSET(OffsetStart,MATCH(AC134,ServiceLookups,0),MATCH(Y134,PlanLookupRange,0)+1+3*AA134*AB134)) -> 0 | AP134: =CHOOSE(AE134+1,(1+VLOOKUP(LEFT(AC134,3),TrendLookup,3,0))^(TrendMonths/12),(1+VLOOKUP(H134&J134,TrendLookup,3,0))^(TrendMonths/12)) -> 1 | AQ134: =+AP134*N134 -> 0 | AR134: =IFERROR(AQ134/L134,AQ134) -> 0 | AS134: =IF(R134,AQ134,AQ134+AS133) -> 0 | AT134: =IF(S134,AQ134,AQ134+AT133) -> 0 | AU134: =IF(AND(AE134,AF134),OFFSET(OffsetStart,RxDedRange-1+1*Z134*AI134,MATCH(Y134,PlanLookupRange,0)-1), OFFSET(OffsetStart,MedDedRange-1+1*Z134*AI134,MATCH(Y134,PlanLookupRange,0)-1)) -> 250 | AV134: =IF(AND(AE134,AF134),OFFSET(OffsetStart,RxDedRange-1+1*Z134,MATCH(Y134,PlanLookupRange,0)-1), OFFSET(OffsetStart,MedDedRange-1+1*Z134,MATCH(Y134,PlanLookupRange,0)-1)) -> 250 | AW134: =IF(AA134=0,0, IF(AND(AE134,AF134), OFFSET(OffsetStart,RxDedRange-1+1*Z134*AI134,MATCH(Y134,PlanLookupRange,0)+2), OFFSET(OffsetStart,MedDedRange-1+1*Z134*AI134,MATCH(Y134,PlanLookupRange,0)+2))) -> 0 | AX134: =IF(AA134=0,0, IF(AND(AE134,AF134),OFFSET(OffsetStart,RxDedRange-1+1*Z134,MATCH(Y134,PlanLookupRange,0)+2), OFFSET(OffsetStart,MedDedRange-1+1*Z134,MATCH(Y134,PlanLookupRange,0)+2))) -> 0 | AY134: =IF(OR(AD134=1,AH134=1),0,AQ134) -> 0 | AZ134: =IF(OR(AB134=1,AH134=1,AND(AF134=1,AE134=1)), 0, IF(OR(AND(BA133=AU134,R134=0),AND(BB133=AV134,S134=0)), 0, CHOOSE(R134+S134+1, MIN(AY134,AU134,MAX(AU134-BA133,0),MAX(AV134-BB133,0)), MIN(AY134,AU134,MAX(AV134-BB133,0)), MIN(AY134,AU134)))) -> 0 | BA134: =IF(R134,AZ134,MIN(AU134,SUM(OFFSET(AZ134,-(T134-1),0,T134)))) -> 0 | BB134: =IF(S134,AZ134,MIN(AV134,SUM(OFFSET(AZ134,-(U134-1),0,U134)))) -> 0 | BC134: =IF(OR(AB134=0,AH134=1,AND(AF134=1,AE134=1)), 0, IF(OR(AND(BD133=AW134,R134=0),AND(BE133=AX134,S134=0)), 0, CHOOSE(R134+S134+1, MIN(AY134,AW134,MAX(AW134-BD133,0),MAX(AX134-BE133,0)), MIN(AY134,AW134,MAX(AX134-BE133,0)), MIN(AY134,AW134)))) -> 0 | BD134: =IF(R134,BC134,MIN(AW134,SUM(OFFSET(BC134,-(T134-1),0,T134)))) -> 0 | BE134: =IF(S134,BC134,MIN(AX134,SUM(OFFSET(BC134,-(U134-1),0,U134)))) -> 0 | BF134: =IF(OR(AB134=1,AH134=1,AE134=0,AF134=0), 0, IF(OR(AND(BG133=AU134,R134=0),AND(BH133=AV134,S134=0)), 0, CHOOSE(R134+S134+1, MIN(AY134,AU134,MAX(AU134-BG133,0),MAX(AV134-BH133,0)), MIN(AY134,AU134,MAX(AV134-BH133,0)), MIN(AY134,AU134)))) -> 0 | BG134: =IF(R134,BF134,MIN(AU134,SUM(OFFSET(BF134,-(T134-1),0,T134)))) -> 0 | BH134: =IF(S134,BF134,MIN(AV134,SUM(OFFSET(BF134,-(U134-1),0,U134)))) -> 0 | BI134: =IF(OR(AB134=0,AH134=1,AE134=0,AF134=0), 0, IF(OR(AND(BJ133=AW134,R134=0),AND(BK133=AX134,S134=0)), 0, CHOOSE(R134+S134+1, MIN(AY134,AW134,MAX(AW134-BJ133,0),MAX(AX134-BK133,0)), MIN(AY134,AW134,MAX(AX134-BK133,0)), MIN(AY134,AW134)))) -> 0 | BJ134: =IF(R134,BI134,MIN(AW134,SUM(OFFSET(BI134,-(T134-1),0,T134)))) -> 0 | BK134: =IF(S134,BI134,MIN(AX134,SUM(OFFSET(BI134,-(U134-1),0,U134)))) -> 0 | BL134: =AQ134-AZ134-BC134-BF134-BI134 -> 0 | BM134: =IFERROR(IF(AE134=0,CHOOSE(AK134,0,MIN(L134,MAX(ROUNDUP(BL134/AR134,0),0)),MIN(M134,MAX(ROUNDUP(BL134/AR134,0),0))), CHOOSE(AK134,0,MIN(L134,MAX(ROUNDUP(BL134/AR134,0),0)),MIN(L134,MAX(ROUNDUP(BL134/AR134,0),0)))),0) -> 0 | BN134: =+IF(AE134, CHOOSE(AK134,0,AN134*BM134,MIN(MAX(AM134*BM134,AL134*AR134*BM134),AO134*BM134)), IF(AN134=0,0,IF(BL134>=0,MIN(BM134*AN134,BL134),MAX(BM134*AN134,BL134)))) -> 0 | BO134: =+IF(AND(AE134,AK134=3),0,BL134*AL134) -> 0 | BP134: =+BN134+BO134+AZ134+BC134+BF134+BI134 -> 0 | BQ134: =IF(AND(AE134,AG134),OFFSET(OffsetStart,RxOOPMRange-1+1*Z134*AJ134,MATCH(Y134,PlanLookupRange,0)-1), OFFSET(OffsetStart,MedOOPMRange-1+1*Z134*AJ134,MATCH(Y134,PlanLookupRange,0)-1)) -> 3500 | BR134: =IF(AND(AE134,AG134),OFFSET(OffsetStart,RxOOPMRange-1+1*Z134,MATCH(Y134,PlanLookupRange,0)-1), OFFSET(OffsetStart,MedOOPMRange-1+1*Z134,MATCH(Y134,PlanLookupRange,0)-1)) -> 3500 | BS134: =IF(AA134=0,0, IF(AND(AE134,AG134), OFFSET(OffsetStart,RxOOPMRange-1+1*Z134*AJ134,MATCH(Y134,PlanLookupRange,0)+2), OFFSET(OffsetStart,MedOOPMRange-1+1*Z134*AI134,MATCH(Y134,PlanLookupRange,0)+2))) -> 0 | BT134: =IF(AA134=0,0, IF(AND(AE134,AG134),OFFSET(OffsetStart,RxOOPMRange-1+1*Z134,MATCH(Y134,PlanLookupRange,0)+2), OFFSET(OffsetStart,MedOOPMRange-1+1*Z134,MATCH(Y134,PlanLookupRange,0)+2))) -> 0 | BU134: =IF(OR(AB134=1,AND(AG134=1,AE134=1)), 0, IF(OR(AND(BV133=BQ134,R134=0,BP134<0),AND(BW133=BR134,S134=0,BP134<0)), MAX(BP134,-BQ134), CHOOSE(R134+S134+1, MIN(BP134,BQ134,MAX(BQ134-BV133,0),MAX(BR134-BW133,0)), MIN(BP134,BQ134,MAX(BR134-BW133,0)), MIN(BP134,BQ134)))) -> 0 | BV134: =IF(R134,BU134,MIN(BQ134,SUM(OFFSET(BU134,-(T134-1),0,T134)))) -> 0 | BW134: =IF(S134,BU134,MIN(BR134,SUM(OFFSET(BU134,-(U134-1),0,U134)))) -> 0 | BX134: =IF(OR(AB134=0,AND(AG134=1,AE134=1)), 0, IF(OR(AND(BY133=BS134,R134=0,BP134<0),AND(BZ133=BT134,S134=0,BP134<0)), MAX(BP134,-BS134), CHOOSE(R134+S134+1, MIN(BP134,BS134,MAX(BS134-BY133,0),MAX(BT134-BZ133,0)), MIN(BP134,BS134,MAX(BT134-BZ133,0)), MIN(BP134,BS134)))) -> 0 | BY134: =IF(R134,BX134,MIN(BS134,SUM(OFFSET(BX134,-(T134-1),0,T134)))) -> 0 | BZ134: =IF(S134,BX134,MIN(BT134,SUM(OFFSET(BX134,-(U134-1),0,U134)))) -> 0 | CA134: =IF(OR(AB134=1,AE134=0,AG134=0), 0, IF(OR(AND(CB133=BQ134,R134=0,BP134<0),AND(CC133=BR134,S134=0,BP134<0)), MAX(BP134,-BQ134), CHOOSE(R134+S134+1, MIN(BP134,BQ134,MAX(BQ134-CB133,0),MAX(BR134-CC133,0)), MIN(BP134,BQ134,MAX(BR134-CC133,0)), MIN(BP134,BQ134)))) -> 0 | CB134: =IF(R134,CA134,MIN(BQ134,SUM(OFFSET(CA134,-(T134-1),0,T134)))) -> 0 | CC134: =IF(S134,CA134,MIN(BR134,SUM(OFFSET(CA134,-(U134-1),0,U134)))) -> 0 | CD134: =IF(OR(AB134=0,AE134=0,AG134=0), 0, IF(OR(AND(CE133=BS134,R134=0,BP134<0),AND(CF133=BT134,S134=0,BP134<0)), MAX(BP134,-BS134), CHOOSE(R134+S134+1, MIN(BP134,BS134,MAX(BS134-CE133,0),MAX(BT134-CF133,0)), MIN(BP134,BS134,MAX(BT134-CF133,0)), MIN(BP134,BS134)))) -> 0 | CE134: =IF(R134,CD134,MIN(BS134,SUM(OFFSET(CD134,-(T134-1),0,T134)))) -> 0 | CF134: =IF(S134,CD134,MIN(BT134,SUM(OFFSET(CD134,-(U134-1),0,U134)))) -> 0 | CG134: =IF(S134,BU134+CA134,BU134+CA134+CG133) -> 0 | CH134: =IF(S134,BX134+CD134,BX134+CD134+CH133) -> 0 | CI134: =+CG134+CH134 -> 0 | CJ134: =+CG134*$V134 -> 0 | CK134: =+CH134*$V134 -> 0 | CL134: =+CI134*$V134 -> 0 | CM134: =+CG134*$W134 -> 0 | CN134: =+CH134*$W134 -> 0 | CO134: =+CI134*$W134 -> 0
A135: 2 | B135: 1 | C135: — | D135: — | E135: Premium Plan | F135: =+'Employee Cost Model'!$C$2 -> Employee Only | G135: In | H135: Rx | I135: M | J135: 3 | K135: N | L135: 0 | M135: 0 | N135: 0 | O135: — | P135: — | Q135: 1250.793205 | R135: 0 | S135: 0 | T135: 22 | U135: 22 | V135: 1 | W135: 0 | X135: Premium Plan | Y135: 1 | Z135: 0 | AA135: 0 | AB135: 0 | AC135: RxM3 | AD135: 0 | AE135: 1 | AF135: 0 | AG135: 0 | AH135: 1 | AI135: 0 | AJ135: 0 | AK135: 2 | AL135: 0 | AM135: 0 | AN135: 85 | AO135: 0 | AP135: 1 | AQ135: 0 | AR135: 0 | AS135: 0 | AT135: 0 | AU135: 250 | AV135: 250 | AW135: 0 | AX135: 0 | AY135: 0 | AZ135: 0 | BA135: 0 | BB135: 0 | BC135: 0 | BD135: 0 | BE135: 0 | BF135: 0 | BG135: 0 | BH135: 0 | BI135: 0 | BJ135: 0 | BK135: 0 | BL135: 0 | BM135: 0 | BN135: 0 | BO135: 0 | BP135: 0 | BQ135: 3500 | BR135: 3500 | BS135: 0 | BT135: 0 | BU135: 0 | BV135: 0 | BW135: 0 | BX135: 0 | BY135: 0 | BZ135: 0 | CA135: 0 | CB135: 0 | CC135: 0 | CD135: 0 | CE135: 0 | CF135: 0 | CG135: 0 | CH135: 0 | CI135: 0 | CJ135: 0 | CK135: 0 | CL135: 0 | CM135: 0 | CN135: 0 | CO135: 0
A136: 2 | B136: 2 | C136: — | D136: — | E136: Premium Plan | F136: =+'Employee Cost Model'!$C$2 -> Employee Only | G136: In | H136: Inp | I136: Hospital | K136: N | L136: 0 | M136: 0 | N136: =+L136*Q136 -> 0 | O136: — | P136: — | Q136: 24527.13205 | R136: 1 | S136: 0 | T136: 1 | U136: 23 | V136: 0 | W136: 0 | X136: Premium Plan | Y136: 1 | Z136: 0 | AA136: 0 | AB136: 0 | AC136: InpHospital | AD136: 0 | AE136: 0 | AF136: 0 | AG136: 0 | AH136: 2 | AI136: 0 | AJ136: 0 | AK136: 2 | AL136: 0 | AM136: 0 | AN136: 0 | AO136: 0 | AP136: 1 | AQ136: 0 | AR136: 0 | AS136: 0 | AT136: 0 | AU136: 250 | AV136: 250 | AW136: 0 | AX136: 0 | AY136: 0 | AZ136: 0 | BA136: 0 | BB136: 0 | BC136: 0 | BD136: 0 | BE136: 0 | BF136: 0 | BG136: 0 | BH136: 0 | BI136: 0 | BJ136: 0 | BK136: 0 | BL136: 0 | BM136: 0 | BN136: 0 | BO136: 0 | BP136: 0 | BQ136: 3500 | BR136: 3500 | BS136: 0 | BT136: 0 | BU136: 0 | BV136: 0 | BW136: 0 | BX136: 0 | BY136: 0 | BZ136: 0 | CA136: 0 | CB136: 0 | CC136: 0 | CD136: 0 | CE136: 0 | CF136: 0 | CG136: 0 | CH136: 0 | CI136: 0 | CJ136: 0 | CK136: 0 | CL136: 0 | CM136: 0 | CN136: 0 | CO136: 0
A137: 2 | B137: 2 | C137: — | D137: — | E137: Premium Plan | F137: =+'Employee Cost Model'!$C$2 -> Employee Only | G137: In | H137: Inp | I137: MHSA | K137: N | L137: 0 | M137: 0 | N137: 0 | O137: — | P137: — | Q137: 11851.45063 | R137: 0 | S137: 0 | T137: 2 | U137: 24 | V137: 0 | W137: 0 | X137: Premium Plan | Y137: 1 | Z137: 0 | AA137: 0 | AB137: 0 | AC137: InpMHSA | AD137: 0 | AE137: 0 | AF137: 0 | AG137: 0 | AH137: 2 | AI137: 0 | AJ137: 0 | AK137: 2 | AL137: 0 | AM137: 0 | AN137: 0 | AO137: 0 | AP137: 1 | AQ137: 0 | AR137: 0 | AS137: 0 | AT137: 0 | AU137: 250 | AV137: 250 | AW137: 0 | AX137: 0 | AY137: 0 | AZ137: 0 | BA137: 0 | BB137: 0 | BC137: 0 | BD137: 0 | BE137: 0 | BF137: 0 | BG137: 0 | BH137: 0 | BI137: 0 | BJ137: 0 | BK137: 0 | BL137: 0 | BM137: 0 | BN137: 0 | BO137: 0 | BP137: 0 | BQ137: 3500 | BR137: 3500 | BS137: 0 | BT137: 0 | BU137: 0 | BV137: 0 | BW137: 0 | BX137: 0 | BY137: 0 | BZ137: 0 | CA137: 0 | CB137: 0 | CC137: 0 | CD137: 0 | CE137: 0 | CF137: 0 | CG137: 0 | CH137: 0 | CI137: 0 | CJ137: 0 | CK137: 0 | CL137: 0 | CM137: 0 | CN137: 0 | CO137: 0
A138: 2 | B138: 2 | C138: — | D138: — | E138: Premium Plan | F138: =+'Employee Cost Model'!$C$2 -> Employee Only | G138: In | H138: Inp | I138: SNF | K138: N | L138: 0 | M138: 0 | N138: 0 | O138: — | P138: — | Q138: 6523.462072 | R138: 0 | S138: 0 | T138: 3 | U138: 25 | V138: 0 | W138: 0 | X138: Premium Plan | Y138: 1 | Z138: 0 | AA138: 0 | AB138: 0 | AC138: InpSNF | AD138: 0 | AE138: 0 | AF138: 0 | AG138: 0 | AH138: 2 | AI138: 0 | AJ138: 0 | AK138: 2 | AL138: 0 | AM138: 0 | AN138: 0 | AO138: 0 | AP138: 1 | AQ138: 0 | AR138: 0 | AS138: 0 | AT138: 0 | AU138: 250 | AV138: 250 | AW138: 0 | AX138: 0 | AY138: 0 | AZ138: 0 | BA138: 0 | BB138: 0 | BC138: 0 | BD138: 0 | BE138: 0 | BF138: 0 | BG138: 0 | BH138: 0 | BI138: 0 | BJ138: 0 | BK138: 0 | BL138: 0 | BM138: 0 | BN138: 0 | BO138: 0 | BP138: 0 | BQ138: 3500 | BR138: 3500 | BS138: 0 | BT138: 0 | BU138: 0 | BV138: 0 | BW138: 0 | BX138: 0 | BY138: 0 | BZ138: 0 | CA138: 0 | CB138: 0 | CC138: 0 | CD138: 0 | CE138: 0 | CF138: 0 | CG138: 0 | CH138: 0 | CI138: 0 | CJ138: 0 | CK138: 0 | CL138: 0 | CM138: 0 | CN138: 0 | CO138: 0
A139: 2 | B139: 2 | C139: — | D139: — | E139: Premium Plan | F139: =+'Employee Cost Model'!$C$2 -> Employee Only | G139: In | H139: Out | I139: ER | K139: N | L139: 0 | M139: 0 | N139: 0 | O139: — | P139: — | Q139: 1458.770268 | R139: 0 | S139: 0 | T139: 4 | U139: 26 | V139: 0 | W139: 0 | X139: Premium Plan | Y139: 1 | Z139: 0 | AA139: 0 | AB139: 0 | AC139: OutER | AD139: 0 | AE139: 0 | AF139: 0 | AG139: 0 | AH139: 1 | AI139: 0 | AJ139: 0 | AK139: 2 | AL139: 0 | AM139: 0 | AN139: 75 | AO139: 0 | AP139: 1 | AQ139: 0 | AR139: 0 | AS139: 0 | AT139: 0 | AU139: 250 | AV139: 250 | AW139: 0 | AX139: 0 | AY139: 0 | AZ139: 0 | BA139: 0 | BB139: 0 | BC139: 0 | BD139: 0 | BE139: 0 | BF139: 0 | BG139: 0 | BH139: 0 | BI139: 0 | BJ139: 0 | BK139: 0 | BL139: 0 | BM139: 0 | BN139: 0 | BO139: 0 | BP139: 0 | BQ139: 3500 | BR139: 3500 | BS139: 0 | BT139: 0 | BU139: 0 | BV139: 0 | BW139: 0 | BX139: 0 | BY139: 0 | BZ139: 0 | CA139: 0 | CB139: 0 | CC139: 0 | CD139: 0 | CE139: 0 | CF139: 0 | CG139: 0 | CH139: 0 | CI139: 0 | CJ139: 0 | CK139: 0 | CL139: 0 | CM139: 0 | CN139: 0 | CO139: 0
A140: 2 | B140: 2 | C140: — | D140: — | E140: Premium Plan | F140: =+'Employee Cost Model'!$C$2 -> Employee Only | G140: In | H140: Out | I140: UC | K140: N | L140: 0 | M140: 0 | N140: 0 | O140: — | P140: — | Q140: 167.7490597 | R140: 0 | S140: 0 | T140: 5 | U140: 27 | V140: 0 | W140: 0 | X140: Premium Plan | Y140: 1 | Z140: 0 | AA140: 0 | AB140: 0 | AC140: OutUC | AD140: 0 | AE140: 0 | AF140: 0 | AG140: 0 | AH140: 1 | AI140: 0 | AJ140: 0 | AK140: 2 | AL140: 0 | AM140: 0 | AN140: 10 | AO140: 0 | AP140: 1 | AQ140: 0 | AR140: 0 | AS140: 0 | AT140: 0 | AU140: 250 | AV140: 250 | AW140: 0 | AX140: 0 | AY140: 0 | AZ140: 0 | BA140: 0 | BB140: 0 | BC140: 0 | BD140: 0 | BE140: 0 | BF140: 0 | BG140: 0 | BH140: 0 | BI140: 0 | BJ140: 0 | BK140: 0 | BL140: 0 | BM140: 0 | BN140: 0 | BO140: 0 | BP140: 0 | BQ140: 3500 | BR140: 3500 | BS140: 0 | BT140: 0 | BU140: 0 | BV140: 0 | BW140: 0 | BX140: 0 | BY140: 0 | BZ140: 0 | CA140: 0 | CB140: 0 | CC140: 0 | CD140: 0 | CE140: 0 | CF140: 0 | CG140: 0 | CH140: 0 | CI140: 0 | CJ140: 0 | CK140: 0 | CL140: 0 | CM140: 0 | CN140: 0 | CO140: 0
A141: 2 | B141: 2 | C141: — | D141: — | E141: Premium Plan | F141: =+'Employee Cost Model'!$C$2 -> Employee Only | G141: In | H141: Out | I141: Surgery | K141: N | L141: 0 | M141: 0 | N141: 0 | O141: — | P141: — | Q141: 3651.604864 | R141: 0 | S141: 0 | T141: 6 | U141: 28 | V141: 0 | W141: 0 | X141: Premium Plan | Y141: 1 | Z141: 0 | AA141: 0 | AB141: 0 | AC141: OutSurgery | AD141: 0 | AE141: 0 | AF141: 0 | AG141: 0 | AH141: 2 | AI141: 0 | AJ141: 0 | AK141: 2 | AL141: 0 | AM141: 0 | AN141: 0 | AO141: 0 | AP141: 1 | AQ141: 0 | AR141: 0 | AS141: 0 | AT141: 0 | AU141: 250 | AV141: 250 | AW141: 0 | AX141: 0 | AY141: 0 | AZ141: 0 | BA141: 0 | BB141: 0 | BC141: 0 | BD141: 0 | BE141: 0 | BF141: 0 | BG141: 0 | BH141: 0 | BI141: 0 | BJ141: 0 | BK141: 0 | BL141: 0 | BM141: 0 | BN141: 0 | BO141: 0 | BP141: 0 | BQ141: 3500 | BR141: 3500 | BS141: 0 | BT141: 0 | BU141: 0 | BV141: 0 | BW141: 0 | BX141: 0 | BY141: 0 | BZ141: 0 | CA141: 0 | CB141: 0 | CC141: 0 | CD141: 0 | CE141: 0 | CF141: 0 | CG141: 0 | CH141: 0 | CI141: 0 | CJ141: 0 | CK141: 0 | CL141: 0 | CM141: 0 | CN141: 0 | CO141: 0
A142: 2 | B142: 2 | C142: — | D142: — | E142: Premium Plan | F142: =+'Employee Cost Model'!$C$2 -> Employee Only | G142: In | H142: Out | I142: X-ray/Lab | K142: N | L142: 0 | M142: 0 | N142: 0 | O142: — | P142: — | Q142: 223.9676734 | R142: 0 | S142: 0 | T142: 7 | U142: 29 | V142: 0 | W142: 0 | X142: Premium Plan | Y142: 1 | Z142: 0 | AA142: 0 | AB142: 0 | AC142: OutX-ray/Lab | AD142: 0 | AE142: 0 | AF142: 0 | AG142: 0 | AH142: 2 | AI142: 0 | AJ142: 0 | AK142: 2 | AL142: 0 | AM142: 0 | AN142: 0 | AO142: 0 | AP142: 1 | AQ142: 0 | AR142: 0 | AS142: 0 | AT142: 0 | AU142: 250 | AV142: 250 | AW142: 0 | AX142: 0 | AY142: 0 | AZ142: 0 | BA142: 0 | BB142: 0 | BC142: 0 | BD142: 0 | BE142: 0 | BF142: 0 | BG142: 0 | BH142: 0 | BI142: 0 | BJ142: 0 | BK142: 0 | BL142: 0 | BM142: 0 | BN142: 0 | BO142: 0 | BP142: 0 | BQ142: 3500 | BR142: 3500 | BS142: 0 | BT142: 0 | BU142: 0 | BV142: 0 | BW142: 0 | BX142: 0 | BY142: 0 | BZ142: 0 | CA142: 0 | CB142: 0 | CC142: 0 | CD142: 0 | CE142: 0 | CF142: 0 | CG142: 0 | CH142: 0 | CI142: 0 | CJ142: 0 | CK142: 0 | CL142: 0 | CM142: 0 | CN142: 0 | CO142: 0
A143: 2 | B143: 2 | C143: — | D143: — | E143: Premium Plan | F143: =+'Employee Cost Model'!$C$2 -> Employee Only | G143: In | H143: Out | I143: Adv Rad | K143: N | L143: 0 | M143: 0 | N143: 0 | O143: — | P143: — | Q143: 995.6214691 | R143: 0 | S143: 0 | T143: 8 | U143: 30 | V143: 0 | W143: 0 | X143: Premium Plan | Y143: 1 | Z143: 0 | AA143: 0 | AB143: 0 | AC143: OutAdv Rad | AD143: 0 | AE143: 0 | AF143: 0 | AG143: 0 | AH143: 2 | AI143: 0 | AJ143: 0 | AK143: 2 | AL143: 0 | AM143: 0 | AN143: 0 | AO143: 0 | AP143: 1 | AQ143: 0 | AR143: 0 | AS143: 0 | AT143: 0 | AU143: 250 | AV143: 250 | AW143: 0 | AX143: 0 | AY143: 0 | AZ143: 0 | BA143: 0 | BB143: 0 | BC143: 0 | BD143: 0 | BE143: 0 | BF143: 0 | BG143: 0 | BH143: 0 | BI143: 0 | BJ143: 0 | BK143: 0 | BL143: 0 | BM143: 0 | BN143: 0 | BO143: 0 | BP143: 0 | BQ143: 3500 | BR143: 3500 | BS143: 0 | BT143: 0 | BU143: 0 | BV143: 0 | BW143: 0 | BX143: 0 | BY143: 0 | BZ143: 0 | CA143: 0 | CB143: 0 | CC143: 0 | CD143: 0 | CE143: 0 | CF143: 0 | CG143: 0 | CH143: 0 | CI143: 0 | CJ143: 0 | CK143: 0 | CL143: 0 | CM143: 0 | CN143: 0 | CO143: 0
A144: 2 | B144: 2 | C144: — | D144: — | E144: Premium Plan | F144: =+'Employee Cost Model'!$C$2 -> Employee Only | G144: In | H144: Professional | I144: PCP | K144: N | L144: 0 | M144: 0 | N144: 0 | O144: — | P144: — | Q144: 167.4628453 | R144: 0 | S144: 0 | T144: 9 | U144: 31 | V144: 0 | W144: 0 | X144: Premium Plan | Y144: 1 | Z144: 0 | AA144: 0 | AB144: 0 | AC144: ProfessionalPCP | AD144: 0 | AE144: 0 | AF144: 0 | AG144: 0 | AH144: 1 | AI144: 0 | AJ144: 0 | AK144: 2 | AL144: 0 | AM144: 0 | AN144: 10 | AO144: 0 | AP144: 1 | AQ144: 0 | AR144: 0 | AS144: 0 | AT144: 0 | AU144: 250 | AV144: 250 | AW144: 0 | AX144: 0 | AY144: 0 | AZ144: 0 | BA144: 0 | BB144: 0 | BC144: 0 | BD144: 0 | BE144: 0 | BF144: 0 | BG144: 0 | BH144: 0 | BI144: 0 | BJ144: 0 | BK144: 0 | BL144: 0 | BM144: 0 | BN144: 0 | BO144: 0 | BP144: 0 | BQ144: 3500 | BR144: 3500 | BS144: 0 | BT144: 0 | BU144: 0 | BV144: 0 | BW144: 0 | BX144: 0 | BY144: 0 | BZ144: 0 | CA144: 0 | CB144: 0 | CC144: 0 | CD144: 0 | CE144: 0 | CF144: 0 | CG144: 0 | CH144: 0 | CI144: 0 | CJ144: 0 | CK144: 0 | CL144: 0 | CM144: 0 | CN144: 0 | CO144: 0
A145: 2 | B145: 2 | C145: — | D145: — | E145: Premium Plan | F145: =+'Employee Cost Model'!$C$2 -> Employee Only | G145: In | H145: Professional | I145: SCP | K145: N | L145: 0 | M145: 0 | N145: 0 | O145: — | P145: — | Q145: 190.3145998 | R145: 0 | S145: 0 | T145: 10 | U145: 32 | V145: 0 | W145: 0 | X145: Premium Plan | Y145: 1 | Z145: 0 | AA145: 0 | AB145: 0 | AC145: ProfessionalSCP | AD145: 0 | AE145: 0 | AF145: 0 | AG145: 0 | AH145: 1 | AI145: 0 | AJ145: 0 | AK145: 2 | AL145: 0 | AM145: 0 | AN145: 15 | AO145: 0 | AP145: 1 | AQ145: 0 | AR145: 0 | AS145: 0 | AT145: 0 | AU145: 250 | AV145: 250 | AW145: 0 | AX145: 0 | AY145: 0 | AZ145: 0 | BA145: 0 | BB145: 0 | BC145: 0 | BD145: 0 | BE145: 0 | BF145: 0 | BG145: 0 | BH145: 0 | BI145: 0 | BJ145: 0 | BK145: 0 | BL145: 0 | BM145: 0 | BN145: 0 | BO145: 0 | BP145: 0 | BQ145: 3500 | BR145: 3500 | BS145: 0 | BT145: 0 | BU145: 0 | BV145: 0 | BW145: 0 | BX145: 0 | BY145: 0 | BZ145: 0 | CA145: 0 | CB145: 0 | CC145: 0 | CD145: 0 | CE145: 0 | CF145: 0 | CG145: 0 | CH145: 0 | CI145: 0 | CJ145: 0 | CK145: 0 | CL145: 0 | CM145: 0 | CN145: 0 | CO145: 0
A146: 2 | B146: 2 | C146: — | D146: — | E146: Premium Plan | F146: =+'Employee Cost Model'!$C$2 -> Employee Only | G146: In | H146: Professional | I146: Maternity | K146: N | L146: 0 | M146: 0 | N146: 0 | O146: — | P146: — | Q146: 23659.20645 | R146: 0 | S146: 0 | T146: 11 | U146: 33 | V146: 0 | W146: 0 | X146: Premium Plan | Y146: 1 | Z146: 0 | AA146: 0 | AB146: 0 | AC146: ProfessionalMaternity | AD146: 0 | AE146: 0 | AF146: 0 | AG146: 0 | AH146: 2 | AI146: 0 | AJ146: 0 | AK146: 2 | AL146: 0 | AM146: 0 | AN146: 0 | AO146: 0 | AP146: 1 | AQ146: 0 | AR146: 0 | AS146: 0 | AT146: 0 | AU146: 250 | AV146: 250 | AW146: 0 | AX146: 0 | AY146: 0 | AZ146: 0 | BA146: 0 | BB146: 0 | BC146: 0 | BD146: 0 | BE146: 0 | BF146: 0 | BG146: 0 | BH146: 0 | BI146: 0 | BJ146: 0 | BK146: 0 | BL146: 0 | BM146: 0 | BN146: 0 | BO146: 0 | BP146: 0 | BQ146: 3500 | BR146: 3500 | BS146: 0 | BT146: 0 | BU146: 0 | BV146: 0 | BW146: 0 | BX146: 0 | BY146: 0 | BZ146: 0 | CA146: 0 | CB146: 0 | CC146: 0 | CD146: 0 | CE146: 0 | CF146: 0 | CG146: 0 | CH146: 0 | CI146: 0 | CJ146: 0 | CK146: 0 | CL146: 0 | CM146: 0 | CN146: 0 | CO146: 0
A147: 2 | B147: 2 | C147: — | D147: — | E147: Premium Plan | F147: =+'Employee Cost Model'!$C$2 -> Employee Only | G147: In | H147: Professional | I147: Off Surgery | K147: N | L147: 0 | M147: 0 | N147: 0 | O147: — | P147: — | Q147: 988.0543893 | R147: 0 | S147: 0 | T147: 12 | U147: 34 | V147: 0 | W147: 0 | X147: Premium Plan | Y147: 1 | Z147: 0 | AA147: 0 | AB147: 0 | AC147: ProfessionalOff Surgery | AD147: 0 | AE147: 0 | AF147: 0 | AG147: 0 | AH147: 2 | AI147: 0 | AJ147: 0 | AK147: 2 | AL147: 0 | AM147: 0 | AN147: 0 | AO147: 0 | AP147: 1 | AQ147: 0 | AR147: 0 | AS147: 0 | AT147: 0 | AU147: 250 | AV147: 250 | AW147: 0 | AX147: 0 | AY147: 0 | AZ147: 0 | BA147: 0 | BB147: 0 | BC147: 0 | BD147: 0 | BE147: 0 | BF147: 0 | BG147: 0 | BH147: 0 | BI147: 0 | BJ147: 0 | BK147: 0 | BL147: 0 | BM147: 0 | BN147: 0 | BO147: 0 | BP147: 0 | BQ147: 3500 | BR147: 3500 | BS147: 0 | BT147: 0 | BU147: 0 | BV147: 0 | BW147: 0 | BX147: 0 | BY147: 0 | BZ147: 0 | CA147: 0 | CB147: 0 | CC147: 0 | CD147: 0 | CE147: 0 | CF147: 0 | CG147: 0 | CH147: 0 | CI147: 0 | CJ147: 0 | CK147: 0 | CL147: 0 | CM147: 0 | CN147: 0 | CO147: 0
A148: 2 | B148: 2 | C148: — | D148: — | E148: Premium Plan | F148: =+'Employee Cost Model'!$C$2 -> Employee Only | G148: In | H148: Professional | I148: MHSA | K148: N | L148: 0 | M148: 0 | N148: 0 | O148: — | P148: — | Q148: 125.9770284 | R148: 0 | S148: 0 | T148: 13 | U148: 35 | V148: 0 | W148: 0 | X148: Premium Plan | Y148: 1 | Z148: 0 | AA148: 0 | AB148: 0 | AC148: ProfessionalMHSA | AD148: 0 | AE148: 0 | AF148: 0 | AG148: 0 | AH148: 1 | AI148: 0 | AJ148: 0 | AK148: 2 | AL148: 0 | AM148: 0 | AN148: 10 | AO148: 0 | AP148: 1 | AQ148: 0 | AR148: 0 | AS148: 0 | AT148: 0 | AU148: 250 | AV148: 250 | AW148: 0 | AX148: 0 | AY148: 0 | AZ148: 0 | BA148: 0 | BB148: 0 | BC148: 0 | BD148: 0 | BE148: 0 | BF148: 0 | BG148: 0 | BH148: 0 | BI148: 0 | BJ148: 0 | BK148: 0 | BL148: 0 | BM148: 0 | BN148: 0 | BO148: 0 | BP148: 0 | BQ148: 3500 | BR148: 3500 | BS148: 0 | BT148: 0 | BU148: 0 | BV148: 0 | BW148: 0 | BX148: 0 | BY148: 0 | BZ148: 0 | CA148: 0 | CB148: 0 | CC148: 0 | CD148: 0 | CE148: 0 | CF148: 0 | CG148: 0 | CH148: 0 | CI148: 0 | CJ148: 0 | CK148: 0 | CL148: 0 | CM148: 0 | CN148: 0 | CO148: 0
A149: 2 | B149: 2 | C149: — | D149: — | E149: Premium Plan | F149: =+'Employee Cost Model'!$C$2 -> Employee Only | G149: In | H149: Professional | I149: PhyTh/SpTh/OccTh | K149: N | L149: 0 | M149: 0 | N149: 0 | O149: — | P149: — | Q149: 165.3990089 | R149: 0 | S149: 0 | T149: 14 | U149: 36 | V149: 0 | W149: 0 | X149: Premium Plan | Y149: 1 | Z149: 0 | AA149: 0 | AB149: 0 | AC149: ProfessionalPhyTh/SpTh/OccTh | AD149: 0 | AE149: 0 | AF149: 0 | AG149: 0 | AH149: 1 | AI149: 0 | AJ149: 0 | AK149: 2 | AL149: 0 | AM149: 0 | AN149: 33.07980179 | AO149: 0 | AP149: 1 | AQ149: 0 | AR149: 0 | AS149: 0 | AT149: 0 | AU149: 250 | AV149: 250 | AW149: 0 | AX149: 0 | AY149: 0 | AZ149: 0 | BA149: 0 | BB149: 0 | BC149: 0 | BD149: 0 | BE149: 0 | BF149: 0 | BG149: 0 | BH149: 0 | BI149: 0 | BJ149: 0 | BK149: 0 | BL149: 0 | BM149: 0 | BN149: 0 | BO149: 0 | BP149: 0 | BQ149: 3500 | BR149: 3500 | BS149: 0 | BT149: 0 | BU149: 0 | BV149: 0 | BW149: 0 | BX149: 0 | BY149: 0 | BZ149: 0 | CA149: 0 | CB149: 0 | CC149: 0 | CD149: 0 | CE149: 0 | CF149: 0 | CG149: 0 | CH149: 0 | CI149: 0 | CJ149: 0 | CK149: 0 | CL149: 0 | CM149: 0 | CN149: 0 | CO149: 0
A150: 2 | B150: 2 | C150: — | D150: — | E150: Premium Plan | F150: =+'Employee Cost Model'!$C$2 -> Employee Only | G150: In | H150: Professional | I150: Chiro | K150: N | L150: 0 | M150: 0 | N150: 0 | O150: — | P150: — | Q150: 79.45445144 | R150: 0 | S150: 0 | T150: 15 | U150: 37 | V150: 0 | W150: 0 | X150: Premium Plan | Y150: 1 | Z150: 0 | AA150: 0 | AB150: 0 | AC150: ProfessionalChiro | AD150: 0 | AE150: 0 | AF150: 0 | AG150: 0 | AH150: 1 | AI150: 0 | AJ150: 0 | AK150: 2 | AL150: 0 | AM150: 0 | AN150: 15 | AO150: 0 | AP150: 1 | AQ150: 0 | AR150: 0 | AS150: 0 | AT150: 0 | AU150: 250 | AV150: 250 | AW150: 0 | AX150: 0 | AY150: 0 | AZ150: 0 | BA150: 0 | BB150: 0 | BC150: 0 | BD150: 0 | BE150: 0 | BF150: 0 | BG150: 0 | BH150: 0 | BI150: 0 | BJ150: 0 | BK150: 0 | BL150: 0 | BM150: 0 | BN150: 0 | BO150: 0 | BP150: 0 | BQ150: 3500 | BR150: 3500 | BS150: 0 | BT150: 0 | BU150: 0 | BV150: 0 | BW150: 0 | BX150: 0 | BY150: 0 | BZ150: 0 | CA150: 0 | CB150: 0 | CC150: 0 | CD150: 0 | CE150: 0 | CF150: 0 | CG150: 0 | CH150: 0 | CI150: 0 | CJ150: 0 | CK150: 0 | CL150: 0 | CM150: 0 | CN150: 0 | CO150: 0
A151: 2 | B151: 2 | C151: — | D151: — | E151: Premium Plan | F151: =+'Employee Cost Model'!$C$2 -> Employee Only | G151: In | H151: Rx | I151: R | J151: 1 | K151: N | L151: 0 | M151: 0 | N151: 0 | O151: — | P151: — | Q151: 50.83329564 | R151: 0 | S151: 0 | T151: 16 | U151: 38 | V151: 0 | W151: 0 | X151: Premium Plan | Y151: 1 | Z151: 0 | AA151: 0 | AB151: 0 | AC151: RxR1 | AD151: 0 | AE151: 1 | AF151: 0 | AG151: 0 | AH151: 1 | AI151: 0 | AJ151: 0 | AK151: 2 | AL151: 0 | AM151: 0 | AN151: 5 | AO151: 0 | AP151: 1 | AQ151: 0 | AR151: 0 | AS151: 0 | AT151: 0 | AU151: 250 | AV151: 250 | AW151: 0 | AX151: 0 | AY151: 0 | AZ151: 0 | BA151: 0 | BB151: 0 | BC151: 0 | BD151: 0 | BE151: 0 | BF151: 0 | BG151: 0 | BH151: 0 | BI151: 0 | BJ151: 0 | BK151: 0 | BL151: 0 | BM151: 0 | BN151: 0 | BO151: 0 | BP151: 0 | BQ151: 3500 | BR151: 3500 | BS151: 0 | BT151: 0 | BU151: 0 | BV151: 0 | BW151: 0 | BX151: 0 | BY151: 0 | BZ151: 0 | CA151: 0 | CB151: 0 | CC151: 0 | CD151: 0 | CE151: 0 | CF151: 0 | CG151: 0 | CH151: 0 | CI151: 0 | CJ151: 0 | CK151: 0 | CL151: 0 | CM151: 0 | CN151: 0 | CO151: 0
A152: 2 | B152: 2 | C152: — | D152: — | E152: Premium Plan | F152: =+'Employee Cost Model'!$C$2 -> Employee Only | G152: In | H152: Rx | I152: R | J152: 2 | K152: N | L152: 0 | M152: 0 | N152: 0 | O152: — | P152: — | Q152: 389.8130676 | R152: 0 | S152: 0 | T152: 17 | U152: 39 | V152: 0 | W152: 0 | X152: Premium Plan | Y152: 1 | Z152: 0 | AA152: 0 | AB152: 0 | AC152: RxR2 | AD152: 0 | AE152: 1 | AF152: 0 | AG152: 0 | AH152: 1 | AI152: 0 | AJ152: 0 | AK152: 2 | AL152: 0 | AM152: 0 | AN152: 25 | AO152: 0 | AP152: 1 | AQ152: 0 | AR152: 0 | AS152: 0 | AT152: 0 | AU152: 250 | AV152: 250 | AW152: 0 | AX152: 0 | AY152: 0 | AZ152: 0 | BA152: 0 | BB152: 0 | BC152: 0 | BD152: 0 | BE152: 0 | BF152: 0 | BG152: 0 | BH152: 0 | BI152: 0 | BJ152: 0 | BK152: 0 | BL152: 0 | BM152: 0 | BN152: 0 | BO152: 0 | BP152: 0 | BQ152: 3500 | BR152: 3500 | BS152: 0 | BT152: 0 | BU152: 0 | BV152: 0 | BW152: 0 | BX152: 0 | BY152: 0 | BZ152: 0 | CA152: 0 | CB152: 0 | CC152: 0 | CD152: 0 | CE152: 0 | CF152: 0 | CG152: 0 | CH152: 0 | CI152: 0 | CJ152: 0 | CK152: 0 | CL152: 0 | CM152: 0 | CN152: 0 | CO152: 0
A153: 2 | B153: 2 | C153: — | D153: — | E153: Premium Plan | F153: =+'Employee Cost Model'!$C$2 -> Employee Only | G153: In | H153: Rx | I153: R | J153: 3 | K153: N | L153: 0 | M153: 0 | N153: 0 | O153: — | P153: — | Q153: 651.9493716 | R153: 0 | S153: 0 | T153: 18 | U153: 40 | V153: 0 | W153: 0 | X153: Premium Plan | Y153: 1 | Z153: 0 | AA153: 0 | AB153: 0 | AC153: RxR3 | AD153: 0 | AE153: 1 | AF153: 0 | AG153: 0 | AH153: 1 | AI153: 0 | AJ153: 0 | AK153: 2 | AL153: 0 | AM153: 0 | AN153: 40 | AO153: 0 | AP153: 1 | AQ153: 0 | AR153: 0 | AS153: 0 | AT153: 0 | AU153: 250 | AV153: 250 | AW153: 0 | AX153: 0 | AY153: 0 | AZ153: 0 | BA153: 0 | BB153: 0 | BC153: 0 | BD153: 0 | BE153: 0 | BF153: 0 | BG153: 0 | BH153: 0 | BI153: 0 | BJ153: 0 | BK153: 0 | BL153: 0 | BM153: 0 | BN153: 0 | BO153: 0 | BP153: 0 | BQ153: 3500 | BR153: 3500 | BS153: 0 | BT153: 0 | BU153: 0 | BV153: 0 | BW153: 0 | BX153: 0 | BY153: 0 | BZ153: 0 | CA153: 0 | CB153: 0 | CC153: 0 | CD153: 0 | CE153: 0 | CF153: 0 | CG153: 0 | CH153: 0 | CI153: 0 | CJ153: 0 | CK153: 0 | CL153: 0 | CM153: 0 | CN153: 0 | CO153: 0
A154: 2 | B154: 2 | C154: — | D154: — | E154: Premium Plan | F154: =+'Employee Cost Model'!$C$2 -> Employee Only | G154: In | H154: Rx | I154: R | J154: 4 | K154: N | L154: 0 | M154: 0 | N154: 0 | O154: — | P154: — | Q154: =+Q132 -> 8251.270121 | R154: 0 | S154: 0 | T154: 19 | U154: 41 | V154: 0 | W154: 0 | X154: Premium Plan | Y154: 1 | Z154: 0 | AA154: 0 | AB154: 0 | AC154: RxR4 | AD154: 0 | AE154: 1 | AF154: 0 | AG154: 0 | AH154: 1 | AI154: 0 | AJ154: 0 | AK154: 2 | AL154: 0 | AM154: 0 | AN154: 40 | AO154: 0 | AP154: 1 | AQ154: 0 | AR154: 0 | AS154: 0 | AT154: 0 | AU154: 250 | AV154: 250 | AW154: 0 | AX154: 0 | AY154: 0 | AZ154: 0 | BA154: 0 | BB154: 0 | BC154: 0 | BD154: 0 | BE154: 0 | BF154: 0 | BG154: 0 | BH154: 0 | BI154: 0 | BJ154: 0 | BK154: 0 | BL154: 0 | BM154: 0 | BN154: 0 | BO154: 0 | BP154: 0 | BQ154: 3500 | BR154: 3500 | BS154: 0 | BT154: 0 | BU154: 0 | BV154: 0 | BW154: 0 | BX154: 0 | BY154: 0 | BZ154: 0 | CA154: 0 | CB154: 0 | CC154: 0 | CD154: 0 | CE154: 0 | CF154: 0 | CG154: 0 | CH154: 0 | CI154: 0 | CJ154: 0 | CK154: 0 | CL154: 0 | CM154: 0 | CN154: 0 | CO154: 0
A155: 2 | B155: 2 | C155: — | D155: — | E155: Premium Plan | F155: =+'Employee Cost Model'!$C$2 -> Employee Only | G155: In | H155: Rx | I155: M | J155: 1 | K155: N | L155: 0 | M155: 0 | N155: 0 | O155: — | P155: — | Q155: 88.65973424 | R155: 0 | S155: 0 | T155: 20 | U155: 42 | V155: 0 | W155: 0 | X155: Premium Plan | Y155: 1 | Z155: 0 | AA155: 0 | AB155: 0 | AC155: RxM1 | AD155: 0 | AE155: 1 | AF155: 0 | AG155: 0 | AH155: 1 | AI155: 0 | AJ155: 0 | AK155: 2 | AL155: 0 | AM155: 0 | AN155: 12.5 | AO155: 0 | AP155: 1 | AQ155: 0 | AR155: 0 | AS155: 0 | AT155: 0 | AU155: 250 | AV155: 250 | AW155: 0 | AX155: 0 | AY155: 0 | AZ155: 0 | BA155: 0 | BB155: 0 | BC155: 0 | BD155: 0 | BE155: 0 | BF155: 0 | BG155: 0 | BH155: 0 | BI155: 0 | BJ155: 0 | BK155: 0 | BL155: 0 | BM155: 0 | BN155: 0 | BO155: 0 | BP155: 0 | BQ155: 3500 | BR155: 3500 | BS155: 0 | BT155: 0 | BU155: 0 | BV155: 0 | BW155: 0 | BX155: 0 | BY155: 0 | BZ155: 0 | CA155: 0 | CB155: 0 | CC155: 0 | CD155: 0 | CE155: 0 | CF155: 0 | CG155: 0 | CH155: 0 | CI155: 0 | CJ155: 0 | CK155: 0 | CL155: 0 | CM155: 0 | CN155: 0 | CO155: 0
A156: 2 | B156: 2 | C156: — | D156: — | E156: Premium Plan | F156: =+'Employee Cost Model'!$C$2 -> Employee Only | G156: In | H156: Rx | I156: M | J156: 2 | K156: N | L156: 0 | M156: 0 | N156: 0 | O156: — | P156: — | Q156: 857.5887486 | R156: 0 | S156: 0 | T156: 21 | U156: 43 | V156: 0 | W156: 0 | X156: Premium Plan | Y156: 1 | Z156: 0 | AA156: 0 | AB156: 0 | AC156: RxM2 | AD156: 0 | AE156: 1 | AF156: 0 | AG156: 0 | AH156: 1 | AI156: 0 | AJ156: 0 | AK156: 2 | AL156: 0 | AM156: 0 | AN156: 42.5 | AO156: 0 | AP156: 1 | AQ156: 0 | AR156: 0 | AS156: 0 | AT156: 0 | AU156: 250 | AV156: 250 | AW156: 0 | AX156: 0 | AY156: 0 | AZ156: 0 | BA156: 0 | BB156: 0 | BC156: 0 | BD156: 0 | BE156: 0 | BF156: 0 | BG156: 0 | BH156: 0 | BI156: 0 | BJ156: 0 | BK156: 0 | BL156: 0 | BM156: 0 | BN156: 0 | BO156: 0 | BP156: 0 | BQ156: 3500 | BR156: 3500 | BS156: 0 | BT156: 0 | BU156: 0 | BV156: 0 | BW156: 0 | BX156: 0 | BY156: 0 | BZ156: 0 | CA156: 0 | CB156: 0 | CC156: 0 | CD156: 0 | CE156: 0 | CF156: 0 | CG156: 0 | CH156: 0 | CI156: 0 | CJ156: 0 | CK156: 0 | CL156: 0 | CM156: 0 | CN156: 0 | CO156: 0
A157: 2 | B157: 2 | C157: — | D157: — | E157: Premium Plan | F157: =+'Employee Cost Model'!$C$2 -> Employee Only | G157: In | H157: Rx | I157: M | J157: 3 | K157: N | L157: 0 | M157: 0 | N157: 0 | O157: — | P157: — | Q157: 1250.793205 | R157: 0 | S157: 0 | T157: 22 | U157: 44 | V157: 1 | W157: 0 | X157: Premium Plan | Y157: 1 | Z157: 0 | AA157: 0 | AB157: 0 | AC157: RxM3 | AD157: 0 | AE157: 1 | AF157: 0 | AG157: 0 | AH157: 1 | AI157: 0 | AJ157: 0 | AK157: 2 | AL157: 0 | AM157: 0 | AN157: 85 | AO157: 0 | AP157: 1 | AQ157: 0 | AR157: 0 | AS157: 0 | AT157: 0 | AU157: 250 | AV157: 250 | AW157: 0 | AX157: 0 | AY157: 0 | AZ157: 0 | BA157: 0 | BB157: 0 | BC157: 0 | BD157: 0 | BE157: 0 | BF157: 0 | BG157: 0 | BH157: 0 | BI157: 0 | BJ157: 0 | BK157: 0 | BL157: 0 | BM157: 0 | BN157: 0 | BO157: 0 | BP157: 0 | BQ157: 3500 | BR157: 3500 | BS157: 0 | BT157: 0 | BU157: 0 | BV157: 0 | BW157: 0 | BX157: 0 | BY157: 0 | BZ157: 0 | CA157: 0 | CB157: 0 | CC157: 0 | CD157: 0 | CE157: 0 | CF157: 0 | CG157: 0 | CH157: 0 | CI157: 0 | CJ157: 0 | CK157: 0 | CL157: 0 | CM157: 0 | CN157: 0 | CO157: 0
A158: 2 | B158: 3 | C158: — | D158: — | E158: Premium Plan | F158: =+'Employee Cost Model'!$C$2 -> Employee Only | G158: In | H158: Inp | I158: Hospital | K158: N | L158: 0 | M158: 0 | N158: =+L158*Q158 -> 0 | O158: — | P158: — | Q158: 24527.13205 | R158: 1 | S158: 0 | T158: 1 | U158: 45 | V158: 0 | W158: 0 | X158: Premium Plan | Y158: 1 | Z158: 0 | AA158: 0 | AB158: 0 | AC158: InpHospital | AD158: 0 | AE158: 0 | AF158: 0 | AG158: 0 | AH158: 2 | AI158: 0 | AJ158: 0 | AK158: 2 | AL158: 0 | AM158: 0 | AN158: 0 | AO158: 0 | AP158: 1 | AQ158: 0 | AR158: 0 | AS158: 0 | AT158: 0 | AU158: 250 | AV158: 250 | AW158: 0 | AX158: 0 | AY158: 0 | AZ158: 0 | BA158: 0 | BB158: 0 | BC158: 0 | BD158: 0 | BE158: 0 | BF158: 0 | BG158: 0 | BH158: 0 | BI158: 0 | BJ158: 0 | BK158: 0 | BL158: 0 | BM158: 0 | BN158: 0 | BO158: 0 | BP158: 0 | BQ158: 3500 | BR158: 3500 | BS158: 0 | BT158: 0 | BU158: 0 | BV158: 0 | BW158: 0 | BX158: 0 | BY158: 0 | BZ158: 0 | CA158: 0 | CB158: 0 | CC158: 0 | CD158: 0 | CE158: 0 | CF158: 0 | CG158: 0 | CH158: 0 | CI158: 0 | CJ158: 0 | CK158: 0 | CL158: 0 | CM158: 0 | CN158: 0 | CO158: 0
A159: 2 | B159: 3 | C159: — | D159: — | E159: Premium Plan | F159: =+'Employee Cost Model'!$C$2 -> Employee Only | G159: In | H159: Inp | I159: MHSA | K159: N | L159: 0 | M159: 0 | N159: 0 | O159: — | P159: — | Q159: 11851.45063 | R159: 0 | S159: 0 | T159: 2 | U159: 46 | V159: 0 | W159: 0 | X159: Premium Plan | Y159: 1 | Z159: 0 | AA159: 0 | AB159: 0 | AC159: InpMHSA | AD159: 0 | AE159: 0 | AF159: 0 | AG159: 0 | AH159: 2 | AI159: 0 | AJ159: 0 | AK159: 2 | AL159: 0 | AM159: 0 | AN159: 0 | AO159: 0 | AP159: 1 | AQ159: 0 | AR159: 0 | AS159: 0 | AT159: 0 | AU159: 250 | AV159: 250 | AW159: 0 | AX159: 0 | AY159: 0 | AZ159: 0 | BA159: 0 | BB159: 0 | BC159: 0 | BD159: 0 | BE159: 0 | BF159: 0 | BG159: 0 | BH159: 0 | BI159: 0 | BJ159: 0 | BK159: 0 | BL159: 0 | BM159: 0 | BN159: 0 | BO159: 0 | BP159: 0 | BQ159: 3500 | BR159: 3500 | BS159: 0 | BT159: 0 | BU159: 0 | BV159: 0 | BW159: 0 | BX159: 0 | BY159: 0 | BZ159: 0 | CA159: 0 | CB159: 0 | CC159: 0 | CD159: 0 | CE159: 0 | CF159: 0 | CG159: 0 | CH159: 0 | CI159: 0 | CJ159: 0 | CK159: 0 | CL159: 0 | CM159: 0 | CN159: 0 | CO159: 0
A160: 2 | B160: 3 | C160: — | D160: — | E160: Premium Plan | F160: =+'Employee Cost Model'!$C$2 -> Employee Only | G160: In | H160: Inp | I160: SNF | K160: N | L160: 0 | M160: 0 | N160: 0 | O160: — | P160: — | Q160: 6523.462072 | R160: 0 | S160: 0 | T160: 3 | U160: 47 | V160: 0 | W160: 0 | X160: Premium Plan | Y160: 1 | Z160: 0 | AA160: 0 | AB160: 0 | AC160: InpSNF | AD160: 0 | AE160: 0 | AF160: 0 | AG160: 0 | AH160: 2 | AI160: 0 | AJ160: 0 | AK160: 2 | AL160: 0 | AM160: 0 | AN160: 0 | AO160: 0 | AP160: 1 | AQ160: 0 | AR160: 0 | AS160: 0 | AT160: 0 | AU160: 250 | AV160: 250 | AW160: 0 | AX160: 0 | AY160: 0 | AZ160: 0 | BA160: 0 | BB160: 0 | BC160: 0 | BD160: 0 | BE160: 0 | BF160: 0 | BG160: 0 | BH160: 0 | BI160: 0 | BJ160: 0 | BK160: 0 | BL160: 0 | BM160: 0 | BN160: 0 | BO160: 0 | BP160: 0 | BQ160: 3500 | BR160: 3500 | BS160: 0 | BT160: 0 | BU160: 0 | BV160: 0 | BW160: 0 | BX160: 0 | BY160: 0 | BZ160: 0 | CA160: 0 | CB160: 0 | CC160: 0 | CD160: 0 | CE160: 0 | CF160: 0 | CG160: 0 | CH160: 0 | CI160: 0 | CJ160: 0 | CK160: 0 | CL160: 0 | CM160: 0 | CN160: 0 | CO160: 0
A161: 2 | B161: 3 | C161: — | D161: — | E161: Premium Plan | F161: =+'Employee Cost Model'!$C$2 -> Employee Only | G161: In | H161: Out | I161: ER | K161: N | L161: 0 | M161: 0 | N161: 0 | O161: — | P161: — | Q161: 1458.770268 | R161: 0 | S161: 0 | T161: 4 | U161: 48 | V161: 0 | W161: 0 | X161: Premium Plan | Y161: 1 | Z161: 0 | AA161: 0 | AB161: 0 | AC161: OutER | AD161: 0 | AE161: 0 | AF161: 0 | AG161: 0 | AH161: 1 | AI161: 0 | AJ161: 0 | AK161: 2 | AL161: 0 | AM161: 0 | AN161: 75 | AO161: 0 | AP161: 1 | AQ161: 0 | AR161: 0 | AS161: 0 | AT161: 0 | AU161: 250 | AV161: 250 | AW161: 0 | AX161: 0 | AY161: 0 | AZ161: 0 | BA161: 0 | BB161: 0 | BC161: 0 | BD161: 0 | BE161: 0 | BF161: 0 | BG161: 0 | BH161: 0 | BI161: 0 | BJ161: 0 | BK161: 0 | BL161: 0 | BM161: 0 | BN161: 0 | BO161: 0 | BP161: 0 | BQ161: 3500 | BR161: 3500 | BS161: 0 | BT161: 0 | BU161: 0 | BV161: 0 | BW161: 0 | BX161: 0 | BY161: 0 | BZ161: 0 | CA161: 0 | CB161: 0 | CC161: 0 | CD161: 0 | CE161: 0 | CF161: 0 | CG161: 0 | CH161: 0 | CI161: 0 | CJ161: 0 | CK161: 0 | CL161: 0 | CM161: 0 | CN161: 0 | CO161: 0
A162: 2 | B162: 3 | C162: — | D162: — | E162: Premium Plan | F162: =+'Employee Cost Model'!$C$2 -> Employee Only | G162: In | H162: Out | I162: UC | K162: N | L162: 0 | M162: 0 | N162: 0 | O162: — | P162: — | Q162: 167.7490597 | R162: 0 | S162: 0 | T162: 5 | U162: 49 | V162: 0 | W162: 0 | X162: Premium Plan | Y162: 1 | Z162: 0 | AA162: 0 | AB162: 0 | AC162: OutUC | AD162: 0 | AE162: 0 | AF162: 0 | AG162: 0 | AH162: 1 | AI162: 0 | AJ162: 0 | AK162: 2 | AL162: 0 | AM162: 0 | AN162: 10 | AO162: 0 | AP162: 1 | AQ162: 0 | AR162: 0 | AS162: 0 | AT162: 0 | AU162: 250 | AV162: 250 | AW162: 0 | AX162: 0 | AY162: 0 | AZ162: 0 | BA162: 0 | BB162: 0 | BC162: 0 | BD162: 0 | BE162: 0 | BF162: 0 | BG162: 0 | BH162: 0 | BI162: 0 | BJ162: 0 | BK162: 0 | BL162: 0 | BM162: 0 | BN162: 0 | BO162: 0 | BP162: 0 | BQ162: 3500 | BR162: 3500 | BS162: 0 | BT162: 0 | BU162: 0 | BV162: 0 | BW162: 0 | BX162: 0 | BY162: 0 | BZ162: 0 | CA162: 0 | CB162: 0 | CC162: 0 | CD162: 0 | CE162: 0 | CF162: 0 | CG162: 0 | CH162: 0 | CI162: 0 | CJ162: 0 | CK162: 0 | CL162: 0 | CM162: 0 | CN162: 0 | CO162: 0
A163: 2 | B163: 3 | C163: — | D163: — | E163: Premium Plan | F163: =+'Employee Cost Model'!$C$2 -> Employee Only | G163: In | H163: Out | I163: Surgery | K163: N | L163: 0 | M163: 0 | N163: 0 | O163: — | P163: — | Q163: 3651.604864 | R163: 0 | S163: 0 | T163: 6 | U163: 50 | V163: 0 | W163: 0 | X163: Premium Plan | Y163: 1 | Z163: 0 | AA163: 0 | AB163: 0 | AC163: OutSurgery | AD163: 0 | AE163: 0 | AF163: 0 | AG163: 0 | AH163: 2 | AI163: 0 | AJ163: 0 | AK163: 2 | AL163: 0 | AM163: 0 | AN163: 0 | AO163: 0 | AP163: 1 | AQ163: 0 | AR163: 0 | AS163: 0 | AT163: 0 | AU163: 250 | AV163: 250 | AW163: 0 | AX163: 0 | AY163: 0 | AZ163: 0 | BA163: 0 | BB163: 0 | BC163: 0 | BD163: 0 | BE163: 0 | BF163: 0 | BG163: 0 | BH163: 0 | BI163: 0 | BJ163: 0 | BK163: 0 | BL163: 0 | BM163: 0 | BN163: 0 | BO163: 0 | BP163: 0 | BQ163: 3500 | BR163: 3500 | BS163: 0 | BT163: 0 | BU163: 0 | BV163: 0 | BW163: 0 | BX163: 0 | BY163: 0 | BZ163: 0 | CA163: 0 | CB163: 0 | CC163: 0 | CD163: 0 | CE163: 0 | CF163: 0 | CG163: 0 | CH163: 0 | CI163: 0 | CJ163: 0 | CK163: 0 | CL163: 0 | CM163: 0 | CN163: 0 | CO163: 0
A164: 2 | B164: 3 | C164: — | D164: — | E164: Premium Plan | F164: =+'Employee Cost Model'!$C$2 -> Employee Only | G164: In | H164: Out | I164: X-ray/Lab | K164: N | L164: 0 | M164: 0 | N164: 0 | O164: — | P164: — | Q164: 223.9676734 | R164: 0 | S164: 0 | T164: 7 | U164: 51 | V164: 0 | W164: 0 | X164: Premium Plan | Y164: 1 | Z164: 0 | AA164: 0 | AB164: 0 | AC164: OutX-ray/Lab | AD164: 0 | AE164: 0 | AF164: 0 | AG164: 0 | AH164: 2 | AI164: 0 | AJ164: 0 | AK164: 2 | AL164: 0 | AM164: 0 | AN164: 0 | AO164: 0 | AP164: 1 | AQ164: 0 | AR164: 0 | AS164: 0 | AT164: 0 | AU164: 250 | AV164: 250 | AW164: 0 | AX164: 0 | AY164: 0 | AZ164: 0 | BA164: 0 | BB164: 0 | BC164: 0 | BD164: 0 | BE164: 0 | BF164: 0 | BG164: 0 | BH164: 0 | BI164: 0 | BJ164: 0 | BK164: 0 | BL164: 0 | BM164: 0 | BN164: 0 | BO164: 0 | BP164: 0 | BQ164: 3500 | BR164: 3500 | BS164: 0 | BT164: 0 | BU164: 0 | BV164: 0 | BW164: 0 | BX164: 0 | BY164: 0 | BZ164: 0 | CA164: 0 | CB164: 0 | CC164: 0 | CD164: 0 | CE164: 0 | CF164: 0 | CG164: 0 | CH164: 0 | CI164: 0 | CJ164: 0 | CK164: 0 | CL164: 0 | CM164: 0 | CN164: 0 | CO164: 0
A165: 2 | B165: 3 | C165: — | D165: — | E165: Premium Plan | F165: =+'Employee Cost Model'!$C$2 -> Employee Only | G165: In | H165: Out | I165: Adv Rad | K165: N | L165: 0 | M165: 0 | N165: 0 | O165: — | P165: — | Q165: 995.6214691 | R165: 0 | S165: 0 | T165: 8 | U165: 52 | V165: 0 | W165: 0 | X165: Premium Plan | Y165: 1 | Z165: 0 | AA165: 0 | AB165: 0 | AC165: OutAdv Rad | AD165: 0 | AE165: 0 | AF165: 0 | AG165: 0 | AH165: 2 | AI165: 0 | AJ165: 0 | AK165: 2 | AL165: 0 | AM165: 0 | AN165: 0 | AO165: 0 | AP165: 1 | AQ165: 0 | AR165: 0 | AS165: 0 | AT165: 0 | AU165: 250 | AV165: 250 | AW165: 0 | AX165: 0 | AY165: 0 | AZ165: 0 | BA165: 0 | BB165: 0 | BC165: 0 | BD165: 0 | BE165: 0 | BF165: 0 | BG165: 0 | BH165: 0 | BI165: 0 | BJ165: 0 | BK165: 0 | BL165: 0 | BM165: 0 | BN165: 0 | BO165: 0 | BP165: 0 | BQ165: 3500 | BR165: 3500 | BS165: 0 | BT165: 0 | BU165: 0 | BV165: 0 | BW165: 0 | BX165: 0 | BY165: 0 | BZ165: 0 | CA165: 0 | CB165: 0 | CC165: 0 | CD165: 0 | CE165: 0 | CF165: 0 | CG165: 0 | CH165: 0 | CI165: 0 | CJ165: 0 | CK165: 0 | CL165: 0 | CM165: 0 | CN165: 0 | CO165: 0
A166: 2 | B166: 3 | C166: — | D166: — | E166: Premium Plan | F166: =+'Employee Cost Model'!$C$2 -> Employee Only | G166: In | H166: Professional | I166: PCP | K166: N | L166: 0 | M166: 0 | N166: 0 | O166: — | P166: — | Q166: 167.4628453 | R166: 0 | S166: 0 | T166: 9 | U166: 53 | V166: 0 | W166: 0 | X166: Premium Plan | Y166: 1 | Z166: 0 | AA166: 0 | AB166: 0 | AC166: ProfessionalPCP | AD166: 0 | AE166: 0 | AF166: 0 | AG166: 0 | AH166: 1 | AI166: 0 | AJ166: 0 | AK166: 2 | AL166: 0 | AM166: 0 | AN166: 10 | AO166: 0 | AP166: 1 | AQ166: 0 | AR166: 0 | AS166: 0 | AT166: 0 | AU166: 250 | AV166: 250 | AW166: 0 | AX166: 0 | AY166: 0 | AZ166: 0 | BA166: 0 | BB166: 0 | BC166: 0 | BD166: 0 | BE166: 0 | BF166: 0 | BG166: 0 | BH166: 0 | BI166: 0 | BJ166: 0 | BK166: 0 | BL166: 0 | BM166: 0 | BN166: 0 | BO166: 0 | BP166: 0 | BQ166: 3500 | BR166: 3500 | BS166: 0 | BT166: 0 | BU166: 0 | BV166: 0 | BW166: 0 | BX166: 0 | BY166: 0 | BZ166: 0 | CA166: 0 | CB166: 0 | CC166: 0 | CD166: 0 | CE166: 0 | CF166: 0 | CG166: 0 | CH166: 0 | CI166: 0 | CJ166: 0 | CK166: 0 | CL166: 0 | CM166: 0 | CN166: 0 | CO166: 0
A167: 2 | B167: 3 | C167: — | D167: — | E167: Premium Plan | F167: =+'Employee Cost Model'!$C$2 -> Employee Only | G167: In | H167: Professional | I167: SCP | K167: N | L167: 0 | M167: 0 | N167: 0 | O167: — | P167: — | Q167: 190.3145998 | R167: 0 | S167: 0 | T167: 10 | U167: 54 | V167: 0 | W167: 0 | X167: Premium Plan | Y167: 1 | Z167: 0 | AA167: 0 | AB167: 0 | AC167: ProfessionalSCP | AD167: 0 | AE167: 0 | AF167: 0 | AG167: 0 | AH167: 1 | AI167: 0 | AJ167: 0 | AK167: 2 | AL167: 0 | AM167: 0 | AN167: 15 | AO167: 0 | AP167: 1 | AQ167: 0 | AR167: 0 | AS167: 0 | AT167: 0 | AU167: 250 | AV167: 250 | AW167: 0 | AX167: 0 | AY167: 0 | AZ167: 0 | BA167: 0 | BB167: 0 | BC167: 0 | BD167: 0 | BE167: 0 | BF167: 0 | BG167: 0 | BH167: 0 | BI167: 0 | BJ167: 0 | BK167: 0 | BL167: 0 | BM167: 0 | BN167: 0 | BO167: 0 | BP167: 0 | BQ167: 3500 | BR167: 3500 | BS167: 0 | BT167: 0 | BU167: 0 | BV167: 0 | BW167: 0 | BX167: 0 | BY167: 0 | BZ167: 0 | CA167: 0 | CB167: 0 | CC167: 0 | CD167: 0 | CE167: 0 | CF167: 0 | CG167: 0 | CH167: 0 | CI167: 0 | CJ167: 0 | CK167: 0 | CL167: 0 | CM167: 0 | CN167: 0 | CO167: 0
A168: 2 | B168: 3 | C168: — | D168: — | E168: Premium Plan | F168: =+'Employee Cost Model'!$C$2 -> Employee Only | G168: In | H168: Professional | I168: Maternity | K168: N | L168: 0 | M168: 0 | N168: 0 | O168: — | P168: — | Q168: 23659.20645 | R168: 0 | S168: 0 | T168: 11 | U168: 55 | V168: 0 | W168: 0 | X168: Premium Plan | Y168: 1 | Z168: 0 | AA168: 0 | AB168: 0 | AC168: ProfessionalMaternity | AD168: 0 | AE168: 0 | AF168: 0 | AG168: 0 | AH168: 2 | AI168: 0 | AJ168: 0 | AK168: 2 | AL168: 0 | AM168: 0 | AN168: 0 | AO168: 0 | AP168: 1 | AQ168: 0 | AR168: 0 | AS168: 0 | AT168: 0 | AU168: 250 | AV168: 250 | AW168: 0 | AX168: 0 | AY168: 0 | AZ168: 0 | BA168: 0 | BB168: 0 | BC168: 0 | BD168: 0 | BE168: 0 | BF168: 0 | BG168: 0 | BH168: 0 | BI168: 0 | BJ168: 0 | BK168: 0 | BL168: 0 | BM168: 0 | BN168: 0 | BO168: 0 | BP168: 0 | BQ168: 3500 | BR168: 3500 | BS168: 0 | BT168: 0 | BU168: 0 | BV168: 0 | BW168: 0 | BX168: 0 | BY168: 0 | BZ168: 0 | CA168: 0 | CB168: 0 | CC168: 0 | CD168: 0 | CE168: 0 | CF168: 0 | CG168: 0 | CH168: 0 | CI168: 0 | CJ168: 0 | CK168: 0 | CL168: 0 | CM168: 0 | CN168: 0 | CO168: 0
A169: 2 | B169: 3 | C169: — | D169: — | E169: Premium Plan | F169: =+'Employee Cost Model'!$C$2 -> Employee Only | G169: In | H169: Professional | I169: Off Surgery | K169: N | L169: 0 | M169: 0 | N169: 0 | O169: — | P169: — | Q169: 988.0543893 | R169: 0 | S169: 0 | T169: 12 | U169: 56 | V169: 0 | W169: 0 | X169: Premium Plan | Y169: 1 | Z169: 0 | AA169: 0 | AB169: 0 | AC169: ProfessionalOff Surgery | AD169: 0 | AE169: 0 | AF169: 0 | AG169: 0 | AH169: 2 | AI169: 0 | AJ169: 0 | AK169: 2 | AL169: 0 | AM169: 0 | AN169: 0 | AO169: 0 | AP169: 1 | AQ169: 0 | AR169: 0 | AS169: 0 | AT169: 0 | AU169: 250 | AV169: 250 | AW169: 0 | AX169: 0 | AY169: 0 | AZ169: 0 | BA169: 0 | BB169: 0 | BC169: 0 | BD169: 0 | BE169: 0 | BF169: 0 | BG169: 0 | BH169: 0 | BI169: 0 | BJ169: 0 | BK169: 0 | BL169: 0 | BM169: 0 | BN169: 0 | BO169: 0 | BP169: 0 | BQ169: 3500 | BR169: 3500 | BS169: 0 | BT169: 0 | BU169: 0 | BV169: 0 | BW169: 0 | BX169: 0 | BY169: 0 | BZ169: 0 | CA169: 0 | CB169: 0 | CC169: 0 | CD169: 0 | CE169: 0 | CF169: 0 | CG169: 0 | CH169: 0 | CI169: 0 | CJ169: 0 | CK169: 0 | CL169: 0 | CM169: 0 | CN169: 0 | CO169: 0
A170: 2 | B170: 3 | C170: — | D170: — | E170: Premium Plan | F170: =+'Employee Cost Model'!$C$2 -> Employee Only | G170: In | H170: Professional | I170: MHSA | K170: N | L170: 0 | M170: 0 | N170: 0 | O170: — | P170: — | Q170: 125.9770284 | R170: 0 | S170: 0 | T170: 13 | U170: 57 | V170: 0 | W170: 0 | X170: Premium Plan | Y170: 1 | Z170: 0 | AA170: 0 | AB170: 0 | AC170: ProfessionalMHSA | AD170: 0 | AE170: 0 | AF170: 0 | AG170: 0 | AH170: 1 | AI170: 0 | AJ170: 0 | AK170: 2 | AL170: 0 | AM170: 0 | AN170: 10 | AO170: 0 | AP170: 1 | AQ170: 0 | AR170: 0 | AS170: 0 | AT170: 0 | AU170: 250 | AV170: 250 | AW170: 0 | AX170: 0 | AY170: 0 | AZ170: 0 | BA170: 0 | BB170: 0 | BC170: 0 | BD170: 0 | BE170: 0 | BF170: 0 | BG170: 0 | BH170: 0 | BI170: 0 | BJ170: 0 | BK170: 0 | BL170: 0 | BM170: 0 | BN170: 0 | BO170: 0 | BP170: 0 | BQ170: 3500 | BR170: 3500 | BS170: 0 | BT170: 0 | BU170: 0 | BV170: 0 | BW170: 0 | BX170: 0 | BY170: 0 | BZ170: 0 | CA170: 0 | CB170: 0 | CC170: 0 | CD170: 0 | CE170: 0 | CF170: 0 | CG170: 0 | CH170: 0 | CI170: 0 | CJ170: 0 | CK170: 0 | CL170: 0 | CM170: 0 | CN170: 0 | CO170: 0
A171: 2 | B171: 3 | C171: — | D171: — | E171: Premium Plan | F171: =+'Employee Cost Model'!$C$2 -> Employee Only | G171: In | H171: Professional | I171: PhyTh/SpTh/OccTh | K171: N | L171: 0 | M171: 0 | N171: 0 | O171: — | P171: — | Q171: 165.3990089 | R171: 0 | S171: 0 | T171: 14 | U171: 58 | V171: 0 | W171: 0 | X171: Premium Plan | Y171: 1 | Z171: 0 | AA171: 0 | AB171: 0 | AC171: ProfessionalPhyTh/SpTh/OccTh | AD171: 0 | AE171: 0 | AF171: 0 | AG171: 0 | AH171: 1 | AI171: 0 | AJ171: 0 | AK171: 2 | AL171: 0 | AM171: 0 | AN171: 33.07980179 | AO171: 0 | AP171: 1 | AQ171: 0 | AR171: 0 | AS171: 0 | AT171: 0 | AU171: 250 | AV171: 250 | AW171: 0 | AX171: 0 | AY171: 0 | AZ171: 0 | BA171: 0 | BB171: 0 | BC171: 0 | BD171: 0 | BE171: 0 | BF171: 0 | BG171: 0 | BH171: 0 | BI171: 0 | BJ171: 0 | BK171: 0 | BL171: 0 | BM171: 0 | BN171: 0 | BO171: 0 | BP171: 0 | BQ171: 3500 | BR171: 3500 | BS171: 0 | BT171: 0 | BU171: 0 | BV171: 0 | BW171: 0 | BX171: 0 | BY171: 0 | BZ171: 0 | CA171: 0 | CB171: 0 | CC171: 0 | CD171: 0 | CE171: 0 | CF171: 0 | CG171: 0 | CH171: 0 | CI171: 0 | CJ171: 0 | CK171: 0 | CL171: 0 | CM171: 0 | CN171: 0 | CO171: 0
A172: 2 | B172: 3 | C172: — | D172: — | E172: Premium Plan | F172: =+'Employee Cost Model'!$C$2 -> Employee Only | G172: In | H172: Professional | I172: Chiro | K172: N | L172: 0 | M172: 0 | N172: 0 | O172: — | P172: — | Q172: 79.45445144 | R172: 0 | S172: 0 | T172: 15 | U172: 59 | V172: 0 | W172: 0 | X172: Premium Plan | Y172: 1 | Z172: 0 | AA172: 0 | AB172: 0 | AC172: ProfessionalChiro | AD172: 0 | AE172: 0 | AF172: 0 | AG172: 0 | AH172: 1 | AI172: 0 | AJ172: 0 | AK172: 2 | AL172: 0 | AM172: 0 | AN172: 15 | AO172: 0 | AP172: 1 | AQ172: 0 | AR172: 0 | AS172: 0 | AT172: 0 | AU172: 250 | AV172: 250 | AW172: 0 | AX172: 0 | AY172: 0 | AZ172: 0 | BA172: 0 | BB172: 0 | BC172: 0 | BD172: 0 | BE172: 0 | BF172: 0 | BG172: 0 | BH172: 0 | BI172: 0 | BJ172: 0 | BK172: 0 | BL172: 0 | BM172: 0 | BN172: 0 | BO172: 0 | BP172: 0 | BQ172: 3500 | BR172: 3500 | BS172: 0 | BT172: 0 | BU172: 0 | BV172: 0 | BW172: 0 | BX172: 0 | BY172: 0 | BZ172: 0 | CA172: 0 | CB172: 0 | CC172: 0 | CD172: 0 | CE172: 0 | CF172: 0 | CG172: 0 | CH172: 0 | CI172: 0 | CJ172: 0 | CK172: 0 | CL172: 0 | CM172: 0 | CN172: 0 | CO172: 0
A173: 2 | B173: 3 | C173: — | D173: — | E173: Premium Plan | F173: =+'Employee Cost Model'!$C$2 -> Employee Only | G173: In | H173: Rx | I173: R | J173: 1 | K173: N | L173: 0 | M173: 0 | N173: 0 | O173: — | P173: — | Q173: 50.83329564 | R173: 0 | S173: 0 | T173: 16 | U173: 60 | V173: 0 | W173: 0 | X173: Premium Plan | Y173: 1 | Z173: 0 | AA173: 0 | AB173: 0 | AC173: RxR1 | AD173: 0 | AE173: 1 | AF173: 0 | AG173: 0 | AH173: 1 | AI173: 0 | AJ173: 0 | AK173: 2 | AL173: 0 | AM173: 0 | AN173: 5 | AO173: 0 | AP173: 1 | AQ173: 0 | AR173: 0 | AS173: 0 | AT173: 0 | AU173: 250 | AV173: 250 | AW173: 0 | AX173: 0 | AY173: 0 | AZ173: 0 | BA173: 0 | BB173: 0 | BC173: 0 | BD173: 0 | BE173: 0 | BF173: 0 | BG173: 0 | BH173: 0 | BI173: 0 | BJ173: 0 | BK173: 0 | BL173: 0 | BM173: 0 | BN173: 0 | BO173: 0 | BP173: 0 | BQ173: 3500 | BR173: 3500 | BS173: 0 | BT173: 0 | BU173: 0 | BV173: 0 | BW173: 0 | BX173: 0 | BY173: 0 | BZ173: 0 | CA173: 0 | CB173: 0 | CC173: 0 | CD173: 0 | CE173: 0 | CF173: 0 | CG173: 0 | CH173: 0 | CI173: 0 | CJ173: 0 | CK173: 0 | CL173: 0 | CM173: 0 | CN173: 0 | CO173: 0
A174: 2 | B174: 3 | C174: — | D174: — | E174: Premium Plan | F174: =+'Employee Cost Model'!$C$2 -> Employee Only | G174: In | H174: Rx | I174: R | J174: 2 | K174: N | L174: 0 | M174: 0 | N174: 0 | O174: — | P174: — | Q174: 389.8130676 | R174: 0 | S174: 0 | T174: 17 | U174: 61 | V174: 0 | W174: 0 | X174: Premium Plan | Y174: 1 | Z174: 0 | AA174: 0 | AB174: 0 | AC174: RxR2 | AD174: 0 | AE174: 1 | AF174: 0 | AG174: 0 | AH174: 1 | AI174: 0 | AJ174: 0 | AK174: 2 | AL174: 0 | AM174: 0 | AN174: 25 | AO174: 0 | AP174: 1 | AQ174: 0 | AR174: 0 | AS174: 0 | AT174: 0 | AU174: 250 | AV174: 250 | AW174: 0 | AX174: 0 | AY174: 0 | AZ174: 0 | BA174: 0 | BB174: 0 | BC174: 0 | BD174: 0 | BE174: 0 | BF174: 0 | BG174: 0 | BH174: 0 | BI174: 0 | BJ174: 0 | BK174: 0 | BL174: 0 | BM174: 0 | BN174: 0 | BO174: 0 | BP174: 0 | BQ174: 3500 | BR174: 3500 | BS174: 0 | BT174: 0 | BU174: 0 | BV174: 0 | BW174: 0 | BX174: 0 | BY174: 0 | BZ174: 0 | CA174: 0 | CB174: 0 | CC174: 0 | CD174: 0 | CE174: 0 | CF174: 0 | CG174: 0 | CH174: 0 | CI174: 0 | CJ174: 0 | CK174: 0 | CL174: 0 | CM174: 0 | CN174: 0 | CO174: 0
A175: 2 | B175: 3 | C175: — | D175: — | E175: Premium Plan | F175: =+'Employee Cost Model'!$C$2 -> Employee Only | G175: In | H175: Rx | I175: R | J175: 3 | K175: N | L175: 0 | M175: 0 | N175: 0 | O175: — | P175: — | Q175: 651.9493716 | R175: 0 | S175: 0 | T175: 18 | U175: 62 | V175: 0 | W175: 0 | X175: Premium Plan | Y175: 1 | Z175: 0 | AA175: 0 | AB175: 0 | AC175: RxR3 | AD175: 0 | AE175: 1 | AF175: 0 | AG175: 0 | AH175: 1 | AI175: 0 | AJ175: 0 | AK175: 2 | AL175: 0 | AM175: 0 | AN175: 40 | AO175: 0 | AP175: 1 | AQ175: 0 | AR175: 0 | AS175: 0 | AT175: 0 | AU175: 250 | AV175: 250 | AW175: 0 | AX175: 0 | AY175: 0 | AZ175: 0 | BA175: 0 | BB175: 0 | BC175: 0 | BD175: 0 | BE175: 0 | BF175: 0 | BG175: 0 | BH175: 0 | BI175: 0 | BJ175: 0 | BK175: 0 | BL175: 0 | BM175: 0 | BN175: 0 | BO175: 0 | BP175: 0 | BQ175: 3500 | BR175: 3500 | BS175: 0 | BT175: 0 | BU175: 0 | BV175: 0 | BW175: 0 | BX175: 0 | BY175: 0 | BZ175: 0 | CA175: 0 | CB175: 0 | CC175: 0 | CD175: 0 | CE175: 0 | CF175: 0 | CG175: 0 | CH175: 0 | CI175: 0 | CJ175: 0 | CK175: 0 | CL175: 0 | CM175: 0 | CN175: 0 | CO175: 0
A176: 2 | B176: 3 | C176: — | D176: — | E176: Premium Plan | F176: =+'Employee Cost Model'!$C$2 -> Employee Only | G176: In | H176: Rx | I176: R | J176: 4 | K176: N | L176: 0 | M176: 0 | N176: 0 | O176: — | P176: — | Q176: 8251.270121 | R176: 0 | S176: 0 | T176: 19 | U176: 63 | V176: 0 | W176: 0 | X176: Premium Plan | Y176: 1 | Z176: 0 | AA176: 0 | AB176: 0 | AC176: RxR4 | AD176: 0 | AE176: 1 | AF176: 0 | AG176: 0 | AH176: 1 | AI176: 0 | AJ176: 0 | AK176: 2 | AL176: 0 | AM176: 0 | AN176: 40 | AO176: 0 | AP176: 1 | AQ176: 0 | AR176: 0 | AS176: 0 | AT176: 0 | AU176: 250 | AV176: 250 | AW176: 0 | AX176: 0 | AY176: 0 | AZ176: 0 | BA176: 0 | BB176: 0 | BC176: 0 | BD176: 0 | BE176: 0 | BF176: 0 | BG176: 0 | BH176: 0 | BI176: 0 | BJ176: 0 | BK176: 0 | BL176: 0 | BM176: 0 | BN176: 0 | BO176: 0 | BP176: 0 | BQ176: 3500 | BR176: 3500 | BS176: 0 | BT176: 0 | BU176: 0 | BV176: 0 | BW176: 0 | BX176: 0 | BY176: 0 | BZ176: 0 | CA176: 0 | CB176: 0 | CC176: 0 | CD176: 0 | CE176: 0 | CF176: 0 | CG176: 0 | CH176: 0 | CI176: 0 | CJ176: 0 | CK176: 0 | CL176: 0 | CM176: 0 | CN176: 0 | CO176: 0
A177: 2 | B177: 3 | C177: — | D177: — | E177: Premium Plan | F177: =+'Employee Cost Model'!$C$2 -> Employee Only | G177: In | H177: Rx | I177: M | J177: 1 | K177: N | L177: 0 | M177: 0 | N177: 0 | O177: — | P177: — | Q177: 88.65973424 | R177: 0 | S177: 0 | T177: 20 | U177: 64 | V177: 0 | W177: 0 | X177: Premium Plan | Y177: 1 | Z177: 0 | AA177: 0 | AB177: 0 | AC177: RxM1 | AD177: 0 | AE177: 1 | AF177: 0 | AG177: 0 | AH177: 1 | AI177: 0 | AJ177: 0 | AK177: 2 | AL177: 0 | AM177: 0 | AN177: 12.5 | AO177: 0 | AP177: 1 | AQ177: 0 | AR177: 0 | AS177: 0 | AT177: 0 | AU177: 250 | AV177: 250 | AW177: 0 | AX177: 0 | AY177: 0 | AZ177: 0 | BA177: 0 | BB177: 0 | BC177: 0 | BD177: 0 | BE177: 0 | BF177: 0 | BG177: 0 | BH177: 0 | BI177: 0 | BJ177: 0 | BK177: 0 | BL177: 0 | BM177: 0 | BN177: 0 | BO177: 0 | BP177: 0 | BQ177: 3500 | BR177: 3500 | BS177: 0 | BT177: 0 | BU177: 0 | BV177: 0 | BW177: 0 | BX177: 0 | BY177: 0 | BZ177: 0 | CA177: 0 | CB177: 0 | CC177: 0 | CD177: 0 | CE177: 0 | CF177: 0 | CG177: 0 | CH177: 0 | CI177: 0 | CJ177: 0 | CK177: 0 | CL177: 0 | CM177: 0 | CN177: 0 | CO177: 0
A178: =1+A68 -> 2 | B178: =+B68 -> 3 | C178: — | D178: — | E178: Premium Plan | F178: =+'Employee Cost Model'!$C$2 -> Employee Only | G178: In | H178: Rx | I178: M | J178: 2 | K178: N | L178: =+L68 -> 0 | M178: 0 | N178: 0 | O178: — | P178: — | Q178: 857.5887486 | R178: 0 | S178: 0 | T178: 21 | U178: 65 | V178: 0 | W178: 0 | X178: Premium Plan | Y178: 1 | Z178: 0 | AA178: 0 | AB178: 0 | AC178: RxM2 | AD178: 0 | AE178: 1 | AF178: 0 | AG178: 0 | AH178: 1 | AI178: 0 | AJ178: 0 | AK178: 2 | AL178: 0 | AM178: 0 | AN178: 42.5 | AO178: 0 | AP178: 1 | AQ178: 0 | AR178: 0 | AS178: 0 | AT178: 0 | AU178: 250 | AV178: 250 | AW178: 0 | AX178: 0 | AY178: 0 | AZ178: 0 | BA178: 0 | BB178: 0 | BC178: 0 | BD178: 0 | BE178: 0 | BF178: 0 | BG178: 0 | BH178: 0 | BI178: 0 | BJ178: 0 | BK178: 0 | BL178: 0 | BM178: 0 | BN178: 0 | BO178: 0 | BP178: 0 | BQ178: 3500 | BR178: 3500 | BS178: 0 | BT178: 0 | BU178: 0 | BV178: 0 | BW178: 0 | BX178: 0 | BY178: 0 | BZ178: 0 | CA178: 0 | CB178: 0 | CC178: 0 | CD178: 0 | CE178: 0 | CF178: 0 | CG178: 0 | CH178: 0 | CI178: 0 | CJ178: 0 | CK178: 0 | CL178: 0 | CM178: 0 | CN178: 0 | CO178: 0
A179: 2 | B179: 3 | C179: — | D179: — | E179: Premium Plan | F179: =+'Employee Cost Model'!$C$2 -> Employee Only | G179: In | H179: Rx | I179: M | J179: 3 | K179: N | L179: 0 | M179: 0 | N179: 0 | O179: — | P179: — | Q179: 1250.793205 | R179: 0 | S179: 0 | T179: 22 | U179: 66 | V179: 1 | W179: 0 | X179: Premium Plan | Y179: 1 | Z179: 0 | AA179: 0 | AB179: 0 | AC179: RxM3 | AD179: 0 | AE179: 1 | AF179: 0 | AG179: 0 | AH179: 1 | AI179: 0 | AJ179: 0 | AK179: 2 | AL179: 0 | AM179: 0 | AN179: 85 | AO179: 0 | AP179: 1 | AQ179: 0 | AR179: 0 | AS179: 0 | AT179: 0 | AU179: 250 | AV179: 250 | AW179: 0 | AX179: 0 | AY179: 0 | AZ179: 0 | BA179: 0 | BB179: 0 | BC179: 0 | BD179: 0 | BE179: 0 | BF179: 0 | BG179: 0 | BH179: 0 | BI179: 0 | BJ179: 0 | BK179: 0 | BL179: 0 | BM179: 0 | BN179: 0 | BO179: 0 | BP179: 0 | BQ179: 3500 | BR179: 3500 | BS179: 0 | BT179: 0 | BU179: 0 | BV179: 0 | BW179: 0 | BX179: 0 | BY179: 0 | BZ179: 0 | CA179: 0 | CB179: 0 | CC179: 0 | CD179: 0 | CE179: 0 | CF179: 0 | CG179: 0 | CH179: 0 | CI179: 0 | CJ179: 0 | CK179: 0 | CL179: 0 | CM179: 0 | CN179: 0 | CO179: 0
A180: 2 | B180: 4 | C180: — | D180: — | E180: =+E179 -> Premium Plan | F180: =+'Employee Cost Model'!$C$2 -> Employee Only | G180: In | H180: Inp | I180: Hospital | K180: N | L180: 0 | M180: 0 | N180: 0 | O180: — | P180: — | Q180: 24527.13205 | R180: 1 | S180: 0 | T180: 1 | U180: 67 | V180: 0 | W180: 0 | X180: Premium Plan | Y180: 1 | Z180: 0 | AA180: 0 | AB180: 0 | AC180: InpHospital | AD180: 0 | AE180: 0 | AF180: 0 | AG180: 0 | AH180: 2 | AI180: 0 | AJ180: 0 | AK180: 2 | AL180: 0 | AM180: 0 | AN180: 0 | AO180: 0 | AP180: 1 | AQ180: 0 | AR180: 0 | AS180: 0 | AT180: 0 | AU180: 250 | AV180: 250 | AW180: 0 | AX180: 0 | AY180: 0 | AZ180: 0 | BA180: 0 | BB180: 0 | BC180: 0 | BD180: 0 | BE180: 0 | BF180: 0 | BG180: 0 | BH180: 0 | BI180: 0 | BJ180: 0 | BK180: 0 | BL180: 0 | BM180: 0 | BN180: 0 | BO180: 0 | BP180: 0 | BQ180: 3500 | BR180: 3500 | BS180: 0 | BT180: 0 | BU180: 0 | BV180: 0 | BW180: 0 | BX180: 0 | BY180: 0 | BZ180: 0 | CA180: 0 | CB180: 0 | CC180: 0 | CD180: 0 | CE180: 0 | CF180: 0 | CG180: 0 | CH180: 0 | CI180: 0 | CJ180: 0 | CK180: 0 | CL180: 0 | CM180: 0 | CN180: 0 | CO180: 0
A181: 2 | B181: 4 | C181: — | D181: — | E181: Premium Plan | F181: =+'Employee Cost Model'!$C$2 -> Employee Only | G181: In | H181: Inp | I181: MHSA | K181: N | L181: 0 | M181: 0 | N181: 0 | O181: — | P181: — | Q181: 11851.45063 | R181: 0 | S181: 0 | T181: 2 | U181: 68 | V181: 0 | W181: 0 | X181: Premium Plan | Y181: 1 | Z181: 0 | AA181: 0 | AB181: 0 | AC181: InpMHSA | AD181: 0 | AE181: 0 | AF181: 0 | AG181: 0 | AH181: 2 | AI181: 0 | AJ181: 0 | AK181: 2 | AL181: 0 | AM181: 0 | AN181: 0 | AO181: 0 | AP181: 1 | AQ181: 0 | AR181: 0 | AS181: 0 | AT181: 0 | AU181: 250 | AV181: 250 | AW181: 0 | AX181: 0 | AY181: 0 | AZ181: 0 | BA181: 0 | BB181: 0 | BC181: 0 | BD181: 0 | BE181: 0 | BF181: 0 | BG181: 0 | BH181: 0 | BI181: 0 | BJ181: 0 | BK181: 0 | BL181: 0 | BM181: 0 | BN181: 0 | BO181: 0 | BP181: 0 | BQ181: 3500 | BR181: 3500 | BS181: 0 | BT181: 0 | BU181: 0 | BV181: 0 | BW181: 0 | BX181: 0 | BY181: 0 | BZ181: 0 | CA181: 0 | CB181: 0 | CC181: 0 | CD181: 0 | CE181: 0 | CF181: 0 | CG181: 0 | CH181: 0 | CI181: 0 | CJ181: 0 | CK181: 0 | CL181: 0 | CM181: 0 | CN181: 0 | CO181: 0
A182: 2 | B182: 4 | C182: — | D182: — | E182: Premium Plan | F182: =+'Employee Cost Model'!$C$2 -> Employee Only | G182: In | H182: Inp | I182: SNF | K182: N | L182: 0 | M182: 0 | N182: 0 | O182: — | P182: — | Q182: 6523.462072 | R182: 0 | S182: 0 | T182: 3 | U182: 69 | V182: 0 | W182: 0 | X182: Premium Plan | Y182: 1 | Z182: 0 | AA182: 0 | AB182: 0 | AC182: InpSNF | AD182: 0 | AE182: 0 | AF182: 0 | AG182: 0 | AH182: 2 | AI182: 0 | AJ182: 0 | AK182: 2 | AL182: 0 | AM182: 0 | AN182: 0 | AO182: 0 | AP182: 1 | AQ182: 0 | AR182: 0 | AS182: 0 | AT182: 0 | AU182: 250 | AV182: 250 | AW182: 0 | AX182: 0 | AY182: 0 | AZ182: 0 | BA182: 0 | BB182: 0 | BC182: 0 | BD182: 0 | BE182: 0 | BF182: 0 | BG182: 0 | BH182: 0 | BI182: 0 | BJ182: 0 | BK182: 0 | BL182: 0 | BM182: 0 | BN182: 0 | BO182: 0 | BP182: 0 | BQ182: 3500 | BR182: 3500 | BS182: 0 | BT182: 0 | BU182: 0 | BV182: 0 | BW182: 0 | BX182: 0 | BY182: 0 | BZ182: 0 | CA182: 0 | CB182: 0 | CC182: 0 | CD182: 0 | CE182: 0 | CF182: 0 | CG182: 0 | CH182: 0 | CI182: 0 | CJ182: 0 | CK182: 0 | CL182: 0 | CM182: 0 | CN182: 0 | CO182: 0
A183: 2 | B183: 4 | C183: — | D183: — | E183: Premium Plan | F183: =+'Employee Cost Model'!$C$2 -> Employee Only | G183: In | H183: Out | I183: ER | K183: N | L183: 0 | M183: 0 | N183: 0 | O183: — | P183: — | Q183: 1458.770268 | R183: 0 | S183: 0 | T183: 4 | U183: 70 | V183: 0 | W183: 0 | X183: Premium Plan | Y183: 1 | Z183: 0 | AA183: 0 | AB183: 0 | AC183: OutER | AD183: 0 | AE183: 0 | AF183: 0 | AG183: 0 | AH183: 1 | AI183: 0 | AJ183: 0 | AK183: 2 | AL183: 0 | AM183: 0 | AN183: 75 | AO183: 0 | AP183: 1 | AQ183: 0 | AR183: 0 | AS183: 0 | AT183: 0 | AU183: 250 | AV183: 250 | AW183: 0 | AX183: 0 | AY183: 0 | AZ183: 0 | BA183: 0 | BB183: 0 | BC183: 0 | BD183: 0 | BE183: 0 | BF183: 0 | BG183: 0 | BH183: 0 | BI183: 0 | BJ183: 0 | BK183: 0 | BL183: 0 | BM183: 0 | BN183: 0 | BO183: 0 | BP183: 0 | BQ183: 3500 | BR183: 3500 | BS183: 0 | BT183: 0 | BU183: 0 | BV183: 0 | BW183: 0 | BX183: 0 | BY183: 0 | BZ183: 0 | CA183: 0 | CB183: 0 | CC183: 0 | CD183: 0 | CE183: 0 | CF183: 0 | CG183: 0 | CH183: 0 | CI183: 0 | CJ183: 0 | CK183: 0 | CL183: 0 | CM183: 0 | CN183: 0 | CO183: 0
A184: 2 | B184: 4 | C184: — | D184: — | E184: Premium Plan | F184: =+'Employee Cost Model'!$C$2 -> Employee Only | G184: In | H184: Out | I184: UC | K184: N | L184: 0 | M184: 0 | N184: 0 | O184: — | P184: — | Q184: 167.7490597 | R184: 0 | S184: 0 | T184: 5 | U184: 71 | V184: 0 | W184: 0 | X184: Premium Plan | Y184: 1 | Z184: 0 | AA184: 0 | AB184: 0 | AC184: OutUC | AD184: 0 | AE184: 0 | AF184: 0 | AG184: 0 | AH184: 1 | AI184: 0 | AJ184: 0 | AK184: 2 | AL184: 0 | AM184: 0 | AN184: 10 | AO184: 0 | AP184: 1 | AQ184: 0 | AR184: 0 | AS184: 0 | AT184: 0 | AU184: 250 | AV184: 250 | AW184: 0 | AX184: 0 | AY184: 0 | AZ184: 0 | BA184: 0 | BB184: 0 | BC184: 0 | BD184: 0 | BE184: 0 | BF184: 0 | BG184: 0 | BH184: 0 | BI184: 0 | BJ184: 0 | BK184: 0 | BL184: 0 | BM184: 0 | BN184: 0 | BO184: 0 | BP184: 0 | BQ184: 3500 | BR184: 3500 | BS184: 0 | BT184: 0 | BU184: 0 | BV184: 0 | BW184: 0 | BX184: 0 | BY184: 0 | BZ184: 0 | CA184: 0 | CB184: 0 | CC184: 0 | CD184: 0 | CE184: 0 | CF184: 0 | CG184: 0 | CH184: 0 | CI184: 0 | CJ184: 0 | CK184: 0 | CL184: 0 | CM184: 0 | CN184: 0 | CO184: 0
A185: 2 | B185: 4 | C185: — | D185: — | E185: Premium Plan | F185: =+'Employee Cost Model'!$C$2 -> Employee Only | G185: In | H185: Out | I185: Surgery | K185: N | L185: 0 | M185: 0 | N185: 0 | O185: — | P185: — | Q185: 3651.604864 | R185: 0 | S185: 0 | T185: 6 | U185: 72 | V185: 0 | W185: 0 | X185: Premium Plan | Y185: 1 | Z185: 0 | AA185: 0 | AB185: 0 | AC185: OutSurgery | AD185: 0 | AE185: 0 | AF185: 0 | AG185: 0 | AH185: 2 | AI185: 0 | AJ185: 0 | AK185: 2 | AL185: 0 | AM185: 0 | AN185: 0 | AO185: 0 | AP185: 1 | AQ185: 0 | AR185: 0 | AS185: 0 | AT185: 0 | AU185: 250 | AV185: 250 | AW185: 0 | AX185: 0 | AY185: 0 | AZ185: 0 | BA185: 0 | BB185: 0 | BC185: 0 | BD185: 0 | BE185: 0 | BF185: 0 | BG185: 0 | BH185: 0 | BI185: 0 | BJ185: 0 | BK185: 0 | BL185: 0 | BM185: 0 | BN185: 0 | BO185: 0 | BP185: 0 | BQ185: 3500 | BR185: 3500 | BS185: 0 | BT185: 0 | BU185: 0 | BV185: 0 | BW185: 0 | BX185: 0 | BY185: 0 | BZ185: 0 | CA185: 0 | CB185: 0 | CC185: 0 | CD185: 0 | CE185: 0 | CF185: 0 | CG185: 0 | CH185: 0 | CI185: 0 | CJ185: 0 | CK185: 0 | CL185: 0 | CM185: 0 | CN185: 0 | CO185: 0
A186: 2 | B186: 4 | C186: — | D186: — | E186: Premium Plan | F186: =+'Employee Cost Model'!$C$2 -> Employee Only | G186: In | H186: Out | I186: X-ray/Lab | K186: N | L186: 0 | M186: 0 | N186: 0 | O186: — | P186: — | Q186: 223.9676734 | R186: 0 | S186: 0 | T186: 7 | U186: 73 | V186: 0 | W186: 0 | X186: Premium Plan | Y186: 1 | Z186: 0 | AA186: 0 | AB186: 0 | AC186: OutX-ray/Lab | AD186: 0 | AE186: 0 | AF186: 0 | AG186: 0 | AH186: 2 | AI186: 0 | AJ186: 0 | AK186: 2 | AL186: 0 | AM186: 0 | AN186: 0 | AO186: 0 | AP186: 1 | AQ186: 0 | AR186: 0 | AS186: 0 | AT186: 0 | AU186: 250 | AV186: 250 | AW186: 0 | AX186: 0 | AY186: 0 | AZ186: 0 | BA186: 0 | BB186: 0 | BC186: 0 | BD186: 0 | BE186: 0 | BF186: 0 | BG186: 0 | BH186: 0 | BI186: 0 | BJ186: 0 | BK186: 0 | BL186: 0 | BM186: 0 | BN186: 0 | BO186: 0 | BP186: 0 | BQ186: 3500 | BR186: 3500 | BS186: 0 | BT186: 0 | BU186: 0 | BV186: 0 | BW186: 0 | BX186: 0 | BY186: 0 | BZ186: 0 | CA186: 0 | CB186: 0 | CC186: 0 | CD186: 0 | CE186: 0 | CF186: 0 | CG186: 0 | CH186: 0 | CI186: 0 | CJ186: 0 | CK186: 0 | CL186: 0 | CM186: 0 | CN186: 0 | CO186: 0
A187: 2 | B187: 4 | C187: — | D187: — | E187: Premium Plan | F187: =+'Employee Cost Model'!$C$2 -> Employee Only | G187: In | H187: Out | I187: Adv Rad | K187: N | L187: 0 | M187: 0 | N187: 0 | O187: — | P187: — | Q187: 995.6214691 | R187: 0 | S187: 0 | T187: 8 | U187: 74 | V187: 0 | W187: 0 | X187: Premium Plan | Y187: 1 | Z187: 0 | AA187: 0 | AB187: 0 | AC187: OutAdv Rad | AD187: 0 | AE187: 0 | AF187: 0 | AG187: 0 | AH187: 2 | AI187: 0 | AJ187: 0 | AK187: 2 | AL187: 0 | AM187: 0 | AN187: 0 | AO187: 0 | AP187: 1 | AQ187: 0 | AR187: 0 | AS187: 0 | AT187: 0 | AU187: 250 | AV187: 250 | AW187: 0 | AX187: 0 | AY187: 0 | AZ187: 0 | BA187: 0 | BB187: 0 | BC187: 0 | BD187: 0 | BE187: 0 | BF187: 0 | BG187: 0 | BH187: 0 | BI187: 0 | BJ187: 0 | BK187: 0 | BL187: 0 | BM187: 0 | BN187: 0 | BO187: 0 | BP187: 0 | BQ187: 3500 | BR187: 3500 | BS187: 0 | BT187: 0 | BU187: 0 | BV187: 0 | BW187: 0 | BX187: 0 | BY187: 0 | BZ187: 0 | CA187: 0 | CB187: 0 | CC187: 0 | CD187: 0 | CE187: 0 | CF187: 0 | CG187: 0 | CH187: 0 | CI187: 0 | CJ187: 0 | CK187: 0 | CL187: 0 | CM187: 0 | CN187: 0 | CO187: 0
A188: 2 | B188: 4 | C188: — | D188: — | E188: Premium Plan | F188: =+'Employee Cost Model'!$C$2 -> Employee Only | G188: In | H188: Professional | I188: PCP | K188: N | L188: 0 | M188: 0 | N188: 0 | O188: — | P188: — | Q188: 167.4628453 | R188: 0 | S188: 0 | T188: 9 | U188: 75 | V188: 0 | W188: 0 | X188: Premium Plan | Y188: 1 | Z188: 0 | AA188: 0 | AB188: 0 | AC188: ProfessionalPCP | AD188: 0 | AE188: 0 | AF188: 0 | AG188: 0 | AH188: 1 | AI188: 0 | AJ188: 0 | AK188: 2 | AL188: 0 | AM188: 0 | AN188: 10 | AO188: 0 | AP188: 1 | AQ188: 0 | AR188: 0 | AS188: 0 | AT188: 0 | AU188: 250 | AV188: 250 | AW188: 0 | AX188: 0 | AY188: 0 | AZ188: 0 | BA188: 0 | BB188: 0 | BC188: 0 | BD188: 0 | BE188: 0 | BF188: 0 | BG188: 0 | BH188: 0 | BI188: 0 | BJ188: 0 | BK188: 0 | BL188: 0 | BM188: 0 | BN188: 0 | BO188: 0 | BP188: 0 | BQ188: 3500 | BR188: 3500 | BS188: 0 | BT188: 0 | BU188: 0 | BV188: 0 | BW188: 0 | BX188: 0 | BY188: 0 | BZ188: 0 | CA188: 0 | CB188: 0 | CC188: 0 | CD188: 0 | CE188: 0 | CF188: 0 | CG188: 0 | CH188: 0 | CI188: 0 | CJ188: 0 | CK188: 0 | CL188: 0 | CM188: 0 | CN188: 0 | CO188: 0
A189: 2 | B189: 4 | C189: — | D189: — | E189: Premium Plan | F189: =+'Employee Cost Model'!$C$2 -> Employee Only | G189: In | H189: Professional | I189: SCP | K189: N | L189: 0 | M189: 0 | N189: 0 | O189: — | P189: — | Q189: 190.3145998 | R189: 0 | S189: 0 | T189: 10 | U189: 76 | V189: 0 | W189: 0 | X189: Premium Plan | Y189: 1 | Z189: 0 | AA189: 0 | AB189: 0 | AC189: ProfessionalSCP | AD189: 0 | AE189: 0 | AF189: 0 | AG189: 0 | AH189: 1 | AI189: 0 | AJ189: 0 | AK189: 2 | AL189: 0 | AM189: 0 | AN189: 15 | AO189: 0 | AP189: 1 | AQ189: 0 | AR189: 0 | AS189: 0 | AT189: 0 | AU189: 250 | AV189: 250 | AW189: 0 | AX189: 0 | AY189: 0 | AZ189: 0 | BA189: 0 | BB189: 0 | BC189: 0 | BD189: 0 | BE189: 0 | BF189: 0 | BG189: 0 | BH189: 0 | BI189: 0 | BJ189: 0 | BK189: 0 | BL189: 0 | BM189: 0 | BN189: 0 | BO189: 0 | BP189: 0 | BQ189: 3500 | BR189: 3500 | BS189: 0 | BT189: 0 | BU189: 0 | BV189: 0 | BW189: 0 | BX189: 0 | BY189: 0 | BZ189: 0 | CA189: 0 | CB189: 0 | CC189: 0 | CD189: 0 | CE189: 0 | CF189: 0 | CG189: 0 | CH189: 0 | CI189: 0 | CJ189: 0 | CK189: 0 | CL189: 0 | CM189: 0 | CN189: 0 | CO189: 0
A190: 2 | B190: 4 | C190: — | D190: — | E190: Premium Plan | F190: =+'Employee Cost Model'!$C$2 -> Employee Only | G190: In | H190: Professional | I190: Maternity | K190: N | L190: 0 | M190: 0 | N190: 0 | O190: — | P190: — | Q190: 23659.20645 | R190: 0 | S190: 0 | T190: 11 | U190: 77 | V190: 0 | W190: 0 | X190: Premium Plan | Y190: 1 | Z190: 0 | AA190: 0 | AB190: 0 | AC190: ProfessionalMaternity | AD190: 0 | AE190: 0 | AF190: 0 | AG190: 0 | AH190: 2 | AI190: 0 | AJ190: 0 | AK190: 2 | AL190: 0 | AM190: 0 | AN190: 0 | AO190: 0 | AP190: 1 | AQ190: 0 | AR190: 0 | AS190: 0 | AT190: 0 | AU190: 250 | AV190: 250 | AW190: 0 | AX190: 0 | AY190: 0 | AZ190: 0 | BA190: 0 | BB190: 0 | BC190: 0 | BD190: 0 | BE190: 0 | BF190: 0 | BG190: 0 | BH190: 0 | BI190: 0 | BJ190: 0 | BK190: 0 | BL190: 0 | BM190: 0 | BN190: 0 | BO190: 0 | BP190: 0 | BQ190: 3500 | BR190: 3500 | BS190: 0 | BT190: 0 | BU190: 0 | BV190: 0 | BW190: 0 | BX190: 0 | BY190: 0 | BZ190: 0 | CA190: 0 | CB190: 0 | CC190: 0 | CD190: 0 | CE190: 0 | CF190: 0 | CG190: 0 | CH190: 0 | CI190: 0 | CJ190: 0 | CK190: 0 | CL190: 0 | CM190: 0 | CN190: 0 | CO190: 0
A191: 2 | B191: 4 | C191: — | D191: — | E191: Premium Plan | F191: =+'Employee Cost Model'!$C$2 -> Employee Only | G191: In | H191: Professional | I191: Off Surgery | K191: N | L191: 0 | M191: 0 | N191: 0 | O191: — | P191: — | Q191: 988.0543893 | R191: 0 | S191: 0 | T191: 12 | U191: 78 | V191: 0 | W191: 0 | X191: Premium Plan | Y191: 1 | Z191: 0 | AA191: 0 | AB191: 0 | AC191: ProfessionalOff Surgery | AD191: 0 | AE191: 0 | AF191: 0 | AG191: 0 | AH191: 2 | AI191: 0 | AJ191: 0 | AK191: 2 | AL191: 0 | AM191: 0 | AN191: 0 | AO191: 0 | AP191: 1 | AQ191: 0 | AR191: 0 | AS191: 0 | AT191: 0 | AU191: 250 | AV191: 250 | AW191: 0 | AX191: 0 | AY191: 0 | AZ191: 0 | BA191: 0 | BB191: 0 | BC191: 0 | BD191: 0 | BE191: 0 | BF191: 0 | BG191: 0 | BH191: 0 | BI191: 0 | BJ191: 0 | BK191: 0 | BL191: 0 | BM191: 0 | BN191: 0 | BO191: 0 | BP191: 0 | BQ191: 3500 | BR191: 3500 | BS191: 0 | BT191: 0 | BU191: 0 | BV191: 0 | BW191: 0 | BX191: 0 | BY191: 0 | BZ191: 0 | CA191: 0 | CB191: 0 | CC191: 0 | CD191: 0 | CE191: 0 | CF191: 0 | CG191: 0 | CH191: 0 | CI191: 0 | CJ191: 0 | CK191: 0 | CL191: 0 | CM191: 0 | CN191: 0 | CO191: 0
A192: 2 | B192: 4 | C192: — | D192: — | E192: Premium Plan | F192: =+'Employee Cost Model'!$C$2 -> Employee Only | G192: In | H192: Professional | I192: MHSA | K192: N | L192: 0 | M192: 0 | N192: 0 | O192: — | P192: — | Q192: 125.9770284 | R192: 0 | S192: 0 | T192: 13 | U192: 79 | V192: 0 | W192: 0 | X192: Premium Plan | Y192: 1 | Z192: 0 | AA192: 0 | AB192: 0 | AC192: ProfessionalMHSA | AD192: 0 | AE192: 0 | AF192: 0 | AG192: 0 | AH192: 1 | AI192: 0 | AJ192: 0 | AK192: 2 | AL192: 0 | AM192: 0 | AN192: 10 | AO192: 0 | AP192: 1 | AQ192: 0 | AR192: 0 | AS192: 0 | AT192: 0 | AU192: 250 | AV192: 250 | AW192: 0 | AX192: 0 | AY192: 0 | AZ192: 0 | BA192: 0 | BB192: 0 | BC192: 0 | BD192: 0 | BE192: 0 | BF192: 0 | BG192: 0 | BH192: 0 | BI192: 0 | BJ192: 0 | BK192: 0 | BL192: 0 | BM192: 0 | BN192: 0 | BO192: 0 | BP192: 0 | BQ192: 3500 | BR192: 3500 | BS192: 0 | BT192: 0 | BU192: 0 | BV192: 0 | BW192: 0 | BX192: 0 | BY192: 0 | BZ192: 0 | CA192: 0 | CB192: 0 | CC192: 0 | CD192: 0 | CE192: 0 | CF192: 0 | CG192: 0 | CH192: 0 | CI192: 0 | CJ192: 0 | CK192: 0 | CL192: 0 | CM192: 0 | CN192: 0 | CO192: 0
A193: 2 | B193: 4 | C193: — | D193: — | E193: Premium Plan | F193: =+'Employee Cost Model'!$C$2 -> Employee Only | G193: In | H193: Professional | I193: PhyTh/SpTh/OccTh | K193: N | L193: 0 | M193: 0 | N193: 0 | O193: — | P193: — | Q193: 165.3990089 | R193: 0 | S193: 0 | T193: 14 | U193: 80 | V193: 0 | W193: 0 | X193: Premium Plan | Y193: 1 | Z193: 0 | AA193: 0 | AB193: 0 | AC193: ProfessionalPhyTh/SpTh/OccTh | AD193: 0 | AE193: 0 | AF193: 0 | AG193: 0 | AH193: 1 | AI193: 0 | AJ193: 0 | AK193: 2 | AL193: 0 | AM193: 0 | AN193: 33.07980179 | AO193: 0 | AP193: 1 | AQ193: 0 | AR193: 0 | AS193: 0 | AT193: 0 | AU193: 250 | AV193: 250 | AW193: 0 | AX193: 0 | AY193: 0 | AZ193: 0 | BA193: 0 | BB193: 0 | BC193: 0 | BD193: 0 | BE193: 0 | BF193: 0 | BG193: 0 | BH193: 0 | BI193: 0 | BJ193: 0 | BK193: 0 | BL193: 0 | BM193: 0 | BN193: 0 | BO193: 0 | BP193: 0 | BQ193: 3500 | BR193: 3500 | BS193: 0 | BT193: 0 | BU193: 0 | BV193: 0 | BW193: 0 | BX193: 0 | BY193: 0 | BZ193: 0 | CA193: 0 | CB193: 0 | CC193: 0 | CD193: 0 | CE193: 0 | CF193: 0 | CG193: 0 | CH193: 0 | CI193: 0 | CJ193: 0 | CK193: 0 | CL193: 0 | CM193: 0 | CN193: 0 | CO193: 0
A194: 2 | B194: 4 | C194: — | D194: — | E194: Premium Plan | F194: =+'Employee Cost Model'!$C$2 -> Employee Only | G194: In | H194: Professional | I194: Chiro | K194: N | L194: 0 | M194: 0 | N194: 0 | O194: — | P194: — | Q194: 79.45445144 | R194: 0 | S194: 0 | T194: 15 | U194: 81 | V194: 0 | W194: 0 | X194: Premium Plan | Y194: 1 | Z194: 0 | AA194: 0 | AB194: 0 | AC194: ProfessionalChiro | AD194: 0 | AE194: 0 | AF194: 0 | AG194: 0 | AH194: 1 | AI194: 0 | AJ194: 0 | AK194: 2 | AL194: 0 | AM194: 0 | AN194: 15 | AO194: 0 | AP194: 1 | AQ194: 0 | AR194: 0 | AS194: 0 | AT194: 0 | AU194: 250 | AV194: 250 | AW194: 0 | AX194: 0 | AY194: 0 | AZ194: 0 | BA194: 0 | BB194: 0 | BC194: 0 | BD194: 0 | BE194: 0 | BF194: 0 | BG194: 0 | BH194: 0 | BI194: 0 | BJ194: 0 | BK194: 0 | BL194: 0 | BM194: 0 | BN194: 0 | BO194: 0 | BP194: 0 | BQ194: 3500 | BR194: 3500 | BS194: 0 | BT194: 0 | BU194: 0 | BV194: 0 | BW194: 0 | BX194: 0 | BY194: 0 | BZ194: 0 | CA194: 0 | CB194: 0 | CC194: 0 | CD194: 0 | CE194: 0 | CF194: 0 | CG194: 0 | CH194: 0 | CI194: 0 | CJ194: 0 | CK194: 0 | CL194: 0 | CM194: 0 | CN194: 0 | CO194: 0
A195: 2 | B195: 4 | C195: — | D195: — | E195: Premium Plan | F195: =+'Employee Cost Model'!$C$2 -> Employee Only | G195: In | H195: Rx | I195: R | J195: 1 | K195: N | L195: 0 | M195: 0 | N195: 0 | O195: — | P195: — | Q195: 50.83329564 | R195: 0 | S195: 0 | T195: 16 | U195: 82 | V195: 0 | W195: 0 | X195: Premium Plan | Y195: 1 | Z195: 0 | AA195: 0 | AB195: 0 | AC195: RxR1 | AD195: 0 | AE195: 1 | AF195: 0 | AG195: 0 | AH195: 1 | AI195: 0 | AJ195: 0 | AK195: 2 | AL195: 0 | AM195: 0 | AN195: 5 | AO195: 0 | AP195: 1 | AQ195: 0 | AR195: 0 | AS195: 0 | AT195: 0 | AU195: 250 | AV195: 250 | AW195: 0 | AX195: 0 | AY195: 0 | AZ195: 0 | BA195: 0 | BB195: 0 | BC195: 0 | BD195: 0 | BE195: 0 | BF195: 0 | BG195: 0 | BH195: 0 | BI195: 0 | BJ195: 0 | BK195: 0 | BL195: 0 | BM195: 0 | BN195: 0 | BO195: 0 | BP195: 0 | BQ195: 3500 | BR195: 3500 | BS195: 0 | BT195: 0 | BU195: 0 | BV195: 0 | BW195: 0 | BX195: 0 | BY195: 0 | BZ195: 0 | CA195: 0 | CB195: 0 | CC195: 0 | CD195: 0 | CE195: 0 | CF195: 0 | CG195: 0 | CH195: 0 | CI195: 0 | CJ195: 0 | CK195: 0 | CL195: 0 | CM195: 0 | CN195: 0 | CO195: 0
A196: 2 | B196: 4 | C196: — | D196: — | E196: Premium Plan | F196: =+'Employee Cost Model'!$C$2 -> Employee Only | G196: In | H196: Rx | I196: R | J196: 2 | K196: N | L196: 0 | M196: 0 | N196: 0 | O196: — | P196: — | Q196: 389.8130676 | R196: 0 | S196: 0 | T196: 17 | U196: 83 | V196: 0 | W196: 0 | X196: Premium Plan | Y196: 1 | Z196: =IF(F196="Employee Only",0,1) -> 0 | AA196: 0 | AB196: 0 | AC196: RxR2 | AD196: 0 | AE196: 1 | AF196: 0 | AG196: 0 | AH196: 1 | AI196: 0 | AJ196: 0 | AK196: 2 | AL196: 0 | AM196: 0 | AN196: 25 | AO196: 0 | AP196: 1 | AQ196: 0 | AR196: 0 | AS196: 0 | AT196: 0 | AU196: 250 | AV196: 250 | AW196: 0 | AX196: 0 | AY196: 0 | AZ196: 0 | BA196: 0 | BB196: 0 | BC196: 0 | BD196: 0 | BE196: 0 | BF196: 0 | BG196: 0 | BH196: 0 | BI196: 0 | BJ196: 0 | BK196: 0 | BL196: 0 | BM196: 0 | BN196: 0 | BO196: 0 | BP196: 0 | BQ196: 3500 | BR196: 3500 | BS196: 0 | BT196: 0 | BU196: 0 | BV196: 0 | BW196: 0 | BX196: 0 | BY196: 0 | BZ196: 0 | CA196: 0 | CB196: 0 | CC196: 0 | CD196: 0 | CE196: 0 | CF196: 0 | CG196: 0 | CH196: 0 | CI196: 0 | CJ196: 0 | CK196: 0 | CL196: 0 | CM196: 0 | CN196: 0 | CO196: 0
A197: 2 | B197: 4 | C197: — | D197: — | E197: Premium Plan | F197: =+'Employee Cost Model'!$C$2 -> Employee Only | G197: In | H197: Rx | I197: R | J197: 3 | K197: N | L197: 0 | M197: 0 | N197: 0 | O197: — | P197: — | Q197: 651.9493716 | R197: 0 | S197: 0 | T197: 18 | U197: 84 | V197: 0 | W197: 0 | X197: Premium Plan | Y197: 1 | Z197: 0 | AA197: 0 | AB197: 0 | AC197: RxR3 | AD197: 0 | AE197: 1 | AF197: 0 | AG197: 0 | AH197: 1 | AI197: 0 | AJ197: 0 | AK197: 2 | AL197: 0 | AM197: 0 | AN197: 40 | AO197: 0 | AP197: 1 | AQ197: 0 | AR197: 0 | AS197: 0 | AT197: 0 | AU197: 250 | AV197: 250 | AW197: 0 | AX197: 0 | AY197: 0 | AZ197: 0 | BA197: 0 | BB197: 0 | BC197: 0 | BD197: 0 | BE197: 0 | BF197: 0 | BG197: 0 | BH197: 0 | BI197: 0 | BJ197: 0 | BK197: 0 | BL197: 0 | BM197: 0 | BN197: 0 | BO197: 0 | BP197: 0 | BQ197: 3500 | BR197: 3500 | BS197: 0 | BT197: 0 | BU197: 0 | BV197: 0 | BW197: 0 | BX197: 0 | BY197: 0 | BZ197: 0 | CA197: 0 | CB197: 0 | CC197: 0 | CD197: 0 | CE197: 0 | CF197: 0 | CG197: 0 | CH197: 0 | CI197: 0 | CJ197: 0 | CK197: 0 | CL197: 0 | CM197: 0 | CN197: 0 | CO197: 0
A198: 2 | B198: 4 | C198: — | D198: — | E198: Premium Plan | F198: =+'Employee Cost Model'!$C$2 -> Employee Only | G198: In | H198: Rx | I198: R | J198: 4 | K198: N | L198: 0 | M198: 0 | N198: 0 | O198: — | P198: — | Q198: 8251.270121 | R198: =IF(AND(B198=B197,S198=0),0,1) -> 0 | S198: =IF(A198=A197,0,1) -> 0 | T198: =IF(R198,R198,T197+1) -> 19 | U198: =IF(S198,S198,U197+1) -> 85 | V198: =IF(AND(B198=B199,W198=0),0,1) -> 0 | W198: =IF(A198=A199,0,1) -> 0 | X198: =E198 -> Premium Plan | Y198: =MATCH(X198,PlanList,0) -> 1 | Z198: 0 | AA198: =VLOOKUP(Y198,PlanIndex,4,0) -> 0 | AB198: =IF(G198="In",0,1) -> 0 | AC198: =IF(H198="Rx",H198&I198&MIN(J198,4),H198&I198) -> RxR4 | AD198: =IF(K198&AB198="Y0",1,0) -> 0 | AE198: =IF(H198<>"Rx",0,1) -> 1 | AF198: =IF(OFFSET(OffsetStart,SepRxDed-1,MATCH(Y198,PlanLookupRange,0)-1+3*AA198*AB198)="No",0,1) -> 0 | AG198: =IF(OFFSET(OffsetStart,SepRxOOPM-1,MATCH(Y198,PlanLookupRange,0)-1+3*AA198*AB198)="No",0,1) -> 0 | AH198: =OFFSET(OffsetStart, MATCH(AC198,ServiceLookups,0)-1,MATCH(Y198,PlanLookupRange,0)-1+3*AA198*AB198) -> 1 | AI198: =IF(OFFSET(OffsetStart,DedTypeRange-1,MATCH(Y198,PlanLookupRange,0)-1+3*AA198*AB198)="Embedded",0,1) -> 0 | AJ198: =IF(OFFSET(OffsetStart,OOPMTypeRange-1,MATCH(Y198,PlanLookupRange,0)-1+3*AA198*AB198)="Embedded",0,1) -> 0 | AK198: =OFFSET(OffsetStart, MATCH(AC198,ServiceLookups,0)-1,MATCH(Y198,PlanLookupRange,0)+3*AA198*AB198) -> 2 | AL198: =IF(AD198, 0, CHOOSE(AK198,OFFSET(OffsetStart,CoinsRange-1,MATCH(Y198,PlanLookupRange,0)-1+3*AA198*AB198),0,IF(AE198,OFFSET(OffsetStart,MATCH(AC198,ServiceLookups,0),MATCH(Y198,PlanLookupRange,0)-1+3*AA198*AB198)))) -> 0 | AM198: =IF(OR(AD198,AE198=0), 0, OFFSET(OffsetStart,MATCH(AC198,ServiceLookups,0),MATCH(Y198,PlanLookupRange,0)+3*AA198*AB198)) -> 0 | AN198: =IF(AD198, 0, OFFSET(OffsetStart, MATCH(AC198,ServiceLookups,0)-1,MATCH(Y198,PlanLookupRange,0)+1+3*AA198*AB198)) -> 40 | AO198: =IF(OR(AD198,AE198=0), 0, OFFSET(OffsetStart,MATCH(AC198,ServiceLookups,0),MATCH(Y198,PlanLookupRange,0)+1+3*AA198*AB198)) -> 0 | AP198: =CHOOSE(AE198+1,(1+VLOOKUP(LEFT(AC198,3),TrendLookup,3,0))^(TrendMonths/12),(1+VLOOKUP(H198&J198,TrendLookup,3,0))^(TrendMonths/12)) -> 1 | AQ198: =+AP198*N198 -> 0 | AR198: =IFERROR(AQ198/L198,AQ198) -> 0 | AS198: =IF(R198,AQ198,AQ198+AS197) -> 0 | AT198: =IF(S198,AQ198,AQ198+AT197) -> 0 | AU198: =IF(AND(AE198,AF198),OFFSET(OffsetStart,RxDedRange-1+1*Z198*AI198,MATCH(Y198,PlanLookupRange,0)-1), OFFSET(OffsetStart,MedDedRange-1+1*Z198*AI198,MATCH(Y198,PlanLookupRange,0)-1)) -> 250 | AV198: =IF(AND(AE198,AF198),OFFSET(OffsetStart,RxDedRange-1+1*Z198,MATCH(Y198,PlanLookupRange,0)-1), OFFSET(OffsetStart,MedDedRange-1+1*Z198,MATCH(Y198,PlanLookupRange,0)-1)) -> 250 | AW198: =IF(AA198=0,0, IF(AND(AE198,AF198), OFFSET(OffsetStart,RxDedRange-1+1*Z198*AI198,MATCH(Y198,PlanLookupRange,0)+2), OFFSET(OffsetStart,MedDedRange-1+1*Z198*AI198,MATCH(Y198,PlanLookupRange,0)+2))) -> 0 | AX198: =IF(AA198=0,0, IF(AND(AE198,AF198),OFFSET(OffsetStart,RxDedRange-1+1*Z198,MATCH(Y198,PlanLookupRange,0)+2), OFFSET(OffsetStart,MedDedRange-1+1*Z198,MATCH(Y198,PlanLookupRange,0)+2))) -> 0 | AY198: =IF(OR(AD198=1,AH198=1),0,AQ198) -> 0 | AZ198: =IF(OR(AB198=1,AH198=1,AND(AF198=1,AE198=1)), 0, IF(OR(AND(BA197=AU198,R198=0),AND(BB197=AV198,S198=0)), 0, CHOOSE(R198+S198+1, MIN(AY198,AU198,MAX(AU198-BA197,0),MAX(AV198-BB197,0)), MIN(AY198,AU198,MAX(AV198-BB197,0)), MIN(AY198,AU198)))) -> 0 | BA198: =IF(R198,AZ198,MIN(AU198,SUM(OFFSET(AZ198,-(T198-1),0,T198)))) -> 0 | BB198: =IF(S198,AZ198,MIN(AV198,SUM(OFFSET(AZ198,-(U198-1),0,U198)))) -> 0 | BC198: =IF(OR(AB198=0,AH198=1,AND(AF198=1,AE198=1)), 0, IF(OR(AND(BD197=AW198,R198=0),AND(BE197=AX198,S198=0)), 0, CHOOSE(R198+S198+1, MIN(AY198,AW198,MAX(AW198-BD197,0),MAX(AX198-BE197,0)), MIN(AY198,AW198,MAX(AX198-BE197,0)), MIN(AY198,AW198)))) -> 0 | BD198: =IF(R198,BC198,MIN(AW198,SUM(OFFSET(BC198,-(T198-1),0,T198)))) -> 0 | BE198: =IF(S198,BC198,MIN(AX198,SUM(OFFSET(BC198,-(U198-1),0,U198)))) -> 0 | BF198: =IF(OR(AB198=1,AH198=1,AE198=0,AF198=0), 0, IF(OR(AND(BG197=AU198,R198=0),AND(BH197=AV198,S198=0)), 0, CHOOSE(R198+S198+1, MIN(AY198,AU198,MAX(AU198-BG197,0),MAX(AV198-BH197,0)), MIN(AY198,AU198,MAX(AV198-BH197,0)), MIN(AY198,AU198)))) -> 0 | BG198: =IF(R198,BF198,MIN(AU198,SUM(OFFSET(BF198,-(T198-1),0,T198)))) -> 0 | BH198: =IF(S198,BF198,MIN(AV198,SUM(OFFSET(BF198,-(U198-1),0,U198)))) -> 0 | BI198: =IF(OR(AB198=0,AH198=1,AE198=0,AF198=0), 0, IF(OR(AND(BJ197=AW198,R198=0),AND(BK197=AX198,S198=0)), 0, CHOOSE(R198+S198+1, MIN(AY198,AW198,MAX(AW198-BJ197,0),MAX(AX198-BK197,0)), MIN(AY198,AW198,MAX(AX198-BK197,0)), MIN(AY198,AW198)))) -> 0 | BJ198: =IF(R198,BI198,MIN(AW198,SUM(OFFSET(BI198,-(T198-1),0,T198)))) -> 0 | BK198: =IF(S198,BI198,MIN(AX198,SUM(OFFSET(BI198,-(U198-1),0,U198)))) -> 0 | BL198: =AQ198-AZ198-BC198-BF198-BI198 -> 0 | BM198: =IFERROR(IF(AE198=0,CHOOSE(AK198,0,MIN(L198,MAX(ROUNDUP(BL198/AR198,0),0)),MIN(M198,MAX(ROUNDUP(BL198/AR198,0),0))), CHOOSE(AK198,0,MIN(L198,MAX(ROUNDUP(BL198/AR198,0),0)),MIN(L198,MAX(ROUNDUP(BL198/AR198,0),0)))),0) -> 0 | BN198: =+IF(AE198, CHOOSE(AK198,0,AN198*BM198,MIN(MAX(AM198*BM198,AL198*AR198*BM198),AO198*BM198)), IF(AN198=0,0,IF(BL198>=0,MIN(BM198*AN198,BL198),MAX(BM198*AN198,BL198)))) -> 0 | BO198: =+IF(AND(AE198,AK198=3),0,BL198*AL198) -> 0 | BP198: =+BN198+BO198+AZ198+BC198+BF198+BI198 -> 0 | BQ198: =IF(AND(AE198,AG198),OFFSET(OffsetStart,RxOOPMRange-1+1*Z198*AJ198,MATCH(Y198,PlanLookupRange,0)-1), OFFSET(OffsetStart,MedOOPMRange-1+1*Z198*AJ198,MATCH(Y198,PlanLookupRange,0)-1)) -> 3500 | BR198: =IF(AND(AE198,AG198),OFFSET(OffsetStart,RxOOPMRange-1+1*Z198,MATCH(Y198,PlanLookupRange,0)-1), OFFSET(OffsetStart,MedOOPMRange-1+1*Z198,MATCH(Y198,PlanLookupRange,0)-1)) -> 3500 | BS198: =IF(AA198=0,0, IF(AND(AE198,AG198), OFFSET(OffsetStart,RxOOPMRange-1+1*Z198*AJ198,MATCH(Y198,PlanLookupRange,0)+2), OFFSET(OffsetStart,MedOOPMRange-1+1*Z198*AI198,MATCH(Y198,PlanLookupRange,0)+2))) -> 0 | BT198: =IF(AA198=0,0, IF(AND(AE198,AG198),OFFSET(OffsetStart,RxOOPMRange-1+1*Z198,MATCH(Y198,PlanLookupRange,0)+2), OFFSET(OffsetStart,MedOOPMRange-1+1*Z198,MATCH(Y198,PlanLookupRange,0)+2))) -> 0 | BU198: =IF(OR(AB198=1,AND(AG198=1,AE198=1)), 0, IF(OR(AND(BV197=BQ198,R198=0,BP198<0),AND(BW197=BR198,S198=0,BP198<0)), MAX(BP198,-BQ198), CHOOSE(R198+S198+1, MIN(BP198,BQ198,MAX(BQ198-BV197,0),MAX(BR198-BW197,0)), MIN(BP198,BQ198,MAX(BR198-BW197,0)), MIN(BP198,BQ198)))) -> 0 | BV198: =IF(R198,BU198,MIN(BQ198,SUM(OFFSET(BU198,-(T198-1),0,T198)))) -> 0 | BW198: =IF(S198,BU198,MIN(BR198,SUM(OFFSET(BU198,-(U198-1),0,U198)))) -> 0 | BX198: =IF(OR(AB198=0,AND(AG198=1,AE198=1)), 0, IF(OR(AND(BY197=BS198,R198=0,BP198<0),AND(BZ197=BT198,S198=0,BP198<0)), MAX(BP198,-BS198), CHOOSE(R198+S198+1, MIN(BP198,BS198,MAX(BS198-BY197,0),MAX(BT198-BZ197,0)), MIN(BP198,BS198,MAX(BT198-BZ197,0)), MIN(BP198,BS198)))) -> 0 | BY198: =IF(R198,BX198,MIN(BS198,SUM(OFFSET(BX198,-(T198-1),0,T198)))) -> 0 | BZ198: =IF(S198,BX198,MIN(BT198,SUM(OFFSET(BX198,-(U198-1),0,U198)))) -> 0 | CA198: =IF(OR(AB198=1,AE198=0,AG198=0), 0, IF(OR(AND(CB197=BQ198,R198=0,BP198<0),AND(CC197=BR198,S198=0,BP198<0)), MAX(BP198,-BQ198), CHOOSE(R198+S198+1, MIN(BP198,BQ198,MAX(BQ198-CB197,0),MAX(BR198-CC197,0)), MIN(BP198,BQ198,MAX(BR198-CC197,0)), MIN(BP198,BQ198)))) -> 0 | CB198: =IF(R198,CA198,MIN(BQ198,SUM(OFFSET(CA198,-(T198-1),0,T198)))) -> 0 | CC198: =IF(S198,CA198,MIN(BR198,SUM(OFFSET(CA198,-(U198-1),0,U198)))) -> 0 | CD198: =IF(OR(AB198=0,AE198=0,AG198=0), 0, IF(OR(AND(CE197=BS198,R198=0,BP198<0),AND(CF197=BT198,S198=0,BP198<0)), MAX(BP198,-BS198), CHOOSE(R198+S198+1, MIN(BP198,BS198,MAX(BS198-CE197,0),MAX(BT198-CF197,0)), MIN(BP198,BS198,MAX(BT198-CF197,0)), MIN(BP198,BS198)))) -> 0 | CE198: =IF(R198,CD198,MIN(BS198,SUM(OFFSET(CD198,-(T198-1),0,T198)))) -> 0 | CF198: =IF(S198,CD198,MIN(BT198,SUM(OFFSET(CD198,-(U198-1),0,U198)))) -> 0 | CG198: =IF(S198,BU198+CA198,BU198+CA198+CG197) -> 0 | CH198: =IF(S198,BX198+CD198,BX198+CD198+CH197) -> 0 | CI198: =+CG198+CH198 -> 0 | CJ198: =+CG198*$V198 -> 0 | CK198: =+CH198*$V198 -> 0 | CL198: =+CI198*$V198 -> 0 | CM198: =+CG198*$W198 -> 0 | CN198: =+CH198*$W198 -> 0 | CO198: =+CI198*$W198 -> 0
A199: 2 | B199: 4 | C199: — | D199: — | E199: Premium Plan | F199: =+'Employee Cost Model'!$C$2 -> Employee Only | G199: In | H199: Rx | I199: M | J199: 1 | K199: N | L199: 0 | M199: 0 | N199: 0 | O199: — | P199: — | Q199: 88.65973424 | R199: 0 | S199: 0 | T199: 20 | U199: 86 | V199: 0 | W199: 0 | X199: Premium Plan | Y199: 1 | Z199: 0 | AA199: 0 | AB199: 0 | AC199: RxM1 | AD199: 0 | AE199: 1 | AF199: 0 | AG199: 0 | AH199: 1 | AI199: 0 | AJ199: 0 | AK199: 2 | AL199: 0 | AM199: 0 | AN199: 12.5 | AO199: 0 | AP199: 1 | AQ199: 0 | AR199: 0 | AS199: 0 | AT199: 0 | AU199: 250 | AV199: 250 | AW199: 0 | AX199: 0 | AY199: 0 | AZ199: 0 | BA199: 0 | BB199: 0 | BC199: 0 | BD199: 0 | BE199: 0 | BF199: 0 | BG199: 0 | BH199: 0 | BI199: 0 | BJ199: 0 | BK199: 0 | BL199: 0 | BM199: 0 | BN199: 0 | BO199: 0 | BP199: 0 | BQ199: 3500 | BR199: 3500 | BS199: 0 | BT199: 0 | BU199: 0 | BV199: 0 | BW199: 0 | BX199: 0 | BY199: 0 | BZ199: 0 | CA199: 0 | CB199: 0 | CC199: 0 | CD199: 0 | CE199: 0 | CF199: 0 | CG199: 0 | CH199: 0 | CI199: 0 | CJ199: 0 | CK199: 0 | CL199: 0 | CM199: 0 | CN199: 0 | CO199: 0
A200: 2 | B200: 4 | C200: — | D200: — | E200: Premium Plan | F200: =+'Employee Cost Model'!$C$2 -> Employee Only | G200: In | H200: Rx | I200: M | J200: 2 | K200: N | L200: 0 | M200: 0 | N200: 0 | O200: — | P200: — | Q200: 857.5887486 | R200: 0 | S200: 0 | T200: 21 | U200: 87 | V200: 0 | W200: 0 | X200: Premium Plan | Y200: 1 | Z200: 0 | AA200: 0 | AB200: 0 | AC200: RxM2 | AD200: 0 | AE200: 1 | AF200: 0 | AG200: 0 | AH200: 1 | AI200: 0 | AJ200: 0 | AK200: 2 | AL200: 0 | AM200: 0 | AN200: 42.5 | AO200: 0 | AP200: 1 | AQ200: 0 | AR200: 0 | AS200: 0 | AT200: 0 | AU200: 250 | AV200: 250 | AW200: 0 | AX200: 0 | AY200: 0 | AZ200: 0 | BA200: 0 | BB200: 0 | BC200: 0 | BD200: 0 | BE200: 0 | BF200: 0 | BG200: 0 | BH200: 0 | BI200: 0 | BJ200: 0 | BK200: 0 | BL200: 0 | BM200: 0 | BN200: 0 | BO200: 0 | BP200: 0 | BQ200: 3500 | BR200: 3500 | BS200: 0 | BT200: 0 | BU200: 0 | BV200: 0 | BW200: 0 | BX200: 0 | BY200: 0 | BZ200: 0 | CA200: 0 | CB200: 0 | CC200: 0 | CD200: 0 | CE200: 0 | CF200: 0 | CG200: 0 | CH200: 0 | CI200: 0 | CJ200: 0 | CK200: 0 | CL200: 0 | CM200: 0 | CN200: 0 | CO200: 0
... 243 more rows

Sheet Plan Design Input (hidden)
E1: =+E3&E4 -> 1Premium Plan | F1: 1 | G1: 1 | H1: 2Base Plan | I1: 2 | J1: 2 | K1: 3Value Plan | L1: 3 | M1: 3 | N1: =+N3&N4 -> 4HDHP w/ Health Savings Account | O1: 4 | P1: 4
E2: =E4&E5 -> Premium PlanHMO | H2: Base PlanHMO | K2: =K4&K5 -> Value PlanHMO | N2: =N4&N5 -> HDHP w/ Health Savings AccountHMO
E3: =IF(OR(E5&E4=B5&B4,E5&E4=""),D3,D3+1) -> 1 | F3: 1 | G3: 1 | H3: 2 | I3: =IF(OR(I5&I4=F5&F4,I5&I4=""),H3,H3+1) -> 2 | J3: =IF(OR(J5&J4=G5&G4,J5&J4=""),I3,I3+1) -> 2 | K3: =IF(OR(K5&K4=H5&H4,K5&K4=""),J3,J3+1) -> 3 | L3: =IF(OR(L5&L4=I5&I4,L5&L4=""),K3,K3+1) -> 3 | M3: =IF(OR(M5&M4=J5&J4,M5&M4=""),L3,L3+1) -> 3 | N3: =IF(OR(N5&N4=K5&K4,N5&N4=""),M3,M3+1) -> 4 | O3: =IF(OR(O5&O4=L5&L4,O5&O4=""),N3,N3+1) -> 4 | P3: =IF(OR(P5&P4=M5&M4,P5&P4=""),O3,O3+1) -> 4
D4: Plan Name | E4: =+'Employee Cost Model'!C6 -> Premium Plan | H4: =+'Employee Cost Model'!D6 -> Base Plan | K4: =+'Employee Cost Model'!E6 -> Value Plan | N4: =+'Employee Cost Model'!F6 -> HDHP w/ Health Savings Account
D5: Plan Type | E5: HMO | H5: HMO | K5: HMO | N5: HMO
D6: Network Tier | E6: In-Network | H6: In-Network | K6: In-Network | N6: In-Network
C7: Medical Deductible | D7: Individual | E7: 250 | H7: 500 | K7: 750 | N7: 1750
D8: Family | E8: 500 | H8: 1000 | K8: 1500 | N8: 3500
C9: Medical OOPM | D9: Individual | E9: 3500 | H9: 3500 | K9: 3500 | N9: 3500
D10: Family | E10: 7000 | H10: 7000 | K10: 7000 | N10: 7000
C11: Default Member Coinsurance | E11: 0 | H11: 0 | K11: 0 | N11: 0
C12: Deductible Type | E12: Embedded | H12: Embedded | K12: Embedded | N12: True Family
C13: OOPM Type | E13: Embedded | H13: Embedded | K13: Embedded | N13: True Family
C14: Separate Rx Deductible? | E14: No | H14: No | K14: No | N14: No
C15: Separate Rx OOPM? | E15: No | H15: No | K15: No | N15: No
C16: Rx Deductible | D16: Individual
D17: Family
C18: Rx OOPM | D18: Individual
D19: Family
A20: Service Lookups | E20: Apply Ded? | F20: Cost Sharing | G20: Copay | H20: Apply Ded? | I20: Cost Sharing | J20: Copay | K20: Apply Ded? | L20: Cost Sharing | M20: Copay | N20: Apply Ded? | O20: Cost Sharing | P20: Copay
A21: =+B21&D21 -> InpHospital | B21: Inp | C21: Facility Inpatient | D21: Hospital | E21: 2 | F21: 2 | G21: 0 | H21: 2 | I21: 2 | J21: 0 | K21: 1 | L21: 2 | M21: 750 | N21: 2 | O21: 1
A22: =+B22&D22 -> InpSurgery | B22: Inp | D22: Surgery | E22: 2 | F22: 1 | H22: 2 | I22: 1 | K22: 2 | L22: 1 | N22: 2 | O22: 1
A23: InpMHSA | B23: Inp | D23: MHSA | E23: 2 | F23: 2 | G23: 0 | H23: 2 | I23: 2 | J23: 0 | K23: 1 | L23: 2 | M23: 750 | N23: 2 | O23: 1
A24: InpSNF | B24: Inp | D24: SNF | E24: 2 | F24: 2 | G24: 0 | H24: 2 | I24: 2 | J24: 0 | K24: 1 | L24: 2 | M24: 750 | N24: 2 | O24: 1
A25: InpNH | B25: Inp | D25: NH | E25: 2 | F25: 1 | H25: 2 | I25: 1 | K25: 2 | L25: 1 | N25: 2 | O25: 1
A26: OutER | B26: Out | C26: Facility Outpatient | D26: ER | E26: 1 | F26: 2 | G26: 75 | H26: 1 | I26: 2 | J26: 125 | K26: 1 | L26: 2 | M26: 125 | N26: 2 | O26: 2 | P26: 125
A27: OutUC | B27: Out | D27: UC | E27: 1 | F27: 2 | G27: 10 | H27: 1 | I27: 2 | J27: 50 | K27: 1 | L27: 2 | M27: 50 | N27: 2 | O27: 2 | P27: 30
A28: OutSurgery | B28: Out | D28: Surgery | E28: 2 | F28: 2 | G28: 0 | H28: 2 | I28: 2 | J28: 0 | K28: 1 | L28: 2 | M28: 250 | N28: 2 | O28: 1
A29: =+B29&D29 -> OutMHSA | B29: Out | D29: MHSA | E29: 2 | F29: 1 | H29: 2 | I29: 1 | K29: 2 | L29: 1 | N29: 2 | O29: 1
A30: =+B30&D30 -> OutRx | B30: Out | D30: Rx | E30: 2 | F30: 1 | H30: 2 | I30: 1 | K30: 2 | L30: 1 | N30: 2 | O30: 1
A31: OutX-ray/Lab | B31: Out | D31: X-ray/Lab | E31: 2 | F31: 2 | G31: 0 | H31: 2 | I31: 2 | J31: 0 | K31: 2 | L31: 2 | M31: 0 | N31: 2 | O31: 1
A32: OutAdv Rad | B32: Out | D32: Adv Rad | E32: 2 | F32: 2 | G32: 0 | H32: 2 | I32: 2 | J32: 0 | K32: 2 | L32: 2 | M32: 0 | N32: 2 | O32: 1
A33: =+B33&D33 -> OutAll Other | B33: Out | D33: All Other | E33: 2 | F33: 1 | H33: 2 | I33: 1 | K33: 2 | L33: 1 | N33: 2 | O33: 1
A34: ProfessionalPCP | B34: Professional | C34: Professional Services | D34: PCP | E34: 1 | F34: 2 | G34: 10 | H34: 1 | I34: 2 | J34: 15 | K34: 1 | L34: 2 | M34: 25 | N34: 2 | O34: 2 | P34: 20
A35: ProfessionalSCP | B35: Professional | D35: SCP | E35: 1 | F35: 2 | G35: 15 | H35: 1 | I35: 2 | J35: 30 | K35: 1 | L35: 2 | M35: 30 | N35: 2 | O35: 2 | P35: 35
A36: ProfessionalMaternity | B36: Professional | D36: Maternity | E36: 2 | F36: 2 | G36: 0 | H36: 2 | I36: 2 | J36: 0 | K36: 1 | L36: 2 | M36: =750+M34 -> 775 | N36: 2 | O36: 2 | P36: 20
A37: ProfessionalOff Surgery | B37: Professional | D37: Off Surgery | E37: 2 | F37: 2 | G37: 0 | H37: 2 | I37: 2 | J37: 0 | K37: 1 | L37: 2 | M37: 250 | N37: 2 | O37: 1
A38: ProfessionalPCP Facility | B38: Professional | D38: PCP Facility | E38: 2 | F38: 1 | H38: 2 | I38: 1 | K38: 2 | L38: 1 | N38: 2 | O38: 1
A39: ProfessionalSCP Facility | B39: Professional | D39: SCP Facility | E39: 2 | F39: 1 | H39: 2 | I39: 1 | K39: 2 | L39: 1 | N39: 2 | O39: 1
A40: =+B40&D40 -> ProfessionalRx | B40: Professional | D40: Rx | E40: 2 | F40: 1 | H40: 2 | I40: 1 | K40: 2 | L40: 1 | N40: 2 | O40: 1
A41: ProfessionalX-ray/Lab | B41: Professional | D41: X-ray/Lab | E41: 2 | F41: 1 | H41: 2 | I41: 1 | K41: 2 | L41: 1 | N41: 2 | O41: 1
A42: ProfessionalAdv Rad | B42: Professional | D42: Adv Rad | E42: 2 | F42: 1 | H42: 2 | I42: 1 | K42: 2 | L42: 1 | N42: 2 | O42: 1
A43: ProfessionalMHSA | B43: Professional | D43: MHSA | E43: 1 | F43: 2 | G43: 10 | H43: 1 | I43: 2 | J43: 15 | K43: 1 | L43: 2 | M43: 25 | N43: 2 | O43: 2 | P43: 20
A44: ProfessionalPhyTh/SpTh/OccTh | B44: Professional | D44: PhyTh/SpTh/OccTh | E44: 1 | F44: 2 | G44: =0.2*'Data | Model'!Q17 -> 33.07980179 | H44: 1 | I44: 2 | J44: =0.2*'Data | Model'!Q17 -> 33.07980179 | K44: 1 | L44: 2 | M44: =0.1*'Data | Model'!Q17 -> 16.53990089 | N44: 2 | O44: 1
A45: ProfessionalChiro | B45: Professional | D45: Chiro | E45: 1 | F45: 2 | G45: 15 | H45: 1 | I45: 2 | J45: 30 | K45: 1 | L45: 2 | M45: 30 | N45: 2 | O45: 2 | P45: 30
A46: ProfessionalAnesthetia | B46: Professional | D46: Anesthetia | E46: 2 | F46: 1 | H46: 2 | I46: 1 | K46: 2 | L46: 1 | N46: 2 | O46: 1
A47: ProfessionalVis/Hear/Sp | B47: Professional | D47: Vis/Hear/Sp | E47: 1 | F47: 2 | H47: 1 | I47: 2 | K47: 1 | L47: 2 | N47: 1 | O47: 2
A48: ProfessionalAll Other | B48: Professional | D48: All Other | E48: 1 | F48: 2 | H48: 1 | I48: 2 | K48: 1 | L48: 2 | N48: 1 | O48: 2
A49: OtherAmbulance | B49: Other | C49: Other | D49: Ambulance | E49: 1 | F49: 2 | H49: 1 | I49: 2 | K49: 1 | L49: 2 | N49: 1 | O49: 2
A50: OtherHHC | B50: Other | D50: HHC | E50: 2 | F50: 1 | H50: 2 | I50: 1 | K50: 2 | L50: 1 | N50: 2 | O50: 1
A51: OtherDME | B51: Other | D51: DME | E51: 1 | F51: 2 | H51: 1 | I51: 2 | K51: 1 | L51: 2 | N51: 2 | O51: 2
A52: =+B52&"R1" -> RxR1 | B52: Rx | C52: Rx | D52: Retail - Tier 1 | E52: 1 | F52: 2 | G52: 5 | H52: 1 | I52: 2 | J52: 5 | K52: 1 | L52: 2 | M52: 10 | N52: 2 | O52: 2 | P52: 5
A54: =+B54&"R2" -> RxR2 | B54: Rx | D54: Retail - Tier 2 | E54: 1 | F54: 2 | G54: 25 | H54: 1 | I54: 2 | J54: 35 | K54: 1 | L54: 2 | M54: 30 | N54: 2 | O54: 2 | P54: 35
A56: =+B56&"R3" -> RxR3 | B56: Rx | D56: Retail - Tier 3 | E56: 1 | F56: 2 | G56: 40 | H56: 1 | I56: 2 | J56: 60 | K56: 1 | L56: 2 | M56: 50 | N56: 2 | O56: 2 | P56: 60
A58: =+B58&"R4" -> RxR4 | B58: Rx | D58: Retail - Tier 4 | E58: 1 | F58: 2 | G58: 40 | H58: 1 | I58: 2 | J58: 60 | K58: 1 | L58: 2 | M58: 50 | N58: 2 | O58: 2 | P58: 60
A60: =+B60&"M1" -> RxM1 | B60: Rx | D60: Mail - Tier 1 | E60: 1 | F60: 2 | G60: 12.5 | H60: 1 | I60: 2 | J60: 12.5 | K60: 1 | L60: 2 | M60: 25 | N60: 2 | O60: 2 | P60: 12.5
A62: =+B62&"M2" -> RxM2 | B62: Rx | D62: Mail - Tier 2 | E62: 1 | F62: 2 | G62: 42.5 | H62: 1 | I62: 2 | J62: 67.5 | K62: 1 | L62: 2 | M62: 75 | N62: 2 | O62: 2 | P62: 72.5
A64: =+B64&"M3" -> RxM3 | B64: Rx | D64: Mail - Tier 3 | E64: 1 | F64: 2 | G64: 85 | H64: 1 | I64: 2 | J64: 135 | K64: 1 | L64: 2 | M64: 125 | N64: 2 | O64: 2 | P64: 135
A66: =+B66&"M4" -> RxM4 | B66: Rx | D66: Mail - Tier 4 | E66: 1 | F66: 2 | G66: 85 | H66: 1 | I66: 2 | J66: 135 | K66: 1 | L66: 2 | M66: 125 | N66: 2 | O66: 2 | P66: 135

Sheet Lists (hidden)
A1: Plan Number | B1: Plan Name | C1: Plan Type | D1: Available OON Option? | F1: Plan Types | G1: Available OON Option? | I1: Family List
A2: =IF(B2="","",ROW()-1) -> 1 | B2: =IFERROR(HLOOKUP(ROW()-1,'Plan Design Input'!$3:$4,PlanNameRange-2,0),"") -> Premium Plan | C2: =IFERROR(HLOOKUP(A2&B2,'Plan Design Input'!$1:$5,PlanTypeRange,0),"") -> HMO | D2: =IFERROR(VLOOKUP(C2,$F$2:$G$6,2,0),"") -> 0 | F2: HMO | G2: 0 | I2: 0
A3: =IF(B3="","",ROW()-1) -> 2 | B3: =IFERROR(HLOOKUP(ROW()-1,'Plan Design Input'!$3:$4,PlanNameRange-2,0),"") -> Base Plan | C3: =IFERROR(HLOOKUP(A3&B3,'Plan Design Input'!$1:$5,PlanTypeRange,0),"") -> HMO | D3: =IFERROR(VLOOKUP(C3,$F$2:$G$6,2,0),"") -> 0 | F3: POS | G3: 1 | I3: =1+I2 -> 1
A4: =IF(B4="","",ROW()-1) -> 3 | B4: =IFERROR(HLOOKUP(ROW()-1,'Plan Design Input'!$3:$4,PlanNameRange-2,0),"") -> Value Plan | C4: =IFERROR(HLOOKUP(A4&B4,'Plan Design Input'!$1:$5,PlanTypeRange,0),"") -> HMO | D4: =IFERROR(VLOOKUP(C4,$F$2:$G$6,2,0),"") -> 0 | F4: PPO | G4: 1 | I4: =1+I3 -> 2
A5: 4 | B5: =IFERROR(HLOOKUP(ROW()-1,'Plan Design Input'!$3:$4,PlanNameRange-2,0),"") -> HDHP w/ Health Savings Account | C5: =IFERROR(HLOOKUP(A5&B5,'Plan Design Input'!$1:$5,PlanTypeRange,0),"") -> HMO | D5: 0 | F5: HDHP | G5: 1 | I5: 3
B6: =IFERROR(HLOOKUP(ROW()-1,'Plan Design Input'!$3:$4,PlanNameRange-2,0),"") ->  | C6: =IFERROR(HLOOKUP(A6&B6,'Plan Design Input'!$1:$5,PlanTypeRange,0),"") ->  | F6: Indemnity | G6: 1 | I6: 4
B7: =IFERROR(HLOOKUP(ROW()-1,'Plan Design Input'!$3:$4,PlanNameRange-2,0),"") ->  | C7: =IFERROR(HLOOKUP(A7&B7,'Plan Design Input'!$1:$5,PlanTypeRange,0),"") ->  | I7: 5
B8: =IFERROR(HLOOKUP(ROW()-1,'Plan Design Input'!$3:$4,PlanNameRange-2,0),"") ->  | C8: =IFERROR(HLOOKUP(A8&B8,'Plan Design Input'!$1:$5,PlanTypeRange,0),"") ->  | I8: 6
B9: =IFERROR(HLOOKUP(ROW()-1,'Plan Design Input'!$3:$4,PlanNameRange-2,0),"") ->  | C9: =IFERROR(HLOOKUP(A9&B9,'Plan Design Input'!$1:$5,PlanTypeRange,0),"") ->  | I9: 7
B10: =IFERROR(HLOOKUP(ROW()-1,'Plan Design Input'!$3:$4,PlanNameRange-2,0),"") ->  | C10: =IFERROR(HLOOKUP(A10&B10,'Plan Design Input'!$1:$5,PlanTypeRange,0),"") ->  | I10: 8
B11: =IFERROR(HLOOKUP(ROW()-1,'Plan Design Input'!$3:$4,PlanNameRange-2,0),"") ->  | C11: =IFERROR(HLOOKUP(A11&B11,'Plan Design Input'!$1:$5,PlanTypeRange,0),"") ->  | I11: 9
B12: =IFERROR(HLOOKUP(ROW()-1,'Plan Design Input'!$3:$4,PlanNameRange-2,0),"") ->  | C12: =IFERROR(HLOOKUP(A12&B12,'Plan Design Input'!$1:$5,PlanTypeRange,0),"") ->  | I12: 10
B13: =IFERROR(HLOOKUP(ROW()-1,'Plan Design Input'!$3:$4,PlanNameRange-2,0),"") ->  | C13: =IFERROR(HLOOKUP(A13&B13,'Plan Design Input'!$1:$5,PlanTypeRange,0),"") ->  | I13: 11
B14: =IFERROR(HLOOKUP(ROW()-1,'Plan Design Input'!$3:$4,PlanNameRange-2,0),"") ->  | C14: =IFERROR(HLOOKUP(A14&B14,'Plan Design Input'!$1:$5,PlanTypeRange,0),"") ->  | I14: 12
B15: =IFERROR(HLOOKUP(ROW()-1,'Plan Design Input'!$3:$4,PlanNameRange-2,0),"") ->  | C15: =IFERROR(HLOOKUP(A15&B15,'Plan Design Input'!$1:$5,PlanTypeRange,0),"") ->  | I15: 13
B16: =IFERROR(HLOOKUP(ROW()-1,'Plan Design Input'!$3:$4,PlanNameRange-2,0),"") ->  | C16: =IFERROR(HLOOKUP(A16&B16,'Plan Design Input'!$1:$5,PlanTypeRange,0),"") ->  | I16: 14
B17: =IFERROR(HLOOKUP(ROW()-1,'Plan Design Input'!$3:$4,PlanNameRange-2,0),"") ->  | C17: =IFERROR(HLOOKUP(A17&B17,'Plan Design Input'!$1:$5,PlanTypeRange,0),"") ->  | I17: 15
B18: =IFERROR(HLOOKUP(ROW()-1,'Plan Design Input'!$3:$4,PlanNameRange-2,0),"") ->  | C18: =IFERROR(HLOOKUP(A18&B18,'Plan Design Input'!$1:$5,PlanTypeRange,0),"") ->  | I18: 16
B19: =IFERROR(HLOOKUP(ROW()-1,'Plan Design Input'!$3:$4,PlanNameRange-2,0),"") ->  | C19: =IFERROR(HLOOKUP(A19&B19,'Plan Design Input'!$1:$5,PlanTypeRange,0),"") ->  | I19: 17
B20: =IFERROR(HLOOKUP(ROW()-1,'Plan Design Input'!$3:$4,PlanNameRange-2,0),"") ->  | C20: =IFERROR(HLOOKUP(A20&B20,'Plan Design Input'!$1:$5,PlanTypeRange,0),"") ->  | I20: 18
B21: =IFERROR(HLOOKUP(ROW()-1,'Plan Design Input'!$3:$4,PlanNameRange-2,0),"") ->  | C21: =IFERROR(HLOOKUP(A21&B21,'Plan Design Input'!$1:$5,PlanTypeRange,0),"") ->  | I21: 19
I22: 20
I23: 21
I24: 22
I25: 23
I26: 24
I27: 25
I28: 26
I29: 27
I30: 28
I31: 29
I32: 30
I33: 31
I34: 32
I35: 33
I36: 34
I37: 35
I38: 36
I39: 37
I40: 38
I41: 39
I42: 40
I43: 41
I44: 42
I45: 43
I46: 44
I47: 45
I48: 46
I49: 47
I50: 48
I51: 49
I52: 50
I53: 51
I54: 52
I55: 53
I56: 54
I57: 55
I58: 56
I59: 57
I60: 58
I61: 59
I62: 60
I63: 61
I64: 62
I65: 63
I66: 64
I67: 65
I68: =1+I67 -> 66
I69: 67
I70: 68
I71: 69
I72: 70
I73: 71
I74: 72
I75: 73
I76: 74
I77: 75
I78: 76
I79: 77
I80: 78
I81: 79
I82: 80
I83: 81
I84: 82
I85: 83
I86: 84
I87: 85
I88: 86
I89: 87
I90: 88
I91: 89
I92: 90
I93: 91
I94: 92
I95: 93
I96: 94
I97: 95
I98: 96
I99: 97
I100: 98
I101: 99
I102: 100

Sheet Definitions (hidden)
A1: Service Type List
A3: Service Type | B3: Service Description | C3: Full Description
A4: In | B4: Hospital | C4: Hospital Stay
A5: In | B5: Surgery | C5: Surgery
A6: In | B6: MHSA | C6: Mental/Behavioral Health / Substance Abuse
A7: In | B7: SNF | C7: Skilled Nursing Facility
A8: In | B8: NH | C8: Nursing Home
A9: Out | B9: ER | C9: Emergency Room
A10: Out | B10: UC | C10: Urgent Care Clinic
A11: Out | B11: Surgery | C11: Surgery
A12: Out | B12: MHSA | C12: Mental/Behavioral Health / Substance Abuse
A13: Out | B13: Rx | C13: Charges for Drugs Administered at a Facility
A14: Out | B14: X-ray/Lab | C14: X-ray/Lab
A15: Out | B15: Adv Rad | C15: Advanced Radiology (CT Scan, MRI, PET Scan)
A16: Out | B16: All Other | C16: All Other Outpatients Procedures
A17: Professional | B17: PCP | C17: Primary Care Physician
A18: Professional | B18: SCP | C18: Specialty Care Physician
A19: Professional | B19: Maternity | C19: Maternity Charges
A20: Professional | B20: Off Surgery | C20: Surgery performed in an office setting
A21: Professional | B21: PCP Facility | C21: PCP Charges for services in a Facility
A22: Professional | B22: SCP Facility | C22: SCP Charges for services in a Facility
A23: Professional | B23: Rx | C23: Charges for Drugs Administered by a Professional
A24: Professional | B24: X-ray/Lab | C24: X-ray/Lab
A25: Professional | B25: Adv Rad | C25: Advanced Radiology (CT Scan, MRI, PET Scan)
A26: Professional | B26: MHSA | C26: Mental/Behavioral Health / Substance Abuse
A27: Professional | B27: PhyTh/SpTh/OccTh | C27: Physical Therapy, Speech Therapy, Occupational Therapy
A28: Professional | B28: Chiro | C28: Chiropractic
A29: Professional | B29: Anesthetia | C29: Anesthetia
A30: Professional | B30: Vis/Hear/Sp | C30: Vision/Hearing/Speech Exams
A31: Professional | B31: All Other | C31: All Other Professional Procedures
A32: Other | B32: Ambulance | C32: Ambulance
A33: Other | B33: HHC | C33: Home Health Care
A34: Other | B34: DME | C34: Durable Medical Equipment / Prosthetics
A35: Rx | B35: Retail | C35: Retail
A36: Rx | B36: Mail | C36: Mail Order

Sheet Start (hidden)
C2: Start | D2: End
B3: Experience Period | C3: =+C4 -> 2016-01-01 | D3: =+D4 -> 2016-12-31
B4: Projection Period | C4: 2016-01-01 | D4: 2016-12-31
B5: Trend Months | C5: =DATEDIF(AVERAGE(C3:D3),AVERAGE(C4:D4),"M") -> 0
B7: Trends
A8: Inp | B8: Inpatient | C8: 0
A9: Out | B9: Outpatient | C9: 0
A10: Pro | B10: Professional | C10: 0
A11: Oth | B11: Other | C11: 0
A12: Rx1 | B12: Rx - Generic | C12: 0
A13: Rx2 | B13: Rx - Brand - Tier 2 | C13: 0
A14: Rx3 | B14: Rx - Brand - Tier 3 | C14: 0
A15: Rx4 | B15: Rx - Brand - Tier 4 | C15: 0
